Workbook

Sheet README
A2: Alternatives for Disposition of Electronics Planning Tool (ADEPT)
A4: Developed by RTI International for EPA's Office of Research and Development (ORD)
B10: DISCLAIMERS | D10: General Notes
B11: ADEPT is a model that begins with nationally representative sales data. To disaggregate to the state-level, national sales are distributed via state shares of total GDP. This method does not account for specific state policies or actual state-level sales. | D11: Waste may be sent directly to landfill during each stage in the flow or through the recycling chain. At each step in the recycling chain (i.e., collectors to recyclers), there is a fixed materials extraction efficiency applied to all products. For example, the default efficiency parameter from collectors to recyclers is 85%. This means that 85% of materials continue to recyclers and the remaining 15% goes to landfill. These efficiency parameters can be adjusted in the Control Panel’s Behavior tab. These incremental movements of product and material weight to landfill is cumulative. The Total E-Waste Disposal for landfill is the cumulative waste disposed, for a given year, across each of these steps.
B12: Flows of waste between states are not accounted for. Accounting of waste is performed at the national-level and is then disaggregated to states. This may not reflect the true nature of how states manage e-waste or how e-waste flows between states. | D12: Material composition for each product is static across years. This assumption is based on a laboratory study by the Rochester Institute of Technology (Babbitt et al., 2017).
B13: Assumptions are based on literature, prior research, industry standards, and anecdotal evidence from stakeholder interviews and conversations. The user should adjust assumptions and parameters to appropriately match their information, assumptions, and specific needs. | D13: Changes to any ADEPT default assumptions are not made until the ADEPT is run, by clicking the Run Model button within the Control Panel. Once the Control Panel is closed and the model run results have been presented, the assumptions within the ADEPT reset to defaults.
B14: Projections of future sales and sales growth are made via simple linear projections. These projections can be edited by the user. | D14: Assumptions are designed to be changed within the Control Panel. Any assumption initially presented to the user in the Control Panel can be adjusted.
D15: The color coding within the map has no significance and is only for ease of use and aesthetics.
B16: Quick Start Instructions | D16: There are Run Model buttons on the various assumptions tabs within the Control Panel. Clicking those buttons will run the ADEPT with the updated assumptions but not close the Control Panel, allowing you to make incremental changes to various assumptions without losing all assumption changes. To close the Control Panel after running the ADEPT, use the red close button in the top right corner or use the Run Model button on the General tab.
B17: Navigate to the sheet labeled INOUT. NOTE: The file may initially open in a non-editable mode and may cause features such as the Control Panel button to be non-responsive. If this is the case, click the Enable Content button.
B18: Click the abbreviation for the desired state on the map. This opens the General tab on the Control Panel for the selected state, which is highlighted in the Level of Analysis list. You can then select the year to be modeled, up to the year 2015.
B19: Alternatively, you can click on the Control Panel button on the INOUT screen. This also opens the Control Panel General tab and you can then select the state from the Level of Analysis list and select the year to be modeled.
B20: In addition, the Control Panel provides access to various tabs where you can make changes to ADEPT assumptions as you see fit (see Section 2.1.3). You can use the toggle buttons provided to either increase or decrease assumption input values or enter a value directly in the data field.
B21: Once satisfied with the changes, click the blue button labeled Run Model (Exit Control Panel).[1] The ADEPT will update with any changes to the default parameters you made within the Control Panel, and then the Control Panel will automatically close when finished. Note that the update process may take up to a minute to run. “Recalculating—Please Wait” will be displayed during this time. You should see updated values appear in the summary tables on the right-hand side of the INOUT sheet.
B22: Explore the ADEPT output in the data visualization sheets and summary pivot tables located on sheets with tabs highlighted in green.
B25: Assumptions | C25: Sources
B26: National Product Sales | C26: EPA 2008 Waste Management Approach
B27: Product Weights | C27: EPA 2008 Waste Management Approach
B28: Market Share | C28: EPA 2008 Waste Management Approach and RTI Estimates
B29: Technical Lifetimes | C29: C.P. Balde, R. Kuehr, K. Blumenthal, S. Fondeur Gill, M. Kern, P. Micheli, E. Magpantay, J. Huisman (2015), E-waste statistics: Guidelines on classifications, reporting and indicators. United Nations University, IAS - SCYCLE, Bonn, Germany. 2015.
C30: Wang, Feng, Jaco Huisman, Ab Stevels, Cornelis Peter Baldé, 2013. Enhancing e-waste estimates: Improving data quality by multivariate Input–Output Analysis. Waste Management. Volume 33, Issue 11, November 2013, Pages 2397–2407

Sheet INOUT
A2: Alternatives for Disposition of Electronics Planning Tool (ADEPT)
A4: Developed by RTI International for EPA's Office of Research and Development (ORD)
A10: Click on a state abbreviation to run that state or press the Control Panel button to run (ALL) States | E10: Disposal_Year | F10: =CPInput!B3 -> 2015
E11: Column | F11: =COLUMN(INDIRECT("Generation!R2C"&(F10-1975),FALSE)) ->  | L11: Navigation to Workbook Sheets (Advanced Users Only)
F12: ="Total Weight Disposition in "&F10&" (Metric Tons)" -> Total Weight Disposition in 2015 (Metric Tons) | L12: Active | N12: Inactive (Hidden)
E13: Products | F13: RES | G13: EDU | H13: COM | I13: INST | J13: Total | L13: Model Assumptions | M13: Model Output | N13: Input Data | O13: Model Components
B14: Level of Analysis | C14: Individual_State | E14: Cell Phones | F14: =(GETPIVOTDATA("Sum of "&disposal_year,PivotTables!$A$68,"Product",$E14,"Market",F$13)-GETPIVOTDATA("Sum of SecondUse_Weight",PivotTables!$A$225,"Product",$E14,"SecondUse_Yr",disposal_year,"Market",F$13))+GETPIVOTDATA("Sum of "&disposal_year,PivotTables!$A$155,"Product",$E14,"Market",F$13) -> 8823.054524 | G14: =(GETPIVOTDATA("Sum of "&disposal_year,PivotTables!$A$68,"Product",$E14,"Market",G$13)-GETPIVOTDATA("Sum of SecondUse_Weight",PivotTables!$A$225,"Product",$E14,"SecondUse_Yr",disposal_year,"Market",G$13))+GETPIVOTDATA("Sum of "&disposal_year,PivotTables!$A$155,"Product",$E14,"Market",G$13) -> 466.8939048 | H14: =(GETPIVOTDATA("Sum of "&disposal_year,PivotTables!$A$68,"Product",$E14,"Market",H$13)-GETPIVOTDATA("Sum of SecondUse_Weight",PivotTables!$A$225,"Product",$E14,"SecondUse_Yr",disposal_year,"Market",H$13))+GETPIVOTDATA("Sum of "&disposal_year,PivotTables!$A$155,"Product",$E14,"Market",H$13) -> 6154.043023 | I14: =(GETPIVOTDATA("Sum of "&disposal_year,PivotTables!$A$68,"Product",$E14,"Market","INT")-GETPIVOTDATA("Sum of SecondUse_Weight",PivotTables!$A$225,"Product",$E14,"SecondUse_Yr",disposal_year,"Market","INT"))+GETPIVOTDATA("Sum of "&disposal_year,PivotTables!$A$155,"Product",$E14,"Market","INT") -> 984.7542271 | J14: =SUM(F14:I14) -> 16428.74568 | L14: Behavior | M14: Total Waste | N14: Sales | O14: First Use Waste
E15: Color CRT <19" | F15: =(GETPIVOTDATA("Sum of "&disposal_year,PivotTables!$A$68,"Product",$E15,"Market",F$13)-GETPIVOTDATA("Sum of SecondUse_Weight",PivotTables!$A$225,"Product",$E15,"SecondUse_Yr",disposal_year,"Market",F$13))+GETPIVOTDATA("Sum of "&disposal_year,PivotTables!$A$155,"Product",$E15,"Market",F$13) -> 63207.28794 | G15: =(GETPIVOTDATA("Sum of "&disposal_year,PivotTables!$A$68,"Product",$E15,"Market",G$13)-GETPIVOTDATA("Sum of SecondUse_Weight",PivotTables!$A$225,"Product",$E15,"SecondUse_Yr",disposal_year,"Market",G$13))+GETPIVOTDATA("Sum of "&disposal_year,PivotTables!$A$155,"Product",$E15,"Market",G$13) -> 15801.82199 | H15: =(GETPIVOTDATA("Sum of "&disposal_year,PivotTables!$A$68,"Product",$E15,"Market",H$13)-GETPIVOTDATA("Sum of SecondUse_Weight",PivotTables!$A$225,"Product",$E15,"SecondUse_Yr",disposal_year,"Market",H$13))+GETPIVOTDATA("Sum of "&disposal_year,PivotTables!$A$155,"Product",$E15,"Market",H$13) -> 0 | I15: =(GETPIVOTDATA("Sum of "&disposal_year,PivotTables!$A$68,"Product",$E15,"Market","INT")-GETPIVOTDATA("Sum of SecondUse_Weight",PivotTables!$A$225,"Product",$E15,"SecondUse_Yr",disposal_year,"Market","INT"))+GETPIVOTDATA("Sum of "&disposal_year,PivotTables!$A$155,"Product",$E15,"Market","INT") -> 0 | J15: 79009.10993 | L15: Material Composition | M15: Waste by Market | O15: Second Use Waste
B16: Analysis State currently displayed | C16: =IF(CPInput!B2=0,"(ALL)",CPInput!B2) -> (ALL) | E16: Color CRT >19" | F16: =(GETPIVOTDATA("Sum of "&disposal_year,PivotTables!$A$68,"Product",$E16,"Market",F$13)-GETPIVOTDATA("Sum of SecondUse_Weight",PivotTables!$A$225,"Product",$E16,"SecondUse_Yr",disposal_year,"Market",F$13))+GETPIVOTDATA("Sum of "&disposal_year,PivotTables!$A$155,"Product",$E16,"Market",F$13) -> 213833.2234 | G16: =(GETPIVOTDATA("Sum of "&disposal_year,PivotTables!$A$68,"Product",$E16,"Market",G$13)-GETPIVOTDATA("Sum of SecondUse_Weight",PivotTables!$A$225,"Product",$E16,"SecondUse_Yr",disposal_year,"Market",G$13))+GETPIVOTDATA("Sum of "&disposal_year,PivotTables!$A$155,"Product",$E16,"Market",G$13) -> 53458.30584 | H16: =(GETPIVOTDATA("Sum of "&disposal_year,PivotTables!$A$68,"Product",$E16,"Market",H$13)-GETPIVOTDATA("Sum of SecondUse_Weight",PivotTables!$A$225,"Product",$E16,"SecondUse_Yr",disposal_year,"Market",H$13))+GETPIVOTDATA("Sum of "&disposal_year,PivotTables!$A$155,"Product",$E16,"Market",H$13) -> 0 | I16: =(GETPIVOTDATA("Sum of "&disposal_year,PivotTables!$A$68,"Product",$E16,"Market","INT")-GETPIVOTDATA("Sum of SecondUse_Weight",PivotTables!$A$225,"Product",$E16,"SecondUse_Yr",disposal_year,"Market","INT"))+GETPIVOTDATA("Sum of "&disposal_year,PivotTables!$A$155,"Product",$E16,"Market","INT") -> 0 | J16: 267291.5292 | L16: Product Weights | M16: Waste by Materials | O16: Collector
E17: Color Projection | F17: =(GETPIVOTDATA("Sum of "&disposal_year,PivotTables!$A$68,"Product",$E17,"Market",F$13)-GETPIVOTDATA("Sum of SecondUse_Weight",PivotTables!$A$225,"Product",$E17,"SecondUse_Yr",disposal_year,"Market",F$13))+GETPIVOTDATA("Sum of "&disposal_year,PivotTables!$A$155,"Product",$E17,"Market",F$13) -> 37649.54742 | G17: =(GETPIVOTDATA("Sum of "&disposal_year,PivotTables!$A$68,"Product",$E17,"Market",G$13)-GETPIVOTDATA("Sum of SecondUse_Weight",PivotTables!$A$225,"Product",$E17,"SecondUse_Yr",disposal_year,"Market",G$13))+GETPIVOTDATA("Sum of "&disposal_year,PivotTables!$A$155,"Product",$E17,"Market",G$13) -> 9412.386855 | H17: =(GETPIVOTDATA("Sum of "&disposal_year,PivotTables!$A$68,"Product",$E17,"Market",H$13)-GETPIVOTDATA("Sum of SecondUse_Weight",PivotTables!$A$225,"Product",$E17,"SecondUse_Yr",disposal_year,"Market",H$13))+GETPIVOTDATA("Sum of "&disposal_year,PivotTables!$A$155,"Product",$E17,"Market",H$13) -> 0 | I17: =(GETPIVOTDATA("Sum of "&disposal_year,PivotTables!$A$68,"Product",$E17,"Market","INT")-GETPIVOTDATA("Sum of SecondUse_Weight",PivotTables!$A$225,"Product",$E17,"SecondUse_Yr",disposal_year,"Market","INT"))+GETPIVOTDATA("Sum of "&disposal_year,PivotTables!$A$155,"Product",$E17,"Market","INT") -> 0 | J17: 47061.93427 | L17: Market Segments | M17: Pivot Tables | O17: Recycler
E18: Desktops | F18: =(GETPIVOTDATA("Sum of "&disposal_year,PivotTables!$A$68,"Product",$E18,"Market",F$13)-GETPIVOTDATA("Sum of SecondUse_Weight",PivotTables!$A$225,"Product",$E18,"SecondUse_Yr",disposal_year,"Market",F$13))+GETPIVOTDATA("Sum of "&disposal_year,PivotTables!$A$155,"Product",$E18,"Market",F$13) -> 68958.84826 | G18: =(GETPIVOTDATA("Sum of "&disposal_year,PivotTables!$A$68,"Product",$E18,"Market",G$13)-GETPIVOTDATA("Sum of SecondUse_Weight",PivotTables!$A$225,"Product",$E18,"SecondUse_Yr",disposal_year,"Market",G$13))+GETPIVOTDATA("Sum of "&disposal_year,PivotTables!$A$155,"Product",$E18,"Market",G$13) -> 82638.6831 | H18: =(GETPIVOTDATA("Sum of "&disposal_year,PivotTables!$A$68,"Product",$E18,"Market",H$13)-GETPIVOTDATA("Sum of SecondUse_Weight",PivotTables!$A$225,"Product",$E18,"SecondUse_Yr",disposal_year,"Market",H$13))+GETPIVOTDATA("Sum of "&disposal_year,PivotTables!$A$155,"Product",$E18,"Market",H$13) -> 72545.78015 | I18: =(GETPIVOTDATA("Sum of "&disposal_year,PivotTables!$A$68,"Product",$E18,"Market","INT")-GETPIVOTDATA("Sum of SecondUse_Weight",PivotTables!$A$225,"Product",$E18,"SecondUse_Yr",disposal_year,"Market","INT"))+GETPIVOTDATA("Sum of "&disposal_year,PivotTables!$A$155,"Product",$E18,"Market","INT") -> 36432.08656 | J18: 260575.3981 | L18: First Use Lifetimes | O18: Processor
E19: Flat Panel TVs | F19: =(GETPIVOTDATA("Sum of "&disposal_year,PivotTables!$A$68,"Product",$E19,"Market",F$13)-GETPIVOTDATA("Sum of SecondUse_Weight",PivotTables!$A$225,"Product",$E19,"SecondUse_Yr",disposal_year,"Market",F$13))+GETPIVOTDATA("Sum of "&disposal_year,PivotTables!$A$155,"Product",$E19,"Market",F$13) -> 31296.44785 | G19: =(GETPIVOTDATA("Sum of "&disposal_year,PivotTables!$A$68,"Product",$E19,"Market",G$13)-GETPIVOTDATA("Sum of SecondUse_Weight",PivotTables!$A$225,"Product",$E19,"SecondUse_Yr",disposal_year,"Market",G$13))+GETPIVOTDATA("Sum of "&disposal_year,PivotTables!$A$155,"Product",$E19,"Market",G$13) -> 7824.111961 | H19: =(GETPIVOTDATA("Sum of "&disposal_year,PivotTables!$A$68,"Product",$E19,"Market",H$13)-GETPIVOTDATA("Sum of SecondUse_Weight",PivotTables!$A$225,"Product",$E19,"SecondUse_Yr",disposal_year,"Market",H$13))+GETPIVOTDATA("Sum of "&disposal_year,PivotTables!$A$155,"Product",$E19,"Market",H$13) -> 0 | I19: =(GETPIVOTDATA("Sum of "&disposal_year,PivotTables!$A$68,"Product",$E19,"Market","INT")-GETPIVOTDATA("Sum of SecondUse_Weight",PivotTables!$A$225,"Product",$E19,"SecondUse_Yr",disposal_year,"Market","INT"))+GETPIVOTDATA("Sum of "&disposal_year,PivotTables!$A$155,"Product",$E19,"Market","INT") -> 0 | J19: 39120.55981 | L19: Second Use Lifetimes | O19: Landfill
E20: Hard Copy Peripherals | F20: =(GETPIVOTDATA("Sum of "&disposal_year,PivotTables!$A$68,"Product",$E20,"Market",F$13)-GETPIVOTDATA("Sum of SecondUse_Weight",PivotTables!$A$225,"Product",$E20,"SecondUse_Yr",disposal_year,"Market",F$13))+GETPIVOTDATA("Sum of "&disposal_year,PivotTables!$A$155,"Product",$E20,"Market",F$13) -> 93059.73844 | G20: =(GETPIVOTDATA("Sum of "&disposal_year,PivotTables!$A$68,"Product",$E20,"Market",G$13)-GETPIVOTDATA("Sum of SecondUse_Weight",PivotTables!$A$225,"Product",$E20,"SecondUse_Yr",disposal_year,"Market",G$13))+GETPIVOTDATA("Sum of "&disposal_year,PivotTables!$A$155,"Product",$E20,"Market",G$13) -> 7785.892565 | H20: =(GETPIVOTDATA("Sum of "&disposal_year,PivotTables!$A$68,"Product",$E20,"Market",H$13)-GETPIVOTDATA("Sum of SecondUse_Weight",PivotTables!$A$225,"Product",$E20,"SecondUse_Yr",disposal_year,"Market",H$13))+GETPIVOTDATA("Sum of "&disposal_year,PivotTables!$A$155,"Product",$E20,"Market",H$13) -> 45046.32995 | I20: =(GETPIVOTDATA("Sum of "&disposal_year,PivotTables!$A$68,"Product",$E20,"Market","INT")-GETPIVOTDATA("Sum of SecondUse_Weight",PivotTables!$A$225,"Product",$E20,"SecondUse_Yr",disposal_year,"Market","INT"))+GETPIVOTDATA("Sum of "&disposal_year,PivotTables!$A$155,"Product",$E20,"Market","INT") -> 7529.29433 | J20: 153421.2553 | O20: Commodity Market
E21: Keyboards | F21: =(GETPIVOTDATA("Sum of "&disposal_year,PivotTables!$A$68,"Product",$E21,"Market",F$13)-GETPIVOTDATA("Sum of SecondUse_Weight",PivotTables!$A$225,"Product",$E21,"SecondUse_Yr",disposal_year,"Market",F$13))+GETPIVOTDATA("Sum of "&disposal_year,PivotTables!$A$155,"Product",$E21,"Market",F$13) -> 5004.819878 | G21: =(GETPIVOTDATA("Sum of "&disposal_year,PivotTables!$A$68,"Product",$E21,"Market",G$13)-GETPIVOTDATA("Sum of SecondUse_Weight",PivotTables!$A$225,"Product",$E21,"SecondUse_Yr",disposal_year,"Market",G$13))+GETPIVOTDATA("Sum of "&disposal_year,PivotTables!$A$155,"Product",$E21,"Market",G$13) -> 6004.990358 | H21: =(GETPIVOTDATA("Sum of "&disposal_year,PivotTables!$A$68,"Product",$E21,"Market",H$13)-GETPIVOTDATA("Sum of SecondUse_Weight",PivotTables!$A$225,"Product",$E21,"SecondUse_Yr",disposal_year,"Market",H$13))+GETPIVOTDATA("Sum of "&disposal_year,PivotTables!$A$155,"Product",$E21,"Market",H$13) -> 5993.087915 | I21: =(GETPIVOTDATA("Sum of "&disposal_year,PivotTables!$A$68,"Product",$E21,"Market","INT")-GETPIVOTDATA("Sum of SecondUse_Weight",PivotTables!$A$225,"Product",$E21,"SecondUse_Yr",disposal_year,"Market","INT"))+GETPIVOTDATA("Sum of "&disposal_year,PivotTables!$A$155,"Product",$E21,"Market","INT") -> 3000.511438 | J21: 20003.40959
E22: Mice | F22: =(GETPIVOTDATA("Sum of "&disposal_year,PivotTables!$A$68,"Product",$E22,"Market",F$13)-GETPIVOTDATA("Sum of SecondUse_Weight",PivotTables!$A$225,"Product",$E22,"SecondUse_Yr",disposal_year,"Market",F$13))+GETPIVOTDATA("Sum of "&disposal_year,PivotTables!$A$155,"Product",$E22,"Market",F$13) -> 380.4737625 | G22: =(GETPIVOTDATA("Sum of "&disposal_year,PivotTables!$A$68,"Product",$E22,"Market",G$13)-GETPIVOTDATA("Sum of SecondUse_Weight",PivotTables!$A$225,"Product",$E22,"SecondUse_Yr",disposal_year,"Market",G$13))+GETPIVOTDATA("Sum of "&disposal_year,PivotTables!$A$155,"Product",$E22,"Market",G$13) -> 456.5081923 | H22: =(GETPIVOTDATA("Sum of "&disposal_year,PivotTables!$A$68,"Product",$E22,"Market",H$13)-GETPIVOTDATA("Sum of SecondUse_Weight",PivotTables!$A$225,"Product",$E22,"SecondUse_Yr",disposal_year,"Market",H$13))+GETPIVOTDATA("Sum of "&disposal_year,PivotTables!$A$155,"Product",$E22,"Market",H$13) -> 455.6033511 | I22: =(GETPIVOTDATA("Sum of "&disposal_year,PivotTables!$A$68,"Product",$E22,"Market","INT")-GETPIVOTDATA("Sum of SecondUse_Weight",PivotTables!$A$225,"Product",$E22,"SecondUse_Yr",disposal_year,"Market","INT"))+GETPIVOTDATA("Sum of "&disposal_year,PivotTables!$A$155,"Product",$E22,"Market","INT") -> 228.1032893 | J22: 1520.688595
E23: Monochrome | F23: =(GETPIVOTDATA("Sum of "&disposal_year,PivotTables!$A$68,"Product",$E23,"Market",F$13)-GETPIVOTDATA("Sum of SecondUse_Weight",PivotTables!$A$225,"Product",$E23,"SecondUse_Yr",disposal_year,"Market",F$13))+GETPIVOTDATA("Sum of "&disposal_year,PivotTables!$A$155,"Product",$E23,"Market",F$13) -> 4158.880481 | G23: =(GETPIVOTDATA("Sum of "&disposal_year,PivotTables!$A$68,"Product",$E23,"Market",G$13)-GETPIVOTDATA("Sum of SecondUse_Weight",PivotTables!$A$225,"Product",$E23,"SecondUse_Yr",disposal_year,"Market",G$13))+GETPIVOTDATA("Sum of "&disposal_year,PivotTables!$A$155,"Product",$E23,"Market",G$13) -> 1039.72012 | H23: =(GETPIVOTDATA("Sum of "&disposal_year,PivotTables!$A$68,"Product",$E23,"Market",H$13)-GETPIVOTDATA("Sum of SecondUse_Weight",PivotTables!$A$225,"Product",$E23,"SecondUse_Yr",disposal_year,"Market",H$13))+GETPIVOTDATA("Sum of "&disposal_year,PivotTables!$A$155,"Product",$E23,"Market",H$13) -> 0 | I23: =(GETPIVOTDATA("Sum of "&disposal_year,PivotTables!$A$68,"Product",$E23,"Market","INT")-GETPIVOTDATA("Sum of SecondUse_Weight",PivotTables!$A$225,"Product",$E23,"SecondUse_Yr",disposal_year,"Market","INT"))+GETPIVOTDATA("Sum of "&disposal_year,PivotTables!$A$155,"Product",$E23,"Market","INT") -> 0 | J23: 5198.600602
E24: PC CRTs | F24: =(GETPIVOTDATA("Sum of "&disposal_year,PivotTables!$A$68,"Product",$E24,"Market",F$13)-GETPIVOTDATA("Sum of SecondUse_Weight",PivotTables!$A$225,"Product",$E24,"SecondUse_Yr",disposal_year,"Market",F$13))+GETPIVOTDATA("Sum of "&disposal_year,PivotTables!$A$155,"Product",$E24,"Market",F$13) -> 22401.38555 | G24: =(GETPIVOTDATA("Sum of "&disposal_year,PivotTables!$A$68,"Product",$E24,"Market",G$13)-GETPIVOTDATA("Sum of SecondUse_Weight",PivotTables!$A$225,"Product",$E24,"SecondUse_Yr",disposal_year,"Market",G$13))+GETPIVOTDATA("Sum of "&disposal_year,PivotTables!$A$155,"Product",$E24,"Market",G$13) -> 26621.52802 | H24: =(GETPIVOTDATA("Sum of "&disposal_year,PivotTables!$A$68,"Product",$E24,"Market",H$13)-GETPIVOTDATA("Sum of SecondUse_Weight",PivotTables!$A$225,"Product",$E24,"SecondUse_Yr",disposal_year,"Market",H$13))+GETPIVOTDATA("Sum of "&disposal_year,PivotTables!$A$155,"Product",$E24,"Market",H$13) -> 4.405289464 | I24: =(GETPIVOTDATA("Sum of "&disposal_year,PivotTables!$A$68,"Product",$E24,"Market","INT")-GETPIVOTDATA("Sum of SecondUse_Weight",PivotTables!$A$225,"Product",$E24,"SecondUse_Yr",disposal_year,"Market","INT"))+GETPIVOTDATA("Sum of "&disposal_year,PivotTables!$A$155,"Product",$E24,"Market","INT") -> 519.142688 | J24: 49546.46155
E25: PC Flat Panel | F25: =(GETPIVOTDATA("Sum of "&disposal_year,PivotTables!$A$68,"Product",$E25,"Market",F$13)-GETPIVOTDATA("Sum of SecondUse_Weight",PivotTables!$A$225,"Product",$E25,"SecondUse_Yr",disposal_year,"Market",F$13))+GETPIVOTDATA("Sum of "&disposal_year,PivotTables!$A$155,"Product",$E25,"Market",F$13) -> 47072.20001 | G25: =(GETPIVOTDATA("Sum of "&disposal_year,PivotTables!$A$68,"Product",$E25,"Market",G$13)-GETPIVOTDATA("Sum of SecondUse_Weight",PivotTables!$A$225,"Product",$E25,"SecondUse_Yr",disposal_year,"Market",G$13))+GETPIVOTDATA("Sum of "&disposal_year,PivotTables!$A$155,"Product",$E25,"Market",G$13) -> 56743.57258 | H25: =(GETPIVOTDATA("Sum of "&disposal_year,PivotTables!$A$68,"Product",$E25,"Market",H$13)-GETPIVOTDATA("Sum of SecondUse_Weight",PivotTables!$A$225,"Product",$E25,"SecondUse_Yr",disposal_year,"Market",H$13))+GETPIVOTDATA("Sum of "&disposal_year,PivotTables!$A$155,"Product",$E25,"Market",H$13) -> 76741.08534 | I25: =(GETPIVOTDATA("Sum of "&disposal_year,PivotTables!$A$68,"Product",$E25,"Market","INT")-GETPIVOTDATA("Sum of SecondUse_Weight",PivotTables!$A$225,"Product",$E25,"SecondUse_Yr",disposal_year,"Market","INT"))+GETPIVOTDATA("Sum of "&disposal_year,PivotTables!$A$155,"Product",$E25,"Market","INT") -> 37886.89162 | J25: 218443.7495
E26: Portables | F26: =(GETPIVOTDATA("Sum of "&disposal_year,PivotTables!$A$68,"Product",$E26,"Market",F$13)-GETPIVOTDATA("Sum of SecondUse_Weight",PivotTables!$A$225,"Product",$E26,"SecondUse_Yr",disposal_year,"Market",F$13))+GETPIVOTDATA("Sum of "&disposal_year,PivotTables!$A$155,"Product",$E26,"Market",F$13) -> 87971.84868 | G26: =(GETPIVOTDATA("Sum of "&disposal_year,PivotTables!$A$68,"Product",$E26,"Market",G$13)-GETPIVOTDATA("Sum of SecondUse_Weight",PivotTables!$A$225,"Product",$E26,"SecondUse_Yr",disposal_year,"Market",G$13))+GETPIVOTDATA("Sum of "&disposal_year,PivotTables!$A$155,"Product",$E26,"Market",G$13) -> 16744.36548 | H26: =(GETPIVOTDATA("Sum of "&disposal_year,PivotTables!$A$68,"Product",$E26,"Market",H$13)-GETPIVOTDATA("Sum of SecondUse_Weight",PivotTables!$A$225,"Product",$E26,"SecondUse_Yr",disposal_year,"Market",H$13))+GETPIVOTDATA("Sum of "&disposal_year,PivotTables!$A$155,"Product",$E26,"Market",H$13) -> 85242.65902 | I26: =(GETPIVOTDATA("Sum of "&disposal_year,PivotTables!$A$68,"Product",$E26,"Market","INT")-GETPIVOTDATA("Sum of SecondUse_Weight",PivotTables!$A$225,"Product",$E26,"SecondUse_Yr",disposal_year,"Market","INT"))+GETPIVOTDATA("Sum of "&disposal_year,PivotTables!$A$155,"Product",$E26,"Market","INT") -> 39329.7262 | J26: 229288.5994
E27: Total E-Waste Disposal | F27: =SUM(F14:F26) -> 683817.7562 | G27: =SUM(G14:G26) -> 284998.781 | H27: =SUM(H14:H26) -> 292182.994 | I27: =SUM(I14:I26) -> 125910.5103 | J27: 1386910.042
E30: Material | F30: Commodity Market | G30: Landfill | H30: Total
E31: Aluminum | F31: =GETPIVOTDATA("Sum of All Products",PivotTables!$A$531,"Year",disposal_year,"Commodity",$E31) -> 16421.73362 | G31: =GETPIVOTDATA("Sum of All Products",PivotTables!$A$865,"Year",disposal_year,"Commodity",$E31) -> 61076.24809 | H31: =SUM(F31:G31) -> 77497.98171
E32: Battery | F32: =GETPIVOTDATA("Sum of All Products",PivotTables!$A$531,"Year",disposal_year,"Commodity",$E32) -> 7268.026929 | G32: =GETPIVOTDATA("Sum of All Products",PivotTables!$A$865,"Year",disposal_year,"Commodity",$E32) -> 27789.55121 | H32: =SUM(F32:G32) -> 35057.57814
E33: Copper | F33: =GETPIVOTDATA("Sum of All Products",PivotTables!$A$531,"Year",disposal_year,"Commodity",$E33) -> 8288.195417 | G33: =GETPIVOTDATA("Sum of All Products",PivotTables!$A$865,"Year",disposal_year,"Commodity",$E33) -> 29960.57489 | H33: 38248.77031
E34: CRT Glass | F34: =GETPIVOTDATA("Sum of All Products",PivotTables!$A$531,"Year",disposal_year,"Commodity",$E34) -> 52524.83685 | G34: =GETPIVOTDATA("Sum of All Products",PivotTables!$A$865,"Year",disposal_year,"Commodity",$E34) -> 185740.7674 | H34: 238265.6043
E35: CRT Lead | F35: =GETPIVOTDATA("Sum of All Products",PivotTables!$A$531,"Year",disposal_year,"Commodity",$E35) -> 5811.730606 | G35: =GETPIVOTDATA("Sum of All Products",PivotTables!$A$865,"Year",disposal_year,"Commodity",$E35) -> 20552.12218 | H35: 26363.85278
E36: Ferrous Metal | F36: =GETPIVOTDATA("Sum of All Products",PivotTables!$A$531,"Year",disposal_year,"Commodity",$E36) -> 77256.35956 | G36: =GETPIVOTDATA("Sum of All Products",PivotTables!$A$865,"Year",disposal_year,"Commodity",$E36) -> 278885.2055 | H36: 356141.565
E37: Flat Panel Display Module CCFL | F37: =GETPIVOTDATA("Sum of All Products",PivotTables!$A$531,"Year",disposal_year,"Commodity",$E37) -> 20262.82952 | G37: =GETPIVOTDATA("Sum of All Products",PivotTables!$A$865,"Year",disposal_year,"Commodity",$E37) -> 74095.43239 | H37: 94358.26192
A38: US map from https://simple.wikipedia.org/wiki/U.S._postal_abbreviations | E38: Flat Panel Display Module LED | F38: =GETPIVOTDATA("Sum of All Products",PivotTables!$A$531,"Year",disposal_year,"Commodity",$E38) -> 686.4792358 | G38: =GETPIVOTDATA("Sum of All Products",PivotTables!$A$865,"Year",disposal_year,"Commodity",$E38) -> 2443.165549 | H38: 3129.644785
E39: Other | F39: =GETPIVOTDATA("Sum of All Products",PivotTables!$A$531,"Year",disposal_year,"Commodity",$E39) -> 3857.840344 | G39: =GETPIVOTDATA("Sum of All Products",PivotTables!$A$865,"Year",disposal_year,"Commodity",$E39) -> 14595.82165 | H39: 18453.662
E40: Other Metals | F40: =GETPIVOTDATA("Sum of All Products",PivotTables!$A$531,"Year",disposal_year,"Commodity",$E40) -> 3332.018358 | G40: =GETPIVOTDATA("Sum of All Products",PivotTables!$A$865,"Year",disposal_year,"Commodity",$E40) -> 12611.25577 | H40: 15943.27413
E41: PCB Material | F41: =GETPIVOTDATA("Sum of All Products",PivotTables!$A$531,"Year",disposal_year,"Commodity",$E41) -> 29045.65086 | G41: =GETPIVOTDATA("Sum of All Products",PivotTables!$A$865,"Year",disposal_year,"Commodity",$E41) -> 105753.8531 | H41: 134799.5039
E42: Plastics | F42: =GETPIVOTDATA("Sum of All Products",PivotTables!$A$531,"Year",disposal_year,"Commodity",$E42) -> 76241.21663 | G42: =GETPIVOTDATA("Sum of All Products",PivotTables!$A$865,"Year",disposal_year,"Commodity",$E42) -> 272409.1259 | H42: 348650.3425
E43: Total E-Waste Disposal | F43: =SUM(F31:F42) -> 300996.9179 | G43: =SUM(G31:G42) -> 1085913.124 | H43: 1386910.042
I46: ="Total Weight Disposition in "&F10&" (Short Tons)" -> Total Weight Disposition in 2015 (Short Tons)
H47: Products | I47: RES | J47: EDU | K47: COM | L47: INST | M47: Total
H48: Cell Phones | I48: =F14*1.10231 -> 9725.741233 | J48: =G14*1.10231 -> 514.6618202 | K48: 6783.663165 | L48: 1085.504432 | M48: =SUM(I48:L48) -> 18109.57065
H49: Color CRT <19" | I49: =F15*1.10231 -> 69674.02557 | J49: =G15*1.10231 -> 17418.50639 | K49: 0 | L49: 0 | M49: 87092.53196
H50: Color CRT >19" | I50: 235710.5005 | J50: =G16*1.10231 -> 58927.62511 | K50: 0 | L50: 0 | M50: 294638.1256
H51: Color Projection | I51: 41501.47261 | J51: =G17*1.10231 -> 10375.36815 | K51: 0 | L51: 0 | M51: 51876.84077
H52: Desktops | I52: 76014.02803 | J52: =G18*1.10231 -> 91093.44677 | K52: 79967.93891 | L52: 40159.45333 | M52: 287234.867
H53: Flat Panel TVs | I53: 34498.38742 | J53: =G19*1.10231 -> 8624.596856 | K53: 0 | L53: 0 | M53: 43122.98428
H54: Hard Copy Peripherals | I54: 102580.6803 | J54: =G20*1.10231 -> 8582.467234 | K54: 49655.01996 | L54: 8299.616433 | M54: 169117.7839
H55: Keyboards | I55: 5516.863 | J55: =G21*1.10231 -> 6619.360921 | K55: 6606.24074 | L55: 3307.493764 | M55: 22049.95843
H56: Mice | I56: 419.4000332 | J56: =G22*1.10231 -> 503.2135454 | K56: 502.2161299 | L56: 251.4405368 | M56: 1676.270245
H57: Monochrome | I57: 4584.375543 | J57: =G23*1.10231 -> 1146.093886 | K57: 0 | L57: 0 | M57: 5730.469429
H58: PC CRTs | I58: 24693.27131 | J58: =G24*1.10231 -> 29345.17655 | K58: 4.855994629 | L58: 572.2561764 | M58: 54615.56003
H59: PC Flat Panel | I59: 51888.15679 | J59: =G25*1.10231 -> 62549.0075 | K59: 84592.46578 | L59: 41763.0995 | M59: 240792.7296
H60: Portables | I60: 96972.24852 | J60: =G26*1.10231 -> 18457.48152 | K60: 93963.83546 | L60: 43353.55048 | M60: 252747.116
H61: Total E-Waste Disposal | I61: =SUM(I48:I60) -> 753779.1508 | J61: =SUM(J48:J60) -> 314157.0063 | K61: =SUM(K48:K60) -> 322076.2361 | L61: =SUM(L48:L60) -> 138792.4147 | M61: 1528804.808
H64: Material | I64: Commodity Market | J64: Landfill | K64: Total
H65: Aluminum | I65: =F31*1.10231 -> 18101.84119 | J65: =G31*1.10231 -> 67324.95903 | K65: =SUM(I65:J65) -> 85426.80022
H66: Battery | I66: =F32*1.10231 -> 8011.618764 | J66: 30632.70019 | K66: =SUM(I66:J66) -> 38644.31895
H67: Copper | I67: 9136.16069 | J67: 33025.84131 | K67: 42162.002
H68: CRT Glass | I68: 57898.6529 | J68: 204743.9054 | K68: 262642.5583
H69: CRT Lead | I69: 6406.328764 | J69: 22654.8098 | K69: 29061.13856
H70: Ferrous Metal | I70: 85160.45771 | J70: 307417.9509 | K70: 392578.4086
H71: Flat Panel Display Module CCFL | I71: 22335.91961 | J71: 81676.13608 | K71: 104012.0557
H72: Flat Panel Display Module LED | I72: 756.7129264 | J72: 2693.125816 | K72: 3449.838742
H73: Other | I73: 4252.53599 | J73: 16089.12017 | K73: 20341.65616
H74: Other Metals | I74: 3672.917156 | J74: 13901.51335 | K74: 17574.4305
H75: PCB Material | I75: 32017.3114 | J75: 116573.5298 | K75: 148590.8412
H76: Plastics | I76: 84041.45551 | J76: 300279.3035 | K76: 384320.759
H77: Total E-Waste Disposal | I77: =SUM(I65:I76) -> 331791.9126 | J77: =SUM(J65:J76) -> 1197012.895 | K77: 1528804.808

Sheet Total Waste (hidden)
A1: Home
A2: Description: | B2: Table of average product weight.
A3: Source: | B3: EPA 2008 Waste Management Approach; RTI Assumptions.
A4: Last Modified: | B4: 2017-09-13

Sheet Waste by Market
A1: Home
A2: Description: | B2: Waste Flows by Market and Product - Modeled Output
A3: Last Modified: | B3: 2017-09-13

Sheet Waste by Materials
A1: Home
A2: Description: | B2: Waste Flows By Materials - Modeled Output
A3: Last Modified: | B3: 2017-09-13

Sheet PivotTables
A1: Home
A2: Description: | B2: Summary pivot tables to report annual disposal amounts in metric tons and unit counts.
A3: Source: | B3: Pivot tables reference First-Use and Second-Use sheets
A4: Last Modified: | B4: 2015-08-13
A5: Summary Table of Sales (Metric Tons) | Q5: Summary Table of Sales (Millions of Units)
B6: Desktops | C6: Portables | D6: Hard Copy Peripherals | E6: Mice | F6: Keyboards | G6: PC CRTs | H6: PC Flat Panel | I6: Color CRT <19" | J6: Color CRT >19" | K6: Flat Panel TVs | L6: Color Projection | M6: Monochrome | N6: Cell Phones
A7: EPA Region | B7: (All) | D7: =Region -> Individual_State | Q7: EPA Region | R7: (All) | T7: =Region -> Individual_State
A8: State/Region | B8: (All) | D8: =State -> (ALL) | Q8: State/Region | R8: (All) | T8: =State -> (ALL)
A10: Year | B10: Sum of Desktops | C10: Sum of Portables | D10: Sum of Hard Copy Peripherals | E10: Sum of Mice | F10: Sum of Keyboards | G10: Sum of PC CRTs | H10: Sum of PC Flat Panel | I10: Sum of Color CRT <19" | J10: Sum of Color CRT >19" | K10: Sum of Flat Panel TVs | L10: Sum of Color Projection | M10: Sum of Monochrome | N10: Sum of Cell Phones | Q10: Year | R10: Sum of Desktops | S10: Sum of Portables | T10: Sum of Hard Copy Peripherals | U10: Sum of Mice | V10: Sum of Keyboards | W10: Sum of PC CRTs | X10: Sum of PC Flat Panel | Y10: Sum of Color CRT <19" | Z10: Sum of Color CRT >19" | AA10: Sum of Flat Panel TVs | AB10: Sum of Monochrome | AC10: Sum of Cell Phones
A11: 1980 | B11: 9825.033149 | C11: 0 | D11: 3024.811566 | E11: 98.45677419 | F11: 1295.118006 | G11: 10038.15811 | H11: 0 | I11: 96216.68479 | J11: 173428.3759 | K11: 0 | L11: 0 | M11: 127779.9622 | N11: 0 | Q11: 1980 | R11: 0.9845677419 | S11: 0 | T11: 0.370476 | U11: 0.9845677419 | V11: 0.9845677419 | W11: 0.9032796096 | X11: 0 | Y11: 5.053098774 | Z11: 5.23759069 | AA11: 0 | AB11: 6.710736 | AC11: 0.502
A12: 1981 | B12: 19513.06384 | C12: 0 | D12: 6007.444485 | E12: 195.5406452 | F12: 2572.176598 | G12: 18481.57862 | H12: 0 | I12: 92128.32409 | J12: 169816.9173 | K12: 0 | L12: 0 | M12: 107335.5445 | N12: 0 | Q12: 1981 | R12: 1.955406452 | S12: 0 | T12: 0.735786 | U12: 1.955406452 | V12: 1.955406452 | W12: 1.663057399 | X12: 0 | Y12: 4.838386632 | Z12: 5.128523522 | AA12: 0 | AB12: 5.637038 | AC12: 1.14655
A13: 1982 | B13: 30336.25773 | C13: 0 | D13: 9348.538754 | E13: 304 | F13: 3998.870337 | G13: 26654.44537 | H13: 0 | I13: 89354.78202 | J13: 167432.4643 | K13: 0 | L13: 0 | M13: 108382.0828 | N13: 0 | Q13: 1982 | R13: 3.04 | S13: 0 | T13: 1.145 | U13: 3.04 | V13: 3.04 | W13: 2.398489518 | X13: 0 | Y13: 4.692726012 | Z13: 5.056512304 | AA13: 0 | AB13: 5.692 | AC13: 2.2
A14: 1983 | B14: 54440.11093 | C14: 0 | D14: 22630.55888 | E14: 545.545 | F14: 7176.196441 | G14: 43626.366 | H14: 0 | I14: 104097.9077 | J14: 197953.5839 | K14: 0 | L14: 0 | M14: 109310.052 | N14: 0 | Q14: 1983 | R14: 5.45545 | S14: 0 | T14: 2.771769 | U14: 5.45545 | V14: 5.45545 | W14: 3.925700952 | X14: 0 | Y14: 5.467004097 | Z14: 5.978259571 | AA14: 0 | AB14: 5.740735 | AC14: 4.7047
A15: 1984 | B15: 66460.35411 | C15: 0 | D15: 23963.28493 | E15: 666 | F15: 8760.683042 | G15: 52338.9933 | H15: 0 | I15: 118436.5574 | J15: 225733.98 | K15: 0 | L15: 19370.66218 | M15: 96157.68065 | N15: 10047.31575 | Q15: 1984 | R15: 6.66 | S15: 0 | T15: 2.935 | U15: 6.66 | V15: 6.66 | W15: 4.709703205 | X15: 0 | Y15: 6.220039945 | Z15: 6.817236144 | AA15: 0 | AB15: 5.05 | AC15: 6.32275
A16: 1985 | B16: 57421.74595 | C16: 0 | D16: 19273.80478 | E16: 575.424 | F16: 7569.230148 | G16: 47641.02557 | H16: 0 | I16: 123409.4855 | J16: 240074.8774 | K16: 0 | L16: 26638.2162 | M16: 67807.94568 | N16: 6458.284342 | Q16: 1985 | R16: 5.75424 | S16: 0 | T16: 2.360637 | U16: 5.75424 | V16: 5.75424 | W16: 4.286958474 | X16: 0.14985 | Y16: 6.698122169 | Z16: 7.288089114 | AA16: 0 | AB16: 3.680316 | AC16: 4.06418175
A17: 1986 | B17: 68297.9829 | C17: 0 | D17: 17764.85265 | E17: 684.4149 | F17: 9002.915928 | G17: 55261.63128 | H17: 0 | I17: 133228.6255 | J17: 258110.9152 | K17: 0 | L17: 30719.18404 | M17: 73682.692 | N17: 6920.401118 | Q17: 1986 | R17: 6.844149 | S17: 0 | T17: 2.175822 | U17: 6.844149 | V17: 6.844149 | W17: 4.972695606 | X17: 0.244755 | Y17: 7.140429994 | Z17: 7.797859288 | AA17: 0 | AB17: 3.949047 | AC17: 4.35499065
A18: 1987 | B18: 81766.17366 | C18: 0 | D18: 22087.7966 | E18: 819.3798 | F18: 10778.26835 | G18: 63930.952 | H18: 0 | I18: 137673.1909 | J18: 270241.3837 | K18: 0 | L18: 29873.17394 | M18: 65577.15642 | N18: 10976.10685 | Q18: 1987 | R18: 8.193798 | S18: 0 | T18: 2.705292 | U18: 8.193798 | V18: 8.193798 | W18: 5.752800935 | X18: 0.34965 | Y18: 7.439152718 | Z18: 8.160748996 | AA18: 0 | AB18: 3.543453 | AC18: 6.90723585
A19: 1988 | B19: 86970.01939 | C19: 0 | D19: 27609.74574 | E19: 871.5276 | F19: 11464.22983 | G19: 67656.52265 | H19: 0 | I19: 144863.0179 | J19: 281726.6097 | K19: 0 | L19: 31064.47579 | M19: 48009.67348 | N19: 14303.07776 | Q19: 1988 | R19: 8.715276 | S19: 0 | T19: 3.381615 | U19: 8.715276 | V19: 8.715276 | W19: 6.088044907 | X19: 0.674325 | Y19: 7.75894739 | Z19: 8.516844064 | AA19: 0 | AB19: 2.571426 | AC19: 9.0008901
A20: 1989 | B20: 88129.11855 | C20: 0 | D20: 32992.75139 | E20: 888.7989398 | F20: 11691.42012 | G20: 67108.35119 | H20: 9465.647232 | I20: 157573.1428 | J20: 301251.3696 | K20: 0 | L20: 27471.20049 | M20: 30745.57574 | N20: 18023.70299 | Q20: 1989 | R20: 8.887989398 | S20: 0 | T20: 4.07184 | U20: 8.887989398 | V20: 8.887989398 | W20: 6.03871792 | X20: 0.8483 | Y20: 8.470137116 | Z20: 9.259371723 | AA20: 0 | AB20: 1.652688 | AC20: 11.34227
A21: 1990 | B21: 93530.15979 | C21: 0 | D21: 39439.01002 | E21: 947.6043471 | F21: 12464.95696 | G21: 72256.95612 | H21: 9753.812197 | I21: 145767.641 | J21: 295521.6644 | K21: 0 | L21: 36740.94526 | M21: 25920.08068 | N21: 18753.43217 | Q21: 1990 | R21: 9.476043471 | S21: 0 | T21: 4.432563 | U21: 9.476043471 | V21: 9.476043471 | W21: 6.467694678 | X21: 0.874125 | Y21: 7.927153695 | Z21: 8.715902958 | AA21: 0 | AB21: 1.409589 | AC21: 11.8014867
A22: 1991 | B22: 94217.14507 | C22: 0 | D22: 36461.4214 | E22: 952.3762 | F22: 12527.72676 | G22: 77355.5241 | H22: 9819.367634 | I22: 130721.3386 | J22: 293809.0949 | K22: 0 | L22: 40161.06847 | M22: 14604.89275 | N22: 24482.69963 | Q22: 1991 | R22: 9.523762 | S22: 0 | T22: 4.378 | U22: 9.523762 | V22: 9.523762 | W22: 6.890494473 | X22: 0.88 | Y22: 7.017205208 | Z22: 8.763704455 | AA22: 0 | AB22: 0.784 | AC22: 15.4069
A23: 1992 | B23: 99656.58654 | C23: 7544.760654 | D23: 42105.77686 | E23: 990.1089 | F23: 13024.06944 | G23: 93865.33886 | H23: 9196.4515 | I23: 130972.9436 | J23: 324796.0518 | K23: 0 | L23: 43020.99558 | M23: 11741.18825 | N23: 4452.783307 | Q23: 1992 | R23: 9.901089 | S23: 1.84815 | T23: 5.325669 | U23: 9.901089 | V23: 9.901089 | W23: 8.317429633 | X23: 0.824175 | Y23: 7.054053277 | Z23: 9.741647508 | AA23: 0 | AB23: 0.632367 | AC23: 18.40632525
A24: 1993 | B24: 129722.3532 | C24: 10020.45864 | D24: 51775.76858 | E24: 1303.504258 | F24: 17146.528 | G24: 115507.083 | H24: 8935.624547 | I24: 139045.9993 | J24: 372561.4924 | K24: 0 | L24: 50038.13532 | M24: 10174.39007 | N24: 5150.673186 | Q24: 1993 | R24: 13.03504258 | S24: 2.530507419 | T24: 6.42642 | U24: 13.03504258 | V24: 13.03504258 | W24: 10.18598112 | X24: 0.8008 | Y24: 7.523966981 | Z24: 10.89828467 | AA24: 0 | AB24: 0.55055 | AC24: 21.2911699
A25: 1994 | B25: 150420.8775 | C25: 12281.4332 | D25: 62171.95003 | E25: 1529.6184 | F25: 20120.87384 | G25: 141120.697 | H25: 9317.24088 | I25: 155304.6879 | J25: 391834.587 | K25: 0 | L25: 68947.85467 | M25: 10072.1432 | N25: 6000.180354 | Q25: 1994 | R25: 15.296184 | S25: 3.200464 | T25: 7.696 | U25: 15.296184 | V25: 15.296184 | W25: 10.78024535 | X25: 0.835 | Y25: 8.326383949 | Z25: 11.77758505 | AA25: 0 | AB25: 0.54 | AC25: 24.80275
A26: 1995 | B26: 200252.2909 | C26: 13281.94303 | D26: 71205.52223 | E26: 1917.813772 | F26: 25227.26514 | G26: 176377.7396 | H26: 9894.909815 | I26: 137624.9454 | J26: 366415.5721 | K26: 0 | L26: 89818.20208 | M26: 8930.626152 | N26: 7000.129428 | Q26: 1995 | R26: 19.17813772 | S26: 3.570935616 | T26: 9.325614 | U26: 19.17813772 | V26: 19.17813772 | W26: 11.88769045 | X26: 0.88677 | Y26: 7.411808824 | Z26: 10.98455215 | AA26: 0 | AB26: 0.48096 | AC26: 28.9362069
A27: 1996 | B27: 223777.965 | C27: 17748.81823 | D27: 77561.00406 | E27: 2235.369114 | F27: 29404.44488 | G27: 196792.9724 | H27: 10012.40747 | I27: 127130.3442 | J27: 352821.4992 | K27: 0 | L27: 97474.44984 | M27: 7930.714046 | N27: 7495.985878 | Q27: 1996 | R27: 22.35369114 | S27: 4.934356388 | T27: 11.127517 | U27: 22.35369114 | V27: 22.35369114 | W27: 11.86366525 | X27: 0.8973 | Y27: 6.792365075 | Z27: 10.68875338 | AA27: 0 | AB27: 0.423725 | AC27: 30.98591255
A28: 1997 | B28: 274517.0635 | C28: 20847.59872 | D28: 106493.6518 | E28: 2676.7206 | F28: 35210.06121 | G28: 229281.2177 | H28: 9986.743219 | I28: 115428.3769 | J28: 338196.8898 | K28: 0 | L28: 101906.3299 | M28: 7378.435892 | N28: 12755.25937 | Q28: 1997 | R28: 26.767206 | S28: 6.000142 | T28: 14.026 | U28: 26.767206 | V28: 26.767206 | W28: 12.50256144 | X28: 0.895 | Y28: 6.257606821 | Z28: 10.10044538 | AA28: 0 | AB28: 0.4 | AC28: 52.726
A29: 1998 | B29: 335721.327 | C29: 21522.63914 | D29: 114968.4432 | E29: 3259.087765 | F29: 42870.623 | G29: 286968.4443 | H29: 10073.80084 | I29: 124515.8441 | J29: 357834.6551 | K29: 0 | L29: 120119.6874 | M29: 6553.782585 | N29: 14195.17251 | Q29: 1998 | R29: 32.59087765 | S29: 6.420743856 | T29: 15.579096 | U29: 32.59087765 | V29: 32.59087765 | W29: 14.28442365 | X29: 0.902802 | Y29: 6.605866361 | Z29: 10.65040043 | AA29: 0 | AB29: 0.347694 | AC29: 58.678122
A30: 1999 | B30: 394807.7402 | C30: 25481.14767 | D30: 134077.6447 | E30: 3952.779631 | F30: 51995.56979 | G30: 345424.4566 | H30: 9683.983103 | I30: 133606.9715 | J30: 382355.6374 | K30: 0 | L30: 139286.7719 | M30: 5990.104556 | N30: 14646.90154 | Q30: 1999 | R30: 39.52779631 | S30: 7.878865995 | T30: 18.02801 | U30: 39.52779631 | V30: 39.52779631 | W30: 15.81908123 | X30: 0.867867 | Y30: 7.144614039 | Z30: 11.54573795 | AA30: 0 | AB30: 0.32032 | AC30: 70.391321
A31: 2000 | B31: 407661.5683 | C31: 31059.03109 | D31: 167932.7063 | E31: 4074.07033 | F31: 53591.04933 | G31: 384984.0637 | H31: 10913.33446 | I31: 140675.4713 | J31: 406824.4235 | K31: 0 | L31: 138166.7616 | M31: 4775.767535 | N31: 15425.26816 | Q31: 2000 | R31: 40.7407033 | S31: 9.603568372 | T31: 20.0598 | U31: 40.7407033 | V31: 40.7407033 | W31: 16.32201106 | X31: 0.97804 | Y31: 7.790253946 | Z31: 12.03599901 | AA31: 0 | AB31: 0.26447 | AC31: 88.528588
A32: 2001 | B32: 350889.924 | C32: 30245.93595 | D32: 164358.1447 | E32: 3516.272107 | F32: 46253.6718 | G32: 308756.2887 | H32: 13483.911 | I32: 119699.7226 | J32: 385581.5589 | K32: 0 | L32: 106436.0693 | M32: 4667.037098 | N32: 15421.52679 | Q32: 2001 | R32: 35.16272107 | S32: 9.59437044 | T32: 21.40773 | U32: 35.16272107 | V32: 35.16272107 | W32: 13.18657687 | X32: 1.208412 | Y32: 6.42480012 | Z32: 11.77863446 | AA32: 0 | AB32: 0.2505 | AC32: 95.309238
A33: 2002 | B33: 384747.7767 | C33: 33536.95263 | D33: 168649.882 | E33: 3515.224416 | F33: 46239.89028 | G33: 285392.405 | H33: 16379.70947 | I33: 143251.1834 | J33: 415032.3627 | K33: 0 | L33: 69126.74249 | M33: 4133.105329 | N33: 15258.24315 | Q33: 2002 | R33: 35.15224416 | S33: 10.90506259 | T33: 22.6452 | U33: 35.15224416 | V33: 35.15224416 | W33: 12.27673272 | X33: 1.46793 | Y33: 7.813974414 | Z33: 12.57237803 | AA33: 0 | AB33: 0.22545 | AC33: 102.1507938
A34: 2003 | B34: 252313.4083 | C34: 41440.28021 | D34: 177630.0452 | E34: 1088.2872 | F34: 14315.52435 | G34: 220044.7996 | H34: 21847.60202 | I34: 109902.863 | J34: 443984.2395 | K34: 0 | L34: 24521.8409 | M34: 3723.176895 | N34: 16304.13545 | Q34: 2003 | R34: 25.2843567 | S34: 13.8215097 | T34: 23.611588 | U34: 10.882872 | V34: 10.882872 | W34: 9.536381808 | X34: 1.957956 | Y34: 5.909617996 | Z34: 13.40846161 | AA34: 0 | AB34: 0.2002 | AC34: 119.0652763
A35: 2004 | B35: 250392.0665 | C35: 51196.7811 | D35: 168671.2273 | E35: 1080 | F35: 14206.51304 | G35: 194517.4651 | H35: 31403.87498 | I35: 91432.35086 | J35: 445726.6901 | K35: 69.55286528 | L35: 7392.553739 | M35: 2789.593078 | N35: 14874.15166 | Q35: 2004 | R35: 25.09181881 | S35: 17.52633256 | T35: 21.371 | U35: 10.8 | V35: 10.8 | W35: 8.491833734 | X35: 2.81437777 | Y35: 4.916434851 | Z35: 13.46108416 | AA35: 0.005287511037 | AB35: 0.15 | AC35: 119.472
A36: 2005 | B36: 243353.6383 | C36: 65867.90877 | D36: 169235.3773 | E36: 1049.6416 | F36: 13807.17322 | G36: 120059.7578 | H36: 59002.03052 | I36: 74604.11936 | J36: 430650.6581 | K36: 532.7444965 | L36: 1266.248461 | M36: 2317.686916 | N36: 17846.52842 | Q36: 2005 | R36: 24.38649707 | S36: 22.54873938 | T36: 21.442479 | U36: 10.496416 | V36: 10.496416 | W36: 5.241315998 | X36: 5.287691509 | Y36: 4.011559246 | Z36: 13.00578332 | AA36: 0.04050001957 | AB36: 0.124625 | AC36: 157.379441
A37: 2006 | B37: 302709.2631 | C37: 62670.26912 | D37: 170370.5518 | E37: 1305.6564 | F37: 17174.83766 | G37: 42133.01601 | H37: 168338.2183 | I37: 36585.12583 | J37: 277063.3312 | K37: 8586.300039 | L37: 316.2446006 | M37: 2037.518784 | N37: 16823.00483 | Q37: 2006 | R37: 30.33453131 | S37: 21.45408275 | T37: 21.586308 | U37: 13.056564 | V37: 13.056564 | W37: 1.839354458 | X37: 15.08627008 | Y37: 1.96722917 | Z37: 8.367398455 | AA37: 0.6527431479 | AB37: 0.10956 | AC37: 168.5835317
A38: 2007 | B38: 277935.1939 | C38: 77830.23701 | D38: 175050.1786 | E38: 1198.8 | F38: 15769.22947 | G38: 4262.785905 | H38: 208455.344 | I38: 8028.148984 | J38: 38614.74354 | K38: 28849.66481 | L38: 43202.2511 | M38: 928.9344949 | N38: 16222.54045 | Q38: 2007 | R38: 27.85191888 | S38: 26.64383556 | T38: 22.17922657 | U38: 11.988 | V38: 11.988 | W38: 0.1860957273 | X38: 18.68151897 | Y38: 0.4316838743 | Z38: 1.16617722 | AA38: 2.193193918 | AB38: 0.04995 | AC38: 162.566271
A39: 2008 | B39: 236977.3157 | C39: 96885.53326 | D39: 189560.6884 | E39: 1022.160239 | F39: 13445.67849 | G39: 2292.932112 | H39: 269022.2386 | I39: 7446.353789 | J39: 29830.81975 | K39: 104950.8142 | L39: 17544.336 | M39: 0 | N39: 18417.09902 | Q39: 2008 | R39: 23.74752503 | S39: 33.16708667 | T39: 24.01773875 | U39: 10.22160239 | V39: 10.22160239 | W39: 0.1001 | X39: 24.10945173 | Y39: 0.4004 | Z39: 0.9009 | AA39: 8.329429701 | AB39: 0 | AC39: 184.5579686
A40: 2009 | B40: 201193.997 | C40: 156284.0508 | D40: 153399.3867 | E40: 868.7679 | F40: 11427.92824 | G40: 0 | H40: 297640.2997 | I40: 1861.588447 | J40: 9943.606584 | K40: 165622.6961 | L40: 6165.944174 | M40: 0 | N40: 18231.24398 | Q40: 2009 | R40: 20.1616744 | S40: 53.50114186 | T40: 19.43602561 | U40: 8.687679 | V40: 8.687679 | W40: 0 | X40: 26.67416818 | Y40: 0.1001 | Z40: 0.3003 | AA40: 14.65687576 | AB40: 0 | AC40: 182.695513
A41: 2010 | B41: 248966.1069 | C41: 211976.9332 | D41: 163960.5953 | E41: 1073.8879 | F41: 14126.11338 | G41: 0 | H41: 271713.3209 | I41: 0 | J41: 3311.224304 | K41: 149621.3534 | L41: 1270.058637 | M41: 0 | N41: 19112.24153 | Q41: 2010 | R41: 24.94892322 | S41: 72.56663695 | T41: 20.774153 | U41: 10.738879 | V41: 10.738879 | W41: 0 | X41: 24.35062331 | Y41: 0 | Z41: 0.1 | AA41: 14.81399538 | AB41: 0 | AC41: 191.524
A42: 2011 | B42: 248023.3307 | C42: 331221.6488 | D42: 147961.7732 | E42: 1069.765815 | F42: 14071.89074 | G42: 0 | H42: 237934.6724 | I42: 0 | J42: 0 | K42: 130460.3517 | L42: 318.7847179 | M42: 0 | N42: 20122.15591 | Q42: 2011 | R42: 24.85444751 | S42: 113.388003 | T42: 18.74706852 | U42: 10.69765815 | V42: 10.69765815 | W42: 0 | X42: 21.32342117 | Y42: 0 | Z42: 0 | AA42: 13.4495208 | AB42: 0 | AC42: 201.644364
A43: 2012 | B43: 240261.5873 | C43: 337530.1816 | D43: 138309.6267 | E43: 1056.94082 | F43: 13903.18846 | G43: 0 | H43: 261560.2667 | I43: 0 | J43: 0 | K43: 176067.031 | L43: 0 | M43: 0 | N43: 20285.10408 | Q43: 2012 | R43: 24.07664228 | S43: 115.5476201 | T43: 17.52412122 | U43: 10.5694082 | V43: 10.5694082 | W43: 0 | X43: 23.44071872 | Y43: 0 | Z43: 0 | AA43: 18.93193881 | AB43: 0 | AC43: 203.2772696
A44: 2013 | B44: 231341.9762 | C44: 342126.3701 | D44: 132334.6348 | E44: 2318.280799 | F44: 30495.08 | G44: 0 | H44: 213417.5775 | I44: 0 | J44: 0 | K44: 185908.2864 | L44: 0 | M44: 0 | N44: 22175.85959 | Q44: 2013 | R44: 23.18280699 | S44: 117.1210457 | T44: 16.76707714 | U44: 23.18280799 | V44: 23.18280799 | W44: 0 | X44: 19.12622841 | Y44: 0 | Z44: 0 | AA44: 19.77747728 | AB44: 0 | AC44: 222.224553
A45: 2014 | B45: 237199.1194 | C45: 348194.5943 | D45: 126848.3073 | E45: 2376.975101 | F45: 31267.15533 | G45: 0 | H45: 182840.0563 | I45: 0 | J45: 0 | K45: 191292.4604 | L45: 0 | M45: 0 | N45: 21574.9436 | Q45: 2014 | R45: 23.76975201 | S45: 119.1983973 | T45: 16.07194789 | U45: 23.769751 | V45: 23.769751 | W45: 0 | X45: 16.38590748 | Y45: 0 | Z45: 0 | AA45: 19.51963882 | AB45: 0 | AC45: 216.2027668
A46: 2015 | B46: 194503.2787 | C46: 327262.2043 | D46: 133030.845 | E46: 1949.119572 | F46: 25639.06724 | G46: 0 | H46: 197754.1681 | I46: 0 | J46: 0 | K46: 224384.3771 | L46: 0 | M46: 0 | N46: 21605.77618 | Q46: 2015 | R46: 19.49119672 | S46: 112.0325556 | T46: 16.85528845 | U46: 19.49119572 | V46: 19.49119572 | W46: 0 | X46: 17.72249237 | Y46: 0 | Z46: 0 | AA46: 22.89636501 | AB46: 0 | AC46: 216.5117404
A47: 2016 | B47: 180888.0367 | C47: 317689.1929 | D47: 115822.298 | E47: 1812.68117 | F47: 23844.33211 | G47: 0 | H47: 180776.1144 | I47: 0 | J47: 0 | K47: 253024.869 | L47: 0 | M47: 0 | N47: 21089.32263 | Q47: 2016 | R47: 18.1268117 | S47: 108.7554008 | T47: 14.67492927 | U47: 18.1268117 | V47: 18.1268117 | W47: 0 | X47: 16.20093947 | Y47: 0 | Z47: 0 | AA47: 25.81886419 | AB47: 0 | AC47: 211.3363532
A48: 2017 | B48: 167265.9922 | C48: 293768.2101 | D48: 110767.7903 | E48: 1676.1745 | F48: 22048.69897 | G48: 0 | H48: 182701.7907 | I48: 0 | J48: 0 | K48: 255364.6946 | L48: 0 | M48: 0 | N48: 19013.59562 | Q48: 2017 | R48: 16.761745 | S48: 100.566466 | T48: 14.03451249 | U48: 16.761745 | V48: 16.761745 | W48: 0 | X48: 16.37351628 | Y48: 0 | Z48: 0 | AA48: 26.05762189 | AB48: 0 | AC48: 190.5354681
A49: 2018 | B49: 157706.5085 | C49: 287630.6166 | D49: 106496.0958 | E49: 1580.3788 | F49: 20788.58521 | G49: 0 | H49: 174225.0962 | I49: 0 | J49: 0 | K49: 249871.7076 | L49: 0 | M49: 0 | N49: 18791.27549 | Q49: 2018 | R49: 15.803788 | S49: 98.465367 | T49: 13.4932798 | U49: 15.803788 | V49: 15.803788 | W49: 0 | X49: 15.61384504 | Y49: 0 | Z49: 0 | AA49: 25.49711302 | AB49: 0 | AC49: 188.3075955
A50: 2019 | B50: 149705.3106 | C50: 282025.2012 | D50: 102341.2328 | E50: 1500.1987 | F50: 19733.88185 | G50: 0 | H50: 172375.0945 | I50: 0 | J50: 0 | K50: 268433.5244 | L50: 0 | M50: 0 | N50: 18863.01437 | Q50: 2019 | R50: 15.001987 | S50: 96.54645 | T50: 12.9668499 | U50: 15.001987 | V50: 15.001987 | W50: 0 | X50: 15.4480501 | Y50: 0 | Z50: 0 | AA50: 27.39117596 | AB50: 0 | AC50: 189.0264917
A51: 2020 | B51: 140722.9919 | C51: 270744.1932 | D51: 96200.75883 | E51: 1410.186778 | F51: 18549.84894 | G51: 0 | H51: 167203.8417 | I51: 0 | J51: 0 | K51: 281855.2006 | L51: 0 | M51: 0 | N51: 18297.12394 | Q51: 2020 | R51: 14.10186778 | S51: 92.684592 | T51: 12.1888389 | U51: 14.10186778 | V51: 14.10186778 | W51: 0 | X51: 14.9846086 | Y51: 0 | Z51: 0 | AA51: 28.76073475 | AB51: 0 | AC51: 183.3556969
A52: 2021 | B52: 132279.6124 | C52: 259914.4254 | D52: 90428.7133 | E52: 1325.575571 | F52: 17436.858 | G52: 0 | H52: 162187.7264 | I52: 0 | J52: 0 | K52: 295947.9606 | L52: 0 | M52: 0 | N52: 17748.21022 | Q52: 2021 | R52: 13.25575571 | S52: 88.97720832 | T52: 11.45750857 | U52: 13.25575571 | V52: 13.25575571 | W52: 0 | X52: 14.53507034 | Y52: 0 | Z52: 0 | AA52: 30.19877149 | AB52: 0 | AC52: 177.855026
A53: 2022 | B53: 124342.8357 | C53: 249517.8484 | D53: 85002.9905 | E53: 1246.041037 | F53: 16390.64652 | G53: 0 | H53: 157322.0946 | I53: 0 | J53: 0 | K53: 310745.3586 | L53: 0 | M53: 0 | N53: 17215.76392 | Q53: 2022 | R53: 12.46041037 | S53: 85.41811999 | T53: 10.77005805 | U53: 12.46041037 | V53: 12.46041037 | W53: 0 | X53: 14.09901823 | Y53: 0 | Z53: 0 | AA53: 31.70871007 | AB53: 0 | AC53: 172.5193752
A54: 2023 | B54: 116882.2655 | C54: 239537.1345 | D54: 79902.81107 | E54: 1171.278575 | F54: 15407.20773 | G54: 0 | H54: 152602.4318 | I54: 0 | J54: 0 | K54: 326282.6266 | L54: 0 | M54: 0 | N54: 16699.291 | Q54: 2023 | R54: 11.71278575 | S54: 82.00139519 | T54: 10.12385457 | U54: 11.71278575 | V54: 11.71278575 | W54: 0 | X54: 13.67604768 | Y54: 0 | Z54: 0 | AA54: 33.29414557 | AB54: 0 | AC54: 167.343794
A55: 2024 | B55: 109869.3296 | C55: 229955.6491 | D55: 75108.64241 | E55: 1101.00186 | F55: 14482.77526 | G55: 0 | H55: 148024.3588 | I55: 0 | J55: 0 | K55: 342596.7579 | L55: 0 | M55: 0 | N55: 16198.31227 | Q55: 2024 | R55: 11.0100186 | S55: 78.72133938 | T55: 9.516423297 | U55: 11.0100186 | V55: 11.0100186 | W55: 0 | X55: 13.26576625 | Y55: 0 | Z55: 0 | AA55: 34.95885285 | AB55: 0 | AC55: 162.3234801
A56: 2025 | B56: 103277.1698 | C56: 220757.4231 | D56: 70602.12387 | E56: 1034.941749 | F56: 13613.80875 | G56: 0 | H56: 143583.6281 | I56: 0 | J56: 0 | K56: 359726.5958 | L56: 0 | M56: 0 | N56: 15712.3629 | Q56: 2025 | R56: 10.34941749 | S56: 75.5724858 | T56: 8.945437899 | U56: 10.34941749 | V56: 10.34941749 | W56: 0 | X56: 12.86779327 | Y56: 0 | Z56: 0 | AA56: 36.70679549 | AB56: 0 | AC56: 157.4537757
... 76 more rows

Sheet CPInput
A1: Source | B1: Value | C1: Description
A2: StateList | C2: Level of Analysis
A3: YearBox | B3: 2015 | C3: Analysis year
A4: ProductList | C4: Analysis product
A5: resoldBox | B5: 16 | C5: Consumer % resold
A6: recycleBox | B6: 59 | C6: Consumer% recycled
A7: landfillBox | B7: 25 | C7: Consumer % landfilled
A8: ColrecycleBox | B8: 75 | C8: Collector % recycled
A9: CollandfillBox | B9: 25 | C9: Collector % landfilled
A10: RecrecycleBox | B10: 75 | C10: Recycler % recycled
A11: ReclandfillBox | B11: 25 | C11: Recycler % landfilled
A12: ProrecycleBox | B12: 75 | C12: Processor % recycled
A13: ProlandfillBox | B13: 25 | C13: Processor % landfilled
A14: FirstResMarketBox | B14: 53 | C14: First use residential market share
A15: FirstEduMarketBox | B15: 21 | C15: First use educational market share
A16: FirstComMarketBox | B16: 18 | C16: First use commercial market share
A17: FirstIntMarketBox | B17: 8 | C17: First use institutional market share
A18: SecResMarketBox | B18: 62 | C18: Second use residential market share
A19: SecEduMarketBox | B19: 30 | C19: Second use educational market share
A20: SecComMarketBox | B20: 0 | C20: Second use commercial market share
A21: SecIntMarketBox | B21: 8 | C21: Second use institutional market share
A22: BatteryBox | B22: 2 | C22: % battery
A23: CRTLeadBox | B23: 2 | C23: % crt lead
A24: CRTGlassBox | B24: 20 | C24: % crt glass
A25: CCFLBox | B25: 5 | C25: % ccfl flat panel
A26: LEDBox | B26: 1 | C26: % led flat panel
A27: PCBBox | B27: 8 | C27: % pcb
A28: OtherBox | B28: 2 | C28: % other
A29: CopperBox | B29: 2 | C29: % copper
A30: AlumBox | B30: 6 | C30: % aluminum
A31: FerBox | B31: 20 | C31: % ferrous metals
A32: OthMetBox | B32: 1 | C32: % other metals
A33: PlasticBox | B33: 31 | C33: % plastics
A34: ConColBox | B34: 85 | C34: Consumer to collector efficiency
A35: ColRecBox | B35: 90 | C35: Collector to recycler efficiency
A36: RecProBox | B36: 95 | C36: Recyler to processor efficiency
A37: ProComBox | B37: 99 | C37: Processor to commodity market efficiency
A38: cellBox | B38: 300 | C38: Cell phone weight
A39: smlCRTbox | B39: 18600 | C39: CRT < 19" weight
A40: bigCRTbox | B40: 33200 | C40: CRT > 19" weight
A41: projBox | B41: 72000 | C41: Color projection weight
A42: deskBox | B42: 10000 | C42: Desktop weight
A43: flatTVBox | B43: 7700 | C43: Flat panel TV weight
A44: portBox | B44: 2500 | C44: Portables weight
A45: periphBox | B45: 7900 | C45: Hard copy peripherals weight
A46: keyBox | B46: 1300 | C46: Keyboard weight
A47: miceBox | B47: 100 | C47: Mice weight
A48: monoBox | B48: 18600 | C48: Monochrome weight
A49: pcCRTBox | B49: 20200 | C49: PC CRT weight
A50: pcFlatBox | B50: 9200 | C50: PC Flat panel weight
A51: resLifeBox | B51: 0 | C51: Average Residential First Use Life
A52: eduLifeBox | B52: 0 | C52: Average Educational First Use Life
A53: comLifeBox | B53: 0 | C53: Average Commercial First Use Life
A54: insLifeBox | B54: 0 | C54: Average Institutional First Use Life
A55: secLifeBox | B55: 50 | C55: Second Life Reduction
A56: cellSalesBox | B56: -3 | C56: Cell phone sales growth rate
A57: smCRTSalesBox | B57: 0 | C57: Small CRT sales growth rate
A58: bigCTSalesBox | B58: 0 | C58: Big CRT sales growth rate
A59: projSalesBox | B59: 0 | C59: Projection sales growth rate
A60: deskSalesBox | B60: -6 | C60: Desktop sales growth rate
A61: flatTVSalesBox | B61: 5 | C61: Flat TV sales growth rate
A62: portSalesBox | B62: -4 | C62: Portables sales growth rate
A63: periphSalesBox | B63: -6 | C63: Peripherals sales growth rate
A64: keySalesBox | B64: -6 | C64: Keyboard sales growth rate
A65: miceSalesBox | B65: -6 | C65: Mice sales growth rate
A66: monoSalesBox | B66: 0 | C66: Monochrome sales growth rate
A67: pcCRTSalesBox | B67: 0 | C67: PC CRT sales growth rate
A68: pcFlateSalesBxo | B68: -3 | C68: PC flat panel growth rate

Sheet Behavior
A1: Home
A4: Expected Lifetime for Secondary Markets | D4: =CPInput!B55/100 -> 0.5
A8: Waste Flows | B8: Product | C8: Recycled | D8: 2nd Use | E8: Landfill | F8: ID
A9: 1st Use | B9: Desktops | C9: =IF(C$35=J$35,J9,C$35) -> 0.55 | D9: =1-(E9+C9) -> 0.2 | E9: =IF(E$35=L$35,L9,E$35) -> 0.25 | F9: =A9&B9 -> 1st UseDesktops | J9: 0.55 | K9: 0.2 | L9: 0.25
A10: 1st Use | B10: Portables | C10: 0.55 | D10: =1-(E10+C10) -> 0.2 | E10: 0.25 | F10: =A10&B10 -> 1st UsePortables | J10: 0.55 | K10: 0.2 | L10: 0.25
A11: 1st Use | B11: Hard Copy Peripherals | C11: 0.7 | D11: 0.05 | E11: 0.25 | F11: 1st UseHard Copy Peripherals | J11: 0.7 | K11: 0.05 | L11: 0.25
A12: 1st Use | B12: Mice | C12: 0.65 | D12: 0.1 | E12: 0.25 | F12: 1st UseMice | J12: 0.65 | K12: 0.1 | L12: 0.25
A13: 1st Use | B13: Keyboards | C13: 0.65 | D13: 0.1 | E13: 0.25 | F13: 1st UseKeyboards | J13: 0.65 | K13: 0.1 | L13: 0.25
A14: 1st Use | B14: PC CRTs | C14: 0.65 | D14: 0.1 | E14: 0.25 | F14: 1st UsePC CRTs | J14: 0.65 | K14: 0.1 | L14: 0.25
A15: 1st Use | B15: PC Flat Panel | C15: 0.65 | D15: 0.1 | E15: 0.25 | F15: 1st UsePC Flat Panel | J15: 0.65 | K15: 0.1 | L15: 0.25
A16: 1st Use | B16: Color CRT <19" | C16: 0.65 | D16: 0.1 | E16: 0.25 | F16: 1st UseColor CRT <19" | J16: 0.65 | K16: 0.1 | L16: 0.25
A17: 1st Use | B17: Color CRT >19" | C17: 0.65 | D17: 0.1 | E17: 0.25 | F17: 1st UseColor CRT >19" | J17: 0.65 | K17: 0.1 | L17: 0.25
A18: 1st Use | B18: Flat Panel TVs | C18: 0.65 | D18: 0.1 | E18: 0.25 | F18: 1st UseFlat Panel TVs | J18: 0.65 | K18: 0.1 | L18: 0.25
A19: 1st Use | B19: Color Projection | C19: 0.65 | D19: 0.1 | E19: 0.25 | F19: 1st UseColor Projection | J19: 0.65 | K19: 0.1 | L19: 0.25
A20: 1st Use | B20: Monochrome | C20: 0.65 | D20: 0.1 | E20: 0.25 | F20: 1st UseMonochrome | J20: 0.65 | K20: 0.1 | L20: 0.25
A21: 1st Use | B21: Cell Phones | C21: 0.05 | D21: 0.7 | E21: 0.25 | F21: 1st UseCell Phones | J21: 0.05 | K21: 0.7 | L21: 0.25
A22: 2nd Use | B22: Desktops | C22: 0.75 | D22: N/A | E22: 0.25 | F22: 2nd UseDesktops | J22: 0.75 | K22: N/A | L22: 0.25
A23: 2nd Use | B23: Portables | C23: 0.75 | D23: N/A | E23: 0.25 | F23: 2nd UsePortables | J23: 0.75 | K23: N/A | L23: 0.25
A24: 2nd Use | B24: Hard Copy Peripherals | C24: 0.75 | D24: N/A | E24: 0.25 | F24: 2nd UseHard Copy Peripherals | J24: 0.75 | K24: N/A | L24: 0.25
A25: 2nd Use | B25: Mice | C25: 0.75 | D25: N/A | E25: 0.25 | F25: 2nd UseMice | J25: 0.75 | K25: N/A | L25: 0.25
A26: 2nd Use | B26: Keyboards | C26: 0.75 | D26: N/A | E26: 0.25 | F26: 2nd UseKeyboards | J26: 0.75 | K26: N/A | L26: 0.25
A27: 2nd Use | B27: PC CRTs | C27: 0.75 | D27: N/A | E27: 0.25 | F27: 2nd UsePC CRTs | J27: 0.75 | K27: N/A | L27: 0.25
A28: 2nd Use | B28: PC Flat Panel | C28: 0.75 | D28: N/A | E28: 0.25 | F28: 2nd UsePC Flat Panel | J28: 0.75 | K28: N/A | L28: 0.25
A29: 2nd Use | B29: Color CRT <19" | C29: 0.75 | D29: N/A | E29: 0.25 | F29: 2nd UseColor CRT <19" | J29: 0.75 | K29: N/A | L29: 0.25
A30: 2nd Use | B30: Color CRT >19" | C30: 0.75 | D30: N/A | E30: 0.25 | F30: 2nd UseColor CRT >19" | J30: 0.75 | K30: N/A | L30: 0.25
A31: 2nd Use | B31: Flat Panel TVs | C31: 0.75 | D31: N/A | E31: 0.25 | F31: 2nd UseFlat Panel TVs | J31: 0.75 | K31: N/A | L31: 0.25
A32: 2nd Use | B32: Color Projection | C32: 0.75 | D32: N/A | E32: 0.25 | F32: 2nd UseColor Projection | J32: 0.75 | K32: N/A | L32: 0.25
A33: 2nd Use | B33: Monochrome | C33: 0.75 | D33: N/A | E33: 0.25 | F33: 2nd UseMonochrome | J33: 0.75 | K33: N/A | L33: 0.25
A34: 2nd Use | B34: Cell Phones | C34: 0.75 | D34: N/A | E34: 0.25 | F34: 2nd UseCell Phones | J34: 0.75 | K34: N/A | L34: 0.25
A35: Consumer | B35: Average | C35: =CPInput!B6/100 -> 0.59 | D35: =CPInput!B5/100 -> 0.16 | E35: =CPInput!B7/100 -> 0.25 | F35: ConsumerAverage | J35: 0.59 | K35: 0.16 | L35: 0.25
A36: Collector | B36: Desktops | C36: =IF(C$49=J$49,J36,C$49) -> 0.75 | D36: N/A | E36: =IF(E$49=L$49,L36,E$49) -> 0.25 | F36: CollectorDesktops | J36: 0.75 | K36: N/A | L36: 0.25
A37: Collector | B37: Portables | C37: 0.75 | D37: N/A | E37: 0.25 | F37: CollectorPortables | J37: 0.75 | K37: N/A | L37: 0.25
A38: Collector | B38: Hard Copy Peripherals | C38: 0.75 | D38: N/A | E38: 0.25 | F38: CollectorHard Copy Peripherals | J38: 0.75 | K38: N/A | L38: 0.25
A39: Collector | B39: Mice | C39: 0.75 | D39: N/A | E39: 0.25 | F39: CollectorMice | J39: 0.75 | K39: N/A | L39: 0.25
A40: Collector | B40: Keyboards | C40: 0.75 | D40: N/A | E40: 0.25 | F40: CollectorKeyboards | J40: 0.75 | K40: N/A | L40: 0.25
A41: Collector | B41: PC CRTs | C41: 0.75 | D41: N/A | E41: 0.25 | F41: CollectorPC CRTs | J41: 0.75 | K41: N/A | L41: 0.25
A42: Collector | B42: PC Flat Panel | C42: 0.75 | D42: N/A | E42: 0.25 | F42: CollectorPC Flat Panel | J42: 0.75 | K42: N/A | L42: 0.25
A43: Collector | B43: Color CRT <19" | C43: 0.75 | D43: N/A | E43: 0.25 | F43: CollectorColor CRT <19" | J43: 0.75 | K43: N/A | L43: 0.25
A44: Collector | B44: Color CRT >19" | C44: 0.75 | D44: N/A | E44: 0.25 | F44: CollectorColor CRT >19" | J44: 0.75 | K44: N/A | L44: 0.25
A45: Collector | B45: Flat Panel TVs | C45: 0.75 | D45: N/A | E45: 0.25 | F45: CollectorFlat Panel TVs | J45: 0.75 | K45: N/A | L45: 0.25
A46: Collector | B46: Color Projection | C46: 0.75 | D46: N/A | E46: 0.25 | F46: CollectorColor Projection | J46: 0.75 | K46: N/A | L46: 0.25
A47: Collector | B47: Monochrome | C47: 0.75 | D47: N/A | E47: 0.25 | F47: CollectorMonochrome | J47: 0.75 | K47: N/A | L47: 0.25
A48: Collector | B48: Cell Phones | C48: 0.75 | D48: N/A | E48: 0.25 | F48: CollectorCell Phones | J48: 0.75 | K48: N/A | L48: 0.25
A49: Collector | B49: Average | C49: =CPInput!B8/100 -> 0.75 | D49: N/A | E49: =CPInput!B9/100 -> 0.25 | F49: CollectorAverage | J49: 0.75 | K49: N/A | L49: 0.25
A50: Recycler | B50: =B36 -> Desktops | C50: =IF(C$63=J$63,J50,C$63) -> 0.75 | D50: N/A | E50: =IF(E$63=L$63,L50,E$63) -> 0.25 | F50: RecyclerDesktops | J50: 0.75 | K50: N/A | L50: 0.25
A51: Recycler | B51: =B37 -> Portables | C51: 0.75 | D51: N/A | E51: 0.25 | F51: RecyclerPortables | J51: 0.75 | K51: N/A | L51: 0.25
A52: Recycler | B52: Hard Copy Peripherals | C52: 0.75 | D52: N/A | E52: 0.25 | F52: RecyclerHard Copy Peripherals | J52: 0.75 | K52: N/A | L52: 0.25
A53: Recycler | B53: Mice | C53: 0.75 | D53: N/A | E53: 0.25 | F53: RecyclerMice | J53: 0.75 | K53: N/A | L53: 0.25
A54: Recycler | B54: Keyboards | C54: 0.75 | D54: N/A | E54: 0.25 | F54: RecyclerKeyboards | J54: 0.75 | K54: N/A | L54: 0.25
A55: Recycler | B55: PC CRTs | C55: 0.75 | D55: N/A | E55: 0.25 | F55: RecyclerPC CRTs | J55: 0.75 | K55: N/A | L55: 0.25
A56: Recycler | B56: PC Flat Panel | C56: 0.75 | D56: N/A | E56: 0.25 | F56: RecyclerPC Flat Panel | J56: 0.75 | K56: N/A | L56: 0.25
A57: Recycler | B57: Color CRT <19" | C57: 0.75 | D57: N/A | E57: 0.25 | F57: RecyclerColor CRT <19" | J57: 0.75 | K57: N/A | L57: 0.25
A58: Recycler | B58: Color CRT >19" | C58: 0.75 | D58: N/A | E58: 0.25 | F58: RecyclerColor CRT >19" | J58: 0.75 | K58: N/A | L58: 0.25
A59: Recycler | B59: Flat Panel TVs | C59: 0.75 | D59: N/A | E59: 0.25 | F59: RecyclerFlat Panel TVs | J59: 0.75 | K59: N/A | L59: 0.25
A60: Recycler | B60: Color Projection | C60: 0.75 | D60: N/A | E60: 0.25 | F60: RecyclerColor Projection | J60: 0.75 | K60: N/A | L60: 0.25
A61: Recycler | B61: Monochrome | C61: 0.75 | D61: N/A | E61: 0.25 | F61: RecyclerMonochrome | J61: 0.75 | K61: N/A | L61: 0.25
A62: Recycler | B62: Cell Phones | C62: 0.75 | D62: N/A | E62: 0.25 | F62: RecyclerCell Phones | J62: 0.75 | K62: N/A | L62: 0.25
A63: Recycler | B63: Average | C63: =CPInput!B10/100 -> 0.75 | D63: N/A | E63: =CPInput!B11/100 -> 0.25 | J63: 0.99 | K63: N/A | L63: 0.25
A64: Processor | B64: Cell Phones | C64: =IF(C$77=J$77,J64,C$77) -> 0.75 | D64: N/A | E64: =IF(E$77=L$77,L64,E$77) -> 0.25 | F64: ProcessorCell Phones | J64: 0.75 | K64: N/A | L64: 0.25
A65: Processor | B65: Color CRT <19" | C65: 0.75 | D65: N/A | E65: 0.25 | F65: ProcessorColor CRT <19" | J65: 0.75 | K65: N/A | L65: 0.25
A66: Processor | B66: Color CRT >19" | C66: 0.75 | D66: N/A | E66: 0.25 | F66: ProcessorColor CRT >19" | J66: 0.75 | K66: N/A | L66: 0.25
A67: Processor | B67: Color Projection | C67: 0.75 | D67: N/A | E67: 0.25 | F67: ProcessorColor Projection | J67: 0.75 | K67: N/A | L67: 0.25
A68: Processor | B68: Desktops | C68: 0.75 | D68: N/A | E68: 0.25 | F68: ProcessorDesktops | J68: 0.75 | K68: N/A | L68: 0.25
A69: Processor | B69: Flat Panel TVs | C69: 0.75 | D69: N/A | E69: 0.25 | F69: ProcessorFlat Panel TVs | J69: 0.75 | K69: N/A | L69: 0.25
A70: Processor | B70: Hard Copy Peripherals | C70: 0.75 | D70: N/A | E70: 0.25 | F70: ProcessorHard Copy Peripherals | J70: 0.75 | K70: N/A | L70: 0.25
A71: Processor | B71: Keyboards | C71: 0.75 | D71: N/A | E71: 0.25 | F71: ProcessorKeyboards | J71: 0.75 | K71: N/A | L71: 0.25
A72: Processor | B72: Mice | C72: 0.75 | D72: N/A | E72: 0.25 | F72: ProcessorMice | J72: 0.75 | K72: N/A | L72: 0.25
A73: Processor | B73: Monochrome | C73: 0.75 | D73: N/A | E73: 0.25 | F73: ProcessorMonochrome | J73: 0.75 | K73: N/A | L73: 0.25
A74: Processor | B74: PC CRTs | C74: 0.75 | D74: N/A | E74: 0.25 | F74: ProcessorPC CRTs | J74: 0.75 | K74: N/A | L74: 0.25
A75: Processor | B75: PC Flat Panel | C75: 0.75 | D75: N/A | E75: 0.25 | F75: ProcessorPC Flat Panel | J75: 0.75 | K75: N/A | L75: 0.25
A76: Processor | B76: Portables | C76: 0.75 | D76: N/A | E76: 0.25 | F76: ProcessorPortables | J76: 0.75 | K76: N/A | L76: 0.25
A77: Processor | B77: Average | C77: =CPInput!B12/100 -> 0.75 | D77: N/A | E77: =CPInput!B13/100 -> 0.25 | F77: ProcessorAverage | J77: 0.99 | K77: N/A | L77: 0.25

Sheet Composition
A1: Home
A2: Description: | B2: Material composition distributions by product type and stage.
A3: Source: | B3: Starting compositions derived from published work completed by the Rochester Institute of Technology (Babbitt et al., 2017).
A4: Last Modified: | B4: 2018-12-14
B5: RIT Commodity Categories | Q5: Old Compositional Breakdown
A6: Stage | B6: Product | C6: Battery | D6: CRT Lead | E6: CRT Glass | F6: Flat Panel Display Module CCFL | G6: Flat Panel Display Module LED | H6: PCB Material | I6: Plastics | J6: Other | K6: Copper | L6: Aluminum | M6: Ferrous Metal | N6: Other Metals | Q6: Steel | R6: Aluminum | S6: Electronics | T6: Plastics | U6: Display (Glass) | V6: Battery | Y6: Battery | Z6: CRT Lead | AA6: CRT Glass | AB6: Flat Panel Display Module CCFL | AC6: Flat Panel Display Module LED | AD6: PCB Material | AE6: Plastics | AF6: Other | AG6: Copper | AH6: Aluminum | AI6: Ferrous Metal | AJ6: Other Metals
A7: Starting | B7: Cell Phones | C7: =IF(C$20=Y$20,Y7,(C$20-Y$20)+Y7) -> 0.18 | D7: =IF(D$20=Z$20,Z7,(D$20-Z$20)+Z7) -> 0 | E7: 0 | F7: 0.15 | G7: 0 | H7: 0.1 | I7: 0.14 | J7: 0.15 | K7: 0.02 | L7: 0.2 | M7: 0 | N7: 0.06 | O7: =A7&B7 -> StartingCell Phones | Q7: 0.2 | R7: 0.3 | S7: 0.3 | T7: 0.2 | U7: 0 | V7: 0 | Y7: 0.18 | Z7: 0 | AA7: 0 | AB7: 0.15 | AC7: 0 | AD7: 0.1 | AE7: 0.14 | AF7: 0.15 | AG7: 0.02 | AH7: 0.2 | AI7: 0 | AJ7: 0.06 | AK7: =SUM(Y7:AJ7) -> 1
A8: Starting | B8: Color CRT <19" | C8: =IF(C$20=Y$20,Y8,(C$20-Y$20)+Y8) -> 0 | D8: =IF(D$20=Z$20,Z8,(D$20-Z$20)+Z8) -> 0.06 | E8: =IF(E$20=AA$20,AA8,(E$20-AA$20)+AA8) -> 0.54 | F8: =IF(F$20=AB$20,AB8,(F$20-AB$20)+AB8) -> 0 | G8: =IF(G$20=AC$20,AC8,(G$20-AC$20)+AC8) -> 0 | H8: =IF(H$20=AD$20,AD8,(H$20-AD$20)+AD8) -> 0.1 | I8: =IF(I$20=AE$20,AE8,(I$20-AE$20)+AE8) -> 0.21 | J8: =IF(J$20=AF$20,AF8,(J$20-AF$20)+AF8) -> 0 | K8: =IF(K$20=AG$20,AG8,(K$20-AG$20)+AG8) -> 0.02 | L8: =IF(L$20=AH$20,AH8,(L$20-AH$20)+AH8) -> 0.01 | M8: =IF(M$20=AI$20,AI8,(M$20-AI$20)+AI8) -> 0.06 | N8: =IF(N$20=AJ$20,AJ8,(N$20-AJ$20)+AJ8) -> 0 | O8: =A8&B8 -> StartingColor CRT <19" | Q8: 0.18 | R8: 0.08 | S8: 0.11 | T8: 0.3 | U8: 0.15 | V8: 0.18 | Y8: 0 | Z8: 0.06 | AA8: 0.54 | AB8: 0 | AC8: 0 | AD8: 0.1 | AE8: 0.21 | AF8: 0 | AG8: 0.02 | AH8: 0.01 | AI8: 0.06 | AJ8: 0 | AK8: =SUM(Y8:AJ8) -> 1
A9: Starting | B9: Color CRT >19" | C9: 0 | D9: 0.06 | E9: 0.54 | F9: 0 | G9: 0 | H9: 0.1 | I9: 0.21 | J9: 0 | K9: 0.02 | L9: 0.01 | M9: 0.06 | N9: 0 | O9: StartingColor CRT >19" | Q9: 0.2 | R9: 0.3 | S9: 0.3 | T9: 0.2 | U9: 0 | V9: 0 | Y9: 0 | Z9: 0.06 | AA9: 0.54 | AB9: 0 | AC9: 0 | AD9: 0.1 | AE9: 0.21 | AF9: 0 | AG9: 0.02 | AH9: 0.01 | AI9: 0.06 | AJ9: 0 | AK9: 1
A10: Starting | B10: Color Projection | C10: 0 | D10: 0.05 | E10: 0.45 | F10: 0 | G10: 0 | H10: 0.0675 | I10: 0.2 | J10: 0.0045 | K10: 0.018 | L10: 0.114 | M10: 0.09 | N10: 0.006 | O10: StartingColor Projection | Q10: 0 | R10: 0.05 | S10: 0.05 | T10: 0.9 | U10: 0 | V10: 0 | Y10: 0 | Z10: 0.05 | AA10: 0.45 | AB10: 0 | AC10: 0 | AD10: 0.0675 | AE10: 0.2 | AF10: 0.0045 | AG10: 0.018 | AH10: 0.114 | AI10: 0.09 | AJ10: 0.006 | AK10: 1
A11: Starting | B11: Desktops | C11: 0 | D11: 0 | E11: 0 | F11: 0 | G11: 0 | H11: 0.14 | I11: 0.12 | J11: 0.02 | K11: 0.04 | L11: 0.11 | M11: 0.57 | N11: 0 | O11: StartingDesktops | Q11: 0 | R11: 0.15 | S11: 0.05 | T11: 0.8 | U11: 0 | V11: 0 | Y11: 0 | Z11: 0 | AA11: 0 | AB11: 0 | AC11: 0 | AD11: 0.14 | AE11: 0.12 | AF11: 0.02 | AG11: 0.04 | AH11: 0.11 | AI11: 0.57 | AJ11: 0 | AK11: 1
A12: Starting | B12: Flat Panel TVs | C12: 0 | D12: 0 | E12: 0 | F12: 0.18 | G12: 0.08 | H12: 0.05 | I12: 0.25 | J12: 0 | K12: 0.01 | L12: 0.04 | M12: 0.38 | N12: 0.01 | O12: StartingFlat Panel TVs | Q12: 0.12 | R12: 0.09 | S12: 0.09 | T12: 0.2 | U12: =1-SUM(Q12:T12) -> 0.5 | V12: 0 | Y12: 0 | Z12: 0 | AA12: 0 | AB12: 0.18 | AC12: 0.08 | AD12: 0.05 | AE12: 0.25 | AF12: 0 | AG12: 0.01 | AH12: 0.04 | AI12: 0.38 | AJ12: 0.01 | AK12: 1
A13: Starting | B13: Hard Copy Peripherals | C13: 0 | D13: 0 | E13: 0 | F13: 0 | G13: 0 | H13: 0.03 | I13: 0.58 | J13: 0.01 | K13: 0.01 | L13: 0 | M13: 0.37 | N13: 0 | O13: StartingHard Copy Peripherals | Q13: 0.05 | R13: 0.54 | S13: 0.05 | T13: 0.24 | U13: 0.12 | V13: 0 | Y13: 0 | Z13: 0 | AA13: 0 | AB13: 0 | AC13: 0 | AD13: 0.03 | AE13: 0.58 | AF13: 0.01 | AG13: 0.01 | AH13: 0 | AI13: 0.37 | AJ13: 0 | AK13: 1
A14: Starting | B14: Keyboards | C14: 0 | D14: 0 | E14: 0 | F14: 0 | G14: 0 | H14: 0.0375 | I14: 0.8 | J14: 0.0025 | K14: 0.01 | L14: 0 | M14: 0.15 | N14: 0 | O14: StartingKeyboards | Q14: 0.12 | R14: 0.09 | S14: 0.09 | T14: 0.2 | U14: =1-SUM(Q14:T14) -> 0.5 | V14: 0 | Y14: 0 | Z14: 0 | AA14: 0 | AB14: 0 | AC14: 0 | AD14: 0.0375 | AE14: 0.8 | AF14: 0.0025 | AG14: 0.01 | AH14: 0 | AI14: 0.15 | AJ14: 0 | AK14: 1
A15: Starting | B15: Mice | C15: 0 | D15: 0 | E15: 0 | F15: 0 | G15: 0 | H15: 0.0375 | I15: 0.9 | J15: 0.0025 | K15: 0.01 | L15: 0 | M15: 0.05 | N15: 0 | O15: StartingMice | Q15: 0.12 | R15: 0.09 | S15: 0.09 | T15: 0.2 | U15: =1-SUM(Q15:T15) -> 0.5 | V15: 0 | Y15: 0 | Z15: 0 | AA15: 0 | AB15: 0 | AC15: 0 | AD15: 0.0375 | AE15: 0.9 | AF15: 0.0025 | AG15: 0.01 | AH15: 0 | AI15: 0.05 | AJ15: 0 | AK15: 1
A16: Starting | B16: Monochrome | C16: 0 | D16: 0.05 | E16: 0.45 | F16: 0 | G16: 0 | H16: 0.0675 | I16: 0.2 | J16: 0.0045 | K16: 0.018 | L16: 0.114 | M16: 0.09 | N16: 0.006 | O16: StartingMonochrome | Q16: 0.05 | R16: 0.54 | S16: 0.05 | T16: 0.24 | U16: 0.12 | V16: 0 | Y16: 0 | Z16: 0.05 | AA16: 0.45 | AB16: 0 | AC16: 0 | AD16: 0.0675 | AE16: 0.2 | AF16: 0.0045 | AG16: 0.018 | AH16: 0.114 | AI16: 0.09 | AJ16: 0.006 | AK16: 1
A17: Starting | B17: PC CRTs | C17: 0 | D17: 0.06 | E17: 0.56 | F17: 0 | G17: 0 | H17: 0.12 | I17: 0.17 | J17: 0 | K17: 0.04 | L17: 0.01 | M17: 0.03 | N17: 0.01 | O17: StartingPC CRTs | Q17: 0.12 | R17: 0.09 | S17: 0.09 | T17: 0.2 | U17: =1-SUM(Q17:T17) -> 0.5 | V17: 0 | Y17: 0 | Z17: 0.06 | AA17: 0.56 | AB17: 0 | AC17: 0 | AD17: 0.12 | AE17: 0.17 | AF17: 0 | AG17: 0.04 | AH17: 0.01 | AI17: 0.03 | AJ17: 0.01 | AK17: 1
A18: Starting | B18: PC Flat Panel | C18: 0 | D18: 0 | E18: 0 | F18: 0.21 | G18: 0 | H18: 0.06 | I18: 0.25 | J18: 0.02 | K18: 0.05 | L18: 0.03 | M18: 0.38 | N18: 0 | O18: StartingPC Flat Panel | Q18: 0.12 | R18: 0.09 | S18: 0.09 | T18: 0.2 | U18: =1-SUM(Q18:T18) -> 0.5 | V18: 0 | Y18: 0 | Z18: 0 | AA18: 0 | AB18: 0.21 | AC18: 0 | AD18: 0.06 | AE18: 0.25 | AF18: 0.02 | AG18: 0.05 | AH18: 0.03 | AI18: 0.38 | AJ18: 0 | AK18: 1
A19: Starting | B19: Portables | C19: 0.14 | D19: 0 | E19: 0 | F19: 0.17 | G19: 0 | H19: 0.14 | I19: 0.23 | J19: 0.02 | K19: 0.02 | L19: 0.12 | M19: 0.1 | N19: 0.06 | O19: StartingPortables | Q19: =AVERAGE(0.18,0.1)-(0.05/6) -> 0.1316666667 | R19: =AVERAGE(0.19,0)-(0.05/6) -> 0.08666666667 | S19: =AVERAGE(0.08,0.09)-(0.05/6) -> 0.07666666667 | T19: =AVERAGE(0.07,0.13)-(0.05/6) -> 0.09166666667 | U19: =AVERAGE(0.41,0.37)-(0.05/6) -> 0.3816666667 | V19: =AVERAGE(0.2,0.28)-(0.05/6) -> 0.2316666667 | Y19: 0.14 | Z19: 0 | AA19: 0 | AB19: 0.17 | AC19: 0 | AD19: 0.14 | AE19: 0.23 | AF19: 0.02 | AG19: 0.02 | AH19: 0.12 | AI19: 0.1 | AJ19: 0.06 | AK19: 1
A20: Starting | B20: Average | C20: =CPInput!B22/100 -> 0.02 | D20: =CPInput!B23/100 -> 0.02 | E20: =CPInput!B24/100 -> 0.2 | F20: =CPInput!B25/100 -> 0.05 | G20: =CPInput!B26/100 -> 0.01 | H20: =CPInput!B27/100 -> 0.08 | I20: =CPInput!B33/100 -> 0.31 | J20: =CPInput!B28/100 -> 0.02 | K20: =CPInput!B29/100 -> 0.02 | L20: =CPInput!B30/100 -> 0.06 | M20: =CPInput!B31/100 -> 0.2 | N20: =CPInput!B32/100 -> 0.01 | O20: StartingAverage | Y20: 0.02 | Z20: 0.02 | AA20: 0.2 | AB20: 0.05 | AC20: 0.01 | AD20: 0.08 | AE20: 0.31 | AF20: 0.02 | AG20: 0.02 | AH20: 0.06 | AI20: 0.2 | AJ20: 0.01
A21: Starting -> Collector | C21: =$X$21 -> 0.85 | D21: =$X$21 -> 0.85 | E21: 0.85 | F21: 0.85 | G21: 0.85 | H21: 0.85 | I21: 0.85 | J21: 0.85 | K21: 0.85 | L21: 0.85 | M21: 0.85 | N21: 0.85 | X21: =CPInput!B34/100 -> 0.85
A22: Collector -> Recycler | C22: =$X$22 -> 0.9 | D22: 0.9 | E22: 0.9 | F22: 0.9 | G22: 0.9 | H22: 0.9 | I22: 0.9 | J22: 0.9 | K22: 0.9 | L22: 0.9 | M22: 0.9 | N22: 0.9 | X22: =CPInput!B35/100 -> 0.9
A23: Recycler -> Processor | C23: =$X$23 -> 0.95 | D23: 0.95 | E23: 0.95 | F23: 0.95 | G23: 0.95 | H23: 0.95 | I23: 0.95 | J23: 0.95 | K23: 0.95 | L23: 0.95 | M23: 0.95 | N23: 0.95 | X23: =CPInput!B36/100 -> 0.95
A24: Processor -> Commodity Market | C24: =$X$24 -> 0.99 | D24: 0.99 | E24: 0.99 | F24: 0.99 | G24: 0.99 | H24: 0.99 | I24: 0.99 | J24: 0.99 | K24: 0.99 | L24: 0.99 | M24: 0.99 | N24: 0.99 | X24: =CPInput!B37/100 -> 0.99
A25: Collector | B25: Cell Phones | C25: =C7*C$21 -> 0.153 | D25: =D7*D$21 -> 0 | E25: 0 | F25: =F7*F$21 -> 0.1275 | G25: 0 | H25: 0.085 | I25: 0.119 | J25: 0.1275 | K25: 0.017 | L25: 0.17 | M25: 0 | N25: 0.051 | O25: CollectorCell Phones
A26: Collector | B26: Color CRT <19" | C26: =C8*C$21 -> 0 | D26: 0.051 | E26: 0.459 | F26: 0 | G26: 0 | H26: 0.085 | I26: 0.1785 | J26: 0 | K26: 0.017 | L26: 0.0085 | M26: 0.051 | N26: 0 | O26: CollectorColor CRT <19"
A27: Collector | B27: Color CRT >19" | C27: =C9*C$21 -> 0 | D27: 0.051 | E27: 0.459 | F27: 0 | G27: 0 | H27: 0.085 | I27: 0.1785 | J27: 0 | K27: 0.017 | L27: 0.0085 | M27: 0.051 | N27: 0 | O27: CollectorColor CRT >19"
A28: Collector | B28: Color Projection | C28: =C10*C$21 -> 0 | D28: 0.0425 | E28: 0.3825 | F28: 0 | G28: 0 | H28: 0.057375 | I28: 0.17 | J28: 0.003825 | K28: 0.0153 | L28: 0.0969 | M28: 0.0765 | N28: 0.0051 | O28: CollectorColor Projection
A29: Collector | B29: Desktops | C29: =C11*C$21 -> 0 | D29: 0 | E29: 0 | F29: 0 | G29: 0 | H29: 0.119 | I29: 0.102 | J29: 0.017 | K29: 0.034 | L29: 0.0935 | M29: 0.4845 | N29: 0 | O29: CollectorDesktops
A30: Collector | B30: Flat Panel TVs | C30: =C12*C$21 -> 0 | D30: 0 | E30: 0 | F30: 0.153 | G30: 0.068 | H30: 0.0425 | I30: 0.2125 | J30: 0 | K30: 0.0085 | L30: 0.034 | M30: 0.323 | N30: 0.0085 | O30: CollectorFlat Panel TVs
A31: Collector | B31: Hard Copy Peripherals | C31: =C13*C$21 -> 0 | D31: 0 | E31: 0 | F31: 0 | G31: 0 | H31: 0.0255 | I31: 0.493 | J31: 0.0085 | K31: 0.0085 | L31: 0 | M31: 0.3145 | N31: 0 | O31: CollectorHard Copy Peripherals
A32: Collector | B32: Keyboards | C32: =C14*C$21 -> 0 | D32: 0 | E32: 0 | F32: 0 | G32: 0 | H32: 0.031875 | I32: 0.68 | J32: 0.002125 | K32: 0.0085 | L32: 0 | M32: 0.1275 | N32: 0 | O32: CollectorKeyboards
A33: Collector | B33: Mice | C33: =C15*C$21 -> 0 | D33: 0 | E33: 0 | F33: 0 | G33: 0 | H33: 0.031875 | I33: 0.765 | J33: 0.002125 | K33: 0.0085 | L33: 0 | M33: 0.0425 | N33: 0 | O33: CollectorMice
A34: Collector | B34: Monochrome | C34: =C16*C$21 -> 0 | D34: 0.0425 | E34: 0.3825 | F34: 0 | G34: 0 | H34: 0.057375 | I34: 0.17 | J34: 0.003825 | K34: 0.0153 | L34: 0.0969 | M34: 0.0765 | N34: 0.0051 | O34: CollectorMonochrome
A35: Collector | B35: PC CRTs | C35: =C17*C$21 -> 0 | D35: 0.051 | E35: 0.476 | F35: 0 | G35: 0 | H35: 0.102 | I35: 0.1445 | J35: 0 | K35: 0.034 | L35: 0.0085 | M35: 0.0255 | N35: 0.0085 | O35: CollectorPC CRTs
A36: Collector | B36: PC Flat Panel | C36: =C18*C$21 -> 0 | D36: 0 | E36: 0 | F36: 0.1785 | G36: 0 | H36: 0.051 | I36: 0.2125 | J36: 0.017 | K36: 0.0425 | L36: 0.0255 | M36: 0.323 | N36: 0 | O36: CollectorPC Flat Panel
A37: Collector | B37: Portables | C37: =C19*C$21 -> 0.119 | D37: 0 | E37: 0 | F37: 0.1445 | G37: 0 | H37: 0.119 | I37: 0.1955 | J37: 0.017 | K37: 0.017 | L37: 0.102 | M37: 0.085 | N37: 0.051 | O37: CollectorPortables
A38: Recycler | B38: Cell Phones | C38: =C25*C$22 -> 0.1377 | D38: 0 | E38: 0 | F38: 0.11475 | G38: 0 | H38: 0.0765 | I38: 0.1071 | J38: 0.11475 | K38: 0.0153 | L38: 0.153 | M38: 0 | N38: 0.0459 | O38: RecyclerCell Phones
A39: Recycler | B39: Color CRT <19" | C39: =C26*C$22 -> 0 | D39: 0.0459 | E39: 0.4131 | F39: 0 | G39: 0 | H39: 0.0765 | I39: 0.16065 | J39: 0 | K39: 0.0153 | L39: 0.00765 | M39: 0.0459 | N39: 0 | O39: RecyclerColor CRT <19"
A40: Recycler | B40: Color CRT >19" | C40: =C27*C$22 -> 0 | D40: 0.0459 | E40: 0.4131 | F40: 0 | G40: 0 | H40: 0.0765 | I40: 0.16065 | J40: 0 | K40: 0.0153 | L40: 0.00765 | M40: 0.0459 | N40: 0 | O40: RecyclerColor CRT >19"
A41: Recycler | B41: Color Projection | C41: =C28*C$22 -> 0 | D41: 0.03825 | E41: 0.34425 | F41: 0 | G41: 0 | H41: 0.0516375 | I41: 0.153 | J41: 0.0034425 | K41: 0.01377 | L41: 0.08721 | M41: 0.06885 | N41: 0.00459 | O41: RecyclerColor Projection
A42: Recycler | B42: Desktops | C42: =C29*C$22 -> 0 | D42: 0 | E42: 0 | F42: 0 | G42: 0 | H42: 0.1071 | I42: 0.0918 | J42: 0.0153 | K42: 0.0306 | L42: 0.08415 | M42: 0.43605 | N42: 0 | O42: RecyclerDesktops
A43: Recycler | B43: Flat Panel TVs | C43: =C30*C$22 -> 0 | D43: 0 | E43: 0 | F43: 0.1377 | G43: 0.0612 | H43: 0.03825 | I43: 0.19125 | J43: 0 | K43: 0.00765 | L43: 0.0306 | M43: 0.2907 | N43: 0.00765 | O43: RecyclerFlat Panel TVs
A44: Recycler | B44: Hard Copy Peripherals | C44: =C31*C$22 -> 0 | D44: 0 | E44: 0 | F44: 0 | G44: 0 | H44: 0.02295 | I44: 0.4437 | J44: 0.00765 | K44: 0.00765 | L44: 0 | M44: 0.28305 | N44: 0 | O44: RecyclerHard Copy Peripherals
A45: Recycler | B45: Keyboards | C45: =C32*C$22 -> 0 | D45: 0 | E45: 0 | F45: 0 | G45: 0 | H45: 0.0286875 | I45: 0.612 | J45: 0.0019125 | K45: 0.00765 | L45: 0 | M45: 0.11475 | N45: 0 | O45: RecyclerKeyboards
A46: Recycler | B46: Mice | C46: =C33*C$22 -> 0 | D46: 0 | E46: 0 | F46: 0 | G46: 0 | H46: 0.0286875 | I46: 0.6885 | J46: 0.0019125 | K46: 0.00765 | L46: 0 | M46: 0.03825 | N46: 0 | O46: RecyclerMice
A47: Recycler | B47: Monochrome | C47: =C34*C$22 -> 0 | D47: 0.03825 | E47: 0.34425 | F47: 0 | G47: 0 | H47: 0.0516375 | I47: 0.153 | J47: 0.0034425 | K47: 0.01377 | L47: 0.08721 | M47: 0.06885 | N47: 0.00459 | O47: RecyclerMonochrome
A48: Recycler | B48: PC CRTs | C48: =C35*C$22 -> 0 | D48: 0.0459 | E48: 0.4284 | F48: 0 | G48: 0 | H48: 0.0918 | I48: 0.13005 | J48: 0 | K48: 0.0306 | L48: 0.00765 | M48: 0.02295 | N48: 0.00765 | O48: RecyclerPC CRTs
A49: Recycler | B49: PC Flat Panel | C49: =C36*C$22 -> 0 | D49: 0 | E49: 0 | F49: 0.16065 | G49: 0 | H49: 0.0459 | I49: 0.19125 | J49: 0.0153 | K49: 0.03825 | L49: 0.02295 | M49: 0.2907 | N49: 0 | O49: RecyclerPC Flat Panel
A50: Recycler | B50: Portables | C50: =C37*C$22 -> 0.1071 | D50: 0 | E50: 0 | F50: 0.13005 | G50: 0 | H50: 0.1071 | I50: 0.17595 | J50: 0.0153 | K50: 0.0153 | L50: 0.0918 | M50: 0.0765 | N50: 0.0459 | O50: RecyclerPortables
A51: Processor | B51: Cell Phones | C51: =C38*C$23 -> 0.130815 | D51: 0 | E51: 0 | F51: 0.1090125 | G51: 0 | H51: 0.072675 | I51: 0.101745 | J51: 0.1090125 | K51: 0.014535 | L51: 0.14535 | M51: 0 | N51: 0.043605 | O51: ProcessorCell Phones
A52: Processor | B52: Color CRT <19" | C52: =C39*C$23 -> 0 | D52: 0.043605 | E52: 0.392445 | F52: 0 | G52: 0 | H52: 0.072675 | I52: 0.1526175 | J52: 0 | K52: 0.014535 | L52: 0.0072675 | M52: 0.043605 | N52: 0 | O52: ProcessorColor CRT <19"
A53: Processor | B53: Color CRT >19" | C53: =C40*C$23 -> 0 | D53: 0.043605 | E53: 0.392445 | F53: 0 | G53: 0 | H53: 0.072675 | I53: 0.1526175 | J53: 0 | K53: 0.014535 | L53: 0.0072675 | M53: 0.043605 | N53: 0 | O53: ProcessorColor CRT >19"
A54: Processor | B54: Color Projection | C54: =C41*C$23 -> 0 | D54: 0.0363375 | E54: 0.3270375 | F54: 0 | G54: 0 | H54: 0.049055625 | I54: 0.14535 | J54: 0.003270375 | K54: 0.0130815 | L54: 0.0828495 | M54: 0.0654075 | N54: 0.0043605 | O54: ProcessorColor Projection
A55: Processor | B55: Desktops | C55: =C42*C$23 -> 0 | D55: 0 | E55: 0 | F55: 0 | G55: 0 | H55: 0.101745 | I55: 0.08721 | J55: 0.014535 | K55: 0.02907 | L55: 0.0799425 | M55: 0.4142475 | N55: 0 | O55: ProcessorDesktops
A56: Processor | B56: Flat Panel TVs | C56: =C43*C$23 -> 0 | D56: 0 | E56: 0 | F56: 0.130815 | G56: 0.05814 | H56: 0.0363375 | I56: 0.1816875 | J56: 0 | K56: 0.0072675 | L56: 0.02907 | M56: 0.276165 | N56: 0.0072675 | O56: ProcessorFlat Panel TVs
A57: Processor | B57: Hard Copy Peripherals | C57: =C44*C$23 -> 0 | D57: 0 | E57: 0 | F57: 0 | G57: 0 | H57: 0.0218025 | I57: 0.421515 | J57: 0.0072675 | K57: 0.0072675 | L57: 0 | M57: 0.2688975 | N57: 0 | O57: ProcessorHard Copy Peripherals
A58: Processor | B58: Keyboards | C58: =C45*C$23 -> 0 | D58: 0 | E58: 0 | F58: 0 | G58: 0 | H58: 0.027253125 | I58: 0.5814 | J58: 0.001816875 | K58: 0.0072675 | L58: 0 | M58: 0.1090125 | N58: 0 | O58: ProcessorKeyboards
A59: Processor | B59: Mice | C59: =C46*C$23 -> 0 | D59: 0 | E59: 0 | F59: 0 | G59: 0 | H59: 0.027253125 | I59: 0.654075 | J59: 0.001816875 | K59: 0.0072675 | L59: 0 | M59: 0.0363375 | N59: 0 | O59: ProcessorMice
A60: Processor | B60: Monochrome | C60: =C47*C$23 -> 0 | D60: 0.0363375 | E60: 0.3270375 | F60: 0 | G60: 0 | H60: 0.049055625 | I60: 0.14535 | J60: 0.003270375 | K60: 0.0130815 | L60: 0.0828495 | M60: 0.0654075 | N60: 0.0043605 | O60: ProcessorMonochrome
A61: Processor | B61: PC CRTs | C61: =C48*C$23 -> 0 | D61: 0.043605 | E61: 0.40698 | F61: 0 | G61: 0 | H61: 0.08721 | I61: 0.1235475 | J61: 0 | K61: 0.02907 | L61: 0.0072675 | M61: 0.0218025 | N61: 0.0072675 | O61: ProcessorPC CRTs
A62: Processor | B62: PC Flat Panel | C62: =C49*C$23 -> 0 | D62: 0 | E62: 0 | F62: 0.1526175 | G62: 0 | H62: 0.043605 | I62: 0.1816875 | J62: 0.014535 | K62: 0.0363375 | L62: 0.0218025 | M62: 0.276165 | N62: 0 | O62: ProcessorPC Flat Panel
A63: Processor | B63: Portables | C63: =C50*C$23 -> 0.101745 | D63: 0 | E63: 0 | F63: 0.1235475 | G63: 0 | H63: 0.101745 | I63: 0.1671525 | J63: 0.014535 | K63: 0.014535 | L63: 0.08721 | M63: 0.072675 | N63: 0.043605 | O63: ProcessorPortables
A64: Commodity Market | B64: Cell Phones | C64: =C51*C$24 -> 0.12950685 | D64: =D51*D$24 -> 0 | E64: 0 | F64: 0.107922375 | G64: 0 | H64: 0.07194825 | I64: 0.10072755 | J64: 0.107922375 | K64: 0.01438965 | L64: 0.1438965 | M64: 0 | N64: 0.04316895 | O64: Commodity MarketCell Phones
A65: Commodity Market | B65: Color CRT <19" | C65: =C52*C$24 -> 0 | D65: 0.04316895 | E65: 0.38852055 | F65: 0 | G65: 0 | H65: 0.07194825 | I65: 0.151091325 | J65: 0 | K65: 0.01438965 | L65: 0.007194825 | M65: 0.04316895 | N65: 0 | O65: Commodity MarketColor CRT <19"
A66: Commodity Market | B66: Color CRT >19" | C66: =C53*C$24 -> 0 | D66: 0.04316895 | E66: 0.38852055 | F66: 0 | G66: 0 | H66: 0.07194825 | I66: 0.151091325 | J66: 0 | K66: 0.01438965 | L66: 0.007194825 | M66: 0.04316895 | N66: 0 | O66: Commodity MarketColor CRT >19"
A67: Commodity Market | B67: Color Projection | C67: =C54*C$24 -> 0 | D67: 0.035974125 | E67: 0.323767125 | F67: 0 | G67: 0 | H67: 0.04856506875 | I67: 0.1438965 | J67: 0.00323767125 | K67: 0.012950685 | L67: 0.082021005 | M67: 0.064753425 | N67: 0.004316895 | O67: Commodity MarketColor Projection
A68: Commodity Market | B68: Desktops | C68: =C55*C$24 -> 0 | D68: 0 | E68: 0 | F68: 0 | G68: 0 | H68: 0.10072755 | I68: 0.0863379 | J68: 0.01438965 | K68: 0.0287793 | L68: 0.079143075 | M68: 0.410105025 | N68: 0 | O68: Commodity MarketDesktops
A69: Commodity Market | B69: Flat Panel TVs | C69: =C56*C$24 -> 0 | D69: 0 | E69: 0 | F69: 0.12950685 | G69: 0.0575586 | H69: 0.035974125 | I69: 0.179870625 | J69: 0 | K69: 0.007194825 | L69: 0.0287793 | M69: 0.27340335 | N69: 0.007194825 | O69: Commodity MarketFlat Panel TVs
A70: Commodity Market | B70: Hard Copy Peripherals | C70: =C57*C$24 -> 0 | D70: 0 | E70: 0 | F70: 0 | G70: 0 | H70: 0.021584475 | I70: 0.41729985 | J70: 0.007194825 | K70: 0.007194825 | L70: 0 | M70: 0.266208525 | N70: 0 | O70: Commodity MarketHard Copy Peripherals
A71: Commodity Market | B71: Keyboards | C71: =C58*C$24 -> 0 | D71: 0 | E71: 0 | F71: 0 | G71: 0 | H71: 0.02698059375 | I71: 0.575586 | J71: 0.00179870625 | K71: 0.007194825 | L71: 0 | M71: 0.107922375 | N71: 0 | O71: Commodity MarketKeyboards
A72: Commodity Market | B72: Mice | C72: =C59*C$24 -> 0 | D72: 0 | E72: 0 | F72: 0 | G72: 0 | H72: 0.02698059375 | I72: 0.64753425 | J72: 0.00179870625 | K72: 0.007194825 | L72: 0 | M72: 0.035974125 | N72: 0 | O72: Commodity MarketMice
A73: Commodity Market | B73: Monochrome | C73: =C60*C$24 -> 0 | D73: 0.035974125 | E73: 0.323767125 | F73: 0 | G73: 0 | H73: 0.04856506875 | I73: 0.1438965 | J73: 0.00323767125 | K73: 0.012950685 | L73: 0.082021005 | M73: 0.064753425 | N73: 0.004316895 | O73: =A73&B73 -> Commodity MarketMonochrome
A74: Commodity Market | B74: PC CRTs | C74: =C61*C$24 -> 0 | D74: 0.04316895 | E74: 0.4029102 | F74: 0 | G74: 0 | H74: 0.0863379 | I74: 0.122312025 | J74: 0 | K74: 0.0287793 | L74: 0.007194825 | M74: 0.021584475 | N74: 0.007194825 | O74: =A74&B74 -> Commodity MarketPC CRTs
A75: Commodity Market | B75: PC Flat Panel | C75: =C62*C$24 -> 0 | D75: 0 | E75: 0 | F75: 0.151091325 | G75: 0 | H75: 0.04316895 | I75: 0.179870625 | J75: 0.01438965 | K75: 0.035974125 | L75: 0.021584475 | M75: 0.27340335 | N75: 0 | O75: =A75&B75 -> Commodity MarketPC Flat Panel
A76: Commodity Market | B76: Portables | C76: =C63*C$24 -> 0.10072755 | D76: 0 | E76: 0 | F76: 0.122312025 | G76: 0 | H76: 0.10072755 | I76: 0.165480975 | J76: 0.01438965 | K76: 0.01438965 | L76: 0.0863379 | M76: 0.07194825 | N76: 0.04316895 | O76: =A76&B76 -> Commodity MarketPortables

Sheet Weights
A1: Home
A2: Description: | B2: Table of average product weight.
A3: Source: | B3: EPA 2008 Waste Management Approach; RTI Assumptions.
A4: Last Modified: | B4: 2015-08-13
A6: 2.20462262 | B6: lb/kg
B7: Average Weight (kg)
A8: Year | B8: Desktops | C8: Portables | D8: Hard Copy Peripherals | E8: Mice | F8: Keyboards | G8: PC CRTs | H8: PC Flat Panel | I8: Color CRT <19" | J8: Color CRT >19" | K8: Flat Panel TVs | L8: Color Projection | M8: Monochrome | N8: Cell Phones
A9: 1980 | B9: =IF(B$80=B$81,P9,B$80) -> 9.979032148 | C9: =IF(C$80=C$81,Q9,C$80) -> 0 | D9: 8.164662667 | E9: 0.1 | F9: 1.315417874 | G9: 11.11301307 | H9: 0 | I9: 19.04112488 | J9: 33.11224304 | K9: 0 | L9: 0 | M9: 19.04112488 | N9: 0 | P9: 9.979032148 | Q9: 0 | R9: 8.164662667 | S9: 0.09071847408 | T9: 1.315417874 | U9: 11.11301307 | V9: 0 | W9: 19.04112488 | X9: 33.11224304 | Y9: 0 | Z9: 0 | AA9: 19.04112488 | AB9: 0
A10: 1981 | B10: =IF(B$80=B$81,P10,B$80) -> 9.979032148 | C10: =IF(C$80=C$81,Q10,C$80) -> 0 | D10: =IF(D$80=D$81,R10,D$80) -> 8.164662667 | E10: =IF(E$80=E$81,S10,E$80) -> 0.1 | F10: =IF(F$80=F$81,T10,F$80) -> 1.315417874 | G10: =IF(G$80=G$81,U10,G$80) -> 11.11301307 | H10: =IF(H$80=H$81,V10,H$80) -> 0 | I10: =IF(I$80=I$81,W10,I$80) -> 19.04112488 | J10: =IF(J$80=J$81,X10,J$80) -> 33.11224304 | K10: =IF(K$80=K$81,Y10,K$80) -> 0 | L10: =IF(L$80=L$81,Z10,L$80) -> 0 | M10: =IF(M$80=M$81,AA10,M$80) -> 19.04112488 | N10: =IF(N$80=N$81,AB10,N$80) -> 0 | P10: 9.979032148 | Q10: 0 | R10: 8.164662667 | S10: 0.09071847408 | T10: 1.315417874 | U10: 11.11301307 | V10: 0 | W10: 19.04112488 | X10: 33.11224304 | Y10: 0 | Z10: 0 | AA10: 19.04112488 | AB10: 0
A11: 1982 | B11: 9.979032148 | C11: 0 | D11: 8.164662667 | E11: 0.1 | F11: 1.315417874 | G11: 11.11301307 | H11: 0 | I11: 19.04112488 | J11: 33.11224304 | K11: 0 | L11: 0 | M11: 19.04112488 | N11: 0 | P11: 9.979032148 | Q11: 0 | R11: 8.164662667 | S11: 0.09071847408 | T11: 1.315417874 | U11: 11.11301307 | V11: 0 | W11: 19.04112488 | X11: 33.11224304 | Y11: 0 | Z11: 0 | AA11: 19.04112488 | AB11: 0
A12: 1983 | B12: 9.979032148 | C12: 0 | D12: 8.164662667 | E12: 0.1 | F12: 1.315417874 | G12: 11.11301307 | H12: 0 | I12: 19.04112488 | J12: 33.11224304 | K12: 0 | L12: 0 | M12: 19.04112488 | N12: 0 | P12: 9.979032148 | Q12: 0 | R12: 8.164662667 | S12: 0.09071847408 | T12: 1.315417874 | U12: 11.11301307 | V12: 0 | W12: 19.04112488 | X12: 33.11224304 | Y12: 0 | Z12: 0 | AA12: 19.04112488 | AB12: 0
A13: 1984 | B13: 9.979032148 | C13: 0 | D13: 8.164662667 | E13: 0.1 | F13: 1.315417874 | G13: 11.11301307 | H13: 0 | I13: 19.04112488 | J13: 33.11224304 | K13: 0 | L13: 99.33672911 | M13: 19.04112488 | N13: 1.589073703 | P13: 9.979032148 | Q13: 0 | R13: 8.164662667 | S13: 0.09071847408 | T13: 1.315417874 | U13: 11.11301307 | V13: 0 | W13: 19.04112488 | X13: 33.11224304 | Y13: 0 | Z13: 99.33672911 | AA13: 19.04112488 | AB13: 1.589073703
A14: 1985 | B14: 9.979032148 | C14: 0 | D14: 8.164662667 | E14: 0.1 | F14: 1.315417874 | G14: 11.11301307 | H14: 0 | I14: 18.42449009 | J14: 32.94071651 | K14: 0 | L14: 100.2439139 | M14: 18.42449009 | N14: 1.589073703 | P14: 9.979032148 | Q14: 0 | R14: 8.164662667 | S14: 0.09071847408 | T14: 1.315417874 | U14: 11.11301307 | V14: 0 | W14: 18.42449009 | X14: 32.94071651 | Y14: 0 | Z14: 100.2439139 | AA14: 18.42449009 | AB14: 1.589073703
A15: 1986 | B15: 9.979032148 | C15: 0 | D15: 8.164662667 | E15: 0.1 | F15: 1.315417874 | G15: 11.11301307 | H15: 0 | I15: 18.6583477 | J15: 33.10022735 | K15: 0 | L15: 101.1510986 | M15: 18.6583477 | N15: 1.589073703 | P15: 9.979032148 | Q15: 0 | R15: 8.164662667 | S15: 0.09071847408 | T15: 1.315417874 | U15: 11.11301307 | V15: 0 | W15: 18.6583477 | X15: 33.10022735 | Y15: 0 | Z15: 101.1510986 | AA15: 18.6583477 | AB15: 1.589073703
A16: 1987 | B16: 9.979032148 | C16: 0 | D16: 8.164662667 | E16: 0.1 | F16: 1.315417874 | G16: 11.11301307 | H16: 0 | I16: 18.50656871 | J16: 33.11477707 | K16: 0 | L16: 102.0582833 | M16: 18.50656871 | N16: 1.589073703 | P16: 9.979032148 | Q16: 0 | R16: 8.164662667 | S16: 0.09071847408 | T16: 1.315417874 | U16: 11.11301307 | V16: 0 | W16: 18.50656871 | X16: 33.11477707 | Y16: 0 | Z16: 102.0582833 | AA16: 18.50656871 | AB16: 1.589073703
A17: 1988 | B17: 9.979032148 | C17: 0 | D17: 8.164662667 | E17: 0.1 | F17: 1.315417874 | G17: 11.11301307 | H17: 0 | I17: 18.67044725 | J17: 33.07875635 | K17: 0 | L17: 102.9654681 | M17: 18.67044725 | N17: 1.589073703 | P17: 9.979032148 | Q17: 0 | R17: 8.164662667 | S17: 0.09071847408 | T17: 1.315417874 | U17: 11.11301307 | V17: 0 | W17: 18.67044725 | X17: 33.07875635 | Y17: 0 | Z17: 102.9654681 | AA17: 18.67044725 | AB17: 1.589073703
A18: 1989 | B18: 9.915529217 | C18: 0 | D18: 8.102664002 | E18: 0.1 | F18: 1.315417874 | G18: 11.11301307 | H18: 11.15837231 | I18: 18.60337567 | J18: 32.53475275 | K18: 0 | L18: 103.8726528 | M18: 18.60337567 | N18: 1.589073703 | P18: 9.915529217 | Q18: 0 | R18: 8.102664002 | S18: 0.09071847408 | T18: 1.315417874 | U18: 11.11301307 | V18: 11.15837231 | W18: 18.60337567 | X18: 32.53475275 | Y18: 0 | Z18: 103.8726528 | AA18: 18.60337567 | AB18: 1.589073703
A19: 1990 | B19: 9.870169979 | C19: 0 | D19: 8.897563333 | E19: 0.1 | F19: 1.315417874 | G19: 11.17198008 | H19: 11.15837231 | I19: 18.38839596 | J19: 33.90602969 | K19: 0 | L19: 104.7798376 | M19: 18.38839596 | N19: 1.589073703 | P19: 9.870169979 | Q19: 0 | R19: 8.897563333 | S19: 0.09071847408 | T19: 1.315417874 | U19: 11.17198008 | V19: 11.15837231 | W19: 18.38839596 | X19: 33.90602969 | Y19: 0 | Z19: 104.7798376 | AA19: 18.38839596 | AB19: 1.589073703
A20: 1991 | B20: 9.892849598 | C20: 0 | D20: 8.328328323 | E20: 0.1 | F20: 1.315417874 | G20: 11.22641117 | H20: 11.15837231 | I20: 18.62868973 | J20: 33.52567358 | K20: 0 | L20: 105.6870223 | M20: 18.62868973 | N20: 1.589073703 | P20: 9.892849598 | Q20: 0 | R20: 8.328328323 | S20: 0.09071847408 | T20: 1.315417874 | U20: 11.22641117 | V20: 11.15837231 | W20: 18.62868973 | X20: 33.52567358 | Y20: 0 | Z20: 105.6870223 | AA20: 18.62868973 | AB20: 1.589073703
A21: 1992 | B21: 10.0652147 | C21: 4.082331333 | D21: 7.906194858 | E21: 0.1 | F21: 1.315417874 | G21: 11.28537818 | H21: 11.15837231 | I21: 18.56704769 | J21: 33.34097765 | K21: 0 | L21: 106.594207 | M21: 18.56704769 | N21: 0.2419159309 | P21: 10.0652147 | Q21: 4.082331333 | R21: 7.906194858 | S21: 0.09071847408 | T21: 1.315417874 | U21: 11.28537818 | V21: 11.15837231 | W21: 18.56704769 | X21: 33.34097765 | Y21: 0 | Z21: 106.594207 | AA21: 18.56704769 | AB21: 0.2419159309
A22: 1993 | B22: 9.951816606 | C22: 3.959861393 | D22: 8.056704757 | E22: 0.1 | F22: 1.315417874 | G22: 11.33980926 | H22: 11.15837231 | I22: 18.48041062 | J22: 34.18533316 | K22: 0 | L22: 107.5013918 | M22: 18.48041062 | N22: 0.2419159309 | P22: 9.951816606 | Q22: 3.959861393 | R22: 8.056704757 | S22: 0.09071847408 | T22: 1.315417874 | U22: 11.33980926 | V22: 11.15837231 | W22: 18.48041062 | X22: 34.18533316 | Y22: 0 | Z22: 107.5013918 | AA22: 18.48041062 | AB22: 0.2419159309
A23: 1994 | B23: 9.83388259 | C23: 3.837391453 | D23: 8.078475835 | E23: 0.1 | F23: 1.315417874 | G23: 13.09067581 | H23: 11.15837231 | I23: 18.65211703 | J23: 33.26951878 | K23: 0 | L23: 108.4085765 | M23: 18.65211703 | N23: 0.2419159309 | P23: 9.83388259 | Q23: 3.837391453 | R23: 8.078475835 | S23: 0.09071847408 | T23: 1.315417874 | U23: 13.09067581 | V23: 11.15837231 | W23: 18.65211703 | X23: 33.26951878 | Y23: 0 | Z23: 108.4085765 | AA23: 18.65211703 | AB23: 0.2419159309
A24: 1995 | B24: 10.44169637 | C24: 3.719457437 | D24: 7.635478182 | E24: 0.1 | F24: 1.315417874 | G24: 14.83700644 | H24: 11.15837231 | I24: 18.56833448 | J24: 33.35735196 | K24: 0 | L24: 109.3157613 | M24: 18.56833448 | N24: 0.2419159309 | P24: 10.44169637 | Q24: 3.719457437 | R24: 7.635478182 | S24: 0.09071847408 | T24: 1.315417874 | U24: 14.83700644 | V24: 11.15837231 | W24: 18.56833448 | X24: 33.35735196 | Y24: 0 | Z24: 109.3157613 | AA24: 18.56833448 | AB24: 0.2419159309
A25: 1996 | B25: 10.01078361 | C25: 3.596987497 | D25: 6.970198658 | E25: 0.1 | F25: 1.315417874 | G25: 16.58787298 | H25: 11.15837231 | I25: 18.7166536 | J25: 33.00866683 | K25: 0 | L25: 110.222946 | M25: 18.7166536 | N25: 0.2419159309 | P25: 10.01078361 | Q25: 3.596987497 | R25: 6.970198658 | S25: 0.09071847408 | T25: 1.315417874 | U25: 16.58787298 | V25: 11.15837231 | W25: 18.7166536 | X25: 33.00866683 | Y25: 0 | Z25: 110.222946 | AA25: 18.7166536 | AB25: 0.2419159309
A26: 1997 | B26: 10.25572349 | C26: 3.474517557 | D26: 7.592588895 | E26: 0.1 | F26: 1.315417874 | G26: 18.33873953 | H26: 11.15837231 | I26: 18.44608973 | J26: 33.48336407 | K26: 0 | L26: 111.1301307 | M26: 18.44608973 | N26: 0.2419159309 | P26: 10.25572349 | Q26: 3.474517557 | R26: 7.592588895 | S26: 0.09071847408 | T26: 1.315417874 | U26: 18.33873953 | V26: 11.15837231 | W26: 18.44608973 | X26: 33.48336407 | Y26: 0 | Z26: 111.1301307 | AA26: 18.44608973 | AB26: 0.2419159309
A27: 1998 | B27: 10.30108273 | C27: 3.352047617 | D27: 7.379660743 | E27: 0.1 | F27: 1.315417874 | G27: 20.08960608 | H27: 11.15837231 | I27: 18.84928295 | J27: 33.59823486 | K27: 0 | L27: 112.0373155 | M27: 18.84928295 | N27: 0.2419159309 | P27: 10.30108273 | Q27: 3.352047617 | R27: 7.379660743 | S27: 0.09071847408 | T27: 1.315417874 | U27: 20.08960608 | V27: 11.15837231 | W27: 18.84928295 | X27: 33.59823486 | Y27: 0 | Z27: 112.0373155 | AA27: 18.84928295 | AB27: 0.2419159309
A28: 1999 | B28: 9.988103996 | C28: 3.234113601 | D28: 7.437184953 | E28: 0.1 | F28: 1.315417874 | G28: 21.83593671 | H28: 11.15837231 | I28: 18.70037636 | J28: 33.1166045 | K28: 13.15417874 | L28: 112.9445002 | M28: 18.70037636 | N28: 0.2080782308 | P28: 9.988103996 | Q28: 3.234113601 | R28: 7.437184953 | S28: 0.09071847408 | T28: 1.315417874 | U28: 21.83593671 | V28: 11.15837231 | W28: 18.70037636 | X28: 33.1166045 | Y28: 13.15417874 | Z28: 112.9445002 | AA28: 18.70037636 | AB28: 0.2080782308
A29: 2000 | B29: 10.00624769 | C29: 3.234113601 | D29: 8.371604217 | E29: 0.1 | F29: 1.315417874 | G29: 23.58680326 | H29: 11.15837231 | I29: 18.05788004 | J29: 33.80063616 | K29: 13.15417874 | L29: 113.851685 | M29: 18.05788004 | N29: 0.1742405307 | P29: 10.00624769 | Q29: 3.234113601 | R29: 8.371604217 | S29: 0.09071847408 | T29: 1.315417874 | U29: 23.58680326 | V29: 11.15837231 | W29: 18.05788004 | X29: 33.80063616 | Y29: 13.15417874 | Z29: 113.851685 | AA29: 18.05788004 | AB29: 0.1742405307
A30: 2001 | B30: 9.979032148 | C30: 3.152466974 | D30: 7.677513904 | E30: 0.1 | F30: 1.315417874 | G30: 23.41443816 | H30: 11.15837231 | I30: 18.63088662 | J30: 32.73567579 | K30: 13.15417874 | L30: 113.851685 | M30: 18.63088662 | N30: 0.161805163 | P30: 9.979032148 | Q30: 3.152466974 | R30: 7.677513904 | S30: 0.09071847408 | T30: 1.315417874 | U30: 23.41443816 | V30: 11.15837231 | W30: 18.63088662 | X30: 32.73567579 | Y30: 13.15417874 | Z30: 113.851685 | AA30: 18.63088662 | AB30: 0.161805163
A31: 2002 | B31: 10.9451839 | C31: 3.075356271 | D31: 7.447489182 | E31: 0.1 | F31: 1.315417874 | G31: 23.24660898 | H31: 11.15837231 | I31: 18.33269164 | J31: 33.01144473 | K31: 13.15417874 | L31: 101.3050881 | M31: 18.33269164 | N31: 0.1493697952 | P31: 10.9451839 | Q31: 3.075356271 | R31: 7.447489182 | S31: 0.09071847408 | T31: 1.315417874 | U31: 23.24660898 | V31: 11.15837231 | W31: 18.33269164 | X31: 33.01144473 | Y31: 13.15417874 | Z31: 101.3050881 | AA31: 18.33269164 | AB31: 0.1493697952
A32: 2003 | B32: 9.979032148 | C32: 2.998245568 | D32: 7.523002908 | E32: 0.1 | F32: 1.315417874 | G32: 23.07424388 | H32: 11.15837231 | I32: 18.59728719 | J32: 33.11224304 | K32: 13.15417874 | L32: 88.75849113 | M32: 18.59728719 | N32: 0.1369344275 | P32: 9.979032148 | Q32: 2.998245568 | R32: 7.523002908 | S32: 0.09071847408 | T32: 1.315417874 | U32: 23.07424388 | V32: 11.15837231 | W32: 18.59728719 | X32: 33.11224304 | Y32: 13.15417874 | Z32: 88.75849113 | AA32: 18.59728719 | AB32: 0.1369344275
A33: 2004 | B33: 9.979032148 | C33: 2.921134865 | D33: 7.892528534 | E33: 0.1 | F33: 1.315417874 | G33: 22.9064147 | H33: 11.15837231 | I33: 18.59728719 | J33: 33.11224304 | K33: 13.15417874 | L33: 76.21189422 | M33: 18.59728719 | N33: 0.1244990597 | P33: 9.979032148 | Q33: 2.921134865 | R33: 7.892528534 | S33: 0.09071847408 | T33: 1.315417874 | U33: 22.9064147 | V33: 11.15837231 | W33: 18.59728719 | X33: 33.11224304 | Y33: 13.15417874 | Z33: 76.21189422 | AA33: 18.59728719 | AB33: 0.1244990597
A34: 2005 | B34: 9.979032148 | C34: 2.921134865 | D34: 7.892528534 | E34: 0.1 | F34: 1.315417874 | G34: 22.9064147 | H34: 11.15837231 | I34: 18.59728719 | J34: 33.11224304 | K34: 13.15417874 | L34: 63.50293185 | M34: 18.59728719 | N34: 0.1133980926 | P34: 9.979032148 | Q34: 2.921134865 | R34: 7.892528534 | S34: 0.09071847408 | T34: 1.315417874 | U34: 22.9064147 | V34: 11.15837231 | W34: 18.59728719 | X34: 33.11224304 | Y34: 13.15417874 | Z34: 63.50293185 | AA34: 18.59728719 | AB34: 0.1133980926
A35: 2006 | B35: 9.979032148 | C35: 2.921134865 | D35: 7.892528534 | E35: 0.1 | F35: 1.315417874 | G35: 22.9064147 | H35: 11.15837231 | I35: 18.59728719 | J35: 33.11224304 | K35: 13.15417874 | L35: 63.50293185 | M35: 18.59728719 | N35: 0.09979032148 | P35: 9.979032148 | Q35: 2.921134865 | R35: 7.892528534 | S35: 0.09071847408 | T35: 1.315417874 | U35: 22.9064147 | V35: 11.15837231 | W35: 18.59728719 | X35: 33.11224304 | Y35: 13.15417874 | Z35: 63.50293185 | AA35: 18.59728719 | AB35: 0.09979032148
A36: 2007 | B36: 9.979032148 | C36: 2.921134865 | D36: 7.892528534 | E36: 0.1 | F36: 1.315417874 | G36: 22.9064147 | H36: 11.15837231 | I36: 18.59728719 | J36: 33.11224304 | K36: 13.15417874 | L36: 63.50293185 | M36: 18.59728719 | N36: 0.09979032148 | P36: 9.979032148 | Q36: 2.921134865 | R36: 7.892528534 | S36: 0.09071847408 | T36: 1.315417874 | U36: 22.9064147 | V36: 11.15837231 | W36: 18.59728719 | X36: 33.11224304 | Y36: 13.15417874 | Z36: 63.50293185 | AA36: 18.59728719 | AB36: 0.09979032148
A37: 2008 | B37: 9.979032148 | C37: 2.921134865 | D37: 7.892528534 | E37: 0.1 | F37: 1.315417874 | G37: 22.9064147 | H37: 11.15837231 | I37: 18.59728719 | J37: 33.11224304 | K37: 12.6 | L37: 63.50293185 | M37: 18.59728719 | N37: 0.09979032148 | P37: 9.979032148 | Q37: 2.921134865 | R37: 7.892528534 | S37: 0.09071847408 | T37: 1.315417874 | U37: 22.9064147 | V37: 11.15837231 | W37: 18.59728719 | X37: 33.11224304 | Y37: 12.6 | Z37: 63.50293185 | AA37: 18.59728719 | AB37: 0.09979032148
A38: 2009 | B38: 9.979032148 | C38: 2.921134865 | D38: 7.892528534 | E38: 0.1 | F38: 1.315417874 | G38: 22.9064147 | H38: 11.15837231 | I38: 18.59728719 | J38: 33.11224304 | K38: 11.3 | L38: 63.50293185 | M38: 18.59728719 | N38: 0.09979032148 | P38: 9.979032148 | Q38: 2.921134865 | R38: 7.892528534 | S38: 0.09071847408 | T38: 1.315417874 | U38: 22.9064147 | V38: 11.15837231 | W38: 18.59728719 | X38: 33.11224304 | Y38: 11.3 | Z38: 63.50293185 | AA38: 18.59728719 | AB38: 0.09979032148
A39: 2010 | B39: 9.979032148 | C39: 2.921134865 | D39: 7.892528534 | E39: 0.1 | F39: 1.315417874 | G39: 22.9064147 | H39: 11.15837231 | I39: 18.59728719 | J39: 33.11224304 | K39: 10.1 | L39: 63.50293185 | M39: 18.59728719 | N39: 0.09979032148 | P39: 9.979032148 | Q39: 2.921134865 | R39: 7.892528534 | S39: 0.09071847408 | T39: 1.315417874 | U39: 22.9064147 | V39: 11.15837231 | W39: 18.59728719 | X39: 33.11224304 | Y39: 10.1 | Z39: 63.50293185 | AA39: 18.59728719 | AB39: 0.09979032148
A40: 2011 | B40: 9.979032148 | C40: 2.921134865 | D40: 7.892528534 | E40: 0.1 | F40: 1.315417874 | G40: 22.9064147 | H40: 11.15837231 | I40: 18.59728719 | J40: 33.11224304 | K40: 9.7 | L40: 63.50293185 | M40: 18.59728719 | N40: 0.09979032148 | P40: 9.979032148 | Q40: 2.921134865 | R40: 7.892528534 | S40: 0.09071847408 | T40: 1.315417874 | U40: 22.9064147 | V40: 11.15837231 | W40: 18.59728719 | X40: 33.11224304 | Y40: 9.7 | Z40: 63.50293185 | AA40: 18.59728719 | AB40: 0.09979032148
A41: 2012 | B41: 9.979032148 | C41: 2.921134865 | D41: 7.892528534 | E41: 0.1 | F41: 1.315417874 | G41: 22.9064147 | H41: 11.15837231 | I41: 18.59728719 | J41: 33.11224304 | K41: 9.3 | L41: 63.50293185 | M41: 18.59728719 | N41: 0.09979032148 | P41: 9.979032148 | Q41: 2.921134865 | R41: 7.892528534 | S41: 0.09071847408 | T41: 1.315417874 | U41: 22.9064147 | V41: 11.15837231 | W41: 18.59728719 | X41: 33.11224304 | Y41: 9.3 | Z41: 63.50293185 | AA41: 18.59728719 | AB41: 0.09979032148
A42: 2013 | B42: 9.979032148 | C42: 2.921134865 | D42: 7.892528534 | E42: 0.1 | F42: 1.315417874 | G42: 22.9064147 | H42: 11.15837231 | I42: 18.59728719 | J42: 33.11224304 | K42: 9.4 | L42: 63.50293185 | M42: 18.59728719 | N42: 0.09979032148 | P42: 9.979032148 | Q42: 2.921134865 | R42: 7.892528534 | S42: 0.09071847408 | T42: 1.315417874 | U42: 22.9064147 | V42: 11.15837231 | W42: 18.59728719 | X42: 33.11224304 | Y42: 9.4 | Z42: 63.50293185 | AA42: 18.59728719 | AB42: 0.09979032148
A43: 2014 | B43: 9.979032148 | C43: 2.921134865 | D43: 7.892528534 | E43: 0.1 | F43: 1.315417874 | G43: 22.9064147 | H43: 11.15837231 | I43: 18.59728719 | J43: 33.11224304 | K43: 9.8 | L43: 63.50293185 | M43: 18.59728719 | N43: 0.09979032148 | P43: 9.979032148 | Q43: 2.921134865 | R43: 7.892528534 | S43: 0.09071847408 | T43: 1.315417874 | U43: 22.9064147 | V43: 11.15837231 | W43: 18.59728719 | X43: 33.11224304 | Y43: 9.8 | Z43: 63.50293185 | AA43: 18.59728719 | AB43: 0.09979032148
A44: 2015 | B44: 9.979032148 | C44: 2.921134865 | D44: 7.892528534 | E44: 0.1 | F44: 1.315417874 | G44: 22.9064147 | H44: 11.15837231 | I44: 18.59728719 | J44: 33.11224304 | K44: 9.8 | L44: 63.50293185 | M44: 18.59728719 | N44: 0.09979032148 | P44: 9.979032148 | Q44: 2.921134865 | R44: 7.892528534 | S44: 0.09071847408 | T44: 1.315417874 | U44: 22.9064147 | V44: 11.15837231 | W44: 18.59728719 | X44: 33.11224304 | Y44: 9.8 | Z44: 63.50293185 | AA44: 18.59728719 | AB44: 0.09979032148
A45: 2016 | B45: 9.979032148 | C45: 2.921134865 | D45: 7.892528534 | E45: 0.1 | F45: 1.315417874 | G45: 22.9064147 | H45: 11.15837231 | I45: 18.59728719 | J45: 33.11224304 | K45: 9.8 | L45: 63.50293185 | M45: 18.59728719 | N45: 0.09979032148 | P45: 9.979032148 | Q45: 2.921134865 | R45: 7.892528534 | S45: 0.09071847408 | T45: 1.315417874 | U45: 22.9064147 | V45: 11.15837231 | W45: 18.59728719 | X45: 33.11224304 | Y45: 9.8 | Z45: 63.50293185 | AA45: 18.59728719 | AB45: 0.09979032148
A46: 2017 | B46: 9.979032148 | C46: 2.921134865 | D46: 7.892528534 | E46: 0.1 | F46: 1.315417874 | G46: 22.9064147 | H46: 11.15837231 | I46: 18.59728719 | J46: 33.11224304 | K46: 9.8 | L46: 63.50293185 | M46: 18.59728719 | N46: 0.09979032148 | P46: 9.979032148 | Q46: 2.921134865 | R46: 7.892528534 | S46: 0.09071847408 | T46: 1.315417874 | U46: 22.9064147 | V46: 11.15837231 | W46: 18.59728719 | X46: 33.11224304 | Y46: 9.8 | Z46: 63.50293185 | AA46: 18.59728719 | AB46: 0.09979032148
A47: 2018 | B47: 9.979032148 | C47: 2.921134865 | D47: 7.892528534 | E47: 0.1 | F47: 1.315417874 | G47: 22.9064147 | H47: 11.15837231 | I47: 18.59728719 | J47: 33.11224304 | K47: 9.8 | L47: 63.50293185 | M47: 18.59728719 | N47: 0.09979032148 | P47: 9.979032148 | Q47: 2.921134865 | R47: 7.892528534 | S47: 0.09071847408 | T47: 1.315417874 | U47: 22.9064147 | V47: 11.15837231 | W47: 18.59728719 | X47: 33.11224304 | Y47: 9.8 | Z47: 63.50293185 | AA47: 18.59728719 | AB47: 0.09979032148
A48: 2019 | B48: 9.979032148 | C48: 2.921134865 | D48: 7.892528534 | E48: 0.1 | F48: 1.315417874 | G48: 22.9064147 | H48: 11.15837231 | I48: 18.59728719 | J48: 33.11224304 | K48: 9.8 | L48: 63.50293185 | M48: 18.59728719 | N48: 0.09979032148 | P48: 9.979032148 | Q48: 2.921134865 | R48: 7.892528534 | S48: 0.09071847408 | T48: 1.315417874 | U48: 22.9064147 | V48: 11.15837231 | W48: 18.59728719 | X48: 33.11224304 | Y48: 9.8 | Z48: 63.50293185 | AA48: 18.59728719 | AB48: 0.09979032148
A49: 2020 | B49: 9.979032148 | C49: 2.921134865 | D49: 7.892528534 | E49: 0.1 | F49: 1.315417874 | G49: 22.9064147 | H49: 11.15837231 | I49: 18.59728719 | J49: 33.11224304 | K49: 9.8 | L49: 63.50293185 | M49: 18.59728719 | N49: 0.09979032148 | P49: 9.979032148 | Q49: 2.921134865 | R49: 7.892528534 | S49: 0.09071847408 | T49: 1.315417874 | U49: 22.9064147 | V49: 11.15837231 | W49: 18.59728719 | X49: 33.11224304 | Y49: 9.8 | Z49: 63.50293185 | AA49: 18.59728719 | AB49: 0.09979032148
A50: 2021 | B50: 9.979032148 | C50: 2.921134865 | D50: 7.892528534 | E50: 0.1 | F50: 1.315417874 | G50: 22.9064147 | H50: 11.15837231 | I50: 18.59728719 | J50: 33.11224304 | K50: 9.8 | L50: 63.50293185 | M50: 18.59728719 | N50: 0.09979032148 | P50: 9.979032148 | Q50: 2.921134865 | R50: 7.892528534 | S50: 0.09071847408 | T50: 1.315417874 | U50: 22.9064147 | V50: 11.15837231 | W50: 18.59728719 | X50: 33.11224304 | Y50: 9.8 | Z50: 63.50293185 | AA50: 18.59728719 | AB50: 0.09979032148
A51: 2022 | B51: 9.979032148 | C51: 2.921134865 | D51: 7.892528534 | E51: 0.1 | F51: 1.315417874 | G51: 22.9064147 | H51: 11.15837231 | I51: 18.59728719 | J51: 33.11224304 | K51: 9.8 | L51: 63.50293185 | M51: 18.59728719 | N51: 0.09979032148 | P51: 9.979032148 | Q51: 2.921134865 | R51: 7.892528534 | S51: 0.09071847408 | T51: 1.315417874 | U51: 22.9064147 | V51: 11.15837231 | W51: 18.59728719 | X51: 33.11224304 | Y51: 9.8 | Z51: 63.50293185 | AA51: 18.59728719 | AB51: 0.09979032148
A52: 2023 | B52: 9.979032148 | C52: 2.921134865 | D52: 7.892528534 | E52: 0.1 | F52: 1.315417874 | G52: 22.9064147 | H52: 11.15837231 | I52: 18.59728719 | J52: 33.11224304 | K52: 9.8 | L52: 63.50293185 | M52: 18.59728719 | N52: 0.09979032148 | P52: 9.979032148 | Q52: 2.921134865 | R52: 7.892528534 | S52: 0.09071847408 | T52: 1.315417874 | U52: 22.9064147 | V52: 11.15837231 | W52: 18.59728719 | X52: 33.11224304 | Y52: 9.8 | Z52: 63.50293185 | AA52: 18.59728719 | AB52: 0.09979032148
A53: 2024 | B53: 9.979032148 | C53: 2.921134865 | D53: 7.892528534 | E53: 0.1 | F53: 1.315417874 | G53: 22.9064147 | H53: 11.15837231 | I53: 18.59728719 | J53: 33.11224304 | K53: 9.8 | L53: 63.50293185 | M53: 18.59728719 | N53: 0.09979032148 | P53: 9.979032148 | Q53: 2.921134865 | R53: 7.892528534 | S53: 0.09071847408 | T53: 1.315417874 | U53: 22.9064147 | V53: 11.15837231 | W53: 18.59728719 | X53: 33.11224304 | Y53: 9.8 | Z53: 63.50293185 | AA53: 18.59728719 | AB53: 0.09979032148
A54: 2025 | B54: 9.979032148 | C54: 2.921134865 | D54: 7.892528534 | E54: 0.1 | F54: 1.315417874 | G54: 22.9064147 | H54: 11.15837231 | I54: 18.59728719 | J54: 33.11224304 | K54: 9.8 | L54: 63.50293185 | M54: 18.59728719 | N54: 0.09979032148 | P54: 9.979032148 | Q54: 2.921134865 | R54: 7.892528534 | S54: 0.09071847408 | T54: 1.315417874 | U54: 22.9064147 | V54: 11.15837231 | W54: 18.59728719 | X54: 33.11224304 | Y54: 9.8 | Z54: 63.50293185 | AA54: 18.59728719 | AB54: 0.09979032148
A55: 2026 | B55: 9.979032148 | C55: 2.921134865 | D55: 7.892528534 | E55: 0.1 | F55: 1.315417874 | G55: 22.9064147 | H55: 11.15837231 | I55: 18.59728719 | J55: 33.11224304 | K55: 9.8 | L55: 63.50293185 | M55: 18.59728719 | N55: 0.09979032148 | P55: 9.979032148 | Q55: 2.921134865 | R55: 7.892528534 | S55: 0.09071847408 | T55: 1.315417874 | U55: 22.9064147 | V55: 11.15837231 | W55: 18.59728719 | X55: 33.11224304 | Y55: 9.8 | Z55: 63.50293185 | AA55: 18.59728719 | AB55: 0.09979032148
A56: 2027 | B56: 9.979032148 | C56: 2.921134865 | D56: 7.892528534 | E56: 0.1 | F56: 1.315417874 | G56: 22.9064147 | H56: 11.15837231 | I56: 18.59728719 | J56: 33.11224304 | K56: 9.8 | L56: 63.50293185 | M56: 18.59728719 | N56: 0.09979032148 | P56: 9.979032148 | Q56: 2.921134865 | R56: 7.892528534 | S56: 0.09071847408 | T56: 1.315417874 | U56: 22.9064147 | V56: 11.15837231 | W56: 18.59728719 | X56: 33.11224304 | Y56: 9.8 | Z56: 63.50293185 | AA56: 18.59728719 | AB56: 0.09979032148
A57: 2028 | B57: 9.979032148 | C57: 2.921134865 | D57: 7.892528534 | E57: 0.1 | F57: 1.315417874 | G57: 22.9064147 | H57: 11.15837231 | I57: 18.59728719 | J57: 33.11224304 | K57: 9.8 | L57: 63.50293185 | M57: 18.59728719 | N57: 0.09979032148 | P57: 9.979032148 | Q57: 2.921134865 | R57: 7.892528534 | S57: 0.09071847408 | T57: 1.315417874 | U57: 22.9064147 | V57: 11.15837231 | W57: 18.59728719 | X57: 33.11224304 | Y57: 9.8 | Z57: 63.50293185 | AA57: 18.59728719 | AB57: 0.09979032148
A58: 2029 | B58: 9.979032148 | C58: 2.921134865 | D58: 7.892528534 | E58: 0.1 | F58: 1.315417874 | G58: 22.9064147 | H58: 11.15837231 | I58: 18.59728719 | J58: 33.11224304 | K58: 9.8 | L58: 63.50293185 | M58: 18.59728719 | N58: 0.09979032148 | P58: 9.979032148 | Q58: 2.921134865 | R58: 7.892528534 | S58: 0.09071847408 | T58: 1.315417874 | U58: 22.9064147 | V58: 11.15837231 | W58: 18.59728719 | X58: 33.11224304 | Y58: 9.8 | Z58: 63.50293185 | AA58: 18.59728719 | AB58: 0.09979032148
A59: 2030 | B59: 9.979032148 | C59: 2.921134865 | D59: 7.892528534 | E59: 0.1 | F59: 1.315417874 | G59: 22.9064147 | H59: 11.15837231 | I59: 18.59728719 | J59: 33.11224304 | K59: 9.8 | L59: 63.50293185 | M59: 18.59728719 | N59: 0.09979032148 | P59: 9.979032148 | Q59: 2.921134865 | R59: 7.892528534 | S59: 0.09071847408 | T59: 1.315417874 | U59: 22.9064147 | V59: 11.15837231 | W59: 18.59728719 | X59: 33.11224304 | Y59: 9.8 | Z59: 63.50293185 | AA59: 18.59728719 | AB59: 0.09979032148
A60: 2031 | B60: 9.979032148 | C60: 2.921134865 | D60: 7.892528534 | E60: 0.1 | F60: 1.315417874 | G60: 22.9064147 | H60: 11.15837231 | I60: 18.59728719 | J60: 33.11224304 | K60: 9.8 | L60: 63.50293185 | M60: 18.59728719 | N60: 0.09979032148 | P60: 9.979032148 | Q60: 2.921134865 | R60: 7.892528534 | S60: 0.09071847408 | T60: 1.315417874 | U60: 22.9064147 | V60: 11.15837231 | W60: 18.59728719 | X60: 33.11224304 | Y60: 9.8 | Z60: 63.50293185 | AA60: 18.59728719 | AB60: 0.09979032148
A61: 2032 | B61: 9.979032148 | C61: 2.921134865 | D61: 7.892528534 | E61: 0.1 | F61: 1.315417874 | G61: 22.9064147 | H61: 11.15837231 | I61: 18.59728719 | J61: 33.11224304 | K61: 9.8 | L61: 63.50293185 | M61: 18.59728719 | N61: 0.09979032148 | P61: 9.979032148 | Q61: 2.921134865 | R61: 7.892528534 | S61: 0.09071847408 | T61: 1.315417874 | U61: 22.9064147 | V61: 11.15837231 | W61: 18.59728719 | X61: 33.11224304 | Y61: 9.8 | Z61: 63.50293185 | AA61: 18.59728719 | AB61: 0.09979032148
A62: 2033 | B62: 9.979032148 | C62: 2.921134865 | D62: 7.892528534 | E62: 0.1 | F62: 1.315417874 | G62: 22.9064147 | H62: 11.15837231 | I62: 18.59728719 | J62: 33.11224304 | K62: 9.8 | L62: 63.50293185 | M62: 18.59728719 | N62: 0.09979032148 | P62: 9.979032148 | Q62: 2.921134865 | R62: 7.892528534 | S62: 0.09071847408 | T62: 1.315417874 | U62: 22.9064147 | V62: 11.15837231 | W62: 18.59728719 | X62: 33.11224304 | Y62: 9.8 | Z62: 63.50293185 | AA62: 18.59728719 | AB62: 0.09979032148
A63: 2034 | B63: 9.979032148 | C63: 2.921134865 | D63: 7.892528534 | E63: 0.1 | F63: 1.315417874 | G63: 22.9064147 | H63: 11.15837231 | I63: 18.59728719 | J63: 33.11224304 | K63: 9.8 | L63: 63.50293185 | M63: 18.59728719 | N63: 0.09979032148 | P63: 9.979032148 | Q63: 2.921134865 | R63: 7.892528534 | S63: 0.09071847408 | T63: 1.315417874 | U63: 22.9064147 | V63: 11.15837231 | W63: 18.59728719 | X63: 33.11224304 | Y63: 9.8 | Z63: 63.50293185 | AA63: 18.59728719 | AB63: 0.09979032148
A64: 2035 | B64: 9.979032148 | C64: 2.921134865 | D64: 7.892528534 | E64: 0.1 | F64: 1.315417874 | G64: 22.9064147 | H64: 11.15837231 | I64: 18.59728719 | J64: 33.11224304 | K64: 9.8 | L64: 63.50293185 | M64: 18.59728719 | N64: 0.09979032148 | P64: 9.979032148 | Q64: 2.921134865 | R64: 7.892528534 | S64: 0.09071847408 | T64: 1.315417874 | U64: 22.9064147 | V64: 11.15837231 | W64: 18.59728719 | X64: 33.11224304 | Y64: 9.8 | Z64: 63.50293185 | AA64: 18.59728719 | AB64: 0.09979032148
A65: 2036 | B65: 9.979032148 | C65: 2.921134865 | D65: 7.892528534 | E65: 0.1 | F65: 1.315417874 | G65: 22.9064147 | H65: 11.15837231 | I65: 18.59728719 | J65: 33.11224304 | K65: 9.8 | L65: 63.50293185 | M65: 18.59728719 | N65: 0.09979032148 | P65: 9.979032148 | Q65: 2.921134865 | R65: 7.892528534 | S65: 0.09071847408 | T65: 1.315417874 | U65: 22.9064147 | V65: 11.15837231 | W65: 18.59728719 | X65: 33.11224304 | Y65: 9.8 | Z65: 63.50293185 | AA65: 18.59728719 | AB65: 0.09979032148
A66: 2037 | B66: 9.979032148 | C66: 2.921134865 | D66: 7.892528534 | E66: 0.1 | F66: 1.315417874 | G66: 22.9064147 | H66: 11.15837231 | I66: 18.59728719 | J66: 33.11224304 | K66: 9.8 | L66: 63.50293185 | M66: 18.59728719 | N66: 0.09979032148 | P66: 9.979032148 | Q66: 2.921134865 | R66: 7.892528534 | S66: 0.09071847408 | T66: 1.315417874 | U66: 22.9064147 | V66: 11.15837231 | W66: 18.59728719 | X66: 33.11224304 | Y66: 9.8 | Z66: 63.50293185 | AA66: 18.59728719 | AB66: 0.09979032148
A67: 2038 | B67: 9.979032148 | C67: 2.921134865 | D67: 7.892528534 | E67: 0.1 | F67: 1.315417874 | G67: 22.9064147 | H67: 11.15837231 | I67: 18.59728719 | J67: 33.11224304 | K67: 9.8 | L67: 63.50293185 | M67: 18.59728719 | N67: 0.09979032148 | P67: 9.979032148 | Q67: 2.921134865 | R67: 7.892528534 | S67: 0.09071847408 | T67: 1.315417874 | U67: 22.9064147 | V67: 11.15837231 | W67: 18.59728719 | X67: 33.11224304 | Y67: 9.8 | Z67: 63.50293185 | AA67: 18.59728719 | AB67: 0.09979032148
A68: 2039 | B68: 9.979032148 | C68: 2.921134865 | D68: 7.892528534 | E68: 0.1 | F68: 1.315417874 | G68: 22.9064147 | H68: 11.15837231 | I68: 18.59728719 | J68: 33.11224304 | K68: 9.8 | L68: 63.50293185 | M68: 18.59728719 | N68: 0.09979032148 | P68: 9.979032148 | Q68: 2.921134865 | R68: 7.892528534 | S68: 0.09071847408 | T68: 1.315417874 | U68: 22.9064147 | V68: 11.15837231 | W68: 18.59728719 | X68: 33.11224304 | Y68: 9.8 | Z68: 63.50293185 | AA68: 18.59728719 | AB68: 0.09979032148
A69: 2040 | B69: 9.979032148 | C69: 2.921134865 | D69: 7.892528534 | E69: 0.1 | F69: 1.315417874 | G69: 22.9064147 | H69: 11.15837231 | I69: 18.59728719 | J69: 33.11224304 | K69: 9.8 | L69: 63.50293185 | M69: 18.59728719 | N69: 0.09979032148 | P69: 9.979032148 | Q69: 2.921134865 | R69: 7.892528534 | S69: 0.09071847408 | T69: 1.315417874 | U69: 22.9064147 | V69: 11.15837231 | W69: 18.59728719 | X69: 33.11224304 | Y69: 9.8 | Z69: 63.50293185 | AA69: 18.59728719 | AB69: 0.09979032148
A70: 2041 | B70: 9.979032148 | C70: 2.921134865 | D70: 7.892528534 | E70: 0.1 | F70: 1.315417874 | G70: 22.9064147 | H70: 11.15837231 | I70: 18.59728719 | J70: 33.11224304 | K70: 9.8 | L70: 63.50293185 | M70: 18.59728719 | N70: 0.09979032148 | P70: 9.979032148 | Q70: 2.921134865 | R70: 7.892528534 | S70: 0.09071847408 | T70: 1.315417874 | U70: 22.9064147 | V70: 11.15837231 | W70: 18.59728719 | X70: 33.11224304 | Y70: 9.8 | Z70: 63.50293185 | AA70: 18.59728719 | AB70: 0.09979032148
A71: 2042 | B71: 9.979032148 | C71: 2.921134865 | D71: 7.892528534 | E71: 0.1 | F71: 1.315417874 | G71: 22.9064147 | H71: 11.15837231 | I71: 18.59728719 | J71: 33.11224304 | K71: 9.8 | L71: 63.50293185 | M71: 18.59728719 | N71: 0.09979032148 | P71: 9.979032148 | Q71: 2.921134865 | R71: 7.892528534 | S71: 0.09071847408 | T71: 1.315417874 | U71: 22.9064147 | V71: 11.15837231 | W71: 18.59728719 | X71: 33.11224304 | Y71: 9.8 | Z71: 63.50293185 | AA71: 18.59728719 | AB71: 0.09979032148
A72: 2043 | B72: 9.979032148 | C72: 2.921134865 | D72: 7.892528534 | E72: 0.1 | F72: 1.315417874 | G72: 22.9064147 | H72: 11.15837231 | I72: 18.59728719 | J72: 33.11224304 | K72: 9.8 | L72: 63.50293185 | M72: 18.59728719 | N72: 0.09979032148 | P72: 9.979032148 | Q72: 2.921134865 | R72: 7.892528534 | S72: 0.09071847408 | T72: 1.315417874 | U72: 22.9064147 | V72: 11.15837231 | W72: 18.59728719 | X72: 33.11224304 | Y72: 9.8 | Z72: 63.50293185 | AA72: 18.59728719 | AB72: 0.09979032148
A73: 2044 | B73: 9.979032148 | C73: 2.921134865 | D73: 7.892528534 | E73: 0.1 | F73: 1.315417874 | G73: 22.9064147 | H73: 11.15837231 | I73: 18.59728719 | J73: 33.11224304 | K73: 9.8 | L73: 63.50293185 | M73: 18.59728719 | N73: 0.09979032148 | P73: 9.979032148 | Q73: 2.921134865 | R73: 7.892528534 | S73: 0.09071847408 | T73: 1.315417874 | U73: 22.9064147 | V73: 11.15837231 | W73: 18.59728719 | X73: 33.11224304 | Y73: 9.8 | Z73: 63.50293185 | AA73: 18.59728719 | AB73: 0.09979032148
A74: 2045 | B74: =IF(B$80=B$81,P74,B$80) -> 9.979032148 | C74: =IF(C$80=C$81,Q74,C$80) -> 2.921134865 | D74: =IF(D$80=D$81,R74,D$80) -> 7.892528534 | E74: =IF(E$80=E$81,S74,E$80) -> 0.1 | F74: =IF(F$80=F$81,T74,F$80) -> 1.315417874 | G74: =IF(G$80=G$81,U74,G$80) -> 22.9064147 | H74: =IF(H$80=H$81,V74,H$80) -> 11.15837231 | I74: =IF(I$80=I$81,W74,I$80) -> 18.59728719 | J74: =IF(J$80=J$81,X74,J$80) -> 33.11224304 | K74: =IF(K$80=K$81,Y74,K$80) -> 9.8 | L74: =IF(L$80=L$81,Z74,L$80) -> 63.50293185 | M74: =IF(M$80=M$81,AA74,M$80) -> 18.59728719 | N74: =IF(N$80=N$81,AB74,N$80) -> 0.09979032148 | P74: 9.979032148 | Q74: 2.921134865 | R74: 7.892528534 | S74: 0.09071847408 | T74: 1.315417874 | U74: 22.9064147 | V74: 11.15837231 | W74: 18.59728719 | X74: 33.11224304 | Y74: 9.8 | Z74: 63.50293185 | AA74: 18.59728719 | AB74: 0.09979032148
A75: 2046 | B75: 9.979032148 | C75: 2.921134865 | D75: 7.892528534 | E75: 0.1 | F75: 1.315417874 | G75: 22.9064147 | H75: 11.15837231 | I75: 18.59728719 | J75: 33.11224304 | K75: 9.8 | L75: 63.50293185 | M75: 18.59728719 | N75: 0.09979032148 | P75: 9.979032148 | Q75: 2.921134865 | R75: 7.892528534 | S75: 0.09071847408 | T75: 1.315417874 | U75: 22.9064147 | V75: 11.15837231 | W75: 18.59728719 | X75: 33.11224304 | Y75: 9.8 | Z75: 63.50293185 | AA75: 18.59728719 | AB75: 0.09979032148
A76: 2047 | B76: 9.979032148 | C76: 2.921134865 | D76: 7.892528534 | E76: 0.1 | F76: 1.315417874 | G76: 22.9064147 | H76: 11.15837231 | I76: 18.59728719 | J76: 33.11224304 | K76: 9.8 | L76: 63.50293185 | M76: 18.59728719 | N76: 0.09979032148 | P76: 9.979032148 | Q76: 2.921134865 | R76: 7.892528534 | S76: 0.09071847408 | T76: 1.315417874 | U76: 22.9064147 | V76: 11.15837231 | W76: 18.59728719 | X76: 33.11224304 | Y76: 9.8 | Z76: 63.50293185 | AA76: 18.59728719 | AB76: 0.09979032148
A77: 2048 | B77: 9.979032148 | C77: 2.921134865 | D77: 7.892528534 | E77: 0.1 | F77: 1.315417874 | G77: 22.9064147 | H77: 11.15837231 | I77: 18.59728719 | J77: 33.11224304 | K77: 9.8 | L77: 63.50293185 | M77: 18.59728719 | N77: 0.09979032148 | P77: 9.979032148 | Q77: 2.921134865 | R77: 7.892528534 | S77: 0.09071847408 | T77: 1.315417874 | U77: 22.9064147 | V77: 11.15837231 | W77: 18.59728719 | X77: 33.11224304 | Y77: 9.8 | Z77: 63.50293185 | AA77: 18.59728719 | AB77: 0.09979032148
A78: 2049 | B78: 9.979032148 | C78: 2.921134865 | D78: 7.892528534 | E78: 0.1 | F78: 1.315417874 | G78: 22.9064147 | H78: 11.15837231 | I78: 18.59728719 | J78: 33.11224304 | K78: 9.8 | L78: 63.50293185 | M78: 18.59728719 | N78: 0.09979032148 | P78: 9.979032148 | Q78: 2.921134865 | R78: 7.892528534 | S78: 0.09071847408 | T78: 1.315417874 | U78: 22.9064147 | V78: 11.15837231 | W78: 18.59728719 | X78: 33.11224304 | Y78: 9.8 | Z78: 63.50293185 | AA78: 18.59728719 | AB78: 0.09979032148
A79: 2050 | B79: 9.979032148 | C79: 2.921134865 | D79: 7.892528534 | E79: 0.1 | F79: 1.315417874 | G79: 22.9064147 | H79: 11.15837231 | I79: 18.59728719 | J79: 33.11224304 | K79: 9.8 | L79: 63.50293185 | M79: 18.59728719 | N79: 0.09979032148 | P79: 9.979032148 | Q79: 2.921134865 | R79: 7.892528534 | S79: 0.09071847408 | T79: 1.315417874 | U79: 22.9064147 | V79: 11.15837231 | W79: 18.59728719 | X79: 33.11224304 | Y79: 9.8 | Z79: 63.50293185 | AA79: 18.59728719 | AB79: 0.09979032148
A80: Average | B80: =CPInput!B42/1000 -> 10 | C80: =CPInput!B44/1000 -> 2.5 | D80: =CPInput!B45/1000 -> 7.9 | E80: =CPInput!B47/1000 -> 0.1 | F80: =CPInput!B46/1000 -> 1.3 | G80: =CPInput!B49/1000 -> 20.2 | H80: =CPInput!B50/1000 -> 9.2 | I80: =CPInput!B39/1000 -> 18.6 | J80: =CPInput!B40/1000 -> 33.2 | K80: =CPInput!B43/1000 -> 7.7 | L80: =CPInput!B41/1000 -> 72 | M80: =CPInput!B48/1000 -> 18.6 | N80: =CPInput!B38/1000 -> 0.3
B81: 10 | C81: 2.5 | D81: 7.9 | E81: 0.01 | F81: 1.3 | G81: 20.2 | H81: 9.2 | I81: 18.6 | J81: 33.2 | K81: 7.7 | L81: 72 | M81: 18.6 | N81: 0.3

Sheet MarketShare
A1: Home
A2: Description: | B2: Assumed market share of annual purchases by the four major consumer groups.
A3: Source: | B3: EPA 2008 Waste Management Approach; RTI Assumptions
A4: Last Modified: | B4: 2015-08-13
A5: Market Share
A7: First Use Market Shares
A8: Market Segment | B8: MrktSeg | C8: Desktops | D8: Portables | E8: Hard Copy Peripherals | F8: Mice | G8: Keyboards | H8: PC CRTs | I8: PC Flat Panel | J8: Color CRT <19" | K8: Color CRT >19" | L8: Flat Panel TVs | M8: Color Projection | N8: Monochrome | O8: Cell Phones | P8: Average | Q8: Average | R8: Desktops | S8: Portables | T8: Hard Copy Peripherals | U8: Mice | V8: Keyboards | W8: PC CRTs | X8: PC Flat Panel | Y8: Color CRT <19" | Z8: Color CRT >19" | AA8: Flat Panel TVs | AB8: Color Projection | AC8: Monochrome | AD8: Cell Phones
A9: Residential | B9: RES | C9: =IF($P9=$Q9,R9,($P9/$Q9)*R9) -> 0.25 | D9: =IF($P9=$Q9,S9,($P9/$Q9)*S9) -> 0.45 | E9: 0.6 | F9: 0.25 | G9: 0.25 | H9: 0.25 | I9: 0.25 | J9: 0.8 | K9: 0.8 | L9: 0.8 | M9: 0.8 | N9: 0.8 | O9: 0.6 | P9: =CPInput!B14/100 -> 0.53 | Q9: 0.53 | R9: 0.25 | S9: 0.45 | T9: 0.6 | U9: 0.25 | V9: 0.25 | W9: 0.25 | X9: 0.25 | Y9: 0.8 | Z9: 0.8 | AA9: 0.8 | AB9: 0.8 | AC9: 0.8 | AD9: 0.6
A10: Education | B10: EDU | C10: =IF($P10=$Q10,R10,($P10/$Q10)*R10) -> 0.3 | D10: =IF($P10=$Q10,S10,($P10/$Q10)*S10) -> 0.1 | E10: =IF($P10=$Q10,T10,($P10/$Q10)*T10) -> 0.05 | F10: =IF($P10=$Q10,U10,($P10/$Q10)*U10) -> 0.3 | G10: =IF($P10=$Q10,V10,($P10/$Q10)*V10) -> 0.3 | H10: =IF($P10=$Q10,W10,($P10/$Q10)*W10) -> 0.3 | I10: =IF($P10=$Q10,X10,($P10/$Q10)*X10) -> 0.3 | J10: =IF($P10=$Q10,Y10,($P10/$Q10)*Y10) -> 0.2 | K10: =IF($P10=$Q10,Z10,($P10/$Q10)*Z10) -> 0.2 | L10: =IF($P10=$Q10,AA10,($P10/$Q10)*AA10) -> 0.2 | M10: =IF($P10=$Q10,AB10,($P10/$Q10)*AB10) -> 0.2 | N10: =IF($P10=$Q10,AC10,($P10/$Q10)*AC10) -> 0.2 | O10: =IF($P10=$Q10,AD10,($P10/$Q10)*AD10) -> 0.05 | P10: =CPInput!B15/100 -> 0.21 | Q10: 0.21 | R10: 0.3 | S10: 0.1 | T10: 0.05 | U10: 0.3 | V10: 0.3 | W10: 0.3 | X10: 0.3 | Y10: 0.2 | Z10: 0.2 | AA10: 0.2 | AB10: 0.2 | AC10: 0.2 | AD10: 0.05
A11: Commercial | B11: COM | C11: 0.3 | D11: 0.3 | E11: 0.3 | F11: 0.3 | G11: 0.3 | H11: 0.3 | I11: 0.3 | J11: 0 | K11: 0 | L11: 0 | M11: 0 | N11: 0 | O11: 0.3 | P11: =CPInput!B16/100 -> 0.18 | Q11: 0.18 | R11: 0.3 | S11: 0.3 | T11: 0.3 | U11: 0.3 | V11: 0.3 | W11: 0.3 | X11: 0.3 | Y11: 0 | Z11: 0 | AA11: 0 | AB11: 0 | AC11: 0 | AD11: 0.3
A12: Institutional | B12: INT | C12: 0.15 | D12: 0.15 | E12: 0.05 | F12: 0.15 | G12: 0.15 | H12: 0.15 | I12: 0.15 | J12: 0 | K12: 0 | L12: 0 | M12: 0 | N12: 0 | O12: 0.05 | P12: =CPInput!B17/100 -> 0.08 | Q12: 0.08 | R12: 0.15 | S12: 0.15 | T12: 0.05 | U12: 0.15 | V12: 0.15 | W12: 0.15 | X12: 0.15 | Y12: 0 | Z12: 0 | AA12: 0 | AB12: 0 | AC12: 0 | AD12: 0.05
B13: Total | C13: =SUM(C9:C12) -> 1 | D13: =SUM(D9:D12) -> 1 | E13: =SUM(E9:E12) -> 1 | F13: 1 | G13: 1 | H13: 1 | I13: 1 | J13: 1 | K13: 1 | L13: 1 | M13: 1 | N13: 1 | O13: 1 | P13: 1
A15: Second Use Market Shares
A16: Market Segment | B16: MrktSeg | C16: Desktops | D16: Portables | E16: Hard Copy Peripherals | F16: Mice | G16: Keyboards | H16: PC CRTs | I16: PC Flat Panel | J16: Color CRT <19" | K16: Color CRT >19" | L16: Flat Panel TVs | M16: Color Projection | N16: Monochrome | O16: Cell Phones | P16: Average | Q16: Average | R16: Desktops | S16: Portables | T16: Hard Copy Peripherals | U16: Mice | V16: Keyboards | W16: PC CRTs | X16: PC Flat Panel | Y16: Color CRT <19" | Z16: Color CRT >19" | AA16: Flat Panel TVs | AB16: Color Projection | AC16: Monochrome | AD16: Cell Phones
A17: Residential | B17: RES | C17: =IF($P17=$Q17,R17,($P17-$Q17)+R17) -> 0.4 | D17: =IF($P17=$Q17,S17,($P17-$Q17)+S17) -> 0.6 | E17: 0.75 | F17: 0.4 | G17: 0.4 | H17: 0.4 | I17: 0.4 | J17: 0.8 | K17: 0.8 | L17: 0.8 | M17: 0.8 | N17: 0.8 | O17: 0.75 | P17: =CPInput!B18/100 -> 0.62 | Q17: 0.62 | R17: 0.4 | S17: 0.6 | T17: 0.75 | U17: 0.4 | V17: 0.4 | W17: 0.4 | X17: 0.4 | Y17: 0.8 | Z17: 0.8 | AA17: 0.8 | AB17: 0.8 | AC17: 0.8 | AD17: 0.75
A18: Education | B18: EDU | C18: =IF($P18=$Q18,R18,($P18-$Q18)+R18) -> 0.45 | D18: =IF($P18=$Q18,S18,($P18-$Q18)+S18) -> 0.25 | E18: =IF($P18=$Q18,T18,($P18-$Q18)+T18) -> 0.2 | F18: =IF($P18=$Q18,U18,($P18-$Q18)+U18) -> 0.45 | G18: =IF($P18=$Q18,V18,($P18-$Q18)+V18) -> 0.45 | H18: =IF($P18=$Q18,W18,($P18-$Q18)+W18) -> 0.45 | I18: =IF($P18=$Q18,X18,($P18-$Q18)+X18) -> 0.45 | J18: =IF($P18=$Q18,Y18,($P18-$Q18)+Y18) -> 0.2 | K18: =IF($P18=$Q18,Z18,($P18-$Q18)+Z18) -> 0.2 | L18: =IF($P18=$Q18,AA18,($P18-$Q18)+AA18) -> 0.2 | M18: =IF($P18=$Q18,AB18,($P18-$Q18)+AB18) -> 0.2 | N18: =IF($P18=$Q18,AC18,($P18-$Q18)+AC18) -> 0.2 | O18: =IF($P18=$Q18,AD18,($P18-$Q18)+AD18) -> 0.2 | P18: =CPInput!B19/100 -> 0.3 | Q18: 0.3 | R18: 0.45 | S18: 0.25 | T18: 0.2 | U18: 0.45 | V18: 0.45 | W18: 0.45 | X18: 0.45 | Y18: 0.2 | Z18: 0.2 | AA18: 0.2 | AB18: 0.2 | AC18: 0.2 | AD18: 0.2
A19: Commercial | B19: COM | C19: 0 | D19: 0 | E19: 0 | F19: 0 | G19: 0 | H19: 0 | I19: 0 | J19: 0 | K19: 0 | L19: 0 | M19: 0 | N19: 0 | O19: 0 | P19: =CPInput!B20/100 -> 0 | Q19: 0 | R19: 0 | S19: 0 | T19: 0 | U19: 0 | V19: 0 | W19: 0 | X19: 0 | Y19: 0 | Z19: 0 | AA19: 0 | AB19: 0 | AC19: 0 | AD19: 0
A20: Institutional | B20: INT | C20: 0.15 | D20: 0.15 | E20: 0.05 | F20: 0.15 | G20: 0.15 | H20: 0.15 | I20: 0.15 | J20: 0 | K20: 0 | L20: 0 | M20: 0 | N20: 0 | O20: 0.05 | P20: =CPInput!B21/100 -> 0.08 | Q20: 0.08 | R20: 0.15 | S20: 0.15 | T20: 0.05 | U20: 0.15 | V20: 0.15 | W20: 0.15 | X20: 0.15 | Y20: 0 | Z20: 0 | AA20: 0 | AB20: 0 | AC20: 0 | AD20: 0.05
B21: Total | C21: =SUM(C17:C20) -> 1 | D21: =SUM(D17:D20) -> 1 | E21: =SUM(E17:E20) -> 1 | F21: 1 | G21: 1 | H21: 1 | I21: 1 | J21: 1 | K21: 1 | L21: 1 | M21: 1 | N21: 1 | O21: 1 | P21: 1

Sheet Lifetimes
A1: Home
A2: Description: | B2: Technical lifetime distribution by product and consumer segment.
A3: Source: | B3: EPA 2008 Waste Management Approach; RTI Assumptions; Wang et al. 2013, and Balde et al. 2015.
A4: Last Modified: | B4: 2015-08-13
A5: Weibull Lifetime Distribution
B8: Residential | P8: Commercial/Institutional | AD8: Education
A9: Technical Lifetime (yrs) | B9: Desktops | C9: Portables | D9: Hard Copy Peripherals | E9: Mice | F9: Keyboards | G9: PC CRTs | H9: PC Flat Panel | I9: Cell Phones | J9: Flat Panel TVs | K9: Monochrome | L9: Color CRT <19" | M9: Color CRT >19" | N9: Color Projection | P9: Desktops | Q9: Portables | R9: Hard Copy Peripherals | S9: Mice | T9: Keyboards | U9: PC CRTs | V9: PC Flat Panel | W9: Cell Phones | X9: Flat Panel TVs | Y9: Monochrome | Z9: Color CRT <19" | AA9: Color CRT >19" | AB9: Color Projection | AD9: Desktops | AE9: Portables | AF9: Hard Copy Peripherals | AG9: Mice | AH9: Keyboards | AI9: PC CRTs | AJ9: PC Flat Panel | AK9: Cell Phones | AL9: Flat Panel TVs | AM9: Monochrome | AN9: Color CRT <19" | AO9: Color CRT >19" | AP9: Color Projection
A10: 1 | B10: =_xlfn.WEIBULL.DIST($A10,B$43,B$44,TRUE) -> 0.008616929013 | C10: 0.08087440569 | D10: 0.04486711312 | E10: 0.09472442543 | F10: 0.09472442543 | G10: 0.008980920337 | H10: 0.006470502167 | I10: 0.2147755117 | J10: 0.0054018651 | K10: 0.006279019868 | L10: 0.006279019868 | M10: 0.006279019868 | N10: 0.006279019868 | P10: =_xlfn.WEIBULL.DIST($A10,P$43,P$44,TRUE) -> 0.00389863053 | Q10: 0.00389863053 | R10: 0.00389863053 | S10: 0.09472442543 | T10: 0.09472442543 | U10: 0.00389863053 | V10: 0.00389863053 | W10: 0.01226978376 | X10: 0.0054018651 | Y10: 0.006279019868 | Z10: 0.006279019868 | AA10: 0.006279019868 | AB10: 0.006279019868 | AD10: =_xlfn.WEIBULL.DIST($A10,AD$43,AD$44,TRUE) -> 0.008616929013 | AE10: 0.08087440569 | AF10: 0.04486711312 | AG10: 0.09472442543 | AH10: 0.09472442543 | AI10: 0.008980920337 | AJ10: 0.006470502167 | AK10: 0.2147755117 | AL10: 0.0054018651 | AM10: 0.006279019868 | AN10: 0.006279019868 | AO10: 0.006279019868 | AP10: 0.006279019868
A11: 2 | B11: =_xlfn.WEIBULL.DIST($A11,B$43,B$44,TRUE)-_xlfn.WEIBULL.DIST($A10,B$43,B$44,TRUE) -> 0.02780490294 | C11: =_xlfn.WEIBULL.DIST($A11,C$43,C$44,TRUE)-_xlfn.WEIBULL.DIST($A10,C$43,C$44,TRUE) -> 0.1313392289 | D11: =_xlfn.WEIBULL.DIST($A11,D$43,D$44,TRUE)-_xlfn.WEIBULL.DIST($A10,D$43,D$44,TRUE) -> 0.07689552705 | E11: =_xlfn.WEIBULL.DIST($A11,E$43,E$44,TRUE)-_xlfn.WEIBULL.DIST($A10,E$43,E$44,TRUE) -> 0.1225998689 | F11: =_xlfn.WEIBULL.DIST($A11,F$43,F$44,TRUE)-_xlfn.WEIBULL.DIST($A10,F$43,F$44,TRUE) -> 0.1225998689 | G11: =_xlfn.WEIBULL.DIST($A11,G$43,G$44,TRUE)-_xlfn.WEIBULL.DIST($A10,G$43,G$44,TRUE) -> 0.03162359046 | H11: =_xlfn.WEIBULL.DIST($A11,H$43,H$44,TRUE)-_xlfn.WEIBULL.DIST($A10,H$43,H$44,TRUE) -> 0.02958505686 | I11: =_xlfn.WEIBULL.DIST($A11,I$43,I$44,TRUE)-_xlfn.WEIBULL.DIST($A10,I$43,I$44,TRUE) -> 0.1100485105 | J11: =_xlfn.WEIBULL.DIST($A11,J$43,J$44,TRUE)-_xlfn.WEIBULL.DIST($A10,J$43,J$44,TRUE) -> 0.01755167832 | K11: =_xlfn.WEIBULL.DIST($A11,K$43,K$44,TRUE)-_xlfn.WEIBULL.DIST($A10,K$43,K$44,TRUE) -> 0.01860149173 | L11: =_xlfn.WEIBULL.DIST($A11,L$43,L$44,TRUE)-_xlfn.WEIBULL.DIST($A10,L$43,L$44,TRUE) -> 0.01860149173 | M11: =_xlfn.WEIBULL.DIST($A11,M$43,M$44,TRUE)-_xlfn.WEIBULL.DIST($A10,M$43,M$44,TRUE) -> 0.01860149173 | N11: =_xlfn.WEIBULL.DIST($A11,N$43,N$44,TRUE)-_xlfn.WEIBULL.DIST($A10,N$43,N$44,TRUE) -> 0.01860149173 | P11: =_xlfn.WEIBULL.DIST($A11,P$43,P$44,TRUE)-_xlfn.WEIBULL.DIST($A10,P$43,P$44,TRUE) -> 0.05668830666 | Q11: =_xlfn.WEIBULL.DIST($A11,Q$43,Q$44,TRUE)-_xlfn.WEIBULL.DIST($A10,Q$43,Q$44,TRUE) -> 0.05668830666 | R11: =_xlfn.WEIBULL.DIST($A11,R$43,R$44,TRUE)-_xlfn.WEIBULL.DIST($A10,R$43,R$44,TRUE) -> 0.05668830666 | S11: =_xlfn.WEIBULL.DIST($A11,S$43,S$44,TRUE)-_xlfn.WEIBULL.DIST($A10,S$43,S$44,TRUE) -> 0.1225998689 | T11: =_xlfn.WEIBULL.DIST($A11,T$43,T$44,TRUE)-_xlfn.WEIBULL.DIST($A10,T$43,T$44,TRUE) -> 0.1225998689 | U11: =_xlfn.WEIBULL.DIST($A11,U$43,U$44,TRUE)-_xlfn.WEIBULL.DIST($A10,U$43,U$44,TRUE) -> 0.05668830666 | V11: =_xlfn.WEIBULL.DIST($A11,V$43,V$44,TRUE)-_xlfn.WEIBULL.DIST($A10,V$43,V$44,TRUE) -> 0.05668830666 | W11: =_xlfn.WEIBULL.DIST($A11,W$43,W$44,TRUE)-_xlfn.WEIBULL.DIST($A10,W$43,W$44,TRUE) -> 0.1669754079 | X11: =_xlfn.WEIBULL.DIST($A11,X$43,X$44,TRUE)-_xlfn.WEIBULL.DIST($A10,X$43,X$44,TRUE) -> 0.01755167832 | Y11: =_xlfn.WEIBULL.DIST($A11,Y$43,Y$44,TRUE)-_xlfn.WEIBULL.DIST($A10,Y$43,Y$44,TRUE) -> 0.01860149173 | Z11: =_xlfn.WEIBULL.DIST($A11,Z$43,Z$44,TRUE)-_xlfn.WEIBULL.DIST($A10,Z$43,Z$44,TRUE) -> 0.01860149173 | AA11: =_xlfn.WEIBULL.DIST($A11,AA$43,AA$44,TRUE)-_xlfn.WEIBULL.DIST($A10,AA$43,AA$44,TRUE) -> 0.01860149173 | AB11: =_xlfn.WEIBULL.DIST($A11,AB$43,AB$44,TRUE)-_xlfn.WEIBULL.DIST($A10,AB$43,AB$44,TRUE) -> 0.01860149173 | AD11: =_xlfn.WEIBULL.DIST($A11,AD$43,AD$44,TRUE)-_xlfn.WEIBULL.DIST($A10,AD$43,AD$44,TRUE) -> 0.02780490294 | AE11: =_xlfn.WEIBULL.DIST($A11,AE$43,AE$44,TRUE)-_xlfn.WEIBULL.DIST($A10,AE$43,AE$44,TRUE) -> 0.1313392289 | AF11: =_xlfn.WEIBULL.DIST($A11,AF$43,AF$44,TRUE)-_xlfn.WEIBULL.DIST($A10,AF$43,AF$44,TRUE) -> 0.07689552705 | AG11: =_xlfn.WEIBULL.DIST($A11,AG$43,AG$44,TRUE)-_xlfn.WEIBULL.DIST($A10,AG$43,AG$44,TRUE) -> 0.1225998689 | AH11: =_xlfn.WEIBULL.DIST($A11,AH$43,AH$44,TRUE)-_xlfn.WEIBULL.DIST($A10,AH$43,AH$44,TRUE) -> 0.1225998689 | AI11: =_xlfn.WEIBULL.DIST($A11,AI$43,AI$44,TRUE)-_xlfn.WEIBULL.DIST($A10,AI$43,AI$44,TRUE) -> 0.03162359046 | AJ11: =_xlfn.WEIBULL.DIST($A11,AJ$43,AJ$44,TRUE)-_xlfn.WEIBULL.DIST($A10,AJ$43,AJ$44,TRUE) -> 0.02958505686 | AK11: =_xlfn.WEIBULL.DIST($A11,AK$43,AK$44,TRUE)-_xlfn.WEIBULL.DIST($A10,AK$43,AK$44,TRUE) -> 0.1100485105 | AL11: =_xlfn.WEIBULL.DIST($A11,AL$43,AL$44,TRUE)-_xlfn.WEIBULL.DIST($A10,AL$43,AL$44,TRUE) -> 0.01755167832 | AM11: =_xlfn.WEIBULL.DIST($A11,AM$43,AM$44,TRUE)-_xlfn.WEIBULL.DIST($A10,AM$43,AM$44,TRUE) -> 0.01860149173 | AN11: =_xlfn.WEIBULL.DIST($A11,AN$43,AN$44,TRUE)-_xlfn.WEIBULL.DIST($A10,AN$43,AN$44,TRUE) -> 0.01860149173 | AO11: =_xlfn.WEIBULL.DIST($A11,AO$43,AO$44,TRUE)-_xlfn.WEIBULL.DIST($A10,AO$43,AO$44,TRUE) -> 0.01860149173 | AP11: =_xlfn.WEIBULL.DIST($A11,AP$43,AP$44,TRUE)-_xlfn.WEIBULL.DIST($A10,AP$43,AP$44,TRUE) -> 0.01860149173
A12: 3 | B12: 0.04683972244 | C12: 0.14259256 | D12: 0.0904509944 | E12: 0.1223997408 | F12: 0.1223997408 | G12: 0.05559366552 | H12: 0.06018574651 | I12: 0.08166135413 | J12: 0.03000215906 | K12: 0.03023192812 | L12: 0.03023192812 | M12: 0.03023192812 | N12: 0.03023192812 | P12: 0.2106497329 | Q12: 0.2106497329 | R12: 0.2106497329 | S12: 0.1223997408 | T12: 0.1223997408 | U12: 0.2106497329 | V12: 0.2106497329 | W12: 0.4528753671 | X12: 0.03000215906 | Y12: 0.03023192812 | Z12: 0.03023192812 | AA12: 0.03023192812 | AB12: 0.03023192812 | AD12: 0.04683972244 | AE12: 0.14259256 | AF12: 0.0904509944 | AG12: 0.1223997408 | AH12: 0.1223997408 | AI12: 0.05559366552 | AJ12: 0.06018574651 | AK12: 0.08166135413 | AL12: 0.03000215906 | AM12: 0.03023192812 | AN12: 0.03023192812 | AO12: 0.03023192812 | AP12: 0.03023192812
A13: 4 | B13: 0.06379183236 | C13: 0.1358642497 | D13: 0.0951418644 | E13: 0.1133005745 | F13: 0.1133005745 | G13: 0.07722538303 | H13: 0.09133139912 | I13: 0.0652067664 | J13: 0.04180046193 | K13: 0.04075659244 | L13: 0.04075659244 | M13: 0.04075659244 | N13: 0.04075659244 | P13: 0.3608838887 | Q13: 0.3608838887 | R13: 0.3608838887 | S13: 0.1133005745 | T13: 0.1133005745 | U13: 0.3608838887 | V13: 0.3608838887 | W13: 0.3254746459 | X13: 0.04180046193 | Y13: 0.04075659244 | Z13: 0.04075659244 | AA13: 0.04075659244 | AB13: 0.04075659244 | AD13: 0.06379183236 | AE13: 0.1358642497 | AF13: 0.0951418644 | AG13: 0.1133005745 | AH13: 0.1133005745 | AI13: 0.07722538303 | AJ13: 0.09133139912 | AK13: 0.0652067664 | AL13: 0.04180046193 | AM13: 0.04075659244 | AN13: 0.04075659244 | AO13: 0.04075659244 | AP13: 0.04075659244
A14: 5 | B14: 0.07736085622 | C14: 0.1198196703 | D14: 0.09408614935 | E14: 0.1005153293 | F14: 0.1005153293 | G14: 0.09399480701 | H14: 0.116762513 | I14: 0.05402415351 | J14: 0.05229722234 | K14: 0.04982886347 | L14: 0.04982886347 | M14: 0.04982886347 | N14: 0.04982886347 | P14: 0.2808410735 | Q14: 0.2808410735 | R14: 0.2808410735 | S14: 0.1005153293 | T14: 0.1005153293 | U14: 0.2808410735 | V14: 0.2808410735 | W14: 0.04195917767 | X14: 0.05229722234 | Y14: 0.04982886347 | Z14: 0.04982886347 | AA14: 0.04982886347 | AB14: 0.04982886347 | AD14: 0.07736085622 | AE14: 0.1198196703 | AF14: 0.09408614935 | AG14: 0.1005153293 | AH14: 0.1005153293 | AI14: 0.09399480701 | AJ14: 0.116762513 | AK14: 0.05402415351 | AL14: 0.05229722234 | AM14: 0.04982886347 | AN14: 0.04982886347 | AO14: 0.04982886347 | AP14: 0.04982886347
A15: 6 | B15: 0.08670718014 | C15: 0.09996055261 | D15: 0.08922879602 | E15: 0.08661786814 | F15: 0.08661786814 | G15: 0.1042839052 | H15: 0.1315138215 | I15: 0.04579609972 | J15: 0.0609975853 | K15: 0.05718794142 | L15: 0.05718794142 | M15: 0.05718794142 | N15: 0.05718794142 | P15: 0.08070865223 | Q15: 0.08070865223 | R15: 0.08070865223 | S15: 0.08661786814 | T15: 0.08661786814 | U15: 0.08070865223 | V15: 0.08070865223 | W15: 0.0004455050604 | X15: 0.0609975853 | Y15: 0.05718794142 | Z15: 0.05718794142 | AA15: 0.05718794142 | AB15: 0.05718794142 | AD15: 0.08670718014 | AE15: 0.09996055261 | AF15: 0.08922879602 | AG15: 0.08661786814 | AH15: 0.08661786814 | AI15: 0.1042839052 | AJ15: 0.1315138215 | AK15: 0.04579609972 | AL15: 0.0609975853 | AM15: 0.05718794142 | AN15: 0.05718794142 | AO15: 0.05718794142 | AP15: 0.05718794142
A16: 7 | B16: 0.09146943635 | C16: 0.07980370765 | D16: 0.08198675946 | E16: 0.07301561014 | F16: 0.07301561014 | G16: 0.1074877901 | H16: 0.1331191078 | I16: 0.03944209369 | J16: 0.06755691827 | K16: 0.06267049102 | L16: 0.06267049102 | M16: 0.06267049102 | N16: 0.06267049102 | P16: 0.006245227867 | Q16: 0.006245227867 | R16: 0.006245227867 | S16: 0.07301561014 | T16: 0.07301561014 | U16: 0.006245227867 | V16: 0.006245227867 | W16: 1.125350408e-07 | X16: 0.06755691827 | Y16: 0.06267049102 | Z16: 0.06267049102 | AA16: 0.06267049102 | AB16: 0.06267049102 | AD16: 0.09146943635 | AE16: 0.07980370765 | AF16: 0.08198675946 | AG16: 0.07301561014 | AH16: 0.07301561014 | AI16: 0.1074877901 | AJ16: 0.1331191078 | AK16: 0.03944209369 | AL16: 0.06755691827 | AM16: 0.06267049102 | AN16: 0.06267049102 | AO16: 0.06267049102 | AP16: 0.06267049102
A17: 8 | B17: 0.09175276879 | C17: 0.06140241253 | D17: 0.07343081703 | E17: 0.06046589257 | F17: 0.06046589257 | G17: 0.1040052676 | H17: 0.1222412328 | I17: 0.03437202989 | J17: 0.07178775536 | K17: 0.06621458027 | L17: 0.06621458027 | M17: 0.06621458027 | N17: 0.06621458027 | P17: 8.437502511e-05 | Q17: 8.437502511e-05 | R17: 8.437502511e-05 | S17: 0.06046589257 | T17: 0.06046589257 | U17: 8.437502511e-05 | V17: 8.437502511e-05 | W17: 1.338928968e-13 | X17: 0.07178775536 | Y17: 0.06621458027 | Z17: 0.06621458027 | AA17: 0.06621458027 | AB17: 0.06621458027 | AD17: 0.09175276879 | AE17: 0.06140241253 | AF17: 0.07343081703 | AG17: 0.06046589257 | AH17: 0.06046589257 | AI17: 0.1040052676 | AJ17: 0.1222412328 | AK17: 0.03437202989 | AL17: 0.07178775536 | AM17: 0.06621458027 | AN17: 0.06621458027 | AO17: 0.06621458027 | AP17: 0.06621458027
A18: 9 | B18: 0.08806511683 | C18: 0.04574938932 | D18: 0.06436264641 | E18: 0.04933152768 | F18: 0.04933152768 | G18: 0.0950599833 | H18: 0.1022877497 | I18: 0.03022933346 | J18: 0.07365972211 | K18: 0.06785605047 | L18: 0.06785605047 | M18: 0.06785605047 | N18: 0.06785605047 | P18: 1.1252777e-07 | Q18: 1.1252777e-07 | R18: 1.1252777e-07 | S18: 0.04933152768 | T18: 0.04933152768 | U18: 1.1252777e-07 | V18: 1.1252777e-07 | W18: 0 | X18: 0.07365972211 | Y18: 0.06785605047 | Z18: 0.06785605047 | AA18: 0.06785605047 | AB18: 0.06785605047 | AD18: 0.08806511683 | AE18: 0.04574938932 | AF18: 0.06436264641 | AG18: 0.04933152768 | AH18: 0.04933152768 | AI18: 0.0950599833 | AJ18: 0.1022877497 | AK18: 0.03022933346 | AL18: 0.07365972211 | AM18: 0.06785605047 | AN18: 0.06785605047 | AO18: 0.06785605047 | AP18: 0.06785605047
A19: 10 | B19: 0.08120929111 | C19: 0.03312157186 | D19: 0.0553627744 | E19: 0.03973134166 | F19: 0.03973134166 | G19: 0.08239031841 | H19: 0.07812804341 | I19: 0.02678275554 | J19: 0.07328826047 | K19: 0.06771816814 | L19: 0.06771816814 | M19: 0.06771816814 | N19: 0.06771816814 | P19: 7.404743485e-12 | Q19: 7.404743485e-12 | R19: 7.404743485e-12 | S19: 0.03973134166 | T19: 0.03973134166 | U19: 7.404743485e-12 | V19: 7.404743485e-12 | W19: 0 | X19: 0.07328826047 | Y19: 0.06771816814 | Z19: 0.06771816814 | AA19: 0.06771816814 | AB19: 0.06771816814 | AD19: 0.08120929111 | AE19: 0.03312157186 | AF19: 0.0553627744 | AG19: 0.03973134166 | AH19: 0.03973134166 | AI19: 0.08239031841 | AJ19: 0.07812804341 | AK19: 0.02678275554 | AL19: 0.07328826047 | AM19: 0.06771816814 | AN19: 0.06771816814 | AO19: 0.06771816814 | AP19: 0.06771816814
A20: 11 | B20: 0.07215041842 | C20: 0.02336070653 | D20: 0.04682947767 | E20: 0.03163650478 | F20: 0.03163650478 | G20: 0.06788750103 | H20: 0.05448092187 | I20: 0.02387426671 | J20: 0.07091245644 | K20: 0.06599598215 | L20: 0.06599598215 | M20: 0.06599598215 | N20: 0.06599598215 | P20: 0 | Q20: 0 | R20: 0 | S20: 0.03163650478 | T20: 0.03163650478 | U20: 0 | V20: 0 | W20: 0 | X20: 0.07091245644 | Y20: 0.06599598215 | Z20: 0.06599598215 | AA20: 0.06599598215 | AB20: 0.06599598215 | AD20: 0.07215041842 | AE20: 0.02336070653 | AF20: 0.04682947767 | AG20: 0.03163650478 | AH20: 0.03163650478 | AI20: 0.06788750103 | AJ20: 0.05448092187 | AK20: 0.02387426671 | AL20: 0.07091245644 | AM20: 0.06599598215 | AN20: 0.06599598215 | AO20: 0.06599598215 | AP20: 0.06599598215
A21: 12 | B21: 0.06188188738 | C21: 0.01608388333 | D21: 0.03901386811 | E21: 0.02493414273 | F21: 0.02493414273 | G21: 0.053268326 | H21: 0.03465836582 | I21: 0.02139142956 | J21: 0.06686447413 | K21: 0.06293718229 | L21: 0.06293718229 | M21: 0.06293718229 | N21: 0.06293718229 | P21: 0 | Q21: 0 | R21: 0 | S21: 0.02493414273 | T21: 0.02493414273 | U21: 0 | V21: 0 | W21: 0 | X21: 0.06686447413 | Y21: 0.06293718229 | Z21: 0.06293718229 | AA21: 0.06293718229 | AB21: 0.06293718229 | AD21: 0.06188188738 | AE21: 0.01608388333 | AF21: 0.03901386811 | AG21: 0.02493414273 | AH21: 0.02493414273 | AI21: 0.053268326 | AJ21: 0.03465836582 | AK21: 0.02139142956 | AL21: 0.06686447413 | AM21: 0.06293718229 | AN21: 0.06293718229 | AO21: 0.06293718229 | AP21: 0.06293718229
A22: 13 | B22: 0.05131048733 | C22: 0.01082770139 | D22: 0.03205195745 | E22: 0.01946938993 | F22: 0.01946938993 | G22: 0.03984773233 | H22: 0.02008711642 | I22: 0.01925164142 | J22: 0.0615342412 | K22: 0.05882140337 | L22: 0.05882140337 | M22: 0.05882140337 | N22: 0.05882140337 | P22: 0 | Q22: 0 | R22: 0 | S22: 0.01946938993 | T22: 0.01946938993 | U22: 0 | V22: 0 | W22: 0 | X22: 0.0615342412 | Y22: 0.05882140337 | Z22: 0.05882140337 | AA22: 0.05882140337 | AB22: 0.05882140337 | AD22: 0.05131048733 | AE22: 0.01082770139 | AF22: 0.03205195745 | AG22: 0.01946938993 | AH22: 0.01946938993 | AI22: 0.03984773233 | AJ22: 0.02008711642 | AK22: 0.01925164142 | AL22: 0.0615342412 | AM22: 0.05882140337 | AN22: 0.05882140337 | AO22: 0.05882140337 | AP22: 0.05882140337
A23: 14 | B23: 0.04117489915 | C23: 0.007136890634 | D23: 0.02599329929 | E23: 0.015072639 | F23: 0.015072639 | G23: 0.0284394108 | H23: 0.01058844301 | I23: 0.0173926165 | J23: 0.0553333882 | K23: 0.05393984638 | L23: 0.05393984638 | M23: 0.05393984638 | N23: 0.05393984638 | P23: 0 | Q23: 0 | R23: 0 | S23: 0.015072639 | T23: 0.015072639 | U23: 0 | V23: 0 | W23: 0 | X23: 0.0553333882 | Y23: 0.05393984638 | Z23: 0.05393984638 | AA23: 0.05393984638 | AB23: 0.05393984638 | AD23: 0.04117489915 | AE23: 0.007136890634 | AF23: 0.02599329929 | AG23: 0.015072639 | AH23: 0.015072639 | AI23: 0.0284394108 | AJ23: 0.01058844301 | AK23: 0.0173926165 | AL23: 0.0553333882 | AM23: 0.05393984638 | AN23: 0.05393984638 | AO23: 0.05393984638 | AP23: 0.05393984638
A24: 15 | B24: 0.03200333738 | C24: 0.004611090404 | D24: 0.02082570445 | E24: 0.01157649757 | F24: 0.01157649757 | G24: 0.01937465428 | H24: 0.005066490747 | I24: 0.01576636373 | J24: 0.04866215375 | K24: 0.04857682887 | L24: 0.04857682887 | M24: 0.04857682887 | N24: 0.04857682887 | P24: 0 | Q24: 0 | R24: 0 | S24: 0.01157649757 | T24: 0.01157649757 | U24: 0 | V24: 0 | W24: 0 | X24: 0.04866215375 | Y24: 0.04857682887 | Z24: 0.04857682887 | AA24: 0.04857682887 | AB24: 0.04857682887 | AD24: 0.03200333738 | AE24: 0.004611090404 | AF24: 0.02082570445 | AG24: 0.01157649757 | AH24: 0.01157649757 | AI24: 0.01937465428 | AJ24: 0.005066490747 | AK24: 0.01576636373 | AL24: 0.04866215375 | AM24: 0.04857682887 | AN24: 0.04857682887 | AO24: 0.04857682887 | AP24: 0.04857682887
A25: 16 | B25: 0.02410818669 | C25: 0.00292309689 | D25: 0.01649576812 | E25: 0.008825629847 | F25: 0.008825629847 | G25: 0.01260309393 | H25: 0.002195998752 | I25: 0.01433522774 | J25: 0.04188218478 | K25: 0.04299448287 | L25: 0.04299448287 | M25: 0.04299448287 | N25: 0.04299448287 | P25: 0 | Q25: 0 | R25: 0 | S25: 0.008825629847 | T25: 0.008825629847 | U25: 0 | V25: 0 | W25: 0 | X25: 0.04188218478 | Y25: 0.04299448287 | Z25: 0.04299448287 | AA25: 0.04299448287 | AB25: 0.04299448287 | AD25: 0.02410818669 | AE25: 0.00292309689 | AF25: 0.01649576812 | AG25: 0.008825629847 | AH25: 0.008825629847 | AI25: 0.01260309393 | AJ25: 0.002195998752 | AK25: 0.01433522774 | AL25: 0.04188218478 | AM25: 0.04299448287 | AN25: 0.04299448287 | AO25: 0.04299448287 | AP25: 0.04299448287
A26: 17 | B26: 0.01760960495 | C26: 0.001819679322 | D26: 0.01292524703 | E26: 0.006681771862 | F26: 0.006681771862 | G26: 0.007829342761 | H26: 0.0008603068804 | I26: 0.01306920089 | J26: 0.03529707811 | K26: 0.03742135422 | L26: 0.03742135422 | M26: 0.03742135422 | N26: 0.03742135422 | P26: 0 | Q26: 0 | R26: 0 | S26: 0.006681771862 | T26: 0.006681771862 | U26: 0 | V26: 0 | W26: 0 | X26: 0.03529707811 | Y26: 0.03742135422 | Z26: 0.03742135422 | AA26: 0.03742135422 | AB26: 0.03742135422 | AD26: 0.01760960495 | AE26: 0.001819679322 | AF26: 0.01292524703 | AG26: 0.006681771862 | AH26: 0.006681771862 | AI26: 0.007829342761 | AJ26: 0.0008603068804 | AK26: 0.01306920089 | AL26: 0.03529707811 | AM26: 0.03742135422 | AN26: 0.03742135422 | AO26: 0.03742135422 | AP26: 0.03742135422
A27: 18 | B27: 0.01247710009 | C27: 0.001113219321 | D27: 0.0100235747 | E27: 0.005025572751 | F27: 0.005025572751 | G27: 0.004645264463 | H27: 0.0003039429889 | I27: 0.01194404768 | J27: 0.02914133502 | K27: 0.0320451846 | L27: 0.0320451846 | M27: 0.0320451846 | N27: 0.0320451846 | P27: 0 | Q27: 0 | R27: 0 | S27: 0.005025572751 | T27: 0.005025572751 | U27: 0 | V27: 0 | W27: 0 | X27: 0.02914133502 | Y27: 0.0320451846 | Z27: 0.0320451846 | AA27: 0.0320451846 | AB27: 0.0320451846 | AD27: 0.01247710009 | AE27: 0.001113219321 | AF27: 0.0100235747 | AG27: 0.005025572751 | AH27: 0.005025572751 | AI27: 0.004645264463 | AJ27: 0.0003039429889 | AK27: 0.01194404768 | AL27: 0.02914133502 | AM27: 0.0320451846 | AN27: 0.0320451846 | AO27: 0.0320451846 | AP27: 0.0320451846
A28: 19 | B28: 0.00857797022 | C28: 0.0006697093449 | D28: 0.007696970542 | E28: 0.003756443522 | F28: 0.003756443522 | G28: 0.002632283176 | H28: 9.661724684e-05 | I28: 0.01093996464 | J28: 0.0235773219 | K28: 0.02700973222 | L28: 0.02700973222 | M28: 0.02700973222 | N28: 0.02700973222 | P28: 0 | Q28: 0 | R28: 0 | S28: 0.003756443522 | T28: 0.003756443522 | U28: 0 | V28: 0 | W28: 0 | X28: 0.0235773219 | Y28: 0.02700973222 | Z28: 0.02700973222 | AA28: 0.02700973222 | AB28: 0.02700973222 | AD28: 0.00857797022 | AE28: 0.0006697093449 | AF28: 0.007696970542 | AG28: 0.003756443522 | AH28: 0.003756443522 | AI28: 0.002632283176 | AJ28: 9.661724684e-05 | AK28: 0.01093996464 | AL28: 0.0235773219 | AM28: 0.02700973222 | AN28: 0.02700973222 | AO28: 0.02700973222 | AP28: 0.02700973222
A29: 20 | B29: 0.00572351202 | C29: 0.0003964304202 | D29: 0.005854684332 | E29: 0.002791242429 | F29: 0.002791242429 | G29: 0.001424517137 | H29: 2.757024014e-05 | I29: 0.01004060286 | J29: 0.01869899073 | K29: 0.02241514893 | L29: 0.02241514893 | M29: 0.02241514893 | N29: 0.02241514893 | P29: 0 | Q29: 0 | R29: 0 | S29: 0.002791242429 | T29: 0.002791242429 | U29: 0 | V29: 0 | W29: 0 | X29: 0.01869899073 | Y29: 0.02241514893 | Z29: 0.02241514893 | AA29: 0.02241514893 | AB29: 0.02241514893 | AD29: 0.00572351202 | AE29: 0.0003964304202 | AF29: 0.005854684332 | AG29: 0.002791242429 | AH29: 0.002791242429 | AI29: 0.001424517137 | AJ29: 2.757024014e-05 | AK29: 0.01004060286 | AL29: 0.01869899073 | AM29: 0.02241514893 | AN29: 0.02241514893 | AO29: 0.02241514893 | AP29: 0.02241514893
A30: 21 | B30: 0.003707033957 | C30: 0.0002310215388 | D30: 0.004412937149 | E30: 0.002062363595 | F30: 0.002062363595 | G30: 0.0007361617029 | H30: 7.046087069e-06 | I30: 0.00923234214 | J30: 0.01454059101 | K30: 0.01832120313 | L30: 0.01832120313 | M30: 0.01832120313 | N30: 0.01832120313 | P30: 0 | Q30: 0 | R30: 0 | S30: 0.002062363595 | T30: 0.002062363595 | U30: 0 | V30: 0 | W30: 0 | X30: 0.01454059101 | Y30: 0.01832120313 | Z30: 0.01832120313 | AA30: 0.01832120313 | AB30: 0.01832120313 | AD30: 0.003707033957 | AE30: 0.0002310215388 | AF30: 0.004412937149 | AG30: 0.002062363595 | AH30: 0.002062363595 | AI30: 0.0007361617029 | AJ30: 7.046087069e-06 | AK30: 0.00923234214 | AL30: 0.01454059101 | AM30: 0.01832120313 | AN30: 0.01832120313 | AO30: 0.01832120313 | AP30: 0.01832120313
A31: 22 | B31: 0.002330976569 | C31: 0.0001326023742 | D31: 0.003297090786 | E31: 0.00151560266 | F31: 0.00151560266 | G31: 0.0003632393056 | H31: 1.609080104e-06 | I31: 0.008503743104 | J31: 0.01108841379 | K31: 0.01475252444 | L31: 0.01475252444 | M31: 0.01475252444 | N31: 0.01475252444 | P31: 0 | Q31: 0 | R31: 0 | S31: 0.00151560266 | T31: 0.00151560266 | U31: 0 | V31: 0 | W31: 0 | X31: 0.01108841379 | Y31: 0.01475252444 | Z31: 0.01475252444 | AA31: 0.01475252444 | AB31: 0.01475252444 | AD31: 0.002330976569 | AE31: 0.0001326023742 | AF31: 0.003297090786 | AG31: 0.00151560266 | AH31: 0.00151560266 | AI31: 0.0003632393056 | AJ31: 1.609080104e-06 | AK31: 0.008503743104 | AL31: 0.01108841379 | AM31: 0.01475252444 | AN31: 0.01475252444 | AO31: 0.01475252444 | AP31: 0.01475252444
A32: 23 | B32: 0.001423128983 | C32: 7.499867002e-05 | D32: 0.002442518765 | E32: 0.00110803409 | F32: 0.00110803409 | G32: 0.0001711037198 | H32: 3.275934838e-07 | I32: 0.007845127842 | J32: 0.008293708255 | K32: 0.01170503713 | L32: 0.01170503713 | M32: 0.01170503713 | N32: 0.01170503713 | P32: 0 | Q32: 0 | R32: 0 | S32: 0.00110803409 | T32: 0.00110803409 | U32: 0 | V32: 0 | W32: 0 | X32: 0.008293708255 | Y32: 0.01170503713 | Z32: 0.01170503713 | AA32: 0.01170503713 | AB32: 0.01170503713 | AD32: 0.001423128983 | AE32: 7.499867002e-05 | AF32: 0.002442518765 | AG32: 0.00110803409 | AH32: 0.00110803409 | AI32: 0.0001711037198 | AJ32: 3.275934838e-07 | AK32: 0.007845127842 | AL32: 0.008293708255 | AM32: 0.01170503713 | AN32: 0.01170503713 | AO32: 0.01170503713 | AP32: 0.01170503713
A33: 24 | B33: 0.0008436883401 | C33: 4.181513956e-05 | D33: 0.001794577744 | E33: 0.0008060368882 | F33: 0.0008060368882 | G33: 7.693037029e-05 | H33: 5.932441105e-08 | I33: 0.007248254705 | J33: 0.006085222616 | K33: 0.009152825304 | L33: 0.009152825304 | M33: 0.009152825304 | N33: 0.009152825304 | P33: 0 | Q33: 0 | R33: 0 | S33: 0.0008060368882 | T33: 0.0008060368882 | U33: 0 | V33: 0 | W33: 0 | X33: 0.006085222616 | Y33: 0.009152825304 | Z33: 0.009152825304 | AA33: 0.009152825304 | AB33: 0.009152825304 | AD33: 0.0008436883401 | AE33: 4.181513956e-05 | AF33: 0.001794577744 | AG33: 0.0008060368882 | AH33: 0.0008060368882 | AI33: 7.693037029e-05 | AJ33: 5.932441105e-08 | AK33: 0.007248254705 | AL33: 0.006085222616 | AM33: 0.009152825304 | AN33: 0.009152825304 | AO33: 0.009152825304 | AP33: 0.009152825304
A34: 25 | B34: 0.0004857116512 | C34: 2.299067991e-05 | D34: 0.001307999932 | E34: 0.0005835385494 | F34: 0.0005835385494 | G34: 3.300855259e-05 | H34: 9.534393164e-09 | I34: 0.006706063226 | J34: 0.004380251608 | K34: 0.007054805831 | L34: 0.007054805831 | M34: 0.007054805831 | N34: 0.007054805831 | P34: 0 | Q34: 0 | R34: 0 | S34: 0.0005835385494 | T34: 0.0005835385494 | U34: 0 | V34: 0 | W34: 0 | X34: 0.004380251608 | Y34: 0.007054805831 | Z34: 0.007054805831 | AA34: 0.007054805831 | AB34: 0.007054805831 | AD34: 0.0004857116512 | AE34: 2.299067991e-05 | AF34: 0.001307999932 | AG34: 0.0005835385494 | AH34: 0.0005835385494 | AI34: 3.300855259e-05 | AJ34: 9.534393164e-09 | AK34: 0.006706063226 | AL34: 0.004380251608 | AM34: 0.007054805831 | AN34: 0.007054805831 | AO34: 0.007054805831 | AP34: 0.007054805831
A35: 26 | B35: 0.0002715522645 | C35: 1.246972486e-05 | D35: 0.0009459527461 | E35: 0.000420503134 | F35: 0.000420503134 | G35: 1.3513232e-05 | H35: 1.356888046e-09 | I35: 0.006212471914 | J35: 0.003093533046 | K35: 0.005360748905 | L35: 0.005360748905 | M35: 0.005360748905 | N35: 0.005360748905 | P35: 0 | Q35: 0 | R35: 0 | S35: 0.000420503134 | T35: 0.000420503134 | U35: 0 | V35: 0 | W35: 0 | X35: 0.003093533046 | Y35: 0.005360748905 | Z35: 0.005360748905 | AA35: 0.005360748905 | AB35: 0.005360748905 | AD35: 0.0002715522645 | AE35: 1.246972486e-05 | AF35: 0.0009459527461 | AG35: 0.000420503134 | AH35: 0.000420503134 | AI35: 1.3513232e-05 | AJ35: 1.356888046e-09 | AK35: 0.006212471914 | AL35: 0.003093533046 | AM35: 0.005360748905 | AN35: 0.005360748905 | AO35: 0.005360748905 | AP35: 0.005360748905
A36: 27 | B36: 0.0001474416898 | C36: 6.674006612e-06 | D36: 0.0006789459642 | E36: 0.0003016618714 | F36: 0.0003016618714 | G36: 5.277233888e-06 | H36: 1.706184083e-10 | I36: 0.005762216443 | J36: 0.002143753979 | K36: 0.004016355027 | L36: 0.004016355027 | M36: 0.004016355027 | N36: 0.004016355027 | P36: 0 | Q36: 0 | R36: 0 | S36: 0.0003016618714 | T36: 0.0003016618714 | U36: 0 | V36: 0 | W36: 0 | X36: 0.002143753979 | Y36: 0.004016355027 | Z36: 0.004016355027 | AA36: 0.004016355027 | AB36: 0.004016355027 | AD36: 0.0001474416898 | AE36: 6.674006612e-06 | AF36: 0.0006789459642 | AG36: 0.0003016618714 | AH36: 0.0003016618714 | AI36: 5.277233888e-06 | AJ36: 1.706184083e-10 | AK36: 0.005762216443 | AL36: 0.002143753979 | AM36: 0.004016355027 | AN36: 0.004016355027 | AO36: 0.004016355027 | AP36: 0.004016355027
A37: 28 | B37: 7.774769217e-05 | C37: 3.525896951e-06 | D37: 0.000483711343 | E37: 0.000215468841 | F37: 0.000215468841 | G37: 1.965510919e-06 | H37: 1.891409251e-11 | I37: 0.005350719022 | J37: 0.001457757222 | K37: 0.002967252344 | L37: 0.002967252344 | M37: 0.002967252344 | N37: 0.002967252344 | P37: 0 | Q37: 0 | R37: 0 | S37: 0.000215468841 | T37: 0.000215468841 | U37: 0 | V37: 0 | W37: 0 | X37: 0.001457757222 | Y37: 0.002967252344 | Z37: 0.002967252344 | AA37: 0.002967252344 | AB37: 0.002967252344 | AD37: 7.774769217e-05 | AE37: 3.525896951e-06 | AF37: 0.000483711343 | AG37: 0.000215468841 | AH37: 0.000215468841 | AI37: 1.965510919e-06 | AJ37: 1.891409251e-11 | AK37: 0.005350719022 | AL37: 0.001457757222 | AM37: 0.002967252344 | AN37: 0.002967252344 | AO37: 0.002967252344 | AP37: 0.002967252344
A38: 29 | B38: 3.981613688e-05 | C38: 1.839187299e-06 | D38: 0.0003421354676 | E38: 0.000153256281 | F38: 0.000153256281 | G38: 6.980272266e-07 | H38: 1.844635555e-12 | I38: 0.004973982107 | J38: 0.0009727612307 | K38: 0.002161906171 | L38: 0.002161906171 | M38: 0.002161906171 | N38: 0.002161906171 | P38: 0 | Q38: 0 | R38: 0 | S38: 0.000153256281 | T38: 0.000153256281 | U38: 0 | V38: 0 | W38: 0 | X38: 0.0009727612307 | Y38: 0.002161906171 | Z38: 0.002161906171 | AA38: 0.002161906171 | AB38: 0.002161906171 | AD38: 3.981613688e-05 | AE38: 1.839187299e-06 | AF38: 0.0003421354676 | AG38: 0.000153256281 | AH38: 0.000153256281 | AI38: 6.980272266e-07 | AJ38: 1.844635555e-12 | AK38: 0.004973982107 | AL38: 0.0009727612307 | AM38: 0.002161906171 | AN38: 0.002161906171 | AO38: 0.002161906171 | AP38: 0.002161906171
A39: 30 | B39: 1.980321093e-05 | C39: 9.474761831e-07 | D39: 0.0002402929545 | E39: 0.0001085612236 | F39: 0.0001085612236 | G39: 2.363205739e-07 | H39: 1.578737141e-13 | I39: 0.00462850126 | J39: 0.0006370223708 | K39: 0.001553527036 | L39: 0.001553527036 | M39: 0.001553527036 | N39: 0.001553527036 | P39: 0 | Q39: 0 | R39: 0 | S39: 0.0001085612236 | T39: 0.0001085612236 | U39: 0 | V39: 0 | W39: 0 | X39: 0.0006370223708 | Y39: 0.001553527036 | Z39: 0.001553527036 | AA39: 0.001553527036 | AB39: 0.001553527036 | AD39: 1.980321093e-05 | AE39: 9.474761831e-07 | AF39: 0.0002402929545 | AG39: 0.0001085612236 | AH39: 0.0001085612236 | AI39: 2.363205739e-07 | AJ39: 1.578737141e-13 | AK39: 0.00462850126 | AL39: 0.0006370223708 | AM39: 0.001553527036 | AN39: 0.001553527036 | AO39: 0.001553527036 | AP39: 0.001553527036
A40: Total | B40: =SUM(B10:B39) -> 0.9999823403 | C40: 0.9999990409 | D40: 0.9994701562 | E40: 0.9997470407 | F40: 0.9997470407 | G40: 0.9999998908 | H40: 1 | I40: 0.9268073921 | J40: 0.9989402677 | K40: 0.9965484582 | L40: 0.9965484582 | M40: =SUM(M10:M39) -> 0.9965484582 | N40: 0.9965484582 | P40: =SUM(P10:P39) -> 1 | Q40: 1 | R40: 1 | S40: 0.9997470407 | T40: 0.9997470407 | U40: 1 | V40: 1 | W40: 1 | X40: 0.9989402677 | Y40: 0.9965484582 | Z40: 0.9965484582 | AA40: 0.9965484582 | AB40: 0.9965484582 | AD40: =SUM(AD10:AD39) -> 0.9999823403 | AE40: 0.9999990409 | AF40: 0.9994701562 | AG40: 0.9997470407 | AH40: 0.9997470407 | AI40: 0.9999998908 | AJ40: 1 | AK40: 0.9268073921 | AL40: 0.9989402677 | AM40: 0.9965484582 | AN40: 0.9965484582 | AO40: 0.9965484582 | AP40: 0.9965484582
A42: UNU-Key Product | B42: 302 | C42: 303 | D42: 307 | E42: 301 | F42: 301 | G42: 308 | H42: 309 | I42: 306 | J42: 408 | K42: 407 | L42: 407 | M42: 407 | N42: 407 | P42: 302 | Q42: 303 | R42: 307 | S42: 301 | T42: 301 | U42: 308 | V42: 309 | W42: 306 | X42: 408 | Y42: 407 | Z42: 407 | AA42: 407 | AB42: 407 | AD42: 302 | AE42: 303 | AF42: 307 | AG42: 301 | AH42: 301 | AI42: 308 | AJ42: 309 | AK42: 306 | AL42: 408 | AM42: 407 | AN42: 407 | AO42: 407 | AP42: 407
A43: α (shape) | B43: 2.1 | C43: 1.5 | D43: 1.5 | E43: 1.3 | F43: 1.3 | G43: 2.2 | H43: 2.5 | I43: 0.7 | J43: 2.1 | K43: 2 | L43: 2 | M43: 2 | N43: 2 | P43: 4 | Q43: 4 | R43: 4 | S43: 1.3 | T43: 1.3 | U43: 4 | V43: 4 | W43: 4 | X43: 2.1 | Y43: 2 | Z43: 2 | AA43: 2 | AB43: 2 | AD43: 2.1 | AE43: 1.5 | AF43: 1.5 | AG43: 1.3 | AH43: 1.3 | AI43: 2.2 | AJ43: 2.5 | AK43: 0.7 | AL43: 2.1 | AM43: 2 | AN43: 2 | AO43: 2 | AP43: 2
A44: β (scale) | B44: =(1+($O$44/100))*B45 -> 9.6 | C44: =(1+($O$44/100))*C45 -> 5.2 | D44: 7.8 | E44: 5.9 | F44: 5.9 | G44: 8.5 | H44: 7.5 | I44: 7.6 | J44: 12 | K44: 12.6 | L44: 12.6 | M44: 12.6 | N44: 12.6 | O44: =O45 -> 0 | P44: =(1+($AC$44/100))*P45 -> 4 | Q44: =(1+($AC$44/100))*Q45 -> 4 | R44: 4 | S44: 5.9 | T44: 5.9 | U44: 4 | V44: 4 | W44: 3 | X44: 12 | Y44: 12.6 | Z44: 12.6 | AA44: 12.6 | AB44: 12.6 | AC44: 0 | AD44: =(1+($AQ$44/100))*AD45 -> 9.6 | AE44: =(1+($AQ$44/100))*AE45 -> 5.2 | AF44: 7.8 | AG44: 5.9 | AH44: 5.9 | AI44: 8.5 | AJ44: 7.5 | AK44: 7.6 | AL44: 12 | AM44: 12.6 | AN44: 12.6 | AO44: 12.6 | AP44: 12.6 | AQ44: =AQ45 -> 0
B45: 9.6 | C45: 5.2 | D45: 7.8 | E45: 5.9 | F45: 5.9 | G45: 8.5 | H45: 7.5 | I45: 7.6 | J45: 12 | K45: 12.6 | L45: 12.6 | M45: 12.6 | N45: 12.6 | O45: =CPInput!$B$51 -> 0 | P45: 4 | Q45: 4 | R45: 4 | S45: 5.9 | T45: 5.9 | U45: 4 | V45: 4 | W45: 3 | X45: 12 | Y45: 12.6 | Z45: 12.6 | AA45: 12.6 | AB45: 12.6 | AC45: =AVERAGE(CPInput!B54,CPInput!B53) -> 0 | AD45: 9.6 | AE45: 5.2 | AF45: 7.8 | AG45: 5.9 | AH45: 5.9 | AI45: 8.5 | AJ45: 7.5 | AK45: 7.6 | AL45: 12 | AM45: 12.6 | AN45: 12.6 | AO45: 12.6 | AP45: 12.6 | AQ45: =CPInput!$B$52 -> 0

Sheet SecondLife
A1: Home
A2: Description: | B2: Technical lifetime distribution by product and consumer segment.
A3: Source: | B3: EPA 2008 Waste Management Approach; RTI Assumptions; Wang et al. 2013, and Balde et al. 2015.
A4: Last Modified: | B4: 2015-08-13
A5: Weibull Lifetime Distribution
B8: Residential | P8: Commercial/Institutional | AD8: Education
A9: Technical Lifetime (yrs) | B9: Desktops | C9: Portables | D9: Hard Copy Peripherals | E9: Mice | F9: Keyboards | G9: PC CRTs | H9: PC Flat Panel | I9: Cell Phones | J9: Flat Panel TVs | K9: Monochrome | L9: Color CRT <19" | M9: Color CRT >19" | N9: Color Projection | P9: Desktops | Q9: Portables | R9: Hard Copy Peripherals | S9: Mice | T9: Keyboards | U9: PC CRTs | V9: PC Flat Panel | W9: Cell Phones | X9: Flat Panel TVs | Y9: Monochrome | Z9: Color CRT <19" | AA9: Color CRT >19" | AB9: Color Projection | AD9: Desktops | AE9: Portables | AF9: Hard Copy Peripherals | AG9: Mice | AH9: Keyboards | AI9: PC CRTs | AJ9: PC Flat Panel | AK9: Cell Phones | AL9: Flat Panel TVs | AM9: Monochrome | AN9: Color CRT <19" | AO9: Color CRT >19" | AP9: Color Projection
A10: 1 | B10: =_xlfn.WEIBULL.DIST($A10,B$43,B$44,TRUE) -> 0.03642183195 | C10: =_xlfn.WEIBULL.DIST($A10,C$43,C$44,TRUE) -> 0.2122136346 | D10: 0.1217626402 | E10: 0.2173242943 | F10: 0.2173242943 | G10: 0.0406045108 | H10: 0.03605555902 | I10: =_xlfn.WEIBULL.DIST($A10,I$43,I$44,TRUE) -> 0.3248240222 | J10: =_xlfn.WEIBULL.DIST($A10,J$43,J$44,TRUE) -> 0.02295354342 | K10: 0.0248805116 | L10: 0.0248805116 | M10: 0.0248805116 | N10: 0.0248805116 | P10: 0.06058693719 | Q10: 0.06058693719 | R10: 0.06058693719 | S10: 0.2173242943 | T10: 0.2173242943 | U10: 0.06058693719 | V10: 0.06058693719 | W10: 0.1792451917 | X10: 0.02295354342 | Y10: 0.0248805116 | Z10: 0.0248805116 | AA10: 0.0248805116 | AB10: 0.0248805116 | AD10: 0.03642183195 | AE10: 0.2122136346 | AF10: 0.1217626402 | AG10: 0.2173242943 | AH10: 0.2173242943 | AI10: 0.0406045108 | AJ10: 0.03605555902 | AK10: 0.3248240222 | AL10: 0.02295354342 | AM10: 0.0248805116 | AN10: 0.0248805116 | AO10: 0.0248805116 | AP10: 0.0248805116
A11: 2 | B11: =_xlfn.WEIBULL.DIST($A11,B$43,B$44,TRUE)-_xlfn.WEIBULL.DIST($A10,B$43,B$44,TRUE) -> 0.1106315548 | C11: 0.2784568098 | D11: 0.1855928588 | E11: 0.2357003153 | F11: 0.2357003153 | G11: 0.1328190486 | H11: 0.1515171456 | I11: =_xlfn.WEIBULL.DIST($A11,I$43,I$44,TRUE)-_xlfn.WEIBULL.DIST($A10,I$43,I$44,TRUE) -> 0.1468681205 | J11: =_xlfn.WEIBULL.DIST($A11,J$43,J$44,TRUE)-_xlfn.WEIBULL.DIST($A10,J$43,J$44,TRUE) -> 0.07180262099 | K11: 0.07098852056 | L11: 0.07098852056 | M11: 0.07098852056 | N11: 0.07098852056 | P11: 0.5715336216 | Q11: 0.5715336216 | R11: 0.5715336216 | S11: 0.2357003153 | T11: 0.2357003153 | U11: 0.5715336216 | V11: 0.5715336216 | W11: 0.778350013 | X11: 0.07180262099 | Y11: 0.07098852056 | Z11: 0.07098852056 | AA11: 0.07098852056 | AB11: 0.07098852056 | AD11: =_xlfn.WEIBULL.DIST($A11,AD$43,AD$44,TRUE)-_xlfn.WEIBULL.DIST($A10,AD$43,AD$44,TRUE) -> 0.1106315548 | AE11: 0.2784568098 | AF11: 0.1855928588 | AG11: 0.2357003153 | AH11: 0.2357003153 | AI11: 0.1328190486 | AJ11: 0.1515171456 | AK11: 0.1468681205 | AL11: 0.07180262099 | AM11: 0.07098852056 | AN11: 0.07098852056 | AO11: 0.07098852056 | AP11: 0.07098852056
A12: 3 | B12: 0.1640680364 | C12: 0.2197802229 | D12: 0.1833149454 | E12: 0.1871331975 | F12: 0.1871331975 | G12: 0.1982787122 | H12: 0.2482763345 | I12: 0.09982025323 | J12: 0.1132948076 | K12: 0.1070168049 | L12: 0.1070168049 | M12: 0.1070168049 | N12: 0.1070168049 | P12: 0.3615497257 | Q12: 0.3615497257 | R12: 0.3615497257 | S12: 0.1871331975 | T12: 0.1871331975 | U12: 0.3615497257 | V12: 0.3615497257 | W12: 0.04240468273 | X12: 0.1132948076 | Y12: 0.1070168049 | Z12: 0.1070168049 | AA12: 0.1070168049 | AB12: 0.1070168049 | AD12: 0.1640680364 | AE12: 0.2197802229 | AF12: 0.1833149454 | AG12: 0.1871331975 | AH12: 0.1871331975 | AI12: 0.1982787122 | AJ12: 0.2482763345 | AK12: 0.09982025323 | AL12: 0.1132948076 | AM12: 0.1070168049 | AN12: 0.1070168049 | AO12: 0.1070168049 | AP12: 0.1070168049
A13: 4 | B13: 0.1832222051 | C13: 0.1412061202 | D13: 0.1554175765 | E13: 0.1334815027 | F13: 0.1334815027 | G13: 0.2114930577 | H13: 0.2553603405 | I13: 0.07381412358 | J13: 0.1393446736 | K13: 0.1288850713 | L13: 0.1288850713 | M13: 0.1288850713 | N13: 0.1288850713 | P13: 0.006329602892 | Q13: 0.006329602892 | R13: 0.006329602892 | S13: 0.1334815027 | T13: 0.1334815027 | U13: 0.006329602892 | V13: 0.006329602892 | W13: 1.125351747e-07 | X13: 0.1393446736 | Y13: 0.1288850713 | Z13: 0.1288850713 | AA13: 0.1288850713 | AB13: 0.1288850713 | AD13: 0.1832222051 | AE13: 0.1412061202 | AF13: 0.1554175765 | AG13: 0.1334815027 | AH13: 0.1334815027 | AI13: 0.2114930577 | AJ13: 0.2553603405 | AK13: 0.07381412358 | AL13: 0.1393446736 | AM13: 0.1288850713 | AN13: 0.1288850713 | AO13: 0.1288850713 | AP13: 0.1288850713
A14: 5 | B14: 0.1692744079 | C14: 0.07887096118 | D14: 0.1197254208 | E14: 0.08906286934 | F14: 0.08906286934 | G14: 0.1774503017 | H14: 0.1804157931 | I14: 0.05701208899 | J14: 0.1469479826 | K14: 0.1355742186 | L14: 0.1355742186 | M14: 0.1355742186 | N14: 0.1355742186 | P14: 1.125351747e-07 | Q14: 1.125351747e-07 | R14: 1.125351747e-07 | S14: 0.08906286934 | T14: 0.08906286934 | U14: 1.125351747e-07 | V14: 1.125351747e-07 | W14: 0 | X14: 0.1469479826 | Y14: 0.1355742186 | Z14: 0.1355742186 | AA14: 0.1355742186 | AB14: 0.1355742186 | AD14: 0.1692744079 | AE14: 0.07887096118 | AF14: 0.1197254208 | AG14: 0.08906286934 | AH14: 0.08906286934 | AI14: 0.1774503017 | AJ14: 0.1804157931 | AK14: 0.05701208899 | AL14: 0.1469479826 | AM14: 0.1355742186 | AN14: 0.1355742186 | AO14: 0.1355742186 | AP14: 0.1355742186
A15: 6 | B15: 0.1340323058 | C15: 0.03944458986 | D15: 0.08584334579 | E15: 0.05657064751 | F15: 0.05657064751 | G15: 0.121155827 | H15: 0.0891392877 | I15: 0.04526569628 | J15: 0.1377769306 | K15: 0.1289331644 | L15: 0.1289331644 | M15: 0.1289331644 | N15: 0.1289331644 | P15: 0 | Q15: 0 | R15: 0 | S15: 0.05657064751 | T15: 0.05657064751 | U15: 0 | V15: 0 | W15: 0 | X15: 0.1377769306 | Y15: 0.1289331644 | Z15: 0.1289331644 | AA15: 0.1289331644 | AB15: 0.1289331644 | AD15: 0.1340323058 | AE15: 0.03944458986 | AF15: 0.08584334579 | AG15: 0.05657064751 | AH15: 0.05657064751 | AI15: 0.121155827 | AJ15: 0.0891392877 | AK15: 0.04526569628 | AL15: 0.1377769306 | AM15: 0.1289331644 | AN15: 0.1289331644 | AO15: 0.1289331644 | AP15: 0.1289331644
A16: 7 | B16: 0.09248538648 | C16: 0.01796459202 | D16: 0.05804525673 | E16: 0.03454202893 | F16: 0.03454202893 | G16: 0.06828714313 | H16: 0.03067555944 | I16: 0.03664425792 | J16: 0.1168676294 | K16: 0.1127612497 | L16: 0.1127612497 | M16: 0.1127612497 | N16: 0.1127612497 | P16: 0 | Q16: 0 | R16: 0 | S16: 0.03454202893 | T16: 0.03454202893 | U16: 0 | V16: 0 | W16: 0 | X16: 0.1168676294 | Y16: 0.1127612497 | Z16: 0.1127612497 | AA16: 0.1127612497 | AB16: 0.1127612497 | AD16: 0.09248538648 | AE16: 0.01796459202 | AF16: 0.05804525673 | AG16: 0.03454202893 | AH16: 0.03454202893 | AI16: 0.06828714313 | AJ16: 0.03067555944 | AK16: 0.03664425792 | AL16: 0.1168676294 | AM16: 0.1127612497 | AN16: 0.1127612497 | AO16: 0.1127612497 | AP16: 0.1127612497
A17: 8 | B17: 0.05611152407 | C17: 0.007534187294 | D17: 0.03732147257 | E17: 0.02040212742 | F17: 0.02040212742 | G17: 0.03197774821 | H17: 0.007262489499 | I17: 0.03010159148 | J17: 0.09054433853 | K17: 0.09157131174 | L17: 0.09157131174 | M17: 0.09157131174 | N17: 0.09157131174 | P17: 0 | Q17: 0 | R17: 0 | S17: 0.02040212742 | T17: 0.02040212742 | U17: 0 | V17: 0 | W17: 0 | X17: 0.09054433853 | Y17: 0.09157131174 | Z17: 0.09157131174 | AA17: 0.09157131174 | AB17: 0.09157131174 | AD17: 0.05611152407 | AE17: 0.007534187294 | AF17: 0.03732147257 | AG17: 0.02040212742 | AH17: 0.02040212742 | AI17: 0.03197774821 | AJ17: 0.007262489499 | AK17: 0.03010159148 | AL17: 0.09054433853 | AM17: 0.09157131174 | AN17: 0.09157131174 | AO17: 0.09157131174 | AP17: 0.09157131174
A18: 9 | B18: 0.03008670504 | C18: 0.002932898643 | D18: 0.02294882174 | E18: 0.01170734461 | F18: 0.01170734461 | G18: 0.01247460722 | H18: 0.001164249869 | I18: 0.02501324858 | J18: 0.06443841314 | K18: 0.06946653882 | L18: 0.06946653882 | M18: 0.06946653882 | N18: 0.06946653882 | P18: 0 | Q18: 0 | R18: 0 | S18: 0.01170734461 | T18: 0.01170734461 | U18: 0 | V18: 0 | W18: 0 | X18: 0.06443841314 | Y18: 0.06946653882 | Z18: 0.06946653882 | AA18: 0.06946653882 | AB18: 0.06946653882 | AD18: 0.03008670504 | AE18: 0.002932898643 | AF18: 0.02294882174 | AG18: 0.01170734461 | AH18: 0.01170734461 | AI18: 0.01247460722 | AJ18: 0.001164249869 | AK18: 0.02501324858 | AL18: 0.06443841314 | AM18: 0.06946653882 | AN18: 0.06946653882 | AO18: 0.06946653882 | AP18: 0.06946653882
A19: 10 | B19: 0.01430148224 | C19: 0.001066139765 | D19: 0.01355165487 | E19: 0.006547685951 | F19: 0.006547685951 | G19: 0.004056800313 | H19: 0.000124187487 | I19: 0.0209805675 | J19: 0.04227631263 | K19: 0.04942488115 | L19: 0.04942488115 | M19: 0.04942488115 | N19: 0.04942488115 | P19: 0 | Q19: 0 | R19: 0 | S19: 0.006547685951 | T19: 0.006547685951 | U19: 0 | V19: 0 | W19: 0 | X19: 0.04227631263 | Y19: 0.04942488115 | Z19: 0.04942488115 | AA19: 0.04942488115 | AB19: 0.04942488115 | AD19: 0.01430148224 | AE19: 0.001066139765 | AF19: 0.01355165487 | AG19: 0.006547685951 | AH19: 0.006547685951 | AI19: 0.004056800313 | AJ19: 0.000124187487 | AK19: 0.0209805675 | AL19: 0.04227631263 | AM19: 0.04942488115 | AN19: 0.04942488115 | AO19: 0.04942488115 | AP19: 0.04942488115
A20: 11 | B20: 0.006038010526 | C20: 0.000363623913 | D20: 0.007710027934 | E20: 0.003577966255 | F20: 0.003577966255 | G20: 0.001099401008 | H20: 8.655167173e-06 | I20: 0.01773608524 | J20: 0.0256290048 | K20: 0.03307372757 | L20: 0.03307372757 | M20: 0.03307372757 | N20: 0.03307372757 | P20: 0 | Q20: 0 | R20: 0 | S20: 0.003577966255 | T20: 0.003577966255 | U20: 0 | V20: 0 | W20: 0 | X20: 0.0256290048 | Y20: 0.03307372757 | Z20: 0.03307372757 | AA20: 0.03307372757 | AB20: 0.03307372757 | AD20: 0.006038010526 | AE20: 0.000363623913 | AF20: 0.007710027934 | AG20: 0.003577966255 | AH20: 0.003577966255 | AI20: 0.001099401008 | AJ20: 8.655167173e-06 | AK20: 0.01773608524 | AL20: 0.0256290048 | AM20: 0.03307372757 | AN20: 0.03307372757 | AO20: 0.03307372757 | AP20: 0.03307372757
A21: 12 | B21: 0.002266817323 | C21: 0.0001168138096 | D21: 0.004237096508 | E21: 0.001914070978 | F21: 0.001914070978 | G21: 0.0002480340901 | H21: 3.869178948e-07 | I21: 0.01509338255 | J21: 0.01437893087 | K21: 0.02085786243 | L21: 0.02085786243 | M21: 0.02085786243 | N21: 0.02085786243 | P21: 0 | Q21: 0 | R21: 0 | S21: 0.001914070978 | T21: 0.001914070978 | U21: 0 | V21: 0 | W21: 0 | X21: 0.01437893087 | Y21: 0.02085786243 | Z21: 0.02085786243 | AA21: 0.02085786243 | AB21: 0.02085786243 | AD21: 0.002266817323 | AE21: 0.0001168138096 | AF21: 0.004237096508 | AG21: 0.001914070978 | AH21: 0.001914070978 | AI21: 0.0002480340901 | AJ21: 3.869178948e-07 | AK21: 0.01509338255 | AL21: 0.01437893087 | AM21: 0.02085786243 | AN21: 0.02085786243 | AO21: 0.02085786243 | AP21: 0.02085786243
A22: 13 | B22: 0.0007572639156 | C22: 3.546040476e-05 | D22: 0.002253952679 | E22: 0.001004041683 | F22: 0.001004041683 | G22: 4.652178459e-05 | H22: 1.089128121e-08 | I22: 0.01291853514 | J22: 0.007473784654 | K22: 0.01241555474 | L22: 0.01241555474 | M22: 0.01241555474 | N22: 0.01241555474 | P22: 0 | Q22: 0 | R22: 0 | S22: 0.001004041683 | T22: 0.001004041683 | U22: 0 | V22: 0 | W22: 0 | X22: 0.007473784654 | Y22: 0.01241555474 | Z22: 0.01241555474 | AA22: 0.01241555474 | AB22: 0.01241555474 | AD22: 0.0007572639156 | AE22: 3.546040476e-05 | AF22: 0.002253952679 | AG22: 0.001004041683 | AH22: 0.001004041683 | AI22: 4.652178459e-05 | AJ22: 1.089128121e-08 | AK22: 0.01291853514 | AL22: 0.007473784654 | AM22: 0.01241555474 | AN22: 0.01241555474 | AO22: 0.01241555474 | AP22: 0.01241555474
A23: 14 | B23: 0.000225189382 | C23: 1.019990356e-05 | D23: 0.001162657307 | E23: 0.0005171307124 | F23: 0.0005171307124 | G23: 7.242744807e-06 | H23: 1.895325008e-10 | I23: 0.01111293546 | J23: 0.003601511201 | K23: 0.006983607371 | L23: 0.006983607371 | M23: 0.006983607371 | N23: 0.006983607371 | P23: 0 | Q23: 0 | R23: 0 | S23: 0.0005171307124 | T23: 0.0005171307124 | U23: 0 | V23: 0 | W23: 0 | X23: 0.003601511201 | Y23: 0.006983607371 | Z23: 0.006983607371 | AA23: 0.006983607371 | AB23: 0.006983607371 | AD23: 0.000225189382 | AE23: 1.019990356e-05 | AF23: 0.001162657307 | AG23: 0.0005171307124 | AH23: 0.0005171307124 | AI23: 7.242744807e-06 | AJ23: 1.895325008e-10 | AK23: 0.01111293546 | AL23: 0.003601511201 | AM23: 0.006983607371 | AN23: 0.006983607371 | AO23: 0.006983607371 | AP23: 0.006983607371
A24: 15 | B24: 5.961934781e-05 | C24: 2.786663482e-06 | D24: 0.0005824284221 | E24: 0.0002618175046 | F24: 0.0002618175046 | G24: 9.343478005e-07 | H24: 2.00250927e-12 | I24: 0.009602483367 | J24: 0.001609783602 | K24: 0.003715433207 | L24: 0.003715433207 | M24: 0.003715433207 | N24: 0.003715433207 | P24: 0 | Q24: 0 | R24: 0 | S24: 0.0002618175046 | T24: 0.0002618175046 | U24: 0 | V24: 0 | W24: 0 | X24: 0.001609783602 | Y24: 0.003715433207 | Z24: 0.003715433207 | AA24: 0.003715433207 | AB24: 0.003715433207 | AD24: 5.961934781e-05 | AE24: 2.786663482e-06 | AF24: 0.0005824284221 | AG24: 0.0002618175046 | AH24: 0.0002618175046 | AI24: 9.343478005e-07 | AJ24: 2.00250927e-12 | AK24: 0.009602483367 | AL24: 0.001609783602 | AM24: 0.003715433207 | AN24: 0.003715433207 | AO24: 0.003715433207 | AP24: 0.003715433207
A25: 16 | B25: 1.405300428e-05 | C25: 7.246260925e-07 | D25: 0.0002837152077 | E25: 0.0001304286068 | F25: 0.0001304286068 | G25: 9.97008176e-08 | H25: 1.265654248e-14 | I25: 0.008330529508 | J25: 0.0006676118305 | K25: 0.001870999751 | L25: 0.001870999751 | M25: =_xlfn.WEIBULL.DIST($A25,M$43,M$44,TRUE)-_xlfn.WEIBULL.DIST($A24,M$43,M$44,TRUE) -> 0.001870999751 | N25: 0.001870999751 | P25: 0 | Q25: 0 | R25: 0 | S25: 0.0001304286068 | T25: 0.0001304286068 | U25: 0 | V25: 0 | W25: 0 | X25: 0.0006676118305 | Y25: 0.001870999751 | Z25: 0.001870999751 | AA25: 0.001870999751 | AB25: 0.001870999751 | AD25: 1.405300428e-05 | AE25: 7.246260925e-07 | AF25: 0.0002837152077 | AG25: 0.0001304286068 | AH25: 0.0001304286068 | AI25: 9.97008176e-08 | AJ25: 1.265654248e-14 | AK25: 0.008330529508 | AL25: 0.0006676118305 | AM25: 0.001870999751 | AN25: 0.001870999751 | AO25: 0.001870999751 | AP25: 0.001870999751
A26: 17 | B26: 2.948845221e-06 | C26: 1.796741499e-07 | D26: 0.0001345448548 | E26: 6.398734546e-05 | F26: 6.398734546e-05 | G26: 8.783855754e-09 | H26: 0 | I26: 0.007253124515 | J26: 0.0002569428981 | K26: 0.0008923420978 | L26: 0.0008923420978 | M26: 0.0008923420978 | N26: 0.0008923420978 | P26: 0 | Q26: 0 | R26: 0 | S26: 6.398734546e-05 | T26: 6.398734546e-05 | U26: 0 | V26: 0 | W26: 0 | X26: 0.0002569428981 | Y26: 0.0008923420978 | Z26: 0.0008923420978 | AA26: 0.0008923420978 | AB26: 0.0008923420978 | AD26: 2.948845221e-06 | AE26: 1.796741499e-07 | AF26: 0.0001345448548 | AG26: 6.398734546e-05 | AH26: 6.398734546e-05 | AI26: 8.783855754e-09 | AJ26: 0 | AK26: 0.007253124515 | AL26: 0.0002569428981 | AM26: 0.0008923420978 | AN26: 0.0008923420978 | AO26: 0.0008923420978 | AP26: 0.0008923420978
A27: 18 | B27: =_xlfn.WEIBULL.DIST($A27,B$43,B$44,TRUE)-_xlfn.WEIBULL.DIST($A26,B$43,B$44,TRUE) -> 5.507583652e-07 | C27: 4.255155417e-08 | D27: 6.217766014e-05 | E27: 3.093778196e-05 | F27: 3.093778196e-05 | G27: 6.377864903e-10 | H27: 0 | I27: 0.006335735698 | J27: 9.178010174e-05 | K27: 0.000403269493 | L27: 0.000403269493 | M27: 0.000403269493 | N27: 0.000403269493 | P27: 0 | Q27: 0 | R27: 0 | S27: 3.093778196e-05 | T27: 3.093778196e-05 | U27: 0 | V27: 0 | W27: 0 | X27: 9.178010174e-05 | Y27: 0.000403269493 | Z27: 0.000403269493 | AA27: 0.000403269493 | AB27: 0.000403269493 | AD27: =_xlfn.WEIBULL.DIST($A27,AD$43,AD$44,TRUE)-_xlfn.WEIBULL.DIST($A26,AD$43,AD$44,TRUE) -> 5.507583652e-07 | AE27: 4.255155417e-08 | AF27: 6.217766014e-05 | AG27: 3.093778196e-05 | AH27: 3.093778196e-05 | AI27: 6.377864903e-10 | AJ27: 0 | AK27: 0.006335735698 | AL27: 9.178010174e-05 | AM27: 0.000403269493 | AN27: 0.000403269493 | AO27: 0.000403269493 | AP27: 0.000403269493
A28: 19 | B28: 9.153738556e-08 | C28: 9.639365417e-09 | D28: 2.802696411e-05 | E28: 1.475191149e-05 | F28: 1.475191149e-05 | G28: 3.809597082e-11 | H28: 0 | I28: 0.005550926386 | J28: 3.042803583e-05 | K28: 0.0001727599356 | L28: 0.0001727599356 | M28: 0.0001727599356 | N28: 0.0001727599356 | P28: 0 | Q28: 0 | R28: 0 | S28: 1.475191149e-05 | T28: 1.475191149e-05 | U28: 0 | V28: 0 | W28: 0 | X28: 3.042803583e-05 | Y28: 0.0001727599356 | Z28: 0.0001727599356 | AA28: 0.0001727599356 | AB28: 0.0001727599356 | AD28: 9.153738556e-08 | AE28: 9.639365417e-09 | AF28: 2.802696411e-05 | AG28: 1.475191149e-05 | AH28: 1.475191149e-05 | AI28: 3.809597082e-11 | AJ28: 0 | AK28: 0.005550926386 | AL28: 3.042803583e-05 | AM28: 0.0001727599356 | AN28: 0.0001727599356 | AO28: 0.0001727599356 | AP28: 0.0001727599356
A29: 20 | B29: 1.353471679e-08 | C29: 2.091557039e-09 | D29: 1.233231794e-05 | E29: 6.941145942e-06 | F29: 6.941145942e-06 | G29: 1.86850535e-12 | H29: 0 | I29: 0.004876683277 | J29: 9.362783487e-06 | K29: 7.018165562e-05 | L29: 7.018165562e-05 | M29: 7.018165562e-05 | N29: 7.018165562e-05 | P29: 0 | Q29: 0 | R29: 0 | S29: 6.941145942e-06 | T29: 6.941145942e-06 | U29: 0 | V29: 0 | W29: 0 | X29: 9.362783487e-06 | Y29: 7.018165562e-05 | Z29: 7.018165562e-05 | AA29: 7.018165562e-05 | AB29: 7.018165562e-05 | AD29: 1.353471679e-08 | AE29: 2.091557039e-09 | AF29: 1.233231794e-05 | AG29: 6.941145942e-06 | AH29: 6.941145942e-06 | AI29: 1.86850535e-12 | AJ29: 0 | AK29: 0.004876683277 | AL29: 9.362783487e-06 | AM29: 7.018165562e-05 | AN29: 7.018165562e-05 | AO29: 7.018165562e-05 | AP29: 7.018165562e-05
A30: 21 | B30: 1.779860259e-09 | C30: 4.35224301e-10 | D30: 5.301026274e-06 | E30: 3.224570044e-06 | F30: 3.224570044e-06 | G30: 7.516209877e-14 | H30: 0 | I30: 0.00429519005 | J30: 2.673728256e-06 | K30: 2.704355913e-05 | L30: 2.704355913e-05 | M30: 2.704355913e-05 | N30: 2.704355913e-05 | P30: 0 | Q30: 0 | R30: 0 | S30: 3.224570044e-06 | T30: 3.224570044e-06 | U30: 0 | V30: 0 | W30: 0 | X30: 2.673728256e-06 | Y30: 2.704355913e-05 | Z30: 2.704355913e-05 | AA30: 2.704355913e-05 | AB30: 2.704355913e-05 | AD30: 1.779860259e-09 | AE30: 4.35224301e-10 | AF30: 5.301026274e-06 | AG30: 3.224570044e-06 | AH30: 3.224570044e-06 | AI30: 7.516209877e-14 | AJ30: 0 | AK30: 0.00429519005 | AL30: 2.673728256e-06 | AM30: 2.704355913e-05 | AN30: 2.704355913e-05 | AO30: 2.704355913e-05 | AP30: 2.704355913e-05
A31: 22 | B31: 2.081003148e-10 | C31: 8.694978071e-11 | D31: 2.227477297e-06 | E31: 1.479729512e-06 | F31: 1.479729512e-06 | G31: 2.442490654e-15 | H31: 0 | I31: 0.003791914448 | J31: 7.085550384e-07 | K31: 9.887176782e-06 | L31: 9.887176782e-06 | M31: 9.887176782e-06 | N31: 9.887176782e-06 | P31: 0 | Q31: 0 | R31: 0 | S31: 1.479729512e-06 | T31: 1.479729512e-06 | U31: 0 | V31: 0 | W31: 0 | X31: 7.085550384e-07 | Y31: 9.887176782e-06 | Z31: 9.887176782e-06 | AA31: 9.887176782e-06 | AB31: 9.887176782e-06 | AD31: 2.081003148e-10 | AE31: 8.694978071e-11 | AF31: 2.227477297e-06 | AG31: 1.479729512e-06 | AH31: 1.479729512e-06 | AI31: 2.442490654e-15 | AJ31: 0 | AK31: 0.003791914448 | AL31: 7.085550384e-07 | AM31: 9.887176782e-06 | AN31: 9.887176782e-06 | AO31: 9.887176782e-06 | AP31: 9.887176782e-06
A32: 23 | B32: 2.162559021e-11 | C32: 1.669508976e-11 | D32: 9.155287429e-07 | E32: 6.710518075e-07 | F32: 6.710518075e-07 | G32: 0 | H32: 0 | I32: 0.003354919513 | J32: 1.742316341e-07 | K32: 3.43038312e-06 | L32: 3.43038312e-06 | M32: 3.43038312e-06 | N32: 3.43038312e-06 | P32: 0 | Q32: 0 | R32: 0 | S32: 6.710518075e-07 | T32: 6.710518075e-07 | U32: 0 | V32: 0 | W32: 0 | X32: 1.742316341e-07 | Y32: 3.43038312e-06 | Z32: 3.43038312e-06 | AA32: 3.43038312e-06 | AB32: 3.43038312e-06 | AD32: 2.162559021e-11 | AE32: 1.669508976e-11 | AF32: 9.155287429e-07 | AG32: 6.710518075e-07 | AH32: 6.710518075e-07 | AI32: 0 | AJ32: 0 | AK32: 0.003354919513 | AL32: 1.742316341e-07 | AM32: 3.43038312e-06 | AN32: 3.43038312e-06 | AO32: 3.43038312e-06 | AP32: 3.43038312e-06
A33: 24 | B33: 1.99673611e-12 | C33: 3.083866496e-12 | D33: 3.682835346e-07 | E33: 3.008638338e-07 | F33: 3.008638338e-07 | G33: 0 | H33: 0 | I33: 0.002974337619 | J33: 3.974871421e-08 | K33: 1.129681949e-06 | L33: 1.129681949e-06 | M33: 1.129681949e-06 | N33: 1.129681949e-06 | P33: 0 | Q33: 0 | R33: 0 | S33: 3.008638338e-07 | T33: 3.008638338e-07 | U33: 0 | V33: 0 | W33: 0 | X33: 3.974871421e-08 | Y33: 1.129681949e-06 | Z33: 1.129681949e-06 | AA33: 1.129681949e-06 | AB33: 1.129681949e-06 | AD33: 1.99673611e-12 | AE33: 3.083866496e-12 | AF33: 3.682835346e-07 | AG33: 3.008638338e-07 | AH33: 3.008638338e-07 | AI33: 0 | AJ33: 0 | AK33: 0.002974337619 | AL33: 3.974871421e-08 | AM33: 1.129681949e-06 | AN33: 1.129681949e-06 | AO33: 1.129681949e-06 | AP33: 1.129681949e-06
A34: 25 | B34: 1.637578961e-13 | C34: 5.484501742e-13 | D34: 1.450681592e-07 | E34: 1.334095612e-07 | F34: 1.334095612e-07 | G34: 0 | H34: 0 | I34: 0.002641964448 | J34: 8.412045838e-09 | K34: 3.531702368e-07 | L34: 3.531702368e-07 | M34: 3.531702368e-07 | N34: 3.531702368e-07 | P34: 0 | Q34: 0 | R34: 0 | S34: 1.334095612e-07 | T34: 1.334095612e-07 | U34: 0 | V34: 0 | W34: 0 | X34: 8.412045838e-09 | Y34: 3.531702368e-07 | Z34: 3.531702368e-07 | AA34: 3.531702368e-07 | AB34: 3.531702368e-07 | AD34: 1.637578961e-13 | AE34: 5.484501742e-13 | AF34: 1.450681592e-07 | AG34: 1.334095612e-07 | AH34: 1.334095612e-07 | AI34: 0 | AJ34: 0 | AK34: 0.002641964448 | AL34: 8.412045838e-09 | AM34: 3.531702368e-07 | AN34: 3.531702368e-07 | AO34: 3.531702368e-07 | AP34: 3.531702368e-07
A35: 26 | B35: 1.199040867e-14 | C35: 9.403589019e-14 | D35: 5.598259545e-08 | E35: 5.852713969e-08 | F35: 5.852713969e-08 | G35: 0 | H35: 0 | I35: 0.00235094246 | J35: 1.651193848e-09 | K35: 1.048307865e-07 | L35: 1.048307865e-07 | M35: 1.048307865e-07 | N35: 1.048307865e-07 | P35: 0 | Q35: 0 | R35: 0 | S35: 5.852713969e-08 | T35: 5.852713969e-08 | U35: 0 | V35: 0 | W35: 0 | X35: 1.651193848e-09 | Y35: 1.048307865e-07 | Z35: 1.048307865e-07 | AA35: 1.048307865e-07 | AB35: 1.048307865e-07 | AD35: 1.199040867e-14 | AE35: 9.403589019e-14 | AF35: 5.598259545e-08 | AG35: 5.852713969e-08 | AH35: 5.852713969e-08 | AI35: 0 | AJ35: 0 | AK35: 0.00235094246 | AL35: 1.651193848e-09 | AM35: 1.048307865e-07 | AN35: 1.048307865e-07 | AO35: 1.048307865e-07 | AP35: 1.048307865e-07
A36: 27 | B36: 0 | C36: 1.554312234e-14 | D36: 2.117494946e-08 | E36: 2.54109167e-08 | F36: 2.54109167e-08 | G36: 0 | H36: 0 | I36: 0.002095511915 | J36: 3.005692362e-10 | K36: 2.95478334e-08 | L36: 2.95478334e-08 | M36: 2.95478334e-08 | N36: 2.95478334e-08 | P36: 0 | Q36: 0 | R36: 0 | S36: 2.54109167e-08 | T36: 2.54109167e-08 | U36: 0 | V36: 0 | W36: 0 | X36: 3.005692362e-10 | Y36: 2.95478334e-08 | Z36: 2.95478334e-08 | AA36: 2.95478334e-08 | AB36: 2.95478334e-08 | AD36: 0 | AE36: 1.554312234e-14 | AF36: 2.117494946e-08 | AG36: 2.54109167e-08 | AH36: 2.54109167e-08 | AI36: 0 | AJ36: 0 | AK36: 0.002095511915 | AL36: 3.005692362e-10 | AM36: 2.95478334e-08 | AN36: 2.95478334e-08 | AO36: 2.95478334e-08 | AP36: 2.95478334e-08
A37: 28 | B37: 0 | C37: 2.442490654e-15 | D37: 7.853525386e-09 | E37: 1.092208557e-08 | F37: 1.092208557e-08 | G37: 0 | H37: 0 | I37: 0.001870813428 | J37: 5.073075293e-11 | K37: 7.909398914e-09 | L37: 7.909398914e-09 | M37: 7.909398914e-09 | N37: 7.909398914e-09 | P37: 0 | Q37: 0 | R37: 0 | S37: 1.092208557e-08 | T37: 1.092208557e-08 | U37: 0 | V37: 0 | W37: 0 | X37: 5.073075293e-11 | Y37: 7.909398914e-09 | Z37: 7.909398914e-09 | AA37: 7.909398914e-09 | AB37: 7.909398914e-09 | AD37: 0 | AE37: 2.442490654e-15 | AF37: 7.853525386e-09 | AG37: 1.092208557e-08 | AH37: 1.092208557e-08 | AI37: 0 | AJ37: 0 | AK37: 0.001870813428 | AL37: 5.073075293e-11 | AM37: 7.909398914e-09 | AN37: 7.909398914e-09 | AO37: 7.909398914e-09 | AP37: 7.909398914e-09
A38: 29 | B38: 0 | C38: 0 | D38: 2.857280523e-09 | E38: 4.648724738e-09 | F38: 4.648724738e-09 | G38: 0 | H38: 0 | I38: 0.001672730213 | J38: 7.937872581e-12 | K38: 2.010879574e-09 | L38: 2.010879574e-09 | M38: 2.010879574e-09 | N38: 2.010879574e-09 | P38: 0 | Q38: 0 | R38: 0 | S38: 4.648724738e-09 | T38: 4.648724738e-09 | U38: 0 | V38: 0 | W38: 0 | X38: 7.937872581e-12 | Y38: 2.010879574e-09 | Z38: 2.010879574e-09 | AA38: 2.010879574e-09 | AB38: 2.010879574e-09 | AD38: 0 | AE38: 0 | AF38: 2.857280523e-09 | AG38: 4.648724738e-09 | AH38: 4.648724738e-09 | AI38: 0 | AJ38: 0 | AK38: 0.001672730213 | AL38: 7.937872581e-12 | AM38: 2.010879574e-09 | AN38: 2.010879574e-09 | AO38: 2.010879574e-09 | AP38: 2.010879574e-09
A39: 30 | B39: 0 | C39: 0 | D39: 1.020116547e-09 | E39: 1.9598283e-09 | F39: 1.9598283e-09 | G39: 0 | H39: 0 | I39: 0.001497761167 | J39: 1.151190254e-12 | K39: 4.856153257e-10 | L39: 4.856153257e-10 | M39: 4.856153257e-10 | N39: 4.856153257e-10 | P39: 0 | Q39: =_xlfn.WEIBULL.DIST($A39,Q$43,Q$44,TRUE)-_xlfn.WEIBULL.DIST($A38,Q$43,Q$44,TRUE) -> 0 | R39: 0 | S39: 1.9598283e-09 | T39: 1.9598283e-09 | U39: 0 | V39: 0 | W39: 0 | X39: 1.151190254e-12 | Y39: 4.856153257e-10 | Z39: 4.856153257e-10 | AA39: 4.856153257e-10 | AB39: 4.856153257e-10 | AD39: 0 | AE39: 0 | AF39: 1.020116547e-09 | AG39: 1.9598283e-09 | AH39: 1.9598283e-09 | AI39: 0 | AJ39: 0 | AK39: 0.001497761167 | AL39: 1.151190254e-12 | AM39: 4.856153257e-10 | AN39: 4.856153257e-10 | AO39: 4.856153257e-10 | AP39: 4.856153257e-10
A40: Total | B40: =SUM(B10:B39) -> 1 | C40: 1 | D40: 0.9999999995 | E40: 0.9999999986 | F40: 0.9999999986 | G40: 1 | H40: 1 | I40: 0.9857004767 | J40: 1 | K40: 0.9999999999 | L40: 0.9999999999 | M40: =SUM(M10:M39) -> 0.9999999999 | N40: 0.9999999999 | P40: =SUM(P10:P39) -> 1 | Q40: =SUM(Q10:Q39) -> 1 | R40: =SUM(R10:R39) -> 1 | S40: =SUM(S10:S39) -> 0.9999999986 | T40: =SUM(T10:T39) -> 0.9999999986 | U40: 1 | V40: 1 | W40: 1 | X40: 1 | Y40: 0.9999999999 | Z40: 0.9999999999 | AA40: =SUM(AA10:AA39) -> 0.9999999999 | AB40: =SUM(AB10:AB39) -> 0.9999999999 | AD40: =SUM(AD10:AD39) -> 1 | AE40: =SUM(AE10:AE39) -> 1 | AF40: 0.9999999995 | AG40: 0.9999999986 | AH40: 0.9999999986 | AI40: 1 | AJ40: 1 | AK40: 0.9857004767 | AL40: 1 | AM40: 0.9999999999 | AN40: 0.9999999999 | AO40: =SUM(AO10:AO39) -> 0.9999999999 | AP40: =SUM(AP10:AP39) -> 0.9999999999
A42: UNU-Key Product | B42: 302 | C42: 303 | D42: 307 | E42: 301 | F42: 301 | G42: 308 | H42: 309 | I42: 306 | J42: 408 | K42: 407 | L42: 407 | M42: 407 | N42: 407 | P42: 302 | Q42: 303 | R42: 307 | S42: 301 | T42: 301 | U42: 308 | V42: 309 | W42: 306 | X42: 408 | Y42: 407 | Z42: 407 | AA42: 407 | AB42: 407 | AD42: 302 | AE42: 303 | AF42: 307 | AG42: 301 | AH42: 301 | AI42: 308 | AJ42: 309 | AK42: 306 | AL42: 408 | AM42: 407 | AN42: 407 | AO42: 407 | AP42: 407
A43: α (shape) | B43: 2.1 | C43: 1.5 | D43: 1.5 | E43: 1.3 | F43: 1.3 | G43: 2.2 | H43: 2.5 | I43: 0.7 | J43: 2.1 | K43: 2 | L43: 2 | M43: 2 | N43: 2 | P43: 4 | Q43: 4 | R43: 4 | S43: 1.3 | T43: 1.3 | U43: 4 | V43: 4 | W43: 4 | X43: 2.1 | Y43: 2 | Z43: 2 | AA43: 2 | AB43: 2 | AD43: 2.1 | AE43: 1.5 | AF43: 1.5 | AG43: 1.3 | AH43: 1.3 | AI43: 2.2 | AJ43: 2.5 | AK43: 0.7 | AL43: 2.1 | AM43: 2 | AN43: 2 | AO43: 2 | AP43: 2
A44: β (scale) - Secondary Use | B44: =B45*Behavior!$D$4 -> 4.8 | C44: =C45*Behavior!$D$4 -> 2.6 | D44: =D45*Behavior!$D$4 -> 3.9 | E44: =E45*Behavior!$D$4 -> 2.95 | F44: =F45*Behavior!$D$4 -> 2.95 | G44: =G45*Behavior!$D$4 -> 4.25 | H44: =H45*Behavior!$D$4 -> 3.75 | I44: =I45*Behavior!$D$4 -> 3.8 | J44: =J45*Behavior!$D$4 -> 6 | K44: =K45*Behavior!$D$4 -> 6.3 | L44: =L45*Behavior!$D$4 -> 6.3 | M44: =M45*Behavior!$D$4 -> 6.3 | N44: =N45*Behavior!$D$4 -> 6.3 | P44: =P45*Behavior!$D$4 -> 2 | Q44: =Q45*Behavior!$D$4 -> 2 | R44: =R45*Behavior!$D$4 -> 2 | S44: =S45*Behavior!$D$4 -> 2.95 | T44: =T45*Behavior!$D$4 -> 2.95 | U44: =U45*Behavior!$D$4 -> 2 | V44: =V45*Behavior!$D$4 -> 2 | W44: =W45*Behavior!$D$4 -> 1.5 | X44: =X45*Behavior!$D$4 -> 6 | Y44: =Y45*Behavior!$D$4 -> 6.3 | Z44: =Z45*Behavior!$D$4 -> 6.3 | AA44: =AA45*Behavior!$D$4 -> 6.3 | AB44: =AB45*Behavior!$D$4 -> 6.3 | AD44: =AD45*Behavior!$D$4 -> 4.8 | AE44: =AE45*Behavior!$D$4 -> 2.6 | AF44: =AF45*Behavior!$D$4 -> 3.9 | AG44: =AG45*Behavior!$D$4 -> 2.95 | AH44: =AH45*Behavior!$D$4 -> 2.95 | AI44: =AI45*Behavior!$D$4 -> 4.25 | AJ44: =AJ45*Behavior!$D$4 -> 3.75 | AK44: =AK45*Behavior!$D$4 -> 3.8 | AL44: =AL45*Behavior!$D$4 -> 6 | AM44: =AM45*Behavior!$D$4 -> 6.3 | AN44: =AN45*Behavior!$D$4 -> 6.3 | AO44: =AO45*Behavior!$D$4 -> 6.3 | AP44: =AP45*Behavior!$D$4 -> 6.3
A45: β (scale) - Primary Use | B45: 9.6 | C45: 5.2 | D45: 7.8 | E45: 5.9 | F45: 5.9 | G45: 8.5 | H45: 7.5 | I45: 7.6 | J45: 12 | K45: 12.6 | L45: 12.6 | M45: 12.6 | N45: 12.6 | P45: 4 | Q45: 4 | R45: 4 | S45: 5.9 | T45: 5.9 | U45: 4 | V45: 4 | W45: 3 | X45: 12 | Y45: 12.6 | Z45: 12.6 | AA45: 12.6 | AB45: 12.6 | AD45: 9.6 | AE45: 5.2 | AF45: 7.8 | AG45: 5.9 | AH45: 5.9 | AI45: 8.5 | AJ45: 7.5 | AK45: 7.6 | AL45: 12 | AM45: 12.6 | AN45: 12.6 | AO45: 12.6 | AP45: 12.6

Sheet FirstUse_Life (hidden)
A1: Home
A2: Description: | B2: Annual amount of e-waste by product type, consumer group (metric tons) | AM2: =SUMIF(B:B,"Mice",AM:AM) -> 1413.330101
A3: Source: | B3: Calculated values
A4: Last Modified: | B4: 2015-08-13 | E4: Disposal_Year
A5: Market | B5: Product | C5: Purchase_Year | D5: Purchased_Weight | E5: 1980 | F5: =+E5+1 -> 1981 | G5: 1982 | H5: 1983 | I5: 1984 | J5: 1985 | K5: 1986 | L5: 1987 | M5: 1988 | N5: 1989 | O5: 1990 | P5: 1991 | Q5: 1992 | R5: 1993 | S5: 1994 | T5: 1995 | U5: 1996 | V5: 1997 | W5: 1998 | X5: 1999 | Y5: 2000 | Z5: 2001 | AA5: 2002 | AB5: 2003 | AC5: 2004 | AD5: 2005 | AE5: 2006 | AF5: 2007 | AG5: 2008 | AH5: 2009 | AI5: 2010 | AJ5: 2011 | AK5: 2012 | AL5: 2013 | AM5: 2014 | AN5: 2015 | AO5: 2016 | AP5: 2017 | AQ5: 2018 | AR5: 2019 | AS5: 2020 | AT5: 2021 | AU5: 2022 | AV5: 2023 | AW5: 2024 | AX5: 2025 | AY5: 2026 | AZ5: 2027 | BA5: 2028 | BB5: 2029 | BC5: 2030 | BD5: 2031 | BE5: 2032 | BF5: 2033 | BG5: 2034 | BH5: 2035 | BI5: 2036 | BJ5: 2037 | BK5: 2038 | BL5: 2039 | BM5: 2040 | BN5: 2041 | BO5: =+BN5+1 -> 2042 | BP5: 2043 | BQ5: 2044 | BR5: 2045 | BS5: 2046 | BT5: 2047 | BU5: 2048 | BV5: 2049 | BW5: 2050 | BX5: 2051 | BY5: 2052 | BZ5: 2053 | CA5: 2054 | CB5: 2055 | CC5: 2056 | CD5: 2057 | CE5: 2058 | CF5: 2059 | CG5: 2060 | CH5: 2061 | CI5: 2062 | CJ5: 2063 | CK5: 2064 | CL5: 2065 | CM5: 2066 | CN5: 2067 | CO5: 2068 | CP5: 2069 | CQ5: 2070 | CR5: 2071 | CS5: 2072 | CT5: 2073 | CU5: 2074 | CV5: 2075 | CW5: 2076 | CX5: 2077 | CY5: 2078 | CZ5: 2079 | DA5: 2080
A6: COM | B6: Cell Phones | C6: 1980 | D6: =INDEX(RSWC,MATCH($B6&$C6,RegSalesWeight_Consumer!$L$8:$L$813,0),MATCH($A6,market_group,0)) -> 0 | E6: =IFERROR($D6*INDEX(IF($A6="COM",COM_LT,IF($A6="EDU",EDU_LT,IF($A6="INT",INT_LT,RES_LT))),MATCH((E$5-$C6),Lifetimes!$A$10:$A$39,0),MATCH($B6,Lifetimes!$P$9:$AB$9,0)),"") ->  | F6: =IFERROR($D6*INDEX(IF($A6="COM",COM_LT,IF($A6="EDU",EDU_LT,IF($A6="INT",INT_LT,RES_LT))),MATCH((F$5-$C6),Lifetimes!$A$10:$A$39,0),MATCH($B6,Lifetimes!$P$9:$AB$9,0)),"") -> 0 | G6: =IFERROR($D6*INDEX(IF($A6="COM",COM_LT,IF($A6="EDU",EDU_LT,IF($A6="INT",INT_LT,RES_LT))),MATCH((G$5-$C6),Lifetimes!$A$10:$A$39,0),MATCH($B6,Lifetimes!$P$9:$AB$9,0)),"") -> 0 | H6: =IFERROR($D6*INDEX(IF($A6="COM",COM_LT,IF($A6="EDU",EDU_LT,IF($A6="INT",INT_LT,RES_LT))),MATCH((H$5-$C6),Lifetimes!$A$10:$A$39,0),MATCH($B6,Lifetimes!$P$9:$AB$9,0)),"") -> 0 | I6: =IFERROR($D6*INDEX(IF($A6="COM",COM_LT,IF($A6="EDU",EDU_LT,IF($A6="INT",INT_LT,RES_LT))),MATCH((I$5-$C6),Lifetimes!$A$10:$A$39,0),MATCH($B6,Lifetimes!$P$9:$AB$9,0)),"") -> 0 | J6: =IFERROR($D6*INDEX(IF($A6="COM",COM_LT,IF($A6="EDU",EDU_LT,IF($A6="INT",INT_LT,RES_LT))),MATCH((J$5-$C6),Lifetimes!$A$10:$A$39,0),MATCH($B6,Lifetimes!$P$9:$AB$9,0)),"") -> 0 | K6: =IFERROR($D6*INDEX(IF($A6="COM",COM_LT,IF($A6="EDU",EDU_LT,IF($A6="INT",INT_LT,RES_LT))),MATCH((K$5-$C6),Lifetimes!$A$10:$A$39,0),MATCH($B6,Lifetimes!$P$9:$AB$9,0)),"") -> 0 | L6: =IFERROR($D6*INDEX(IF($A6="COM",COM_LT,IF($A6="EDU",EDU_LT,IF($A6="INT",INT_LT,RES_LT))),MATCH((L$5-$C6),Lifetimes!$A$10:$A$39,0),MATCH($B6,Lifetimes!$P$9:$AB$9,0)),"") -> 0 | M6: =IFERROR($D6*INDEX(IF($A6="COM",COM_LT,IF($A6="EDU",EDU_LT,IF($A6="INT",INT_LT,RES_LT))),MATCH((M$5-$C6),Lifetimes!$A$10:$A$39,0),MATCH($B6,Lifetimes!$P$9:$AB$9,0)),"") -> 0 | N6: =IFERROR($D6*INDEX(IF($A6="COM",COM_LT,IF($A6="EDU",EDU_LT,IF($A6="INT",INT_LT,RES_LT))),MATCH((N$5-$C6),Lifetimes!$A$10:$A$39,0),MATCH($B6,Lifetimes!$P$9:$AB$9,0)),"") -> 0 | O6: =IFERROR($D6*INDEX(IF($A6="COM",COM_LT,IF($A6="EDU",EDU_LT,IF($A6="INT",INT_LT,RES_LT))),MATCH((O$5-$C6),Lifetimes!$A$10:$A$39,0),MATCH($B6,Lifetimes!$P$9:$AB$9,0)),"") -> 0 | P6: =IFERROR($D6*INDEX(IF($A6="COM",COM_LT,IF($A6="EDU",EDU_LT,IF($A6="INT",INT_LT,RES_LT))),MATCH((P$5-$C6),Lifetimes!$A$10:$A$39,0),MATCH($B6,Lifetimes!$P$9:$AB$9,0)),"") -> 0 | Q6: =IFERROR($D6*INDEX(IF($A6="COM",COM_LT,IF($A6="EDU",EDU_LT,IF($A6="INT",INT_LT,RES_LT))),MATCH((Q$5-$C6),Lifetimes!$A$10:$A$39,0),MATCH($B6,Lifetimes!$P$9:$AB$9,0)),"") -> 0 | R6: =IFERROR($D6*INDEX(IF($A6="COM",COM_LT,IF($A6="EDU",EDU_LT,IF($A6="INT",INT_LT,RES_LT))),MATCH((R$5-$C6),Lifetimes!$A$10:$A$39,0),MATCH($B6,Lifetimes!$P$9:$AB$9,0)),"") -> 0 | S6: =IFERROR($D6*INDEX(IF($A6="COM",COM_LT,IF($A6="EDU",EDU_LT,IF($A6="INT",INT_LT,RES_LT))),MATCH((S$5-$C6),Lifetimes!$A$10:$A$39,0),MATCH($B6,Lifetimes!$P$9:$AB$9,0)),"") -> 0 | T6: =IFERROR($D6*INDEX(IF($A6="COM",COM_LT,IF($A6="EDU",EDU_LT,IF($A6="INT",INT_LT,RES_LT))),MATCH((T$5-$C6),Lifetimes!$A$10:$A$39,0),MATCH($B6,Lifetimes!$P$9:$AB$9,0)),"") -> 0 | U6: =IFERROR($D6*INDEX(IF($A6="COM",COM_LT,IF($A6="EDU",EDU_LT,IF($A6="INT",INT_LT,RES_LT))),MATCH((U$5-$C6),Lifetimes!$A$10:$A$39,0),MATCH($B6,Lifetimes!$P$9:$AB$9,0)),"") -> 0 | V6: =IFERROR($D6*INDEX(IF($A6="COM",COM_LT,IF($A6="EDU",EDU_LT,IF($A6="INT",INT_LT,RES_LT))),MATCH((V$5-$C6),Lifetimes!$A$10:$A$39,0),MATCH($B6,Lifetimes!$P$9:$AB$9,0)),"") -> 0 | W6: =IFERROR($D6*INDEX(IF($A6="COM",COM_LT,IF($A6="EDU",EDU_LT,IF($A6="INT",INT_LT,RES_LT))),MATCH((W$5-$C6),Lifetimes!$A$10:$A$39,0),MATCH($B6,Lifetimes!$P$9:$AB$9,0)),"") -> 0 | X6: =IFERROR($D6*INDEX(IF($A6="COM",COM_LT,IF($A6="EDU",EDU_LT,IF($A6="INT",INT_LT,RES_LT))),MATCH((X$5-$C6),Lifetimes!$A$10:$A$39,0),MATCH($B6,Lifetimes!$P$9:$AB$9,0)),"") -> 0 | Y6: =IFERROR($D6*INDEX(IF($A6="COM",COM_LT,IF($A6="EDU",EDU_LT,IF($A6="INT",INT_LT,RES_LT))),MATCH((Y$5-$C6),Lifetimes!$A$10:$A$39,0),MATCH($B6,Lifetimes!$P$9:$AB$9,0)),"") -> 0 | Z6: =IFERROR($D6*INDEX(IF($A6="COM",COM_LT,IF($A6="EDU",EDU_LT,IF($A6="INT",INT_LT,RES_LT))),MATCH((Z$5-$C6),Lifetimes!$A$10:$A$39,0),MATCH($B6,Lifetimes!$P$9:$AB$9,0)),"") -> 0 | AA6: =IFERROR($D6*INDEX(IF($A6="COM",COM_LT,IF($A6="EDU",EDU_LT,IF($A6="INT",INT_LT,RES_LT))),MATCH((AA$5-$C6),Lifetimes!$A$10:$A$39,0),MATCH($B6,Lifetimes!$P$9:$AB$9,0)),"") -> 0 | AB6: =IFERROR($D6*INDEX(IF($A6="COM",COM_LT,IF($A6="EDU",EDU_LT,IF($A6="INT",INT_LT,RES_LT))),MATCH((AB$5-$C6),Lifetimes!$A$10:$A$39,0),MATCH($B6,Lifetimes!$P$9:$AB$9,0)),"") -> 0 | AC6: =IFERROR($D6*INDEX(IF($A6="COM",COM_LT,IF($A6="EDU",EDU_LT,IF($A6="INT",INT_LT,RES_LT))),MATCH((AC$5-$C6),Lifetimes!$A$10:$A$39,0),MATCH($B6,Lifetimes!$P$9:$AB$9,0)),"") -> 0 | AD6: =IFERROR($D6*INDEX(IF($A6="COM",COM_LT,IF($A6="EDU",EDU_LT,IF($A6="INT",INT_LT,RES_LT))),MATCH((AD$5-$C6),Lifetimes!$A$10:$A$39,0),MATCH($B6,Lifetimes!$P$9:$AB$9,0)),"") -> 0 | AE6: =IFERROR($D6*INDEX(IF($A6="COM",COM_LT,IF($A6="EDU",EDU_LT,IF($A6="INT",INT_LT,RES_LT))),MATCH((AE$5-$C6),Lifetimes!$A$10:$A$39,0),MATCH($B6,Lifetimes!$P$9:$AB$9,0)),"") -> 0 | AF6: =IFERROR($D6*INDEX(IF($A6="COM",COM_LT,IF($A6="EDU",EDU_LT,IF($A6="INT",INT_LT,RES_LT))),MATCH((AF$5-$C6),Lifetimes!$A$10:$A$39,0),MATCH($B6,Lifetimes!$P$9:$AB$9,0)),"") -> 0 | AG6: =IFERROR($D6*INDEX(IF($A6="COM",COM_LT,IF($A6="EDU",EDU_LT,IF($A6="INT",INT_LT,RES_LT))),MATCH((AG$5-$C6),Lifetimes!$A$10:$A$39,0),MATCH($B6,Lifetimes!$P$9:$AB$9,0)),"") -> 0 | AH6: =IFERROR($D6*INDEX(IF($A6="COM",COM_LT,IF($A6="EDU",EDU_LT,IF($A6="INT",INT_LT,RES_LT))),MATCH((AH$5-$C6),Lifetimes!$A$10:$A$39,0),MATCH($B6,Lifetimes!$P$9:$AB$9,0)),"") -> 0 | AI6: =IFERROR($D6*INDEX(IF($A6="COM",COM_LT,IF($A6="EDU",EDU_LT,IF($A6="INT",INT_LT,RES_LT))),MATCH((AI$5-$C6),Lifetimes!$A$10:$A$39,0),MATCH($B6,Lifetimes!$P$9:$AB$9,0)),"") -> 0 | AJ6: =IFERROR($D6*INDEX(IF($A6="COM",COM_LT,IF($A6="EDU",EDU_LT,IF($A6="INT",INT_LT,RES_LT))),MATCH((AJ$5-$C6),Lifetimes!$A$10:$A$39,0),MATCH($B6,Lifetimes!$P$9:$AB$9,0)),"") ->  | AK6: =IFERROR($D6*INDEX(IF($A6="COM",COM_LT,IF($A6="EDU",EDU_LT,IF($A6="INT",INT_LT,RES_LT))),MATCH((AK$5-$C6),Lifetimes!$A$10:$A$39,0),MATCH($B6,Lifetimes!$P$9:$AB$9,0)),"") ->  | AL6: =IFERROR($D6*INDEX(IF($A6="COM",COM_LT,IF($A6="EDU",EDU_LT,IF($A6="INT",INT_LT,RES_LT))),MATCH((AL$5-$C6),Lifetimes!$A$10:$A$39,0),MATCH($B6,Lifetimes!$P$9:$AB$9,0)),"") ->  | AM6: =IFERROR($D6*INDEX(IF($A6="COM",COM_LT,IF($A6="EDU",EDU_LT,IF($A6="INT",INT_LT,RES_LT))),MATCH((AM$5-$C6),Lifetimes!$A$10:$A$39,0),MATCH($B6,Lifetimes!$P$9:$AB$9,0)),"") ->  | AN6: =IFERROR($D6*INDEX(IF($A6="COM",COM_LT,IF($A6="EDU",EDU_LT,IF($A6="INT",INT_LT,RES_LT))),MATCH((AN$5-$C6),Lifetimes!$A$10:$A$39,0),MATCH($B6,Lifetimes!$P$9:$AB$9,0)),"") ->  | AO6: =IFERROR($D6*INDEX(IF($A6="COM",COM_LT,IF($A6="EDU",EDU_LT,IF($A6="INT",INT_LT,RES_LT))),MATCH((AO$5-$C6),Lifetimes!$A$10:$A$39,0),MATCH($B6,Lifetimes!$P$9:$AB$9,0)),"") ->  | AP6: =IFERROR($D6*INDEX(IF($A6="COM",COM_LT,IF($A6="EDU",EDU_LT,IF($A6="INT",INT_LT,RES_LT))),MATCH((AP$5-$C6),Lifetimes!$A$10:$A$39,0),MATCH($B6,Lifetimes!$P$9:$AB$9,0)),"") ->  | AQ6: =IFERROR($D6*INDEX(IF($A6="COM",COM_LT,IF($A6="EDU",EDU_LT,IF($A6="INT",INT_LT,RES_LT))),MATCH((AQ$5-$C6),Lifetimes!$A$10:$A$39,0),MATCH($B6,Lifetimes!$P$9:$AB$9,0)),"") ->  | AR6: =IFERROR($D6*INDEX(IF($A6="COM",COM_LT,IF($A6="EDU",EDU_LT,IF($A6="INT",INT_LT,RES_LT))),MATCH((AR$5-$C6),Lifetimes!$A$10:$A$39,0),MATCH($B6,Lifetimes!$P$9:$AB$9,0)),"") ->  | AS6: =IFERROR($D6*INDEX(IF($A6="COM",COM_LT,IF($A6="EDU",EDU_LT,IF($A6="INT",INT_LT,RES_LT))),MATCH((AS$5-$C6),Lifetimes!$A$10:$A$39,0),MATCH($B6,Lifetimes!$P$9:$AB$9,0)),"") ->  | AT6: =IFERROR($D6*INDEX(IF($A6="COM",COM_LT,IF($A6="EDU",EDU_LT,IF($A6="INT",INT_LT,RES_LT))),MATCH((AT$5-$C6),Lifetimes!$A$10:$A$39,0),MATCH($B6,Lifetimes!$P$9:$AB$9,0)),"") ->  | AU6: =IFERROR($D6*INDEX(IF($A6="COM",COM_LT,IF($A6="EDU",EDU_LT,IF($A6="INT",INT_LT,RES_LT))),MATCH((AU$5-$C6),Lifetimes!$A$10:$A$39,0),MATCH($B6,Lifetimes!$P$9:$AB$9,0)),"") ->  | AV6: =IFERROR($D6*INDEX(IF($A6="COM",COM_LT,IF($A6="EDU",EDU_LT,IF($A6="INT",INT_LT,RES_LT))),MATCH((AV$5-$C6),Lifetimes!$A$10:$A$39,0),MATCH($B6,Lifetimes!$P$9:$AB$9,0)),"") ->  | AW6: =IFERROR($D6*INDEX(IF($A6="COM",COM_LT,IF($A6="EDU",EDU_LT,IF($A6="INT",INT_LT,RES_LT))),MATCH((AW$5-$C6),Lifetimes!$A$10:$A$39,0),MATCH($B6,Lifetimes!$P$9:$AB$9,0)),"") ->  | AX6: =IFERROR($D6*INDEX(IF($A6="COM",COM_LT,IF($A6="EDU",EDU_LT,IF($A6="INT",INT_LT,RES_LT))),MATCH((AX$5-$C6),Lifetimes!$A$10:$A$39,0),MATCH($B6,Lifetimes!$P$9:$AB$9,0)),"") ->  | AY6: =IFERROR($D6*INDEX(IF($A6="COM",COM_LT,IF($A6="EDU",EDU_LT,IF($A6="INT",INT_LT,RES_LT))),MATCH((AY$5-$C6),Lifetimes!$A$10:$A$39,0),MATCH($B6,Lifetimes!$P$9:$AB$9,0)),"") ->  | AZ6: =IFERROR($D6*INDEX(IF($A6="COM",COM_LT,IF($A6="EDU",EDU_LT,IF($A6="INT",INT_LT,RES_LT))),MATCH((AZ$5-$C6),Lifetimes!$A$10:$A$39,0),MATCH($B6,Lifetimes!$P$9:$AB$9,0)),"") ->  | BA6: =IFERROR($D6*INDEX(IF($A6="COM",COM_LT,IF($A6="EDU",EDU_LT,IF($A6="INT",INT_LT,RES_LT))),MATCH((BA$5-$C6),Lifetimes!$A$10:$A$39,0),MATCH($B6,Lifetimes!$P$9:$AB$9,0)),"") ->  | BB6: =IFERROR($D6*INDEX(IF($A6="COM",COM_LT,IF($A6="EDU",EDU_LT,IF($A6="INT",INT_LT,RES_LT))),MATCH((BB$5-$C6),Lifetimes!$A$10:$A$39,0),MATCH($B6,Lifetimes!$P$9:$AB$9,0)),"") ->  | BC6: =IFERROR($D6*INDEX(IF($A6="COM",COM_LT,IF($A6="EDU",EDU_LT,IF($A6="INT",INT_LT,RES_LT))),MATCH((BC$5-$C6),Lifetimes!$A$10:$A$39,0),MATCH($B6,Lifetimes!$P$9:$AB$9,0)),"") ->  | BD6: =IFERROR($D6*INDEX(IF($A6="COM",COM_LT,IF($A6="EDU",EDU_LT,IF($A6="INT",INT_LT,RES_LT))),MATCH((BD$5-$C6),Lifetimes!$A$10:$A$39,0),MATCH($B6,Lifetimes!$P$9:$AB$9,0)),"") ->  | BE6: =IFERROR($D6*INDEX(IF($A6="COM",COM_LT,IF($A6="EDU",EDU_LT,IF($A6="INT",INT_LT,RES_LT))),MATCH((BE$5-$C6),Lifetimes!$A$10:$A$39,0),MATCH($B6,Lifetimes!$P$9:$AB$9,0)),"") ->  | BF6: =IFERROR($D6*INDEX(IF($A6="COM",COM_LT,IF($A6="EDU",EDU_LT,IF($A6="INT",INT_LT,RES_LT))),MATCH((BF$5-$C6),Lifetimes!$A$10:$A$39,0),MATCH($B6,Lifetimes!$P$9:$AB$9,0)),"") ->  | BG6: =IFERROR($D6*INDEX(IF($A6="COM",COM_LT,IF($A6="EDU",EDU_LT,IF($A6="INT",INT_LT,RES_LT))),MATCH((BG$5-$C6),Lifetimes!$A$10:$A$39,0),MATCH($B6,Lifetimes!$P$9:$AB$9,0)),"") ->  | BH6: =IFERROR($D6*INDEX(IF($A6="COM",COM_LT,IF($A6="EDU",EDU_LT,IF($A6="INT",INT_LT,RES_LT))),MATCH((BH$5-$C6),Lifetimes!$A$10:$A$39,0),MATCH($B6,Lifetimes!$P$9:$AB$9,0)),"") ->  | BI6: =IFERROR($D6*INDEX(IF($A6="COM",COM_LT,IF($A6="EDU",EDU_LT,IF($A6="INT",INT_LT,RES_LT))),MATCH((BI$5-$C6),Lifetimes!$A$10:$A$39,0),MATCH($B6,Lifetimes!$P$9:$AB$9,0)),"") ->  | BJ6: =IFERROR($D6*INDEX(IF($A6="COM",COM_LT,IF($A6="EDU",EDU_LT,IF($A6="INT",INT_LT,RES_LT))),MATCH((BJ$5-$C6),Lifetimes!$A$10:$A$39,0),MATCH($B6,Lifetimes!$P$9:$AB$9,0)),"") ->  | BK6: =IFERROR($D6*INDEX(IF($A6="COM",COM_LT,IF($A6="EDU",EDU_LT,IF($A6="INT",INT_LT,RES_LT))),MATCH((BK$5-$C6),Lifetimes!$A$10:$A$39,0),MATCH($B6,Lifetimes!$P$9:$AB$9,0)),"") ->  | BL6: =IFERROR($D6*INDEX(IF($A6="COM",COM_LT,IF($A6="EDU",EDU_LT,IF($A6="INT",INT_LT,RES_LT))),MATCH((BL$5-$C6),Lifetimes!$A$10:$A$39,0),MATCH($B6,Lifetimes!$P$9:$AB$9,0)),"") ->  | BM6: =IFERROR($D6*INDEX(IF($A6="COM",COM_LT,IF($A6="EDU",EDU_LT,IF($A6="INT",INT_LT,RES_LT))),MATCH((BM$5-$C6),Lifetimes!$A$10:$A$39,0),MATCH($B6,Lifetimes!$P$9:$AB$9,0)),"") ->  | BN6: =IFERROR($D6*INDEX(IF($A6="COM",COM_LT,IF($A6="EDU",EDU_LT,IF($A6="INT",INT_LT,RES_LT))),MATCH((BN$5-$C6),Lifetimes!$A$10:$A$39,0),MATCH($B6,Lifetimes!$P$9:$AB$9,0)),"") -> 
A7: EDU | B7: Cell Phones | C7: 1980 | D7: =INDEX(RSWC,MATCH($B7&$C7,RegSalesWeight_Consumer!$L$8:$L$813,0),MATCH($A7,market_group,0)) -> 0 | E7: =IFERROR($D7*INDEX(IF($A7="COM",COM_LT,IF($A7="EDU",EDU_LT,IF($A7="INT",INT_LT,RES_LT))),MATCH((E$5-$C7),Lifetimes!$A$10:$A$39,0),MATCH($B7,Lifetimes!$P$9:$AB$9,0)),"") ->  | F7: =IFERROR($D7*INDEX(IF($A7="COM",COM_LT,IF($A7="EDU",EDU_LT,IF($A7="INT",INT_LT,RES_LT))),MATCH((F$5-$C7),Lifetimes!$A$10:$A$39,0),MATCH($B7,Lifetimes!$P$9:$AB$9,0)),"") -> 0 | G7: =IFERROR($D7*INDEX(IF($A7="COM",COM_LT,IF($A7="EDU",EDU_LT,IF($A7="INT",INT_LT,RES_LT))),MATCH((G$5-$C7),Lifetimes!$A$10:$A$39,0),MATCH($B7,Lifetimes!$P$9:$AB$9,0)),"") -> 0 | H7: =IFERROR($D7*INDEX(IF($A7="COM",COM_LT,IF($A7="EDU",EDU_LT,IF($A7="INT",INT_LT,RES_LT))),MATCH((H$5-$C7),Lifetimes!$A$10:$A$39,0),MATCH($B7,Lifetimes!$P$9:$AB$9,0)),"") -> 0 | I7: =IFERROR($D7*INDEX(IF($A7="COM",COM_LT,IF($A7="EDU",EDU_LT,IF($A7="INT",INT_LT,RES_LT))),MATCH((I$5-$C7),Lifetimes!$A$10:$A$39,0),MATCH($B7,Lifetimes!$P$9:$AB$9,0)),"") -> 0 | J7: =IFERROR($D7*INDEX(IF($A7="COM",COM_LT,IF($A7="EDU",EDU_LT,IF($A7="INT",INT_LT,RES_LT))),MATCH((J$5-$C7),Lifetimes!$A$10:$A$39,0),MATCH($B7,Lifetimes!$P$9:$AB$9,0)),"") -> 0 | K7: =IFERROR($D7*INDEX(IF($A7="COM",COM_LT,IF($A7="EDU",EDU_LT,IF($A7="INT",INT_LT,RES_LT))),MATCH((K$5-$C7),Lifetimes!$A$10:$A$39,0),MATCH($B7,Lifetimes!$P$9:$AB$9,0)),"") -> 0 | L7: =IFERROR($D7*INDEX(IF($A7="COM",COM_LT,IF($A7="EDU",EDU_LT,IF($A7="INT",INT_LT,RES_LT))),MATCH((L$5-$C7),Lifetimes!$A$10:$A$39,0),MATCH($B7,Lifetimes!$P$9:$AB$9,0)),"") -> 0 | M7: =IFERROR($D7*INDEX(IF($A7="COM",COM_LT,IF($A7="EDU",EDU_LT,IF($A7="INT",INT_LT,RES_LT))),MATCH((M$5-$C7),Lifetimes!$A$10:$A$39,0),MATCH($B7,Lifetimes!$P$9:$AB$9,0)),"") -> 0 | N7: =IFERROR($D7*INDEX(IF($A7="COM",COM_LT,IF($A7="EDU",EDU_LT,IF($A7="INT",INT_LT,RES_LT))),MATCH((N$5-$C7),Lifetimes!$A$10:$A$39,0),MATCH($B7,Lifetimes!$P$9:$AB$9,0)),"") -> 0 | O7: =IFERROR($D7*INDEX(IF($A7="COM",COM_LT,IF($A7="EDU",EDU_LT,IF($A7="INT",INT_LT,RES_LT))),MATCH((O$5-$C7),Lifetimes!$A$10:$A$39,0),MATCH($B7,Lifetimes!$P$9:$AB$9,0)),"") -> 0 | P7: =IFERROR($D7*INDEX(IF($A7="COM",COM_LT,IF($A7="EDU",EDU_LT,IF($A7="INT",INT_LT,RES_LT))),MATCH((P$5-$C7),Lifetimes!$A$10:$A$39,0),MATCH($B7,Lifetimes!$P$9:$AB$9,0)),"") -> 0 | Q7: =IFERROR($D7*INDEX(IF($A7="COM",COM_LT,IF($A7="EDU",EDU_LT,IF($A7="INT",INT_LT,RES_LT))),MATCH((Q$5-$C7),Lifetimes!$A$10:$A$39,0),MATCH($B7,Lifetimes!$P$9:$AB$9,0)),"") -> 0 | R7: =IFERROR($D7*INDEX(IF($A7="COM",COM_LT,IF($A7="EDU",EDU_LT,IF($A7="INT",INT_LT,RES_LT))),MATCH((R$5-$C7),Lifetimes!$A$10:$A$39,0),MATCH($B7,Lifetimes!$P$9:$AB$9,0)),"") -> 0 | S7: =IFERROR($D7*INDEX(IF($A7="COM",COM_LT,IF($A7="EDU",EDU_LT,IF($A7="INT",INT_LT,RES_LT))),MATCH((S$5-$C7),Lifetimes!$A$10:$A$39,0),MATCH($B7,Lifetimes!$P$9:$AB$9,0)),"") -> 0 | T7: =IFERROR($D7*INDEX(IF($A7="COM",COM_LT,IF($A7="EDU",EDU_LT,IF($A7="INT",INT_LT,RES_LT))),MATCH((T$5-$C7),Lifetimes!$A$10:$A$39,0),MATCH($B7,Lifetimes!$P$9:$AB$9,0)),"") -> 0 | U7: =IFERROR($D7*INDEX(IF($A7="COM",COM_LT,IF($A7="EDU",EDU_LT,IF($A7="INT",INT_LT,RES_LT))),MATCH((U$5-$C7),Lifetimes!$A$10:$A$39,0),MATCH($B7,Lifetimes!$P$9:$AB$9,0)),"") -> 0 | V7: =IFERROR($D7*INDEX(IF($A7="COM",COM_LT,IF($A7="EDU",EDU_LT,IF($A7="INT",INT_LT,RES_LT))),MATCH((V$5-$C7),Lifetimes!$A$10:$A$39,0),MATCH($B7,Lifetimes!$P$9:$AB$9,0)),"") -> 0 | W7: =IFERROR($D7*INDEX(IF($A7="COM",COM_LT,IF($A7="EDU",EDU_LT,IF($A7="INT",INT_LT,RES_LT))),MATCH((W$5-$C7),Lifetimes!$A$10:$A$39,0),MATCH($B7,Lifetimes!$P$9:$AB$9,0)),"") -> 0 | X7: =IFERROR($D7*INDEX(IF($A7="COM",COM_LT,IF($A7="EDU",EDU_LT,IF($A7="INT",INT_LT,RES_LT))),MATCH((X$5-$C7),Lifetimes!$A$10:$A$39,0),MATCH($B7,Lifetimes!$P$9:$AB$9,0)),"") -> 0 | Y7: =IFERROR($D7*INDEX(IF($A7="COM",COM_LT,IF($A7="EDU",EDU_LT,IF($A7="INT",INT_LT,RES_LT))),MATCH((Y$5-$C7),Lifetimes!$A$10:$A$39,0),MATCH($B7,Lifetimes!$P$9:$AB$9,0)),"") -> 0 | Z7: =IFERROR($D7*INDEX(IF($A7="COM",COM_LT,IF($A7="EDU",EDU_LT,IF($A7="INT",INT_LT,RES_LT))),MATCH((Z$5-$C7),Lifetimes!$A$10:$A$39,0),MATCH($B7,Lifetimes!$P$9:$AB$9,0)),"") -> 0 | AA7: =IFERROR($D7*INDEX(IF($A7="COM",COM_LT,IF($A7="EDU",EDU_LT,IF($A7="INT",INT_LT,RES_LT))),MATCH((AA$5-$C7),Lifetimes!$A$10:$A$39,0),MATCH($B7,Lifetimes!$P$9:$AB$9,0)),"") -> 0 | AB7: =IFERROR($D7*INDEX(IF($A7="COM",COM_LT,IF($A7="EDU",EDU_LT,IF($A7="INT",INT_LT,RES_LT))),MATCH((AB$5-$C7),Lifetimes!$A$10:$A$39,0),MATCH($B7,Lifetimes!$P$9:$AB$9,0)),"") -> 0 | AC7: =IFERROR($D7*INDEX(IF($A7="COM",COM_LT,IF($A7="EDU",EDU_LT,IF($A7="INT",INT_LT,RES_LT))),MATCH((AC$5-$C7),Lifetimes!$A$10:$A$39,0),MATCH($B7,Lifetimes!$P$9:$AB$9,0)),"") -> 0 | AD7: =IFERROR($D7*INDEX(IF($A7="COM",COM_LT,IF($A7="EDU",EDU_LT,IF($A7="INT",INT_LT,RES_LT))),MATCH((AD$5-$C7),Lifetimes!$A$10:$A$39,0),MATCH($B7,Lifetimes!$P$9:$AB$9,0)),"") -> 0 | AE7: =IFERROR($D7*INDEX(IF($A7="COM",COM_LT,IF($A7="EDU",EDU_LT,IF($A7="INT",INT_LT,RES_LT))),MATCH((AE$5-$C7),Lifetimes!$A$10:$A$39,0),MATCH($B7,Lifetimes!$P$9:$AB$9,0)),"") -> 0 | AF7: =IFERROR($D7*INDEX(IF($A7="COM",COM_LT,IF($A7="EDU",EDU_LT,IF($A7="INT",INT_LT,RES_LT))),MATCH((AF$5-$C7),Lifetimes!$A$10:$A$39,0),MATCH($B7,Lifetimes!$P$9:$AB$9,0)),"") -> 0 | AG7: =IFERROR($D7*INDEX(IF($A7="COM",COM_LT,IF($A7="EDU",EDU_LT,IF($A7="INT",INT_LT,RES_LT))),MATCH((AG$5-$C7),Lifetimes!$A$10:$A$39,0),MATCH($B7,Lifetimes!$P$9:$AB$9,0)),"") -> 0 | AH7: =IFERROR($D7*INDEX(IF($A7="COM",COM_LT,IF($A7="EDU",EDU_LT,IF($A7="INT",INT_LT,RES_LT))),MATCH((AH$5-$C7),Lifetimes!$A$10:$A$39,0),MATCH($B7,Lifetimes!$P$9:$AB$9,0)),"") -> 0 | AI7: =IFERROR($D7*INDEX(IF($A7="COM",COM_LT,IF($A7="EDU",EDU_LT,IF($A7="INT",INT_LT,RES_LT))),MATCH((AI$5-$C7),Lifetimes!$A$10:$A$39,0),MATCH($B7,Lifetimes!$P$9:$AB$9,0)),"") -> 0 | AJ7: =IFERROR($D7*INDEX(IF($A7="COM",COM_LT,IF($A7="EDU",EDU_LT,IF($A7="INT",INT_LT,RES_LT))),MATCH((AJ$5-$C7),Lifetimes!$A$10:$A$39,0),MATCH($B7,Lifetimes!$P$9:$AB$9,0)),"") ->  | AK7: =IFERROR($D7*INDEX(IF($A7="COM",COM_LT,IF($A7="EDU",EDU_LT,IF($A7="INT",INT_LT,RES_LT))),MATCH((AK$5-$C7),Lifetimes!$A$10:$A$39,0),MATCH($B7,Lifetimes!$P$9:$AB$9,0)),"") ->  | AL7: =IFERROR($D7*INDEX(IF($A7="COM",COM_LT,IF($A7="EDU",EDU_LT,IF($A7="INT",INT_LT,RES_LT))),MATCH((AL$5-$C7),Lifetimes!$A$10:$A$39,0),MATCH($B7,Lifetimes!$P$9:$AB$9,0)),"") ->  | AM7: =IFERROR($D7*INDEX(IF($A7="COM",COM_LT,IF($A7="EDU",EDU_LT,IF($A7="INT",INT_LT,RES_LT))),MATCH((AM$5-$C7),Lifetimes!$A$10:$A$39,0),MATCH($B7,Lifetimes!$P$9:$AB$9,0)),"") ->  | AN7: =IFERROR($D7*INDEX(IF($A7="COM",COM_LT,IF($A7="EDU",EDU_LT,IF($A7="INT",INT_LT,RES_LT))),MATCH((AN$5-$C7),Lifetimes!$A$10:$A$39,0),MATCH($B7,Lifetimes!$P$9:$AB$9,0)),"") ->  | AO7: =IFERROR($D7*INDEX(IF($A7="COM",COM_LT,IF($A7="EDU",EDU_LT,IF($A7="INT",INT_LT,RES_LT))),MATCH((AO$5-$C7),Lifetimes!$A$10:$A$39,0),MATCH($B7,Lifetimes!$P$9:$AB$9,0)),"") ->  | AP7: =IFERROR($D7*INDEX(IF($A7="COM",COM_LT,IF($A7="EDU",EDU_LT,IF($A7="INT",INT_LT,RES_LT))),MATCH((AP$5-$C7),Lifetimes!$A$10:$A$39,0),MATCH($B7,Lifetimes!$P$9:$AB$9,0)),"") ->  | AQ7: =IFERROR($D7*INDEX(IF($A7="COM",COM_LT,IF($A7="EDU",EDU_LT,IF($A7="INT",INT_LT,RES_LT))),MATCH((AQ$5-$C7),Lifetimes!$A$10:$A$39,0),MATCH($B7,Lifetimes!$P$9:$AB$9,0)),"") ->  | AR7: =IFERROR($D7*INDEX(IF($A7="COM",COM_LT,IF($A7="EDU",EDU_LT,IF($A7="INT",INT_LT,RES_LT))),MATCH((AR$5-$C7),Lifetimes!$A$10:$A$39,0),MATCH($B7,Lifetimes!$P$9:$AB$9,0)),"") ->  | AS7: =IFERROR($D7*INDEX(IF($A7="COM",COM_LT,IF($A7="EDU",EDU_LT,IF($A7="INT",INT_LT,RES_LT))),MATCH((AS$5-$C7),Lifetimes!$A$10:$A$39,0),MATCH($B7,Lifetimes!$P$9:$AB$9,0)),"") ->  | AT7: =IFERROR($D7*INDEX(IF($A7="COM",COM_LT,IF($A7="EDU",EDU_LT,IF($A7="INT",INT_LT,RES_LT))),MATCH((AT$5-$C7),Lifetimes!$A$10:$A$39,0),MATCH($B7,Lifetimes!$P$9:$AB$9,0)),"") ->  | AU7: =IFERROR($D7*INDEX(IF($A7="COM",COM_LT,IF($A7="EDU",EDU_LT,IF($A7="INT",INT_LT,RES_LT))),MATCH((AU$5-$C7),Lifetimes!$A$10:$A$39,0),MATCH($B7,Lifetimes!$P$9:$AB$9,0)),"") ->  | AV7: =IFERROR($D7*INDEX(IF($A7="COM",COM_LT,IF($A7="EDU",EDU_LT,IF($A7="INT",INT_LT,RES_LT))),MATCH((AV$5-$C7),Lifetimes!$A$10:$A$39,0),MATCH($B7,Lifetimes!$P$9:$AB$9,0)),"") ->  | AW7: =IFERROR($D7*INDEX(IF($A7="COM",COM_LT,IF($A7="EDU",EDU_LT,IF($A7="INT",INT_LT,RES_LT))),MATCH((AW$5-$C7),Lifetimes!$A$10:$A$39,0),MATCH($B7,Lifetimes!$P$9:$AB$9,0)),"") ->  | AX7: =IFERROR($D7*INDEX(IF($A7="COM",COM_LT,IF($A7="EDU",EDU_LT,IF($A7="INT",INT_LT,RES_LT))),MATCH((AX$5-$C7),Lifetimes!$A$10:$A$39,0),MATCH($B7,Lifetimes!$P$9:$AB$9,0)),"") ->  | AY7: =IFERROR($D7*INDEX(IF($A7="COM",COM_LT,IF($A7="EDU",EDU_LT,IF($A7="INT",INT_LT,RES_LT))),MATCH((AY$5-$C7),Lifetimes!$A$10:$A$39,0),MATCH($B7,Lifetimes!$P$9:$AB$9,0)),"") ->  | AZ7: =IFERROR($D7*INDEX(IF($A7="COM",COM_LT,IF($A7="EDU",EDU_LT,IF($A7="INT",INT_LT,RES_LT))),MATCH((AZ$5-$C7),Lifetimes!$A$10:$A$39,0),MATCH($B7,Lifetimes!$P$9:$AB$9,0)),"") ->  | BA7: =IFERROR($D7*INDEX(IF($A7="COM",COM_LT,IF($A7="EDU",EDU_LT,IF($A7="INT",INT_LT,RES_LT))),MATCH((BA$5-$C7),Lifetimes!$A$10:$A$39,0),MATCH($B7,Lifetimes!$P$9:$AB$9,0)),"") ->  | BB7: =IFERROR($D7*INDEX(IF($A7="COM",COM_LT,IF($A7="EDU",EDU_LT,IF($A7="INT",INT_LT,RES_LT))),MATCH((BB$5-$C7),Lifetimes!$A$10:$A$39,0),MATCH($B7,Lifetimes!$P$9:$AB$9,0)),"") ->  | BC7: =IFERROR($D7*INDEX(IF($A7="COM",COM_LT,IF($A7="EDU",EDU_LT,IF($A7="INT",INT_LT,RES_LT))),MATCH((BC$5-$C7),Lifetimes!$A$10:$A$39,0),MATCH($B7,Lifetimes!$P$9:$AB$9,0)),"") ->  | BD7: =IFERROR($D7*INDEX(IF($A7="COM",COM_LT,IF($A7="EDU",EDU_LT,IF($A7="INT",INT_LT,RES_LT))),MATCH((BD$5-$C7),Lifetimes!$A$10:$A$39,0),MATCH($B7,Lifetimes!$P$9:$AB$9,0)),"") ->  | BE7: =IFERROR($D7*INDEX(IF($A7="COM",COM_LT,IF($A7="EDU",EDU_LT,IF($A7="INT",INT_LT,RES_LT))),MATCH((BE$5-$C7),Lifetimes!$A$10:$A$39,0),MATCH($B7,Lifetimes!$P$9:$AB$9,0)),"") ->  | BF7: =IFERROR($D7*INDEX(IF($A7="COM",COM_LT,IF($A7="EDU",EDU_LT,IF($A7="INT",INT_LT,RES_LT))),MATCH((BF$5-$C7),Lifetimes!$A$10:$A$39,0),MATCH($B7,Lifetimes!$P$9:$AB$9,0)),"") ->  | BG7: =IFERROR($D7*INDEX(IF($A7="COM",COM_LT,IF($A7="EDU",EDU_LT,IF($A7="INT",INT_LT,RES_LT))),MATCH((BG$5-$C7),Lifetimes!$A$10:$A$39,0),MATCH($B7,Lifetimes!$P$9:$AB$9,0)),"") ->  | BH7: =IFERROR($D7*INDEX(IF($A7="COM",COM_LT,IF($A7="EDU",EDU_LT,IF($A7="INT",INT_LT,RES_LT))),MATCH((BH$5-$C7),Lifetimes!$A$10:$A$39,0),MATCH($B7,Lifetimes!$P$9:$AB$9,0)),"") ->  | BI7: =IFERROR($D7*INDEX(IF($A7="COM",COM_LT,IF($A7="EDU",EDU_LT,IF($A7="INT",INT_LT,RES_LT))),MATCH((BI$5-$C7),Lifetimes!$A$10:$A$39,0),MATCH($B7,Lifetimes!$P$9:$AB$9,0)),"") ->  | BJ7: =IFERROR($D7*INDEX(IF($A7="COM",COM_LT,IF($A7="EDU",EDU_LT,IF($A7="INT",INT_LT,RES_LT))),MATCH((BJ$5-$C7),Lifetimes!$A$10:$A$39,0),MATCH($B7,Lifetimes!$P$9:$AB$9,0)),"") ->  | BK7: =IFERROR($D7*INDEX(IF($A7="COM",COM_LT,IF($A7="EDU",EDU_LT,IF($A7="INT",INT_LT,RES_LT))),MATCH((BK$5-$C7),Lifetimes!$A$10:$A$39,0),MATCH($B7,Lifetimes!$P$9:$AB$9,0)),"") ->  | BL7: =IFERROR($D7*INDEX(IF($A7="COM",COM_LT,IF($A7="EDU",EDU_LT,IF($A7="INT",INT_LT,RES_LT))),MATCH((BL$5-$C7),Lifetimes!$A$10:$A$39,0),MATCH($B7,Lifetimes!$P$9:$AB$9,0)),"") ->  | BM7: =IFERROR($D7*INDEX(IF($A7="COM",COM_LT,IF($A7="EDU",EDU_LT,IF($A7="INT",INT_LT,RES_LT))),MATCH((BM$5-$C7),Lifetimes!$A$10:$A$39,0),MATCH($B7,Lifetimes!$P$9:$AB$9,0)),"") ->  | BN7: =IFERROR($D7*INDEX(IF($A7="COM",COM_LT,IF($A7="EDU",EDU_LT,IF($A7="INT",INT_LT,RES_LT))),MATCH((BN$5-$C7),Lifetimes!$A$10:$A$39,0),MATCH($B7,Lifetimes!$P$9:$AB$9,0)),"") -> 
A8: INT | B8: Cell Phones | C8: 1980 | D8: =INDEX(RSWC,MATCH($B8&$C8,RegSalesWeight_Consumer!$L$8:$L$813,0),MATCH($A8,market_group,0)) -> 0 | E8: =IFERROR($D8*INDEX(IF($A8="COM",COM_LT,IF($A8="EDU",EDU_LT,IF($A8="INT",INT_LT,RES_LT))),MATCH((E$5-$C8),Lifetimes!$A$10:$A$39,0),MATCH($B8,Lifetimes!$P$9:$AB$9,0)),"") ->  | F8: =IFERROR($D8*INDEX(IF($A8="COM",COM_LT,IF($A8="EDU",EDU_LT,IF($A8="INT",INT_LT,RES_LT))),MATCH((F$5-$C8),Lifetimes!$A$10:$A$39,0),MATCH($B8,Lifetimes!$P$9:$AB$9,0)),"") -> 0 | G8: =IFERROR($D8*INDEX(IF($A8="COM",COM_LT,IF($A8="EDU",EDU_LT,IF($A8="INT",INT_LT,RES_LT))),MATCH((G$5-$C8),Lifetimes!$A$10:$A$39,0),MATCH($B8,Lifetimes!$P$9:$AB$9,0)),"") -> 0 | H8: =IFERROR($D8*INDEX(IF($A8="COM",COM_LT,IF($A8="EDU",EDU_LT,IF($A8="INT",INT_LT,RES_LT))),MATCH((H$5-$C8),Lifetimes!$A$10:$A$39,0),MATCH($B8,Lifetimes!$P$9:$AB$9,0)),"") -> 0 | I8: =IFERROR($D8*INDEX(IF($A8="COM",COM_LT,IF($A8="EDU",EDU_LT,IF($A8="INT",INT_LT,RES_LT))),MATCH((I$5-$C8),Lifetimes!$A$10:$A$39,0),MATCH($B8,Lifetimes!$P$9:$AB$9,0)),"") -> 0 | J8: =IFERROR($D8*INDEX(IF($A8="COM",COM_LT,IF($A8="EDU",EDU_LT,IF($A8="INT",INT_LT,RES_LT))),MATCH((J$5-$C8),Lifetimes!$A$10:$A$39,0),MATCH($B8,Lifetimes!$P$9:$AB$9,0)),"") -> 0 | K8: =IFERROR($D8*INDEX(IF($A8="COM",COM_LT,IF($A8="EDU",EDU_LT,IF($A8="INT",INT_LT,RES_LT))),MATCH((K$5-$C8),Lifetimes!$A$10:$A$39,0),MATCH($B8,Lifetimes!$P$9:$AB$9,0)),"") -> 0 | L8: =IFERROR($D8*INDEX(IF($A8="COM",COM_LT,IF($A8="EDU",EDU_LT,IF($A8="INT",INT_LT,RES_LT))),MATCH((L$5-$C8),Lifetimes!$A$10:$A$39,0),MATCH($B8,Lifetimes!$P$9:$AB$9,0)),"") -> 0 | M8: =IFERROR($D8*INDEX(IF($A8="COM",COM_LT,IF($A8="EDU",EDU_LT,IF($A8="INT",INT_LT,RES_LT))),MATCH((M$5-$C8),Lifetimes!$A$10:$A$39,0),MATCH($B8,Lifetimes!$P$9:$AB$9,0)),"") -> 0 | N8: =IFERROR($D8*INDEX(IF($A8="COM",COM_LT,IF($A8="EDU",EDU_LT,IF($A8="INT",INT_LT,RES_LT))),MATCH((N$5-$C8),Lifetimes!$A$10:$A$39,0),MATCH($B8,Lifetimes!$P$9:$AB$9,0)),"") -> 0 | O8: =IFERROR($D8*INDEX(IF($A8="COM",COM_LT,IF($A8="EDU",EDU_LT,IF($A8="INT",INT_LT,RES_LT))),MATCH((O$5-$C8),Lifetimes!$A$10:$A$39,0),MATCH($B8,Lifetimes!$P$9:$AB$9,0)),"") -> 0 | P8: =IFERROR($D8*INDEX(IF($A8="COM",COM_LT,IF($A8="EDU",EDU_LT,IF($A8="INT",INT_LT,RES_LT))),MATCH((P$5-$C8),Lifetimes!$A$10:$A$39,0),MATCH($B8,Lifetimes!$P$9:$AB$9,0)),"") -> 0 | Q8: =IFERROR($D8*INDEX(IF($A8="COM",COM_LT,IF($A8="EDU",EDU_LT,IF($A8="INT",INT_LT,RES_LT))),MATCH((Q$5-$C8),Lifetimes!$A$10:$A$39,0),MATCH($B8,Lifetimes!$P$9:$AB$9,0)),"") -> 0 | R8: =IFERROR($D8*INDEX(IF($A8="COM",COM_LT,IF($A8="EDU",EDU_LT,IF($A8="INT",INT_LT,RES_LT))),MATCH((R$5-$C8),Lifetimes!$A$10:$A$39,0),MATCH($B8,Lifetimes!$P$9:$AB$9,0)),"") -> 0 | S8: =IFERROR($D8*INDEX(IF($A8="COM",COM_LT,IF($A8="EDU",EDU_LT,IF($A8="INT",INT_LT,RES_LT))),MATCH((S$5-$C8),Lifetimes!$A$10:$A$39,0),MATCH($B8,Lifetimes!$P$9:$AB$9,0)),"") -> 0 | T8: =IFERROR($D8*INDEX(IF($A8="COM",COM_LT,IF($A8="EDU",EDU_LT,IF($A8="INT",INT_LT,RES_LT))),MATCH((T$5-$C8),Lifetimes!$A$10:$A$39,0),MATCH($B8,Lifetimes!$P$9:$AB$9,0)),"") -> 0 | U8: =IFERROR($D8*INDEX(IF($A8="COM",COM_LT,IF($A8="EDU",EDU_LT,IF($A8="INT",INT_LT,RES_LT))),MATCH((U$5-$C8),Lifetimes!$A$10:$A$39,0),MATCH($B8,Lifetimes!$P$9:$AB$9,0)),"") -> 0 | V8: =IFERROR($D8*INDEX(IF($A8="COM",COM_LT,IF($A8="EDU",EDU_LT,IF($A8="INT",INT_LT,RES_LT))),MATCH((V$5-$C8),Lifetimes!$A$10:$A$39,0),MATCH($B8,Lifetimes!$P$9:$AB$9,0)),"") -> 0 | W8: =IFERROR($D8*INDEX(IF($A8="COM",COM_LT,IF($A8="EDU",EDU_LT,IF($A8="INT",INT_LT,RES_LT))),MATCH((W$5-$C8),Lifetimes!$A$10:$A$39,0),MATCH($B8,Lifetimes!$P$9:$AB$9,0)),"") -> 0 | X8: =IFERROR($D8*INDEX(IF($A8="COM",COM_LT,IF($A8="EDU",EDU_LT,IF($A8="INT",INT_LT,RES_LT))),MATCH((X$5-$C8),Lifetimes!$A$10:$A$39,0),MATCH($B8,Lifetimes!$P$9:$AB$9,0)),"") -> 0 | Y8: =IFERROR($D8*INDEX(IF($A8="COM",COM_LT,IF($A8="EDU",EDU_LT,IF($A8="INT",INT_LT,RES_LT))),MATCH((Y$5-$C8),Lifetimes!$A$10:$A$39,0),MATCH($B8,Lifetimes!$P$9:$AB$9,0)),"") -> 0 | Z8: =IFERROR($D8*INDEX(IF($A8="COM",COM_LT,IF($A8="EDU",EDU_LT,IF($A8="INT",INT_LT,RES_LT))),MATCH((Z$5-$C8),Lifetimes!$A$10:$A$39,0),MATCH($B8,Lifetimes!$P$9:$AB$9,0)),"") -> 0 | AA8: =IFERROR($D8*INDEX(IF($A8="COM",COM_LT,IF($A8="EDU",EDU_LT,IF($A8="INT",INT_LT,RES_LT))),MATCH((AA$5-$C8),Lifetimes!$A$10:$A$39,0),MATCH($B8,Lifetimes!$P$9:$AB$9,0)),"") -> 0 | AB8: =IFERROR($D8*INDEX(IF($A8="COM",COM_LT,IF($A8="EDU",EDU_LT,IF($A8="INT",INT_LT,RES_LT))),MATCH((AB$5-$C8),Lifetimes!$A$10:$A$39,0),MATCH($B8,Lifetimes!$P$9:$AB$9,0)),"") -> 0 | AC8: =IFERROR($D8*INDEX(IF($A8="COM",COM_LT,IF($A8="EDU",EDU_LT,IF($A8="INT",INT_LT,RES_LT))),MATCH((AC$5-$C8),Lifetimes!$A$10:$A$39,0),MATCH($B8,Lifetimes!$P$9:$AB$9,0)),"") -> 0 | AD8: =IFERROR($D8*INDEX(IF($A8="COM",COM_LT,IF($A8="EDU",EDU_LT,IF($A8="INT",INT_LT,RES_LT))),MATCH((AD$5-$C8),Lifetimes!$A$10:$A$39,0),MATCH($B8,Lifetimes!$P$9:$AB$9,0)),"") -> 0 | AE8: =IFERROR($D8*INDEX(IF($A8="COM",COM_LT,IF($A8="EDU",EDU_LT,IF($A8="INT",INT_LT,RES_LT))),MATCH((AE$5-$C8),Lifetimes!$A$10:$A$39,0),MATCH($B8,Lifetimes!$P$9:$AB$9,0)),"") -> 0 | AF8: =IFERROR($D8*INDEX(IF($A8="COM",COM_LT,IF($A8="EDU",EDU_LT,IF($A8="INT",INT_LT,RES_LT))),MATCH((AF$5-$C8),Lifetimes!$A$10:$A$39,0),MATCH($B8,Lifetimes!$P$9:$AB$9,0)),"") -> 0 | AG8: =IFERROR($D8*INDEX(IF($A8="COM",COM_LT,IF($A8="EDU",EDU_LT,IF($A8="INT",INT_LT,RES_LT))),MATCH((AG$5-$C8),Lifetimes!$A$10:$A$39,0),MATCH($B8,Lifetimes!$P$9:$AB$9,0)),"") -> 0 | AH8: =IFERROR($D8*INDEX(IF($A8="COM",COM_LT,IF($A8="EDU",EDU_LT,IF($A8="INT",INT_LT,RES_LT))),MATCH((AH$5-$C8),Lifetimes!$A$10:$A$39,0),MATCH($B8,Lifetimes!$P$9:$AB$9,0)),"") -> 0 | AI8: =IFERROR($D8*INDEX(IF($A8="COM",COM_LT,IF($A8="EDU",EDU_LT,IF($A8="INT",INT_LT,RES_LT))),MATCH((AI$5-$C8),Lifetimes!$A$10:$A$39,0),MATCH($B8,Lifetimes!$P$9:$AB$9,0)),"") -> 0 | AJ8: =IFERROR($D8*INDEX(IF($A8="COM",COM_LT,IF($A8="EDU",EDU_LT,IF($A8="INT",INT_LT,RES_LT))),MATCH((AJ$5-$C8),Lifetimes!$A$10:$A$39,0),MATCH($B8,Lifetimes!$P$9:$AB$9,0)),"") ->  | AK8: =IFERROR($D8*INDEX(IF($A8="COM",COM_LT,IF($A8="EDU",EDU_LT,IF($A8="INT",INT_LT,RES_LT))),MATCH((AK$5-$C8),Lifetimes!$A$10:$A$39,0),MATCH($B8,Lifetimes!$P$9:$AB$9,0)),"") ->  | AL8: =IFERROR($D8*INDEX(IF($A8="COM",COM_LT,IF($A8="EDU",EDU_LT,IF($A8="INT",INT_LT,RES_LT))),MATCH((AL$5-$C8),Lifetimes!$A$10:$A$39,0),MATCH($B8,Lifetimes!$P$9:$AB$9,0)),"") ->  | AM8: =IFERROR($D8*INDEX(IF($A8="COM",COM_LT,IF($A8="EDU",EDU_LT,IF($A8="INT",INT_LT,RES_LT))),MATCH((AM$5-$C8),Lifetimes!$A$10:$A$39,0),MATCH($B8,Lifetimes!$P$9:$AB$9,0)),"") ->  | AN8: =IFERROR($D8*INDEX(IF($A8="COM",COM_LT,IF($A8="EDU",EDU_LT,IF($A8="INT",INT_LT,RES_LT))),MATCH((AN$5-$C8),Lifetimes!$A$10:$A$39,0),MATCH($B8,Lifetimes!$P$9:$AB$9,0)),"") ->  | AO8: =IFERROR($D8*INDEX(IF($A8="COM",COM_LT,IF($A8="EDU",EDU_LT,IF($A8="INT",INT_LT,RES_LT))),MATCH((AO$5-$C8),Lifetimes!$A$10:$A$39,0),MATCH($B8,Lifetimes!$P$9:$AB$9,0)),"") ->  | AP8: =IFERROR($D8*INDEX(IF($A8="COM",COM_LT,IF($A8="EDU",EDU_LT,IF($A8="INT",INT_LT,RES_LT))),MATCH((AP$5-$C8),Lifetimes!$A$10:$A$39,0),MATCH($B8,Lifetimes!$P$9:$AB$9,0)),"") ->  | AQ8: =IFERROR($D8*INDEX(IF($A8="COM",COM_LT,IF($A8="EDU",EDU_LT,IF($A8="INT",INT_LT,RES_LT))),MATCH((AQ$5-$C8),Lifetimes!$A$10:$A$39,0),MATCH($B8,Lifetimes!$P$9:$AB$9,0)),"") ->  | AR8: =IFERROR($D8*INDEX(IF($A8="COM",COM_LT,IF($A8="EDU",EDU_LT,IF($A8="INT",INT_LT,RES_LT))),MATCH((AR$5-$C8),Lifetimes!$A$10:$A$39,0),MATCH($B8,Lifetimes!$P$9:$AB$9,0)),"") ->  | AS8: =IFERROR($D8*INDEX(IF($A8="COM",COM_LT,IF($A8="EDU",EDU_LT,IF($A8="INT",INT_LT,RES_LT))),MATCH((AS$5-$C8),Lifetimes!$A$10:$A$39,0),MATCH($B8,Lifetimes!$P$9:$AB$9,0)),"") ->  | AT8: =IFERROR($D8*INDEX(IF($A8="COM",COM_LT,IF($A8="EDU",EDU_LT,IF($A8="INT",INT_LT,RES_LT))),MATCH((AT$5-$C8),Lifetimes!$A$10:$A$39,0),MATCH($B8,Lifetimes!$P$9:$AB$9,0)),"") ->  | AU8: =IFERROR($D8*INDEX(IF($A8="COM",COM_LT,IF($A8="EDU",EDU_LT,IF($A8="INT",INT_LT,RES_LT))),MATCH((AU$5-$C8),Lifetimes!$A$10:$A$39,0),MATCH($B8,Lifetimes!$P$9:$AB$9,0)),"") ->  | AV8: =IFERROR($D8*INDEX(IF($A8="COM",COM_LT,IF($A8="EDU",EDU_LT,IF($A8="INT",INT_LT,RES_LT))),MATCH((AV$5-$C8),Lifetimes!$A$10:$A$39,0),MATCH($B8,Lifetimes!$P$9:$AB$9,0)),"") ->  | AW8: =IFERROR($D8*INDEX(IF($A8="COM",COM_LT,IF($A8="EDU",EDU_LT,IF($A8="INT",INT_LT,RES_LT))),MATCH((AW$5-$C8),Lifetimes!$A$10:$A$39,0),MATCH($B8,Lifetimes!$P$9:$AB$9,0)),"") ->  | AX8: =IFERROR($D8*INDEX(IF($A8="COM",COM_LT,IF($A8="EDU",EDU_LT,IF($A8="INT",INT_LT,RES_LT))),MATCH((AX$5-$C8),Lifetimes!$A$10:$A$39,0),MATCH($B8,Lifetimes!$P$9:$AB$9,0)),"") ->  | AY8: =IFERROR($D8*INDEX(IF($A8="COM",COM_LT,IF($A8="EDU",EDU_LT,IF($A8="INT",INT_LT,RES_LT))),MATCH((AY$5-$C8),Lifetimes!$A$10:$A$39,0),MATCH($B8,Lifetimes!$P$9:$AB$9,0)),"") ->  | AZ8: =IFERROR($D8*INDEX(IF($A8="COM",COM_LT,IF($A8="EDU",EDU_LT,IF($A8="INT",INT_LT,RES_LT))),MATCH((AZ$5-$C8),Lifetimes!$A$10:$A$39,0),MATCH($B8,Lifetimes!$P$9:$AB$9,0)),"") ->  | BA8: =IFERROR($D8*INDEX(IF($A8="COM",COM_LT,IF($A8="EDU",EDU_LT,IF($A8="INT",INT_LT,RES_LT))),MATCH((BA$5-$C8),Lifetimes!$A$10:$A$39,0),MATCH($B8,Lifetimes!$P$9:$AB$9,0)),"") ->  | BB8: =IFERROR($D8*INDEX(IF($A8="COM",COM_LT,IF($A8="EDU",EDU_LT,IF($A8="INT",INT_LT,RES_LT))),MATCH((BB$5-$C8),Lifetimes!$A$10:$A$39,0),MATCH($B8,Lifetimes!$P$9:$AB$9,0)),"") ->  | BC8: =IFERROR($D8*INDEX(IF($A8="COM",COM_LT,IF($A8="EDU",EDU_LT,IF($A8="INT",INT_LT,RES_LT))),MATCH((BC$5-$C8),Lifetimes!$A$10:$A$39,0),MATCH($B8,Lifetimes!$P$9:$AB$9,0)),"") ->  | BD8: =IFERROR($D8*INDEX(IF($A8="COM",COM_LT,IF($A8="EDU",EDU_LT,IF($A8="INT",INT_LT,RES_LT))),MATCH((BD$5-$C8),Lifetimes!$A$10:$A$39,0),MATCH($B8,Lifetimes!$P$9:$AB$9,0)),"") ->  | BE8: =IFERROR($D8*INDEX(IF($A8="COM",COM_LT,IF($A8="EDU",EDU_LT,IF($A8="INT",INT_LT,RES_LT))),MATCH((BE$5-$C8),Lifetimes!$A$10:$A$39,0),MATCH($B8,Lifetimes!$P$9:$AB$9,0)),"") ->  | BF8: =IFERROR($D8*INDEX(IF($A8="COM",COM_LT,IF($A8="EDU",EDU_LT,IF($A8="INT",INT_LT,RES_LT))),MATCH((BF$5-$C8),Lifetimes!$A$10:$A$39,0),MATCH($B8,Lifetimes!$P$9:$AB$9,0)),"") ->  | BG8: =IFERROR($D8*INDEX(IF($A8="COM",COM_LT,IF($A8="EDU",EDU_LT,IF($A8="INT",INT_LT,RES_LT))),MATCH((BG$5-$C8),Lifetimes!$A$10:$A$39,0),MATCH($B8,Lifetimes!$P$9:$AB$9,0)),"") ->  | BH8: =IFERROR($D8*INDEX(IF($A8="COM",COM_LT,IF($A8="EDU",EDU_LT,IF($A8="INT",INT_LT,RES_LT))),MATCH((BH$5-$C8),Lifetimes!$A$10:$A$39,0),MATCH($B8,Lifetimes!$P$9:$AB$9,0)),"") ->  | BI8: =IFERROR($D8*INDEX(IF($A8="COM",COM_LT,IF($A8="EDU",EDU_LT,IF($A8="INT",INT_LT,RES_LT))),MATCH((BI$5-$C8),Lifetimes!$A$10:$A$39,0),MATCH($B8,Lifetimes!$P$9:$AB$9,0)),"") ->  | BJ8: =IFERROR($D8*INDEX(IF($A8="COM",COM_LT,IF($A8="EDU",EDU_LT,IF($A8="INT",INT_LT,RES_LT))),MATCH((BJ$5-$C8),Lifetimes!$A$10:$A$39,0),MATCH($B8,Lifetimes!$P$9:$AB$9,0)),"") ->  | BK8: =IFERROR($D8*INDEX(IF($A8="COM",COM_LT,IF($A8="EDU",EDU_LT,IF($A8="INT",INT_LT,RES_LT))),MATCH((BK$5-$C8),Lifetimes!$A$10:$A$39,0),MATCH($B8,Lifetimes!$P$9:$AB$9,0)),"") ->  | BL8: =IFERROR($D8*INDEX(IF($A8="COM",COM_LT,IF($A8="EDU",EDU_LT,IF($A8="INT",INT_LT,RES_LT))),MATCH((BL$5-$C8),Lifetimes!$A$10:$A$39,0),MATCH($B8,Lifetimes!$P$9:$AB$9,0)),"") ->  | BM8: =IFERROR($D8*INDEX(IF($A8="COM",COM_LT,IF($A8="EDU",EDU_LT,IF($A8="INT",INT_LT,RES_LT))),MATCH((BM$5-$C8),Lifetimes!$A$10:$A$39,0),MATCH($B8,Lifetimes!$P$9:$AB$9,0)),"") ->  | BN8: =IFERROR($D8*INDEX(IF($A8="COM",COM_LT,IF($A8="EDU",EDU_LT,IF($A8="INT",INT_LT,RES_LT))),MATCH((BN$5-$C8),Lifetimes!$A$10:$A$39,0),MATCH($B8,Lifetimes!$P$9:$AB$9,0)),"") -> 
A9: RES | B9: Cell Phones | C9: 1980 | D9: =INDEX(RSWC,MATCH($B9&$C9,RegSalesWeight_Consumer!$L$8:$L$813,0),MATCH($A9,market_group,0)) -> 0 | E9: =IFERROR($D9*INDEX(IF($A9="COM",COM_LT,IF($A9="EDU",EDU_LT,IF($A9="INT",INT_LT,RES_LT))),MATCH((E$5-$C9),Lifetimes!$A$10:$A$39,0),MATCH($B9,Lifetimes!$P$9:$AB$9,0)),"") ->  | F9: =IFERROR($D9*INDEX(IF($A9="COM",COM_LT,IF($A9="EDU",EDU_LT,IF($A9="INT",INT_LT,RES_LT))),MATCH((F$5-$C9),Lifetimes!$A$10:$A$39,0),MATCH($B9,Lifetimes!$P$9:$AB$9,0)),"") -> 0 | G9: =IFERROR($D9*INDEX(IF($A9="COM",COM_LT,IF($A9="EDU",EDU_LT,IF($A9="INT",INT_LT,RES_LT))),MATCH((G$5-$C9),Lifetimes!$A$10:$A$39,0),MATCH($B9,Lifetimes!$P$9:$AB$9,0)),"") -> 0 | H9: =IFERROR($D9*INDEX(IF($A9="COM",COM_LT,IF($A9="EDU",EDU_LT,IF($A9="INT",INT_LT,RES_LT))),MATCH((H$5-$C9),Lifetimes!$A$10:$A$39,0),MATCH($B9,Lifetimes!$P$9:$AB$9,0)),"") -> 0 | I9: =IFERROR($D9*INDEX(IF($A9="COM",COM_LT,IF($A9="EDU",EDU_LT,IF($A9="INT",INT_LT,RES_LT))),MATCH((I$5-$C9),Lifetimes!$A$10:$A$39,0),MATCH($B9,Lifetimes!$P$9:$AB$9,0)),"") -> 0 | J9: =IFERROR($D9*INDEX(IF($A9="COM",COM_LT,IF($A9="EDU",EDU_LT,IF($A9="INT",INT_LT,RES_LT))),MATCH((J$5-$C9),Lifetimes!$A$10:$A$39,0),MATCH($B9,Lifetimes!$P$9:$AB$9,0)),"") -> 0 | K9: =IFERROR($D9*INDEX(IF($A9="COM",COM_LT,IF($A9="EDU",EDU_LT,IF($A9="INT",INT_LT,RES_LT))),MATCH((K$5-$C9),Lifetimes!$A$10:$A$39,0),MATCH($B9,Lifetimes!$P$9:$AB$9,0)),"") -> 0 | L9: =IFERROR($D9*INDEX(IF($A9="COM",COM_LT,IF($A9="EDU",EDU_LT,IF($A9="INT",INT_LT,RES_LT))),MATCH((L$5-$C9),Lifetimes!$A$10:$A$39,0),MATCH($B9,Lifetimes!$P$9:$AB$9,0)),"") -> 0 | M9: =IFERROR($D9*INDEX(IF($A9="COM",COM_LT,IF($A9="EDU",EDU_LT,IF($A9="INT",INT_LT,RES_LT))),MATCH((M$5-$C9),Lifetimes!$A$10:$A$39,0),MATCH($B9,Lifetimes!$P$9:$AB$9,0)),"") -> 0 | N9: =IFERROR($D9*INDEX(IF($A9="COM",COM_LT,IF($A9="EDU",EDU_LT,IF($A9="INT",INT_LT,RES_LT))),MATCH((N$5-$C9),Lifetimes!$A$10:$A$39,0),MATCH($B9,Lifetimes!$P$9:$AB$9,0)),"") -> 0 | O9: =IFERROR($D9*INDEX(IF($A9="COM",COM_LT,IF($A9="EDU",EDU_LT,IF($A9="INT",INT_LT,RES_LT))),MATCH((O$5-$C9),Lifetimes!$A$10:$A$39,0),MATCH($B9,Lifetimes!$P$9:$AB$9,0)),"") -> 0 | P9: =IFERROR($D9*INDEX(IF($A9="COM",COM_LT,IF($A9="EDU",EDU_LT,IF($A9="INT",INT_LT,RES_LT))),MATCH((P$5-$C9),Lifetimes!$A$10:$A$39,0),MATCH($B9,Lifetimes!$P$9:$AB$9,0)),"") -> 0 | Q9: =IFERROR($D9*INDEX(IF($A9="COM",COM_LT,IF($A9="EDU",EDU_LT,IF($A9="INT",INT_LT,RES_LT))),MATCH((Q$5-$C9),Lifetimes!$A$10:$A$39,0),MATCH($B9,Lifetimes!$P$9:$AB$9,0)),"") -> 0 | R9: =IFERROR($D9*INDEX(IF($A9="COM",COM_LT,IF($A9="EDU",EDU_LT,IF($A9="INT",INT_LT,RES_LT))),MATCH((R$5-$C9),Lifetimes!$A$10:$A$39,0),MATCH($B9,Lifetimes!$P$9:$AB$9,0)),"") -> 0 | S9: =IFERROR($D9*INDEX(IF($A9="COM",COM_LT,IF($A9="EDU",EDU_LT,IF($A9="INT",INT_LT,RES_LT))),MATCH((S$5-$C9),Lifetimes!$A$10:$A$39,0),MATCH($B9,Lifetimes!$P$9:$AB$9,0)),"") -> 0 | T9: =IFERROR($D9*INDEX(IF($A9="COM",COM_LT,IF($A9="EDU",EDU_LT,IF($A9="INT",INT_LT,RES_LT))),MATCH((T$5-$C9),Lifetimes!$A$10:$A$39,0),MATCH($B9,Lifetimes!$P$9:$AB$9,0)),"") -> 0 | U9: =IFERROR($D9*INDEX(IF($A9="COM",COM_LT,IF($A9="EDU",EDU_LT,IF($A9="INT",INT_LT,RES_LT))),MATCH((U$5-$C9),Lifetimes!$A$10:$A$39,0),MATCH($B9,Lifetimes!$P$9:$AB$9,0)),"") -> 0 | V9: =IFERROR($D9*INDEX(IF($A9="COM",COM_LT,IF($A9="EDU",EDU_LT,IF($A9="INT",INT_LT,RES_LT))),MATCH((V$5-$C9),Lifetimes!$A$10:$A$39,0),MATCH($B9,Lifetimes!$P$9:$AB$9,0)),"") -> 0 | W9: =IFERROR($D9*INDEX(IF($A9="COM",COM_LT,IF($A9="EDU",EDU_LT,IF($A9="INT",INT_LT,RES_LT))),MATCH((W$5-$C9),Lifetimes!$A$10:$A$39,0),MATCH($B9,Lifetimes!$P$9:$AB$9,0)),"") -> 0 | X9: =IFERROR($D9*INDEX(IF($A9="COM",COM_LT,IF($A9="EDU",EDU_LT,IF($A9="INT",INT_LT,RES_LT))),MATCH((X$5-$C9),Lifetimes!$A$10:$A$39,0),MATCH($B9,Lifetimes!$P$9:$AB$9,0)),"") -> 0 | Y9: =IFERROR($D9*INDEX(IF($A9="COM",COM_LT,IF($A9="EDU",EDU_LT,IF($A9="INT",INT_LT,RES_LT))),MATCH((Y$5-$C9),Lifetimes!$A$10:$A$39,0),MATCH($B9,Lifetimes!$P$9:$AB$9,0)),"") -> 0 | Z9: =IFERROR($D9*INDEX(IF($A9="COM",COM_LT,IF($A9="EDU",EDU_LT,IF($A9="INT",INT_LT,RES_LT))),MATCH((Z$5-$C9),Lifetimes!$A$10:$A$39,0),MATCH($B9,Lifetimes!$P$9:$AB$9,0)),"") -> 0 | AA9: =IFERROR($D9*INDEX(IF($A9="COM",COM_LT,IF($A9="EDU",EDU_LT,IF($A9="INT",INT_LT,RES_LT))),MATCH((AA$5-$C9),Lifetimes!$A$10:$A$39,0),MATCH($B9,Lifetimes!$P$9:$AB$9,0)),"") -> 0 | AB9: =IFERROR($D9*INDEX(IF($A9="COM",COM_LT,IF($A9="EDU",EDU_LT,IF($A9="INT",INT_LT,RES_LT))),MATCH((AB$5-$C9),Lifetimes!$A$10:$A$39,0),MATCH($B9,Lifetimes!$P$9:$AB$9,0)),"") -> 0 | AC9: =IFERROR($D9*INDEX(IF($A9="COM",COM_LT,IF($A9="EDU",EDU_LT,IF($A9="INT",INT_LT,RES_LT))),MATCH((AC$5-$C9),Lifetimes!$A$10:$A$39,0),MATCH($B9,Lifetimes!$P$9:$AB$9,0)),"") -> 0 | AD9: =IFERROR($D9*INDEX(IF($A9="COM",COM_LT,IF($A9="EDU",EDU_LT,IF($A9="INT",INT_LT,RES_LT))),MATCH((AD$5-$C9),Lifetimes!$A$10:$A$39,0),MATCH($B9,Lifetimes!$P$9:$AB$9,0)),"") -> 0 | AE9: =IFERROR($D9*INDEX(IF($A9="COM",COM_LT,IF($A9="EDU",EDU_LT,IF($A9="INT",INT_LT,RES_LT))),MATCH((AE$5-$C9),Lifetimes!$A$10:$A$39,0),MATCH($B9,Lifetimes!$P$9:$AB$9,0)),"") -> 0 | AF9: =IFERROR($D9*INDEX(IF($A9="COM",COM_LT,IF($A9="EDU",EDU_LT,IF($A9="INT",INT_LT,RES_LT))),MATCH((AF$5-$C9),Lifetimes!$A$10:$A$39,0),MATCH($B9,Lifetimes!$P$9:$AB$9,0)),"") -> 0 | AG9: =IFERROR($D9*INDEX(IF($A9="COM",COM_LT,IF($A9="EDU",EDU_LT,IF($A9="INT",INT_LT,RES_LT))),MATCH((AG$5-$C9),Lifetimes!$A$10:$A$39,0),MATCH($B9,Lifetimes!$P$9:$AB$9,0)),"") -> 0 | AH9: =IFERROR($D9*INDEX(IF($A9="COM",COM_LT,IF($A9="EDU",EDU_LT,IF($A9="INT",INT_LT,RES_LT))),MATCH((AH$5-$C9),Lifetimes!$A$10:$A$39,0),MATCH($B9,Lifetimes!$P$9:$AB$9,0)),"") -> 0 | AI9: =IFERROR($D9*INDEX(IF($A9="COM",COM_LT,IF($A9="EDU",EDU_LT,IF($A9="INT",INT_LT,RES_LT))),MATCH((AI$5-$C9),Lifetimes!$A$10:$A$39,0),MATCH($B9,Lifetimes!$P$9:$AB$9,0)),"") -> 0 | AJ9: =IFERROR($D9*INDEX(IF($A9="COM",COM_LT,IF($A9="EDU",EDU_LT,IF($A9="INT",INT_LT,RES_LT))),MATCH((AJ$5-$C9),Lifetimes!$A$10:$A$39,0),MATCH($B9,Lifetimes!$P$9:$AB$9,0)),"") ->  | AK9: =IFERROR($D9*INDEX(IF($A9="COM",COM_LT,IF($A9="EDU",EDU_LT,IF($A9="INT",INT_LT,RES_LT))),MATCH((AK$5-$C9),Lifetimes!$A$10:$A$39,0),MATCH($B9,Lifetimes!$P$9:$AB$9,0)),"") ->  | AL9: =IFERROR($D9*INDEX(IF($A9="COM",COM_LT,IF($A9="EDU",EDU_LT,IF($A9="INT",INT_LT,RES_LT))),MATCH((AL$5-$C9),Lifetimes!$A$10:$A$39,0),MATCH($B9,Lifetimes!$P$9:$AB$9,0)),"") ->  | AM9: =IFERROR($D9*INDEX(IF($A9="COM",COM_LT,IF($A9="EDU",EDU_LT,IF($A9="INT",INT_LT,RES_LT))),MATCH((AM$5-$C9),Lifetimes!$A$10:$A$39,0),MATCH($B9,Lifetimes!$P$9:$AB$9,0)),"") ->  | AN9: =IFERROR($D9*INDEX(IF($A9="COM",COM_LT,IF($A9="EDU",EDU_LT,IF($A9="INT",INT_LT,RES_LT))),MATCH((AN$5-$C9),Lifetimes!$A$10:$A$39,0),MATCH($B9,Lifetimes!$P$9:$AB$9,0)),"") ->  | AO9: =IFERROR($D9*INDEX(IF($A9="COM",COM_LT,IF($A9="EDU",EDU_LT,IF($A9="INT",INT_LT,RES_LT))),MATCH((AO$5-$C9),Lifetimes!$A$10:$A$39,0),MATCH($B9,Lifetimes!$P$9:$AB$9,0)),"") ->  | AP9: =IFERROR($D9*INDEX(IF($A9="COM",COM_LT,IF($A9="EDU",EDU_LT,IF($A9="INT",INT_LT,RES_LT))),MATCH((AP$5-$C9),Lifetimes!$A$10:$A$39,0),MATCH($B9,Lifetimes!$P$9:$AB$9,0)),"") ->  | AQ9: =IFERROR($D9*INDEX(IF($A9="COM",COM_LT,IF($A9="EDU",EDU_LT,IF($A9="INT",INT_LT,RES_LT))),MATCH((AQ$5-$C9),Lifetimes!$A$10:$A$39,0),MATCH($B9,Lifetimes!$P$9:$AB$9,0)),"") ->  | AR9: =IFERROR($D9*INDEX(IF($A9="COM",COM_LT,IF($A9="EDU",EDU_LT,IF($A9="INT",INT_LT,RES_LT))),MATCH((AR$5-$C9),Lifetimes!$A$10:$A$39,0),MATCH($B9,Lifetimes!$P$9:$AB$9,0)),"") ->  | AS9: =IFERROR($D9*INDEX(IF($A9="COM",COM_LT,IF($A9="EDU",EDU_LT,IF($A9="INT",INT_LT,RES_LT))),MATCH((AS$5-$C9),Lifetimes!$A$10:$A$39,0),MATCH($B9,Lifetimes!$P$9:$AB$9,0)),"") ->  | AT9: =IFERROR($D9*INDEX(IF($A9="COM",COM_LT,IF($A9="EDU",EDU_LT,IF($A9="INT",INT_LT,RES_LT))),MATCH((AT$5-$C9),Lifetimes!$A$10:$A$39,0),MATCH($B9,Lifetimes!$P$9:$AB$9,0)),"") ->  | AU9: =IFERROR($D9*INDEX(IF($A9="COM",COM_LT,IF($A9="EDU",EDU_LT,IF($A9="INT",INT_LT,RES_LT))),MATCH((AU$5-$C9),Lifetimes!$A$10:$A$39,0),MATCH($B9,Lifetimes!$P$9:$AB$9,0)),"") ->  | AV9: =IFERROR($D9*INDEX(IF($A9="COM",COM_LT,IF($A9="EDU",EDU_LT,IF($A9="INT",INT_LT,RES_LT))),MATCH((AV$5-$C9),Lifetimes!$A$10:$A$39,0),MATCH($B9,Lifetimes!$P$9:$AB$9,0)),"") ->  | AW9: =IFERROR($D9*INDEX(IF($A9="COM",COM_LT,IF($A9="EDU",EDU_LT,IF($A9="INT",INT_LT,RES_LT))),MATCH((AW$5-$C9),Lifetimes!$A$10:$A$39,0),MATCH($B9,Lifetimes!$P$9:$AB$9,0)),"") ->  | AX9: =IFERROR($D9*INDEX(IF($A9="COM",COM_LT,IF($A9="EDU",EDU_LT,IF($A9="INT",INT_LT,RES_LT))),MATCH((AX$5-$C9),Lifetimes!$A$10:$A$39,0),MATCH($B9,Lifetimes!$P$9:$AB$9,0)),"") ->  | AY9: =IFERROR($D9*INDEX(IF($A9="COM",COM_LT,IF($A9="EDU",EDU_LT,IF($A9="INT",INT_LT,RES_LT))),MATCH((AY$5-$C9),Lifetimes!$A$10:$A$39,0),MATCH($B9,Lifetimes!$P$9:$AB$9,0)),"") ->  | AZ9: =IFERROR($D9*INDEX(IF($A9="COM",COM_LT,IF($A9="EDU",EDU_LT,IF($A9="INT",INT_LT,RES_LT))),MATCH((AZ$5-$C9),Lifetimes!$A$10:$A$39,0),MATCH($B9,Lifetimes!$P$9:$AB$9,0)),"") ->  | BA9: =IFERROR($D9*INDEX(IF($A9="COM",COM_LT,IF($A9="EDU",EDU_LT,IF($A9="INT",INT_LT,RES_LT))),MATCH((BA$5-$C9),Lifetimes!$A$10:$A$39,0),MATCH($B9,Lifetimes!$P$9:$AB$9,0)),"") ->  | BB9: =IFERROR($D9*INDEX(IF($A9="COM",COM_LT,IF($A9="EDU",EDU_LT,IF($A9="INT",INT_LT,RES_LT))),MATCH((BB$5-$C9),Lifetimes!$A$10:$A$39,0),MATCH($B9,Lifetimes!$P$9:$AB$9,0)),"") ->  | BC9: =IFERROR($D9*INDEX(IF($A9="COM",COM_LT,IF($A9="EDU",EDU_LT,IF($A9="INT",INT_LT,RES_LT))),MATCH((BC$5-$C9),Lifetimes!$A$10:$A$39,0),MATCH($B9,Lifetimes!$P$9:$AB$9,0)),"") ->  | BD9: =IFERROR($D9*INDEX(IF($A9="COM",COM_LT,IF($A9="EDU",EDU_LT,IF($A9="INT",INT_LT,RES_LT))),MATCH((BD$5-$C9),Lifetimes!$A$10:$A$39,0),MATCH($B9,Lifetimes!$P$9:$AB$9,0)),"") ->  | BE9: =IFERROR($D9*INDEX(IF($A9="COM",COM_LT,IF($A9="EDU",EDU_LT,IF($A9="INT",INT_LT,RES_LT))),MATCH((BE$5-$C9),Lifetimes!$A$10:$A$39,0),MATCH($B9,Lifetimes!$P$9:$AB$9,0)),"") ->  | BF9: =IFERROR($D9*INDEX(IF($A9="COM",COM_LT,IF($A9="EDU",EDU_LT,IF($A9="INT",INT_LT,RES_LT))),MATCH((BF$5-$C9),Lifetimes!$A$10:$A$39,0),MATCH($B9,Lifetimes!$P$9:$AB$9,0)),"") ->  | BG9: =IFERROR($D9*INDEX(IF($A9="COM",COM_LT,IF($A9="EDU",EDU_LT,IF($A9="INT",INT_LT,RES_LT))),MATCH((BG$5-$C9),Lifetimes!$A$10:$A$39,0),MATCH($B9,Lifetimes!$P$9:$AB$9,0)),"") ->  | BH9: =IFERROR($D9*INDEX(IF($A9="COM",COM_LT,IF($A9="EDU",EDU_LT,IF($A9="INT",INT_LT,RES_LT))),MATCH((BH$5-$C9),Lifetimes!$A$10:$A$39,0),MATCH($B9,Lifetimes!$P$9:$AB$9,0)),"") ->  | BI9: =IFERROR($D9*INDEX(IF($A9="COM",COM_LT,IF($A9="EDU",EDU_LT,IF($A9="INT",INT_LT,RES_LT))),MATCH((BI$5-$C9),Lifetimes!$A$10:$A$39,0),MATCH($B9,Lifetimes!$P$9:$AB$9,0)),"") ->  | BJ9: =IFERROR($D9*INDEX(IF($A9="COM",COM_LT,IF($A9="EDU",EDU_LT,IF($A9="INT",INT_LT,RES_LT))),MATCH((BJ$5-$C9),Lifetimes!$A$10:$A$39,0),MATCH($B9,Lifetimes!$P$9:$AB$9,0)),"") ->  | BK9: =IFERROR($D9*INDEX(IF($A9="COM",COM_LT,IF($A9="EDU",EDU_LT,IF($A9="INT",INT_LT,RES_LT))),MATCH((BK$5-$C9),Lifetimes!$A$10:$A$39,0),MATCH($B9,Lifetimes!$P$9:$AB$9,0)),"") ->  | BL9: =IFERROR($D9*INDEX(IF($A9="COM",COM_LT,IF($A9="EDU",EDU_LT,IF($A9="INT",INT_LT,RES_LT))),MATCH((BL$5-$C9),Lifetimes!$A$10:$A$39,0),MATCH($B9,Lifetimes!$P$9:$AB$9,0)),"") ->  | BM9: =IFERROR($D9*INDEX(IF($A9="COM",COM_LT,IF($A9="EDU",EDU_LT,IF($A9="INT",INT_LT,RES_LT))),MATCH((BM$5-$C9),Lifetimes!$A$10:$A$39,0),MATCH($B9,Lifetimes!$P$9:$AB$9,0)),"") ->  | BN9: =IFERROR($D9*INDEX(IF($A9="COM",COM_LT,IF($A9="EDU",EDU_LT,IF($A9="INT",INT_LT,RES_LT))),MATCH((BN$5-$C9),Lifetimes!$A$10:$A$39,0),MATCH($B9,Lifetimes!$P$9:$AB$9,0)),"") -> 
A10: COM | B10: Cell Phones | C10: 1981 | D10: =INDEX(RSWC,MATCH($B10&$C10,RegSalesWeight_Consumer!$L$8:$L$813,0),MATCH($A10,market_group,0)) -> 0 | E10: =IFERROR($D10*INDEX(IF($A10="COM",COM_LT,IF($A10="EDU",EDU_LT,IF($A10="INT",INT_LT,RES_LT))),MATCH((E$5-$C10),Lifetimes!$A$10:$A$39,0),MATCH($B10,Lifetimes!$P$9:$AB$9,0)),"") ->  | F10: =IFERROR($D10*INDEX(IF($A10="COM",COM_LT,IF($A10="EDU",EDU_LT,IF($A10="INT",INT_LT,RES_LT))),MATCH((F$5-$C10),Lifetimes!$A$10:$A$39,0),MATCH($B10,Lifetimes!$P$9:$AB$9,0)),"") ->  | G10: =IFERROR($D10*INDEX(IF($A10="COM",COM_LT,IF($A10="EDU",EDU_LT,IF($A10="INT",INT_LT,RES_LT))),MATCH((G$5-$C10),Lifetimes!$A$10:$A$39,0),MATCH($B10,Lifetimes!$P$9:$AB$9,0)),"") -> 0 | H10: =IFERROR($D10*INDEX(IF($A10="COM",COM_LT,IF($A10="EDU",EDU_LT,IF($A10="INT",INT_LT,RES_LT))),MATCH((H$5-$C10),Lifetimes!$A$10:$A$39,0),MATCH($B10,Lifetimes!$P$9:$AB$9,0)),"") -> 0 | I10: =IFERROR($D10*INDEX(IF($A10="COM",COM_LT,IF($A10="EDU",EDU_LT,IF($A10="INT",INT_LT,RES_LT))),MATCH((I$5-$C10),Lifetimes!$A$10:$A$39,0),MATCH($B10,Lifetimes!$P$9:$AB$9,0)),"") -> 0 | J10: =IFERROR($D10*INDEX(IF($A10="COM",COM_LT,IF($A10="EDU",EDU_LT,IF($A10="INT",INT_LT,RES_LT))),MATCH((J$5-$C10),Lifetimes!$A$10:$A$39,0),MATCH($B10,Lifetimes!$P$9:$AB$9,0)),"") -> 0 | K10: =IFERROR($D10*INDEX(IF($A10="COM",COM_LT,IF($A10="EDU",EDU_LT,IF($A10="INT",INT_LT,RES_LT))),MATCH((K$5-$C10),Lifetimes!$A$10:$A$39,0),MATCH($B10,Lifetimes!$P$9:$AB$9,0)),"") -> 0 | L10: =IFERROR($D10*INDEX(IF($A10="COM",COM_LT,IF($A10="EDU",EDU_LT,IF($A10="INT",INT_LT,RES_LT))),MATCH((L$5-$C10),Lifetimes!$A$10:$A$39,0),MATCH($B10,Lifetimes!$P$9:$AB$9,0)),"") -> 0 | M10: =IFERROR($D10*INDEX(IF($A10="COM",COM_LT,IF($A10="EDU",EDU_LT,IF($A10="INT",INT_LT,RES_LT))),MATCH((M$5-$C10),Lifetimes!$A$10:$A$39,0),MATCH($B10,Lifetimes!$P$9:$AB$9,0)),"") -> 0 | N10: =IFERROR($D10*INDEX(IF($A10="COM",COM_LT,IF($A10="EDU",EDU_LT,IF($A10="INT",INT_LT,RES_LT))),MATCH((N$5-$C10),Lifetimes!$A$10:$A$39,0),MATCH($B10,Lifetimes!$P$9:$AB$9,0)),"") -> 0 | O10: =IFERROR($D10*INDEX(IF($A10="COM",COM_LT,IF($A10="EDU",EDU_LT,IF($A10="INT",INT_LT,RES_LT))),MATCH((O$5-$C10),Lifetimes!$A$10:$A$39,0),MATCH($B10,Lifetimes!$P$9:$AB$9,0)),"") -> 0 | P10: =IFERROR($D10*INDEX(IF($A10="COM",COM_LT,IF($A10="EDU",EDU_LT,IF($A10="INT",INT_LT,RES_LT))),MATCH((P$5-$C10),Lifetimes!$A$10:$A$39,0),MATCH($B10,Lifetimes!$P$9:$AB$9,0)),"") -> 0 | Q10: =IFERROR($D10*INDEX(IF($A10="COM",COM_LT,IF($A10="EDU",EDU_LT,IF($A10="INT",INT_LT,RES_LT))),MATCH((Q$5-$C10),Lifetimes!$A$10:$A$39,0),MATCH($B10,Lifetimes!$P$9:$AB$9,0)),"") -> 0 | R10: =IFERROR($D10*INDEX(IF($A10="COM",COM_LT,IF($A10="EDU",EDU_LT,IF($A10="INT",INT_LT,RES_LT))),MATCH((R$5-$C10),Lifetimes!$A$10:$A$39,0),MATCH($B10,Lifetimes!$P$9:$AB$9,0)),"") -> 0 | S10: =IFERROR($D10*INDEX(IF($A10="COM",COM_LT,IF($A10="EDU",EDU_LT,IF($A10="INT",INT_LT,RES_LT))),MATCH((S$5-$C10),Lifetimes!$A$10:$A$39,0),MATCH($B10,Lifetimes!$P$9:$AB$9,0)),"") -> 0 | T10: =IFERROR($D10*INDEX(IF($A10="COM",COM_LT,IF($A10="EDU",EDU_LT,IF($A10="INT",INT_LT,RES_LT))),MATCH((T$5-$C10),Lifetimes!$A$10:$A$39,0),MATCH($B10,Lifetimes!$P$9:$AB$9,0)),"") -> 0 | U10: =IFERROR($D10*INDEX(IF($A10="COM",COM_LT,IF($A10="EDU",EDU_LT,IF($A10="INT",INT_LT,RES_LT))),MATCH((U$5-$C10),Lifetimes!$A$10:$A$39,0),MATCH($B10,Lifetimes!$P$9:$AB$9,0)),"") -> 0 | V10: =IFERROR($D10*INDEX(IF($A10="COM",COM_LT,IF($A10="EDU",EDU_LT,IF($A10="INT",INT_LT,RES_LT))),MATCH((V$5-$C10),Lifetimes!$A$10:$A$39,0),MATCH($B10,Lifetimes!$P$9:$AB$9,0)),"") -> 0 | W10: =IFERROR($D10*INDEX(IF($A10="COM",COM_LT,IF($A10="EDU",EDU_LT,IF($A10="INT",INT_LT,RES_LT))),MATCH((W$5-$C10),Lifetimes!$A$10:$A$39,0),MATCH($B10,Lifetimes!$P$9:$AB$9,0)),"") -> 0 | X10: =IFERROR($D10*INDEX(IF($A10="COM",COM_LT,IF($A10="EDU",EDU_LT,IF($A10="INT",INT_LT,RES_LT))),MATCH((X$5-$C10),Lifetimes!$A$10:$A$39,0),MATCH($B10,Lifetimes!$P$9:$AB$9,0)),"") -> 0 | Y10: =IFERROR($D10*INDEX(IF($A10="COM",COM_LT,IF($A10="EDU",EDU_LT,IF($A10="INT",INT_LT,RES_LT))),MATCH((Y$5-$C10),Lifetimes!$A$10:$A$39,0),MATCH($B10,Lifetimes!$P$9:$AB$9,0)),"") -> 0 | Z10: =IFERROR($D10*INDEX(IF($A10="COM",COM_LT,IF($A10="EDU",EDU_LT,IF($A10="INT",INT_LT,RES_LT))),MATCH((Z$5-$C10),Lifetimes!$A$10:$A$39,0),MATCH($B10,Lifetimes!$P$9:$AB$9,0)),"") -> 0 | AA10: =IFERROR($D10*INDEX(IF($A10="COM",COM_LT,IF($A10="EDU",EDU_LT,IF($A10="INT",INT_LT,RES_LT))),MATCH((AA$5-$C10),Lifetimes!$A$10:$A$39,0),MATCH($B10,Lifetimes!$P$9:$AB$9,0)),"") -> 0 | AB10: =IFERROR($D10*INDEX(IF($A10="COM",COM_LT,IF($A10="EDU",EDU_LT,IF($A10="INT",INT_LT,RES_LT))),MATCH((AB$5-$C10),Lifetimes!$A$10:$A$39,0),MATCH($B10,Lifetimes!$P$9:$AB$9,0)),"") -> 0 | AC10: =IFERROR($D10*INDEX(IF($A10="COM",COM_LT,IF($A10="EDU",EDU_LT,IF($A10="INT",INT_LT,RES_LT))),MATCH((AC$5-$C10),Lifetimes!$A$10:$A$39,0),MATCH($B10,Lifetimes!$P$9:$AB$9,0)),"") -> 0 | AD10: =IFERROR($D10*INDEX(IF($A10="COM",COM_LT,IF($A10="EDU",EDU_LT,IF($A10="INT",INT_LT,RES_LT))),MATCH((AD$5-$C10),Lifetimes!$A$10:$A$39,0),MATCH($B10,Lifetimes!$P$9:$AB$9,0)),"") -> 0 | AE10: =IFERROR($D10*INDEX(IF($A10="COM",COM_LT,IF($A10="EDU",EDU_LT,IF($A10="INT",INT_LT,RES_LT))),MATCH((AE$5-$C10),Lifetimes!$A$10:$A$39,0),MATCH($B10,Lifetimes!$P$9:$AB$9,0)),"") -> 0 | AF10: =IFERROR($D10*INDEX(IF($A10="COM",COM_LT,IF($A10="EDU",EDU_LT,IF($A10="INT",INT_LT,RES_LT))),MATCH((AF$5-$C10),Lifetimes!$A$10:$A$39,0),MATCH($B10,Lifetimes!$P$9:$AB$9,0)),"") -> 0 | AG10: =IFERROR($D10*INDEX(IF($A10="COM",COM_LT,IF($A10="EDU",EDU_LT,IF($A10="INT",INT_LT,RES_LT))),MATCH((AG$5-$C10),Lifetimes!$A$10:$A$39,0),MATCH($B10,Lifetimes!$P$9:$AB$9,0)),"") -> 0 | AH10: =IFERROR($D10*INDEX(IF($A10="COM",COM_LT,IF($A10="EDU",EDU_LT,IF($A10="INT",INT_LT,RES_LT))),MATCH((AH$5-$C10),Lifetimes!$A$10:$A$39,0),MATCH($B10,Lifetimes!$P$9:$AB$9,0)),"") -> 0 | AI10: =IFERROR($D10*INDEX(IF($A10="COM",COM_LT,IF($A10="EDU",EDU_LT,IF($A10="INT",INT_LT,RES_LT))),MATCH((AI$5-$C10),Lifetimes!$A$10:$A$39,0),MATCH($B10,Lifetimes!$P$9:$AB$9,0)),"") -> 0 | AJ10: =IFERROR($D10*INDEX(IF($A10="COM",COM_LT,IF($A10="EDU",EDU_LT,IF($A10="INT",INT_LT,RES_LT))),MATCH((AJ$5-$C10),Lifetimes!$A$10:$A$39,0),MATCH($B10,Lifetimes!$P$9:$AB$9,0)),"") -> 0 | AK10: =IFERROR($D10*INDEX(IF($A10="COM",COM_LT,IF($A10="EDU",EDU_LT,IF($A10="INT",INT_LT,RES_LT))),MATCH((AK$5-$C10),Lifetimes!$A$10:$A$39,0),MATCH($B10,Lifetimes!$P$9:$AB$9,0)),"") ->  | AL10: =IFERROR($D10*INDEX(IF($A10="COM",COM_LT,IF($A10="EDU",EDU_LT,IF($A10="INT",INT_LT,RES_LT))),MATCH((AL$5-$C10),Lifetimes!$A$10:$A$39,0),MATCH($B10,Lifetimes!$P$9:$AB$9,0)),"") ->  | AM10: =IFERROR($D10*INDEX(IF($A10="COM",COM_LT,IF($A10="EDU",EDU_LT,IF($A10="INT",INT_LT,RES_LT))),MATCH((AM$5-$C10),Lifetimes!$A$10:$A$39,0),MATCH($B10,Lifetimes!$P$9:$AB$9,0)),"") ->  | AN10: =IFERROR($D10*INDEX(IF($A10="COM",COM_LT,IF($A10="EDU",EDU_LT,IF($A10="INT",INT_LT,RES_LT))),MATCH((AN$5-$C10),Lifetimes!$A$10:$A$39,0),MATCH($B10,Lifetimes!$P$9:$AB$9,0)),"") ->  | AO10: =IFERROR($D10*INDEX(IF($A10="COM",COM_LT,IF($A10="EDU",EDU_LT,IF($A10="INT",INT_LT,RES_LT))),MATCH((AO$5-$C10),Lifetimes!$A$10:$A$39,0),MATCH($B10,Lifetimes!$P$9:$AB$9,0)),"") ->  | AP10: =IFERROR($D10*INDEX(IF($A10="COM",COM_LT,IF($A10="EDU",EDU_LT,IF($A10="INT",INT_LT,RES_LT))),MATCH((AP$5-$C10),Lifetimes!$A$10:$A$39,0),MATCH($B10,Lifetimes!$P$9:$AB$9,0)),"") ->  | AQ10: =IFERROR($D10*INDEX(IF($A10="COM",COM_LT,IF($A10="EDU",EDU_LT,IF($A10="INT",INT_LT,RES_LT))),MATCH((AQ$5-$C10),Lifetimes!$A$10:$A$39,0),MATCH($B10,Lifetimes!$P$9:$AB$9,0)),"") ->  | AR10: =IFERROR($D10*INDEX(IF($A10="COM",COM_LT,IF($A10="EDU",EDU_LT,IF($A10="INT",INT_LT,RES_LT))),MATCH((AR$5-$C10),Lifetimes!$A$10:$A$39,0),MATCH($B10,Lifetimes!$P$9:$AB$9,0)),"") ->  | AS10: =IFERROR($D10*INDEX(IF($A10="COM",COM_LT,IF($A10="EDU",EDU_LT,IF($A10="INT",INT_LT,RES_LT))),MATCH((AS$5-$C10),Lifetimes!$A$10:$A$39,0),MATCH($B10,Lifetimes!$P$9:$AB$9,0)),"") ->  | AT10: =IFERROR($D10*INDEX(IF($A10="COM",COM_LT,IF($A10="EDU",EDU_LT,IF($A10="INT",INT_LT,RES_LT))),MATCH((AT$5-$C10),Lifetimes!$A$10:$A$39,0),MATCH($B10,Lifetimes!$P$9:$AB$9,0)),"") ->  | AU10: =IFERROR($D10*INDEX(IF($A10="COM",COM_LT,IF($A10="EDU",EDU_LT,IF($A10="INT",INT_LT,RES_LT))),MATCH((AU$5-$C10),Lifetimes!$A$10:$A$39,0),MATCH($B10,Lifetimes!$P$9:$AB$9,0)),"") ->  | AV10: =IFERROR($D10*INDEX(IF($A10="COM",COM_LT,IF($A10="EDU",EDU_LT,IF($A10="INT",INT_LT,RES_LT))),MATCH((AV$5-$C10),Lifetimes!$A$10:$A$39,0),MATCH($B10,Lifetimes!$P$9:$AB$9,0)),"") ->  | AW10: =IFERROR($D10*INDEX(IF($A10="COM",COM_LT,IF($A10="EDU",EDU_LT,IF($A10="INT",INT_LT,RES_LT))),MATCH((AW$5-$C10),Lifetimes!$A$10:$A$39,0),MATCH($B10,Lifetimes!$P$9:$AB$9,0)),"") ->  | AX10: =IFERROR($D10*INDEX(IF($A10="COM",COM_LT,IF($A10="EDU",EDU_LT,IF($A10="INT",INT_LT,RES_LT))),MATCH((AX$5-$C10),Lifetimes!$A$10:$A$39,0),MATCH($B10,Lifetimes!$P$9:$AB$9,0)),"") ->  | AY10: =IFERROR($D10*INDEX(IF($A10="COM",COM_LT,IF($A10="EDU",EDU_LT,IF($A10="INT",INT_LT,RES_LT))),MATCH((AY$5-$C10),Lifetimes!$A$10:$A$39,0),MATCH($B10,Lifetimes!$P$9:$AB$9,0)),"") ->  | AZ10: =IFERROR($D10*INDEX(IF($A10="COM",COM_LT,IF($A10="EDU",EDU_LT,IF($A10="INT",INT_LT,RES_LT))),MATCH((AZ$5-$C10),Lifetimes!$A$10:$A$39,0),MATCH($B10,Lifetimes!$P$9:$AB$9,0)),"") ->  | BA10: =IFERROR($D10*INDEX(IF($A10="COM",COM_LT,IF($A10="EDU",EDU_LT,IF($A10="INT",INT_LT,RES_LT))),MATCH((BA$5-$C10),Lifetimes!$A$10:$A$39,0),MATCH($B10,Lifetimes!$P$9:$AB$9,0)),"") ->  | BB10: =IFERROR($D10*INDEX(IF($A10="COM",COM_LT,IF($A10="EDU",EDU_LT,IF($A10="INT",INT_LT,RES_LT))),MATCH((BB$5-$C10),Lifetimes!$A$10:$A$39,0),MATCH($B10,Lifetimes!$P$9:$AB$9,0)),"") ->  | BC10: =IFERROR($D10*INDEX(IF($A10="COM",COM_LT,IF($A10="EDU",EDU_LT,IF($A10="INT",INT_LT,RES_LT))),MATCH((BC$5-$C10),Lifetimes!$A$10:$A$39,0),MATCH($B10,Lifetimes!$P$9:$AB$9,0)),"") ->  | BD10: =IFERROR($D10*INDEX(IF($A10="COM",COM_LT,IF($A10="EDU",EDU_LT,IF($A10="INT",INT_LT,RES_LT))),MATCH((BD$5-$C10),Lifetimes!$A$10:$A$39,0),MATCH($B10,Lifetimes!$P$9:$AB$9,0)),"") ->  | BE10: =IFERROR($D10*INDEX(IF($A10="COM",COM_LT,IF($A10="EDU",EDU_LT,IF($A10="INT",INT_LT,RES_LT))),MATCH((BE$5-$C10),Lifetimes!$A$10:$A$39,0),MATCH($B10,Lifetimes!$P$9:$AB$9,0)),"") ->  | BF10: =IFERROR($D10*INDEX(IF($A10="COM",COM_LT,IF($A10="EDU",EDU_LT,IF($A10="INT",INT_LT,RES_LT))),MATCH((BF$5-$C10),Lifetimes!$A$10:$A$39,0),MATCH($B10,Lifetimes!$P$9:$AB$9,0)),"") ->  | BG10: =IFERROR($D10*INDEX(IF($A10="COM",COM_LT,IF($A10="EDU",EDU_LT,IF($A10="INT",INT_LT,RES_LT))),MATCH((BG$5-$C10),Lifetimes!$A$10:$A$39,0),MATCH($B10,Lifetimes!$P$9:$AB$9,0)),"") ->  | BH10: =IFERROR($D10*INDEX(IF($A10="COM",COM_LT,IF($A10="EDU",EDU_LT,IF($A10="INT",INT_LT,RES_LT))),MATCH((BH$5-$C10),Lifetimes!$A$10:$A$39,0),MATCH($B10,Lifetimes!$P$9:$AB$9,0)),"") ->  | BI10: =IFERROR($D10*INDEX(IF($A10="COM",COM_LT,IF($A10="EDU",EDU_LT,IF($A10="INT",INT_LT,RES_LT))),MATCH((BI$5-$C10),Lifetimes!$A$10:$A$39,0),MATCH($B10,Lifetimes!$P$9:$AB$9,0)),"") ->  | BJ10: =IFERROR($D10*INDEX(IF($A10="COM",COM_LT,IF($A10="EDU",EDU_LT,IF($A10="INT",INT_LT,RES_LT))),MATCH((BJ$5-$C10),Lifetimes!$A$10:$A$39,0),MATCH($B10,Lifetimes!$P$9:$AB$9,0)),"") ->  | BK10: =IFERROR($D10*INDEX(IF($A10="COM",COM_LT,IF($A10="EDU",EDU_LT,IF($A10="INT",INT_LT,RES_LT))),MATCH((BK$5-$C10),Lifetimes!$A$10:$A$39,0),MATCH($B10,Lifetimes!$P$9:$AB$9,0)),"") ->  | BL10: =IFERROR($D10*INDEX(IF($A10="COM",COM_LT,IF($A10="EDU",EDU_LT,IF($A10="INT",INT_LT,RES_LT))),MATCH((BL$5-$C10),Lifetimes!$A$10:$A$39,0),MATCH($B10,Lifetimes!$P$9:$AB$9,0)),"") ->  | BM10: =IFERROR($D10*INDEX(IF($A10="COM",COM_LT,IF($A10="EDU",EDU_LT,IF($A10="INT",INT_LT,RES_LT))),MATCH((BM$5-$C10),Lifetimes!$A$10:$A$39,0),MATCH($B10,Lifetimes!$P$9:$AB$9,0)),"") ->  | BN10: =IFERROR($D10*INDEX(IF($A10="COM",COM_LT,IF($A10="EDU",EDU_LT,IF($A10="INT",INT_LT,RES_LT))),MATCH((BN$5-$C10),Lifetimes!$A$10:$A$39,0),MATCH($B10,Lifetimes!$P$9:$AB$9,0)),"") -> 
A11: EDU | B11: Cell Phones | C11: 1981 | D11: =INDEX(RSWC,MATCH($B11&$C11,RegSalesWeight_Consumer!$L$8:$L$813,0),MATCH($A11,market_group,0)) -> 0 | E11: =IFERROR($D11*INDEX(IF($A11="COM",COM_LT,IF($A11="EDU",EDU_LT,IF($A11="INT",INT_LT,RES_LT))),MATCH((E$5-$C11),Lifetimes!$A$10:$A$39,0),MATCH($B11,Lifetimes!$P$9:$AB$9,0)),"") ->  | F11: =IFERROR($D11*INDEX(IF($A11="COM",COM_LT,IF($A11="EDU",EDU_LT,IF($A11="INT",INT_LT,RES_LT))),MATCH((F$5-$C11),Lifetimes!$A$10:$A$39,0),MATCH($B11,Lifetimes!$P$9:$AB$9,0)),"") ->  | G11: =IFERROR($D11*INDEX(IF($A11="COM",COM_LT,IF($A11="EDU",EDU_LT,IF($A11="INT",INT_LT,RES_LT))),MATCH((G$5-$C11),Lifetimes!$A$10:$A$39,0),MATCH($B11,Lifetimes!$P$9:$AB$9,0)),"") -> 0 | H11: =IFERROR($D11*INDEX(IF($A11="COM",COM_LT,IF($A11="EDU",EDU_LT,IF($A11="INT",INT_LT,RES_LT))),MATCH((H$5-$C11),Lifetimes!$A$10:$A$39,0),MATCH($B11,Lifetimes!$P$9:$AB$9,0)),"") -> 0 | I11: =IFERROR($D11*INDEX(IF($A11="COM",COM_LT,IF($A11="EDU",EDU_LT,IF($A11="INT",INT_LT,RES_LT))),MATCH((I$5-$C11),Lifetimes!$A$10:$A$39,0),MATCH($B11,Lifetimes!$P$9:$AB$9,0)),"") -> 0 | J11: =IFERROR($D11*INDEX(IF($A11="COM",COM_LT,IF($A11="EDU",EDU_LT,IF($A11="INT",INT_LT,RES_LT))),MATCH((J$5-$C11),Lifetimes!$A$10:$A$39,0),MATCH($B11,Lifetimes!$P$9:$AB$9,0)),"") -> 0 | K11: =IFERROR($D11*INDEX(IF($A11="COM",COM_LT,IF($A11="EDU",EDU_LT,IF($A11="INT",INT_LT,RES_LT))),MATCH((K$5-$C11),Lifetimes!$A$10:$A$39,0),MATCH($B11,Lifetimes!$P$9:$AB$9,0)),"") -> 0 | L11: =IFERROR($D11*INDEX(IF($A11="COM",COM_LT,IF($A11="EDU",EDU_LT,IF($A11="INT",INT_LT,RES_LT))),MATCH((L$5-$C11),Lifetimes!$A$10:$A$39,0),MATCH($B11,Lifetimes!$P$9:$AB$9,0)),"") -> 0 | M11: =IFERROR($D11*INDEX(IF($A11="COM",COM_LT,IF($A11="EDU",EDU_LT,IF($A11="INT",INT_LT,RES_LT))),MATCH((M$5-$C11),Lifetimes!$A$10:$A$39,0),MATCH($B11,Lifetimes!$P$9:$AB$9,0)),"") -> 0 | N11: =IFERROR($D11*INDEX(IF($A11="COM",COM_LT,IF($A11="EDU",EDU_LT,IF($A11="INT",INT_LT,RES_LT))),MATCH((N$5-$C11),Lifetimes!$A$10:$A$39,0),MATCH($B11,Lifetimes!$P$9:$AB$9,0)),"") -> 0 | O11: =IFERROR($D11*INDEX(IF($A11="COM",COM_LT,IF($A11="EDU",EDU_LT,IF($A11="INT",INT_LT,RES_LT))),MATCH((O$5-$C11),Lifetimes!$A$10:$A$39,0),MATCH($B11,Lifetimes!$P$9:$AB$9,0)),"") -> 0 | P11: =IFERROR($D11*INDEX(IF($A11="COM",COM_LT,IF($A11="EDU",EDU_LT,IF($A11="INT",INT_LT,RES_LT))),MATCH((P$5-$C11),Lifetimes!$A$10:$A$39,0),MATCH($B11,Lifetimes!$P$9:$AB$9,0)),"") -> 0 | Q11: =IFERROR($D11*INDEX(IF($A11="COM",COM_LT,IF($A11="EDU",EDU_LT,IF($A11="INT",INT_LT,RES_LT))),MATCH((Q$5-$C11),Lifetimes!$A$10:$A$39,0),MATCH($B11,Lifetimes!$P$9:$AB$9,0)),"") -> 0 | R11: =IFERROR($D11*INDEX(IF($A11="COM",COM_LT,IF($A11="EDU",EDU_LT,IF($A11="INT",INT_LT,RES_LT))),MATCH((R$5-$C11),Lifetimes!$A$10:$A$39,0),MATCH($B11,Lifetimes!$P$9:$AB$9,0)),"") -> 0 | S11: =IFERROR($D11*INDEX(IF($A11="COM",COM_LT,IF($A11="EDU",EDU_LT,IF($A11="INT",INT_LT,RES_LT))),MATCH((S$5-$C11),Lifetimes!$A$10:$A$39,0),MATCH($B11,Lifetimes!$P$9:$AB$9,0)),"") -> 0 | T11: =IFERROR($D11*INDEX(IF($A11="COM",COM_LT,IF($A11="EDU",EDU_LT,IF($A11="INT",INT_LT,RES_LT))),MATCH((T$5-$C11),Lifetimes!$A$10:$A$39,0),MATCH($B11,Lifetimes!$P$9:$AB$9,0)),"") -> 0 | U11: =IFERROR($D11*INDEX(IF($A11="COM",COM_LT,IF($A11="EDU",EDU_LT,IF($A11="INT",INT_LT,RES_LT))),MATCH((U$5-$C11),Lifetimes!$A$10:$A$39,0),MATCH($B11,Lifetimes!$P$9:$AB$9,0)),"") -> 0 | V11: =IFERROR($D11*INDEX(IF($A11="COM",COM_LT,IF($A11="EDU",EDU_LT,IF($A11="INT",INT_LT,RES_LT))),MATCH((V$5-$C11),Lifetimes!$A$10:$A$39,0),MATCH($B11,Lifetimes!$P$9:$AB$9,0)),"") -> 0 | W11: =IFERROR($D11*INDEX(IF($A11="COM",COM_LT,IF($A11="EDU",EDU_LT,IF($A11="INT",INT_LT,RES_LT))),MATCH((W$5-$C11),Lifetimes!$A$10:$A$39,0),MATCH($B11,Lifetimes!$P$9:$AB$9,0)),"") -> 0 | X11: =IFERROR($D11*INDEX(IF($A11="COM",COM_LT,IF($A11="EDU",EDU_LT,IF($A11="INT",INT_LT,RES_LT))),MATCH((X$5-$C11),Lifetimes!$A$10:$A$39,0),MATCH($B11,Lifetimes!$P$9:$AB$9,0)),"") -> 0 | Y11: =IFERROR($D11*INDEX(IF($A11="COM",COM_LT,IF($A11="EDU",EDU_LT,IF($A11="INT",INT_LT,RES_LT))),MATCH((Y$5-$C11),Lifetimes!$A$10:$A$39,0),MATCH($B11,Lifetimes!$P$9:$AB$9,0)),"") -> 0 | Z11: =IFERROR($D11*INDEX(IF($A11="COM",COM_LT,IF($A11="EDU",EDU_LT,IF($A11="INT",INT_LT,RES_LT))),MATCH((Z$5-$C11),Lifetimes!$A$10:$A$39,0),MATCH($B11,Lifetimes!$P$9:$AB$9,0)),"") -> 0 | AA11: =IFERROR($D11*INDEX(IF($A11="COM",COM_LT,IF($A11="EDU",EDU_LT,IF($A11="INT",INT_LT,RES_LT))),MATCH((AA$5-$C11),Lifetimes!$A$10:$A$39,0),MATCH($B11,Lifetimes!$P$9:$AB$9,0)),"") -> 0 | AB11: =IFERROR($D11*INDEX(IF($A11="COM",COM_LT,IF($A11="EDU",EDU_LT,IF($A11="INT",INT_LT,RES_LT))),MATCH((AB$5-$C11),Lifetimes!$A$10:$A$39,0),MATCH($B11,Lifetimes!$P$9:$AB$9,0)),"") -> 0 | AC11: =IFERROR($D11*INDEX(IF($A11="COM",COM_LT,IF($A11="EDU",EDU_LT,IF($A11="INT",INT_LT,RES_LT))),MATCH((AC$5-$C11),Lifetimes!$A$10:$A$39,0),MATCH($B11,Lifetimes!$P$9:$AB$9,0)),"") -> 0 | AD11: =IFERROR($D11*INDEX(IF($A11="COM",COM_LT,IF($A11="EDU",EDU_LT,IF($A11="INT",INT_LT,RES_LT))),MATCH((AD$5-$C11),Lifetimes!$A$10:$A$39,0),MATCH($B11,Lifetimes!$P$9:$AB$9,0)),"") -> 0 | AE11: =IFERROR($D11*INDEX(IF($A11="COM",COM_LT,IF($A11="EDU",EDU_LT,IF($A11="INT",INT_LT,RES_LT))),MATCH((AE$5-$C11),Lifetimes!$A$10:$A$39,0),MATCH($B11,Lifetimes!$P$9:$AB$9,0)),"") -> 0 | AF11: =IFERROR($D11*INDEX(IF($A11="COM",COM_LT,IF($A11="EDU",EDU_LT,IF($A11="INT",INT_LT,RES_LT))),MATCH((AF$5-$C11),Lifetimes!$A$10:$A$39,0),MATCH($B11,Lifetimes!$P$9:$AB$9,0)),"") -> 0 | AG11: =IFERROR($D11*INDEX(IF($A11="COM",COM_LT,IF($A11="EDU",EDU_LT,IF($A11="INT",INT_LT,RES_LT))),MATCH((AG$5-$C11),Lifetimes!$A$10:$A$39,0),MATCH($B11,Lifetimes!$P$9:$AB$9,0)),"") -> 0 | AH11: =IFERROR($D11*INDEX(IF($A11="COM",COM_LT,IF($A11="EDU",EDU_LT,IF($A11="INT",INT_LT,RES_LT))),MATCH((AH$5-$C11),Lifetimes!$A$10:$A$39,0),MATCH($B11,Lifetimes!$P$9:$AB$9,0)),"") -> 0 | AI11: =IFERROR($D11*INDEX(IF($A11="COM",COM_LT,IF($A11="EDU",EDU_LT,IF($A11="INT",INT_LT,RES_LT))),MATCH((AI$5-$C11),Lifetimes!$A$10:$A$39,0),MATCH($B11,Lifetimes!$P$9:$AB$9,0)),"") -> 0 | AJ11: =IFERROR($D11*INDEX(IF($A11="COM",COM_LT,IF($A11="EDU",EDU_LT,IF($A11="INT",INT_LT,RES_LT))),MATCH((AJ$5-$C11),Lifetimes!$A$10:$A$39,0),MATCH($B11,Lifetimes!$P$9:$AB$9,0)),"") -> 0 | AK11: =IFERROR($D11*INDEX(IF($A11="COM",COM_LT,IF($A11="EDU",EDU_LT,IF($A11="INT",INT_LT,RES_LT))),MATCH((AK$5-$C11),Lifetimes!$A$10:$A$39,0),MATCH($B11,Lifetimes!$P$9:$AB$9,0)),"") ->  | AL11: =IFERROR($D11*INDEX(IF($A11="COM",COM_LT,IF($A11="EDU",EDU_LT,IF($A11="INT",INT_LT,RES_LT))),MATCH((AL$5-$C11),Lifetimes!$A$10:$A$39,0),MATCH($B11,Lifetimes!$P$9:$AB$9,0)),"") ->  | AM11: =IFERROR($D11*INDEX(IF($A11="COM",COM_LT,IF($A11="EDU",EDU_LT,IF($A11="INT",INT_LT,RES_LT))),MATCH((AM$5-$C11),Lifetimes!$A$10:$A$39,0),MATCH($B11,Lifetimes!$P$9:$AB$9,0)),"") ->  | AN11: =IFERROR($D11*INDEX(IF($A11="COM",COM_LT,IF($A11="EDU",EDU_LT,IF($A11="INT",INT_LT,RES_LT))),MATCH((AN$5-$C11),Lifetimes!$A$10:$A$39,0),MATCH($B11,Lifetimes!$P$9:$AB$9,0)),"") ->  | AO11: =IFERROR($D11*INDEX(IF($A11="COM",COM_LT,IF($A11="EDU",EDU_LT,IF($A11="INT",INT_LT,RES_LT))),MATCH((AO$5-$C11),Lifetimes!$A$10:$A$39,0),MATCH($B11,Lifetimes!$P$9:$AB$9,0)),"") ->  | AP11: =IFERROR($D11*INDEX(IF($A11="COM",COM_LT,IF($A11="EDU",EDU_LT,IF($A11="INT",INT_LT,RES_LT))),MATCH((AP$5-$C11),Lifetimes!$A$10:$A$39,0),MATCH($B11,Lifetimes!$P$9:$AB$9,0)),"") ->  | AQ11: =IFERROR($D11*INDEX(IF($A11="COM",COM_LT,IF($A11="EDU",EDU_LT,IF($A11="INT",INT_LT,RES_LT))),MATCH((AQ$5-$C11),Lifetimes!$A$10:$A$39,0),MATCH($B11,Lifetimes!$P$9:$AB$9,0)),"") ->  | AR11: =IFERROR($D11*INDEX(IF($A11="COM",COM_LT,IF($A11="EDU",EDU_LT,IF($A11="INT",INT_LT,RES_LT))),MATCH((AR$5-$C11),Lifetimes!$A$10:$A$39,0),MATCH($B11,Lifetimes!$P$9:$AB$9,0)),"") ->  | AS11: =IFERROR($D11*INDEX(IF($A11="COM",COM_LT,IF($A11="EDU",EDU_LT,IF($A11="INT",INT_LT,RES_LT))),MATCH((AS$5-$C11),Lifetimes!$A$10:$A$39,0),MATCH($B11,Lifetimes!$P$9:$AB$9,0)),"") ->  | AT11: =IFERROR($D11*INDEX(IF($A11="COM",COM_LT,IF($A11="EDU",EDU_LT,IF($A11="INT",INT_LT,RES_LT))),MATCH((AT$5-$C11),Lifetimes!$A$10:$A$39,0),MATCH($B11,Lifetimes!$P$9:$AB$9,0)),"") ->  | AU11: =IFERROR($D11*INDEX(IF($A11="COM",COM_LT,IF($A11="EDU",EDU_LT,IF($A11="INT",INT_LT,RES_LT))),MATCH((AU$5-$C11),Lifetimes!$A$10:$A$39,0),MATCH($B11,Lifetimes!$P$9:$AB$9,0)),"") ->  | AV11: =IFERROR($D11*INDEX(IF($A11="COM",COM_LT,IF($A11="EDU",EDU_LT,IF($A11="INT",INT_LT,RES_LT))),MATCH((AV$5-$C11),Lifetimes!$A$10:$A$39,0),MATCH($B11,Lifetimes!$P$9:$AB$9,0)),"") ->  | AW11: =IFERROR($D11*INDEX(IF($A11="COM",COM_LT,IF($A11="EDU",EDU_LT,IF($A11="INT",INT_LT,RES_LT))),MATCH((AW$5-$C11),Lifetimes!$A$10:$A$39,0),MATCH($B11,Lifetimes!$P$9:$AB$9,0)),"") ->  | AX11: =IFERROR($D11*INDEX(IF($A11="COM",COM_LT,IF($A11="EDU",EDU_LT,IF($A11="INT",INT_LT,RES_LT))),MATCH((AX$5-$C11),Lifetimes!$A$10:$A$39,0),MATCH($B11,Lifetimes!$P$9:$AB$9,0)),"") ->  | AY11: =IFERROR($D11*INDEX(IF($A11="COM",COM_LT,IF($A11="EDU",EDU_LT,IF($A11="INT",INT_LT,RES_LT))),MATCH((AY$5-$C11),Lifetimes!$A$10:$A$39,0),MATCH($B11,Lifetimes!$P$9:$AB$9,0)),"") ->  | AZ11: =IFERROR($D11*INDEX(IF($A11="COM",COM_LT,IF($A11="EDU",EDU_LT,IF($A11="INT",INT_LT,RES_LT))),MATCH((AZ$5-$C11),Lifetimes!$A$10:$A$39,0),MATCH($B11,Lifetimes!$P$9:$AB$9,0)),"") ->  | BA11: =IFERROR($D11*INDEX(IF($A11="COM",COM_LT,IF($A11="EDU",EDU_LT,IF($A11="INT",INT_LT,RES_LT))),MATCH((BA$5-$C11),Lifetimes!$A$10:$A$39,0),MATCH($B11,Lifetimes!$P$9:$AB$9,0)),"") ->  | BB11: =IFERROR($D11*INDEX(IF($A11="COM",COM_LT,IF($A11="EDU",EDU_LT,IF($A11="INT",INT_LT,RES_LT))),MATCH((BB$5-$C11),Lifetimes!$A$10:$A$39,0),MATCH($B11,Lifetimes!$P$9:$AB$9,0)),"") ->  | BC11: =IFERROR($D11*INDEX(IF($A11="COM",COM_LT,IF($A11="EDU",EDU_LT,IF($A11="INT",INT_LT,RES_LT))),MATCH((BC$5-$C11),Lifetimes!$A$10:$A$39,0),MATCH($B11,Lifetimes!$P$9:$AB$9,0)),"") ->  | BD11: =IFERROR($D11*INDEX(IF($A11="COM",COM_LT,IF($A11="EDU",EDU_LT,IF($A11="INT",INT_LT,RES_LT))),MATCH((BD$5-$C11),Lifetimes!$A$10:$A$39,0),MATCH($B11,Lifetimes!$P$9:$AB$9,0)),"") ->  | BE11: =IFERROR($D11*INDEX(IF($A11="COM",COM_LT,IF($A11="EDU",EDU_LT,IF($A11="INT",INT_LT,RES_LT))),MATCH((BE$5-$C11),Lifetimes!$A$10:$A$39,0),MATCH($B11,Lifetimes!$P$9:$AB$9,0)),"") ->  | BF11: =IFERROR($D11*INDEX(IF($A11="COM",COM_LT,IF($A11="EDU",EDU_LT,IF($A11="INT",INT_LT,RES_LT))),MATCH((BF$5-$C11),Lifetimes!$A$10:$A$39,0),MATCH($B11,Lifetimes!$P$9:$AB$9,0)),"") ->  | BG11: =IFERROR($D11*INDEX(IF($A11="COM",COM_LT,IF($A11="EDU",EDU_LT,IF($A11="INT",INT_LT,RES_LT))),MATCH((BG$5-$C11),Lifetimes!$A$10:$A$39,0),MATCH($B11,Lifetimes!$P$9:$AB$9,0)),"") ->  | BH11: =IFERROR($D11*INDEX(IF($A11="COM",COM_LT,IF($A11="EDU",EDU_LT,IF($A11="INT",INT_LT,RES_LT))),MATCH((BH$5-$C11),Lifetimes!$A$10:$A$39,0),MATCH($B11,Lifetimes!$P$9:$AB$9,0)),"") ->  | BI11: =IFERROR($D11*INDEX(IF($A11="COM",COM_LT,IF($A11="EDU",EDU_LT,IF($A11="INT",INT_LT,RES_LT))),MATCH((BI$5-$C11),Lifetimes!$A$10:$A$39,0),MATCH($B11,Lifetimes!$P$9:$AB$9,0)),"") ->  | BJ11: =IFERROR($D11*INDEX(IF($A11="COM",COM_LT,IF($A11="EDU",EDU_LT,IF($A11="INT",INT_LT,RES_LT))),MATCH((BJ$5-$C11),Lifetimes!$A$10:$A$39,0),MATCH($B11,Lifetimes!$P$9:$AB$9,0)),"") ->  | BK11: =IFERROR($D11*INDEX(IF($A11="COM",COM_LT,IF($A11="EDU",EDU_LT,IF($A11="INT",INT_LT,RES_LT))),MATCH((BK$5-$C11),Lifetimes!$A$10:$A$39,0),MATCH($B11,Lifetimes!$P$9:$AB$9,0)),"") ->  | BL11: =IFERROR($D11*INDEX(IF($A11="COM",COM_LT,IF($A11="EDU",EDU_LT,IF($A11="INT",INT_LT,RES_LT))),MATCH((BL$5-$C11),Lifetimes!$A$10:$A$39,0),MATCH($B11,Lifetimes!$P$9:$AB$9,0)),"") ->  | BM11: =IFERROR($D11*INDEX(IF($A11="COM",COM_LT,IF($A11="EDU",EDU_LT,IF($A11="INT",INT_LT,RES_LT))),MATCH((BM$5-$C11),Lifetimes!$A$10:$A$39,0),MATCH($B11,Lifetimes!$P$9:$AB$9,0)),"") ->  | BN11: =IFERROR($D11*INDEX(IF($A11="COM",COM_LT,IF($A11="EDU",EDU_LT,IF($A11="INT",INT_LT,RES_LT))),MATCH((BN$5-$C11),Lifetimes!$A$10:$A$39,0),MATCH($B11,Lifetimes!$P$9:$AB$9,0)),"") -> 
A12: INT | B12: Cell Phones | C12: 1981 | D12: =INDEX(RSWC,MATCH($B12&$C12,RegSalesWeight_Consumer!$L$8:$L$813,0),MATCH($A12,market_group,0)) -> 0 | E12: =IFERROR($D12*INDEX(IF($A12="COM",COM_LT,IF($A12="EDU",EDU_LT,IF($A12="INT",INT_LT,RES_LT))),MATCH((E$5-$C12),Lifetimes!$A$10:$A$39,0),MATCH($B12,Lifetimes!$P$9:$AB$9,0)),"") ->  | F12: =IFERROR($D12*INDEX(IF($A12="COM",COM_LT,IF($A12="EDU",EDU_LT,IF($A12="INT",INT_LT,RES_LT))),MATCH((F$5-$C12),Lifetimes!$A$10:$A$39,0),MATCH($B12,Lifetimes!$P$9:$AB$9,0)),"") ->  | G12: =IFERROR($D12*INDEX(IF($A12="COM",COM_LT,IF($A12="EDU",EDU_LT,IF($A12="INT",INT_LT,RES_LT))),MATCH((G$5-$C12),Lifetimes!$A$10:$A$39,0),MATCH($B12,Lifetimes!$P$9:$AB$9,0)),"") -> 0 | H12: =IFERROR($D12*INDEX(IF($A12="COM",COM_LT,IF($A12="EDU",EDU_LT,IF($A12="INT",INT_LT,RES_LT))),MATCH((H$5-$C12),Lifetimes!$A$10:$A$39,0),MATCH($B12,Lifetimes!$P$9:$AB$9,0)),"") -> 0 | I12: =IFERROR($D12*INDEX(IF($A12="COM",COM_LT,IF($A12="EDU",EDU_LT,IF($A12="INT",INT_LT,RES_LT))),MATCH((I$5-$C12),Lifetimes!$A$10:$A$39,0),MATCH($B12,Lifetimes!$P$9:$AB$9,0)),"") -> 0 | J12: =IFERROR($D12*INDEX(IF($A12="COM",COM_LT,IF($A12="EDU",EDU_LT,IF($A12="INT",INT_LT,RES_LT))),MATCH((J$5-$C12),Lifetimes!$A$10:$A$39,0),MATCH($B12,Lifetimes!$P$9:$AB$9,0)),"") -> 0 | K12: =IFERROR($D12*INDEX(IF($A12="COM",COM_LT,IF($A12="EDU",EDU_LT,IF($A12="INT",INT_LT,RES_LT))),MATCH((K$5-$C12),Lifetimes!$A$10:$A$39,0),MATCH($B12,Lifetimes!$P$9:$AB$9,0)),"") -> 0 | L12: =IFERROR($D12*INDEX(IF($A12="COM",COM_LT,IF($A12="EDU",EDU_LT,IF($A12="INT",INT_LT,RES_LT))),MATCH((L$5-$C12),Lifetimes!$A$10:$A$39,0),MATCH($B12,Lifetimes!$P$9:$AB$9,0)),"") -> 0 | M12: =IFERROR($D12*INDEX(IF($A12="COM",COM_LT,IF($A12="EDU",EDU_LT,IF($A12="INT",INT_LT,RES_LT))),MATCH((M$5-$C12),Lifetimes!$A$10:$A$39,0),MATCH($B12,Lifetimes!$P$9:$AB$9,0)),"") -> 0 | N12: =IFERROR($D12*INDEX(IF($A12="COM",COM_LT,IF($A12="EDU",EDU_LT,IF($A12="INT",INT_LT,RES_LT))),MATCH((N$5-$C12),Lifetimes!$A$10:$A$39,0),MATCH($B12,Lifetimes!$P$9:$AB$9,0)),"") -> 0 | O12: =IFERROR($D12*INDEX(IF($A12="COM",COM_LT,IF($A12="EDU",EDU_LT,IF($A12="INT",INT_LT,RES_LT))),MATCH((O$5-$C12),Lifetimes!$A$10:$A$39,0),MATCH($B12,Lifetimes!$P$9:$AB$9,0)),"") -> 0 | P12: =IFERROR($D12*INDEX(IF($A12="COM",COM_LT,IF($A12="EDU",EDU_LT,IF($A12="INT",INT_LT,RES_LT))),MATCH((P$5-$C12),Lifetimes!$A$10:$A$39,0),MATCH($B12,Lifetimes!$P$9:$AB$9,0)),"") -> 0 | Q12: =IFERROR($D12*INDEX(IF($A12="COM",COM_LT,IF($A12="EDU",EDU_LT,IF($A12="INT",INT_LT,RES_LT))),MATCH((Q$5-$C12),Lifetimes!$A$10:$A$39,0),MATCH($B12,Lifetimes!$P$9:$AB$9,0)),"") -> 0 | R12: =IFERROR($D12*INDEX(IF($A12="COM",COM_LT,IF($A12="EDU",EDU_LT,IF($A12="INT",INT_LT,RES_LT))),MATCH((R$5-$C12),Lifetimes!$A$10:$A$39,0),MATCH($B12,Lifetimes!$P$9:$AB$9,0)),"") -> 0 | S12: =IFERROR($D12*INDEX(IF($A12="COM",COM_LT,IF($A12="EDU",EDU_LT,IF($A12="INT",INT_LT,RES_LT))),MATCH((S$5-$C12),Lifetimes!$A$10:$A$39,0),MATCH($B12,Lifetimes!$P$9:$AB$9,0)),"") -> 0 | T12: =IFERROR($D12*INDEX(IF($A12="COM",COM_LT,IF($A12="EDU",EDU_LT,IF($A12="INT",INT_LT,RES_LT))),MATCH((T$5-$C12),Lifetimes!$A$10:$A$39,0),MATCH($B12,Lifetimes!$P$9:$AB$9,0)),"") -> 0 | U12: =IFERROR($D12*INDEX(IF($A12="COM",COM_LT,IF($A12="EDU",EDU_LT,IF($A12="INT",INT_LT,RES_LT))),MATCH((U$5-$C12),Lifetimes!$A$10:$A$39,0),MATCH($B12,Lifetimes!$P$9:$AB$9,0)),"") -> 0 | V12: =IFERROR($D12*INDEX(IF($A12="COM",COM_LT,IF($A12="EDU",EDU_LT,IF($A12="INT",INT_LT,RES_LT))),MATCH((V$5-$C12),Lifetimes!$A$10:$A$39,0),MATCH($B12,Lifetimes!$P$9:$AB$9,0)),"") -> 0 | W12: =IFERROR($D12*INDEX(IF($A12="COM",COM_LT,IF($A12="EDU",EDU_LT,IF($A12="INT",INT_LT,RES_LT))),MATCH((W$5-$C12),Lifetimes!$A$10:$A$39,0),MATCH($B12,Lifetimes!$P$9:$AB$9,0)),"") -> 0 | X12: =IFERROR($D12*INDEX(IF($A12="COM",COM_LT,IF($A12="EDU",EDU_LT,IF($A12="INT",INT_LT,RES_LT))),MATCH((X$5-$C12),Lifetimes!$A$10:$A$39,0),MATCH($B12,Lifetimes!$P$9:$AB$9,0)),"") -> 0 | Y12: =IFERROR($D12*INDEX(IF($A12="COM",COM_LT,IF($A12="EDU",EDU_LT,IF($A12="INT",INT_LT,RES_LT))),MATCH((Y$5-$C12),Lifetimes!$A$10:$A$39,0),MATCH($B12,Lifetimes!$P$9:$AB$9,0)),"") -> 0 | Z12: =IFERROR($D12*INDEX(IF($A12="COM",COM_LT,IF($A12="EDU",EDU_LT,IF($A12="INT",INT_LT,RES_LT))),MATCH((Z$5-$C12),Lifetimes!$A$10:$A$39,0),MATCH($B12,Lifetimes!$P$9:$AB$9,0)),"") -> 0 | AA12: =IFERROR($D12*INDEX(IF($A12="COM",COM_LT,IF($A12="EDU",EDU_LT,IF($A12="INT",INT_LT,RES_LT))),MATCH((AA$5-$C12),Lifetimes!$A$10:$A$39,0),MATCH($B12,Lifetimes!$P$9:$AB$9,0)),"") -> 0 | AB12: =IFERROR($D12*INDEX(IF($A12="COM",COM_LT,IF($A12="EDU",EDU_LT,IF($A12="INT",INT_LT,RES_LT))),MATCH((AB$5-$C12),Lifetimes!$A$10:$A$39,0),MATCH($B12,Lifetimes!$P$9:$AB$9,0)),"") -> 0 | AC12: =IFERROR($D12*INDEX(IF($A12="COM",COM_LT,IF($A12="EDU",EDU_LT,IF($A12="INT",INT_LT,RES_LT))),MATCH((AC$5-$C12),Lifetimes!$A$10:$A$39,0),MATCH($B12,Lifetimes!$P$9:$AB$9,0)),"") -> 0 | AD12: =IFERROR($D12*INDEX(IF($A12="COM",COM_LT,IF($A12="EDU",EDU_LT,IF($A12="INT",INT_LT,RES_LT))),MATCH((AD$5-$C12),Lifetimes!$A$10:$A$39,0),MATCH($B12,Lifetimes!$P$9:$AB$9,0)),"") -> 0 | AE12: =IFERROR($D12*INDEX(IF($A12="COM",COM_LT,IF($A12="EDU",EDU_LT,IF($A12="INT",INT_LT,RES_LT))),MATCH((AE$5-$C12),Lifetimes!$A$10:$A$39,0),MATCH($B12,Lifetimes!$P$9:$AB$9,0)),"") -> 0 | AF12: =IFERROR($D12*INDEX(IF($A12="COM",COM_LT,IF($A12="EDU",EDU_LT,IF($A12="INT",INT_LT,RES_LT))),MATCH((AF$5-$C12),Lifetimes!$A$10:$A$39,0),MATCH($B12,Lifetimes!$P$9:$AB$9,0)),"") -> 0 | AG12: =IFERROR($D12*INDEX(IF($A12="COM",COM_LT,IF($A12="EDU",EDU_LT,IF($A12="INT",INT_LT,RES_LT))),MATCH((AG$5-$C12),Lifetimes!$A$10:$A$39,0),MATCH($B12,Lifetimes!$P$9:$AB$9,0)),"") -> 0 | AH12: =IFERROR($D12*INDEX(IF($A12="COM",COM_LT,IF($A12="EDU",EDU_LT,IF($A12="INT",INT_LT,RES_LT))),MATCH((AH$5-$C12),Lifetimes!$A$10:$A$39,0),MATCH($B12,Lifetimes!$P$9:$AB$9,0)),"") -> 0 | AI12: =IFERROR($D12*INDEX(IF($A12="COM",COM_LT,IF($A12="EDU",EDU_LT,IF($A12="INT",INT_LT,RES_LT))),MATCH((AI$5-$C12),Lifetimes!$A$10:$A$39,0),MATCH($B12,Lifetimes!$P$9:$AB$9,0)),"") -> 0 | AJ12: =IFERROR($D12*INDEX(IF($A12="COM",COM_LT,IF($A12="EDU",EDU_LT,IF($A12="INT",INT_LT,RES_LT))),MATCH((AJ$5-$C12),Lifetimes!$A$10:$A$39,0),MATCH($B12,Lifetimes!$P$9:$AB$9,0)),"") -> 0 | AK12: =IFERROR($D12*INDEX(IF($A12="COM",COM_LT,IF($A12="EDU",EDU_LT,IF($A12="INT",INT_LT,RES_LT))),MATCH((AK$5-$C12),Lifetimes!$A$10:$A$39,0),MATCH($B12,Lifetimes!$P$9:$AB$9,0)),"") ->  | AL12: =IFERROR($D12*INDEX(IF($A12="COM",COM_LT,IF($A12="EDU",EDU_LT,IF($A12="INT",INT_LT,RES_LT))),MATCH((AL$5-$C12),Lifetimes!$A$10:$A$39,0),MATCH($B12,Lifetimes!$P$9:$AB$9,0)),"") ->  | AM12: =IFERROR($D12*INDEX(IF($A12="COM",COM_LT,IF($A12="EDU",EDU_LT,IF($A12="INT",INT_LT,RES_LT))),MATCH((AM$5-$C12),Lifetimes!$A$10:$A$39,0),MATCH($B12,Lifetimes!$P$9:$AB$9,0)),"") ->  | AN12: =IFERROR($D12*INDEX(IF($A12="COM",COM_LT,IF($A12="EDU",EDU_LT,IF($A12="INT",INT_LT,RES_LT))),MATCH((AN$5-$C12),Lifetimes!$A$10:$A$39,0),MATCH($B12,Lifetimes!$P$9:$AB$9,0)),"") ->  | AO12: =IFERROR($D12*INDEX(IF($A12="COM",COM_LT,IF($A12="EDU",EDU_LT,IF($A12="INT",INT_LT,RES_LT))),MATCH((AO$5-$C12),Lifetimes!$A$10:$A$39,0),MATCH($B12,Lifetimes!$P$9:$AB$9,0)),"") ->  | AP12: =IFERROR($D12*INDEX(IF($A12="COM",COM_LT,IF($A12="EDU",EDU_LT,IF($A12="INT",INT_LT,RES_LT))),MATCH((AP$5-$C12),Lifetimes!$A$10:$A$39,0),MATCH($B12,Lifetimes!$P$9:$AB$9,0)),"") ->  | AQ12: =IFERROR($D12*INDEX(IF($A12="COM",COM_LT,IF($A12="EDU",EDU_LT,IF($A12="INT",INT_LT,RES_LT))),MATCH((AQ$5-$C12),Lifetimes!$A$10:$A$39,0),MATCH($B12,Lifetimes!$P$9:$AB$9,0)),"") ->  | AR12: =IFERROR($D12*INDEX(IF($A12="COM",COM_LT,IF($A12="EDU",EDU_LT,IF($A12="INT",INT_LT,RES_LT))),MATCH((AR$5-$C12),Lifetimes!$A$10:$A$39,0),MATCH($B12,Lifetimes!$P$9:$AB$9,0)),"") ->  | AS12: =IFERROR($D12*INDEX(IF($A12="COM",COM_LT,IF($A12="EDU",EDU_LT,IF($A12="INT",INT_LT,RES_LT))),MATCH((AS$5-$C12),Lifetimes!$A$10:$A$39,0),MATCH($B12,Lifetimes!$P$9:$AB$9,0)),"") ->  | AT12: =IFERROR($D12*INDEX(IF($A12="COM",COM_LT,IF($A12="EDU",EDU_LT,IF($A12="INT",INT_LT,RES_LT))),MATCH((AT$5-$C12),Lifetimes!$A$10:$A$39,0),MATCH($B12,Lifetimes!$P$9:$AB$9,0)),"") ->  | AU12: =IFERROR($D12*INDEX(IF($A12="COM",COM_LT,IF($A12="EDU",EDU_LT,IF($A12="INT",INT_LT,RES_LT))),MATCH((AU$5-$C12),Lifetimes!$A$10:$A$39,0),MATCH($B12,Lifetimes!$P$9:$AB$9,0)),"") ->  | AV12: =IFERROR($D12*INDEX(IF($A12="COM",COM_LT,IF($A12="EDU",EDU_LT,IF($A12="INT",INT_LT,RES_LT))),MATCH((AV$5-$C12),Lifetimes!$A$10:$A$39,0),MATCH($B12,Lifetimes!$P$9:$AB$9,0)),"") ->  | AW12: =IFERROR($D12*INDEX(IF($A12="COM",COM_LT,IF($A12="EDU",EDU_LT,IF($A12="INT",INT_LT,RES_LT))),MATCH((AW$5-$C12),Lifetimes!$A$10:$A$39,0),MATCH($B12,Lifetimes!$P$9:$AB$9,0)),"") ->  | AX12: =IFERROR($D12*INDEX(IF($A12="COM",COM_LT,IF($A12="EDU",EDU_LT,IF($A12="INT",INT_LT,RES_LT))),MATCH((AX$5-$C12),Lifetimes!$A$10:$A$39,0),MATCH($B12,Lifetimes!$P$9:$AB$9,0)),"") ->  | AY12: =IFERROR($D12*INDEX(IF($A12="COM",COM_LT,IF($A12="EDU",EDU_LT,IF($A12="INT",INT_LT,RES_LT))),MATCH((AY$5-$C12),Lifetimes!$A$10:$A$39,0),MATCH($B12,Lifetimes!$P$9:$AB$9,0)),"") ->  | AZ12: =IFERROR($D12*INDEX(IF($A12="COM",COM_LT,IF($A12="EDU",EDU_LT,IF($A12="INT",INT_LT,RES_LT))),MATCH((AZ$5-$C12),Lifetimes!$A$10:$A$39,0),MATCH($B12,Lifetimes!$P$9:$AB$9,0)),"") ->  | BA12: =IFERROR($D12*INDEX(IF($A12="COM",COM_LT,IF($A12="EDU",EDU_LT,IF($A12="INT",INT_LT,RES_LT))),MATCH((BA$5-$C12),Lifetimes!$A$10:$A$39,0),MATCH($B12,Lifetimes!$P$9:$AB$9,0)),"") ->  | BB12: =IFERROR($D12*INDEX(IF($A12="COM",COM_LT,IF($A12="EDU",EDU_LT,IF($A12="INT",INT_LT,RES_LT))),MATCH((BB$5-$C12),Lifetimes!$A$10:$A$39,0),MATCH($B12,Lifetimes!$P$9:$AB$9,0)),"") ->  | BC12: =IFERROR($D12*INDEX(IF($A12="COM",COM_LT,IF($A12="EDU",EDU_LT,IF($A12="INT",INT_LT,RES_LT))),MATCH((BC$5-$C12),Lifetimes!$A$10:$A$39,0),MATCH($B12,Lifetimes!$P$9:$AB$9,0)),"") ->  | BD12: =IFERROR($D12*INDEX(IF($A12="COM",COM_LT,IF($A12="EDU",EDU_LT,IF($A12="INT",INT_LT,RES_LT))),MATCH((BD$5-$C12),Lifetimes!$A$10:$A$39,0),MATCH($B12,Lifetimes!$P$9:$AB$9,0)),"") ->  | BE12: =IFERROR($D12*INDEX(IF($A12="COM",COM_LT,IF($A12="EDU",EDU_LT,IF($A12="INT",INT_LT,RES_LT))),MATCH((BE$5-$C12),Lifetimes!$A$10:$A$39,0),MATCH($B12,Lifetimes!$P$9:$AB$9,0)),"") ->  | BF12: =IFERROR($D12*INDEX(IF($A12="COM",COM_LT,IF($A12="EDU",EDU_LT,IF($A12="INT",INT_LT,RES_LT))),MATCH((BF$5-$C12),Lifetimes!$A$10:$A$39,0),MATCH($B12,Lifetimes!$P$9:$AB$9,0)),"") ->  | BG12: =IFERROR($D12*INDEX(IF($A12="COM",COM_LT,IF($A12="EDU",EDU_LT,IF($A12="INT",INT_LT,RES_LT))),MATCH((BG$5-$C12),Lifetimes!$A$10:$A$39,0),MATCH($B12,Lifetimes!$P$9:$AB$9,0)),"") ->  | BH12: =IFERROR($D12*INDEX(IF($A12="COM",COM_LT,IF($A12="EDU",EDU_LT,IF($A12="INT",INT_LT,RES_LT))),MATCH((BH$5-$C12),Lifetimes!$A$10:$A$39,0),MATCH($B12,Lifetimes!$P$9:$AB$9,0)),"") ->  | BI12: =IFERROR($D12*INDEX(IF($A12="COM",COM_LT,IF($A12="EDU",EDU_LT,IF($A12="INT",INT_LT,RES_LT))),MATCH((BI$5-$C12),Lifetimes!$A$10:$A$39,0),MATCH($B12,Lifetimes!$P$9:$AB$9,0)),"") ->  | BJ12: =IFERROR($D12*INDEX(IF($A12="COM",COM_LT,IF($A12="EDU",EDU_LT,IF($A12="INT",INT_LT,RES_LT))),MATCH((BJ$5-$C12),Lifetimes!$A$10:$A$39,0),MATCH($B12,Lifetimes!$P$9:$AB$9,0)),"") ->  | BK12: =IFERROR($D12*INDEX(IF($A12="COM",COM_LT,IF($A12="EDU",EDU_LT,IF($A12="INT",INT_LT,RES_LT))),MATCH((BK$5-$C12),Lifetimes!$A$10:$A$39,0),MATCH($B12,Lifetimes!$P$9:$AB$9,0)),"") ->  | BL12: =IFERROR($D12*INDEX(IF($A12="COM",COM_LT,IF($A12="EDU",EDU_LT,IF($A12="INT",INT_LT,RES_LT))),MATCH((BL$5-$C12),Lifetimes!$A$10:$A$39,0),MATCH($B12,Lifetimes!$P$9:$AB$9,0)),"") ->  | BM12: =IFERROR($D12*INDEX(IF($A12="COM",COM_LT,IF($A12="EDU",EDU_LT,IF($A12="INT",INT_LT,RES_LT))),MATCH((BM$5-$C12),Lifetimes!$A$10:$A$39,0),MATCH($B12,Lifetimes!$P$9:$AB$9,0)),"") ->  | BN12: =IFERROR($D12*INDEX(IF($A12="COM",COM_LT,IF($A12="EDU",EDU_LT,IF($A12="INT",INT_LT,RES_LT))),MATCH((BN$5-$C12),Lifetimes!$A$10:$A$39,0),MATCH($B12,Lifetimes!$P$9:$AB$9,0)),"") -> 
A13: RES | B13: Cell Phones | C13: 1981 | D13: =INDEX(RSWC,MATCH($B13&$C13,RegSalesWeight_Consumer!$L$8:$L$813,0),MATCH($A13,market_group,0)) -> 0 | E13: =IFERROR($D13*INDEX(IF($A13="COM",COM_LT,IF($A13="EDU",EDU_LT,IF($A13="INT",INT_LT,RES_LT))),MATCH((E$5-$C13),Lifetimes!$A$10:$A$39,0),MATCH($B13,Lifetimes!$P$9:$AB$9,0)),"") ->  | F13: =IFERROR($D13*INDEX(IF($A13="COM",COM_LT,IF($A13="EDU",EDU_LT,IF($A13="INT",INT_LT,RES_LT))),MATCH((F$5-$C13),Lifetimes!$A$10:$A$39,0),MATCH($B13,Lifetimes!$P$9:$AB$9,0)),"") ->  | G13: =IFERROR($D13*INDEX(IF($A13="COM",COM_LT,IF($A13="EDU",EDU_LT,IF($A13="INT",INT_LT,RES_LT))),MATCH((G$5-$C13),Lifetimes!$A$10:$A$39,0),MATCH($B13,Lifetimes!$P$9:$AB$9,0)),"") -> 0 | H13: =IFERROR($D13*INDEX(IF($A13="COM",COM_LT,IF($A13="EDU",EDU_LT,IF($A13="INT",INT_LT,RES_LT))),MATCH((H$5-$C13),Lifetimes!$A$10:$A$39,0),MATCH($B13,Lifetimes!$P$9:$AB$9,0)),"") -> 0 | I13: =IFERROR($D13*INDEX(IF($A13="COM",COM_LT,IF($A13="EDU",EDU_LT,IF($A13="INT",INT_LT,RES_LT))),MATCH((I$5-$C13),Lifetimes!$A$10:$A$39,0),MATCH($B13,Lifetimes!$P$9:$AB$9,0)),"") -> 0 | J13: =IFERROR($D13*INDEX(IF($A13="COM",COM_LT,IF($A13="EDU",EDU_LT,IF($A13="INT",INT_LT,RES_LT))),MATCH((J$5-$C13),Lifetimes!$A$10:$A$39,0),MATCH($B13,Lifetimes!$P$9:$AB$9,0)),"") -> 0 | K13: =IFERROR($D13*INDEX(IF($A13="COM",COM_LT,IF($A13="EDU",EDU_LT,IF($A13="INT",INT_LT,RES_LT))),MATCH((K$5-$C13),Lifetimes!$A$10:$A$39,0),MATCH($B13,Lifetimes!$P$9:$AB$9,0)),"") -> 0 | L13: =IFERROR($D13*INDEX(IF($A13="COM",COM_LT,IF($A13="EDU",EDU_LT,IF($A13="INT",INT_LT,RES_LT))),MATCH((L$5-$C13),Lifetimes!$A$10:$A$39,0),MATCH($B13,Lifetimes!$P$9:$AB$9,0)),"") -> 0 | M13: =IFERROR($D13*INDEX(IF($A13="COM",COM_LT,IF($A13="EDU",EDU_LT,IF($A13="INT",INT_LT,RES_LT))),MATCH((M$5-$C13),Lifetimes!$A$10:$A$39,0),MATCH($B13,Lifetimes!$P$9:$AB$9,0)),"") -> 0 | N13: =IFERROR($D13*INDEX(IF($A13="COM",COM_LT,IF($A13="EDU",EDU_LT,IF($A13="INT",INT_LT,RES_LT))),MATCH((N$5-$C13),Lifetimes!$A$10:$A$39,0),MATCH($B13,Lifetimes!$P$9:$AB$9,0)),"") -> 0 | O13: =IFERROR($D13*INDEX(IF($A13="COM",COM_LT,IF($A13="EDU",EDU_LT,IF($A13="INT",INT_LT,RES_LT))),MATCH((O$5-$C13),Lifetimes!$A$10:$A$39,0),MATCH($B13,Lifetimes!$P$9:$AB$9,0)),"") -> 0 | P13: =IFERROR($D13*INDEX(IF($A13="COM",COM_LT,IF($A13="EDU",EDU_LT,IF($A13="INT",INT_LT,RES_LT))),MATCH((P$5-$C13),Lifetimes!$A$10:$A$39,0),MATCH($B13,Lifetimes!$P$9:$AB$9,0)),"") -> 0 | Q13: =IFERROR($D13*INDEX(IF($A13="COM",COM_LT,IF($A13="EDU",EDU_LT,IF($A13="INT",INT_LT,RES_LT))),MATCH((Q$5-$C13),Lifetimes!$A$10:$A$39,0),MATCH($B13,Lifetimes!$P$9:$AB$9,0)),"") -> 0 | R13: =IFERROR($D13*INDEX(IF($A13="COM",COM_LT,IF($A13="EDU",EDU_LT,IF($A13="INT",INT_LT,RES_LT))),MATCH((R$5-$C13),Lifetimes!$A$10:$A$39,0),MATCH($B13,Lifetimes!$P$9:$AB$9,0)),"") -> 0 | S13: =IFERROR($D13*INDEX(IF($A13="COM",COM_LT,IF($A13="EDU",EDU_LT,IF($A13="INT",INT_LT,RES_LT))),MATCH((S$5-$C13),Lifetimes!$A$10:$A$39,0),MATCH($B13,Lifetimes!$P$9:$AB$9,0)),"") -> 0 | T13: =IFERROR($D13*INDEX(IF($A13="COM",COM_LT,IF($A13="EDU",EDU_LT,IF($A13="INT",INT_LT,RES_LT))),MATCH((T$5-$C13),Lifetimes!$A$10:$A$39,0),MATCH($B13,Lifetimes!$P$9:$AB$9,0)),"") -> 0 | U13: =IFERROR($D13*INDEX(IF($A13="COM",COM_LT,IF($A13="EDU",EDU_LT,IF($A13="INT",INT_LT,RES_LT))),MATCH((U$5-$C13),Lifetimes!$A$10:$A$39,0),MATCH($B13,Lifetimes!$P$9:$AB$9,0)),"") -> 0 | V13: =IFERROR($D13*INDEX(IF($A13="COM",COM_LT,IF($A13="EDU",EDU_LT,IF($A13="INT",INT_LT,RES_LT))),MATCH((V$5-$C13),Lifetimes!$A$10:$A$39,0),MATCH($B13,Lifetimes!$P$9:$AB$9,0)),"") -> 0 | W13: =IFERROR($D13*INDEX(IF($A13="COM",COM_LT,IF($A13="EDU",EDU_LT,IF($A13="INT",INT_LT,RES_LT))),MATCH((W$5-$C13),Lifetimes!$A$10:$A$39,0),MATCH($B13,Lifetimes!$P$9:$AB$9,0)),"") -> 0 | X13: =IFERROR($D13*INDEX(IF($A13="COM",COM_LT,IF($A13="EDU",EDU_LT,IF($A13="INT",INT_LT,RES_LT))),MATCH((X$5-$C13),Lifetimes!$A$10:$A$39,0),MATCH($B13,Lifetimes!$P$9:$AB$9,0)),"") -> 0 | Y13: =IFERROR($D13*INDEX(IF($A13="COM",COM_LT,IF($A13="EDU",EDU_LT,IF($A13="INT",INT_LT,RES_LT))),MATCH((Y$5-$C13),Lifetimes!$A$10:$A$39,0),MATCH($B13,Lifetimes!$P$9:$AB$9,0)),"") -> 0 | Z13: =IFERROR($D13*INDEX(IF($A13="COM",COM_LT,IF($A13="EDU",EDU_LT,IF($A13="INT",INT_LT,RES_LT))),MATCH((Z$5-$C13),Lifetimes!$A$10:$A$39,0),MATCH($B13,Lifetimes!$P$9:$AB$9,0)),"") -> 0 | AA13: =IFERROR($D13*INDEX(IF($A13="COM",COM_LT,IF($A13="EDU",EDU_LT,IF($A13="INT",INT_LT,RES_LT))),MATCH((AA$5-$C13),Lifetimes!$A$10:$A$39,0),MATCH($B13,Lifetimes!$P$9:$AB$9,0)),"") -> 0 | AB13: =IFERROR($D13*INDEX(IF($A13="COM",COM_LT,IF($A13="EDU",EDU_LT,IF($A13="INT",INT_LT,RES_LT))),MATCH((AB$5-$C13),Lifetimes!$A$10:$A$39,0),MATCH($B13,Lifetimes!$P$9:$AB$9,0)),"") -> 0 | AC13: =IFERROR($D13*INDEX(IF($A13="COM",COM_LT,IF($A13="EDU",EDU_LT,IF($A13="INT",INT_LT,RES_LT))),MATCH((AC$5-$C13),Lifetimes!$A$10:$A$39,0),MATCH($B13,Lifetimes!$P$9:$AB$9,0)),"") -> 0 | AD13: =IFERROR($D13*INDEX(IF($A13="COM",COM_LT,IF($A13="EDU",EDU_LT,IF($A13="INT",INT_LT,RES_LT))),MATCH((AD$5-$C13),Lifetimes!$A$10:$A$39,0),MATCH($B13,Lifetimes!$P$9:$AB$9,0)),"") -> 0 | AE13: =IFERROR($D13*INDEX(IF($A13="COM",COM_LT,IF($A13="EDU",EDU_LT,IF($A13="INT",INT_LT,RES_LT))),MATCH((AE$5-$C13),Lifetimes!$A$10:$A$39,0),MATCH($B13,Lifetimes!$P$9:$AB$9,0)),"") -> 0 | AF13: =IFERROR($D13*INDEX(IF($A13="COM",COM_LT,IF($A13="EDU",EDU_LT,IF($A13="INT",INT_LT,RES_LT))),MATCH((AF$5-$C13),Lifetimes!$A$10:$A$39,0),MATCH($B13,Lifetimes!$P$9:$AB$9,0)),"") -> 0 | AG13: =IFERROR($D13*INDEX(IF($A13="COM",COM_LT,IF($A13="EDU",EDU_LT,IF($A13="INT",INT_LT,RES_LT))),MATCH((AG$5-$C13),Lifetimes!$A$10:$A$39,0),MATCH($B13,Lifetimes!$P$9:$AB$9,0)),"") -> 0 | AH13: =IFERROR($D13*INDEX(IF($A13="COM",COM_LT,IF($A13="EDU",EDU_LT,IF($A13="INT",INT_LT,RES_LT))),MATCH((AH$5-$C13),Lifetimes!$A$10:$A$39,0),MATCH($B13,Lifetimes!$P$9:$AB$9,0)),"") -> 0 | AI13: =IFERROR($D13*INDEX(IF($A13="COM",COM_LT,IF($A13="EDU",EDU_LT,IF($A13="INT",INT_LT,RES_LT))),MATCH((AI$5-$C13),Lifetimes!$A$10:$A$39,0),MATCH($B13,Lifetimes!$P$9:$AB$9,0)),"") -> 0 | AJ13: =IFERROR($D13*INDEX(IF($A13="COM",COM_LT,IF($A13="EDU",EDU_LT,IF($A13="INT",INT_LT,RES_LT))),MATCH((AJ$5-$C13),Lifetimes!$A$10:$A$39,0),MATCH($B13,Lifetimes!$P$9:$AB$9,0)),"") -> 0 | AK13: =IFERROR($D13*INDEX(IF($A13="COM",COM_LT,IF($A13="EDU",EDU_LT,IF($A13="INT",INT_LT,RES_LT))),MATCH((AK$5-$C13),Lifetimes!$A$10:$A$39,0),MATCH($B13,Lifetimes!$P$9:$AB$9,0)),"") ->  | AL13: =IFERROR($D13*INDEX(IF($A13="COM",COM_LT,IF($A13="EDU",EDU_LT,IF($A13="INT",INT_LT,RES_LT))),MATCH((AL$5-$C13),Lifetimes!$A$10:$A$39,0),MATCH($B13,Lifetimes!$P$9:$AB$9,0)),"") ->  | AM13: =IFERROR($D13*INDEX(IF($A13="COM",COM_LT,IF($A13="EDU",EDU_LT,IF($A13="INT",INT_LT,RES_LT))),MATCH((AM$5-$C13),Lifetimes!$A$10:$A$39,0),MATCH($B13,Lifetimes!$P$9:$AB$9,0)),"") ->  | AN13: =IFERROR($D13*INDEX(IF($A13="COM",COM_LT,IF($A13="EDU",EDU_LT,IF($A13="INT",INT_LT,RES_LT))),MATCH((AN$5-$C13),Lifetimes!$A$10:$A$39,0),MATCH($B13,Lifetimes!$P$9:$AB$9,0)),"") ->  | AO13: =IFERROR($D13*INDEX(IF($A13="COM",COM_LT,IF($A13="EDU",EDU_LT,IF($A13="INT",INT_LT,RES_LT))),MATCH((AO$5-$C13),Lifetimes!$A$10:$A$39,0),MATCH($B13,Lifetimes!$P$9:$AB$9,0)),"") ->  | AP13: =IFERROR($D13*INDEX(IF($A13="COM",COM_LT,IF($A13="EDU",EDU_LT,IF($A13="INT",INT_LT,RES_LT))),MATCH((AP$5-$C13),Lifetimes!$A$10:$A$39,0),MATCH($B13,Lifetimes!$P$9:$AB$9,0)),"") ->  | AQ13: =IFERROR($D13*INDEX(IF($A13="COM",COM_LT,IF($A13="EDU",EDU_LT,IF($A13="INT",INT_LT,RES_LT))),MATCH((AQ$5-$C13),Lifetimes!$A$10:$A$39,0),MATCH($B13,Lifetimes!$P$9:$AB$9,0)),"") ->  | AR13: =IFERROR($D13*INDEX(IF($A13="COM",COM_LT,IF($A13="EDU",EDU_LT,IF($A13="INT",INT_LT,RES_LT))),MATCH((AR$5-$C13),Lifetimes!$A$10:$A$39,0),MATCH($B13,Lifetimes!$P$9:$AB$9,0)),"") ->  | AS13: =IFERROR($D13*INDEX(IF($A13="COM",COM_LT,IF($A13="EDU",EDU_LT,IF($A13="INT",INT_LT,RES_LT))),MATCH((AS$5-$C13),Lifetimes!$A$10:$A$39,0),MATCH($B13,Lifetimes!$P$9:$AB$9,0)),"") ->  | AT13: =IFERROR($D13*INDEX(IF($A13="COM",COM_LT,IF($A13="EDU",EDU_LT,IF($A13="INT",INT_LT,RES_LT))),MATCH((AT$5-$C13),Lifetimes!$A$10:$A$39,0),MATCH($B13,Lifetimes!$P$9:$AB$9,0)),"") ->  | AU13: =IFERROR($D13*INDEX(IF($A13="COM",COM_LT,IF($A13="EDU",EDU_LT,IF($A13="INT",INT_LT,RES_LT))),MATCH((AU$5-$C13),Lifetimes!$A$10:$A$39,0),MATCH($B13,Lifetimes!$P$9:$AB$9,0)),"") ->  | AV13: =IFERROR($D13*INDEX(IF($A13="COM",COM_LT,IF($A13="EDU",EDU_LT,IF($A13="INT",INT_LT,RES_LT))),MATCH((AV$5-$C13),Lifetimes!$A$10:$A$39,0),MATCH($B13,Lifetimes!$P$9:$AB$9,0)),"") ->  | AW13: =IFERROR($D13*INDEX(IF($A13="COM",COM_LT,IF($A13="EDU",EDU_LT,IF($A13="INT",INT_LT,RES_LT))),MATCH((AW$5-$C13),Lifetimes!$A$10:$A$39,0),MATCH($B13,Lifetimes!$P$9:$AB$9,0)),"") ->  | AX13: =IFERROR($D13*INDEX(IF($A13="COM",COM_LT,IF($A13="EDU",EDU_LT,IF($A13="INT",INT_LT,RES_LT))),MATCH((AX$5-$C13),Lifetimes!$A$10:$A$39,0),MATCH($B13,Lifetimes!$P$9:$AB$9,0)),"") ->  | AY13: =IFERROR($D13*INDEX(IF($A13="COM",COM_LT,IF($A13="EDU",EDU_LT,IF($A13="INT",INT_LT,RES_LT))),MATCH((AY$5-$C13),Lifetimes!$A$10:$A$39,0),MATCH($B13,Lifetimes!$P$9:$AB$9,0)),"") ->  | AZ13: =IFERROR($D13*INDEX(IF($A13="COM",COM_LT,IF($A13="EDU",EDU_LT,IF($A13="INT",INT_LT,RES_LT))),MATCH((AZ$5-$C13),Lifetimes!$A$10:$A$39,0),MATCH($B13,Lifetimes!$P$9:$AB$9,0)),"") ->  | BA13: =IFERROR($D13*INDEX(IF($A13="COM",COM_LT,IF($A13="EDU",EDU_LT,IF($A13="INT",INT_LT,RES_LT))),MATCH((BA$5-$C13),Lifetimes!$A$10:$A$39,0),MATCH($B13,Lifetimes!$P$9:$AB$9,0)),"") ->  | BB13: =IFERROR($D13*INDEX(IF($A13="COM",COM_LT,IF($A13="EDU",EDU_LT,IF($A13="INT",INT_LT,RES_LT))),MATCH((BB$5-$C13),Lifetimes!$A$10:$A$39,0),MATCH($B13,Lifetimes!$P$9:$AB$9,0)),"") ->  | BC13: =IFERROR($D13*INDEX(IF($A13="COM",COM_LT,IF($A13="EDU",EDU_LT,IF($A13="INT",INT_LT,RES_LT))),MATCH((BC$5-$C13),Lifetimes!$A$10:$A$39,0),MATCH($B13,Lifetimes!$P$9:$AB$9,0)),"") ->  | BD13: =IFERROR($D13*INDEX(IF($A13="COM",COM_LT,IF($A13="EDU",EDU_LT,IF($A13="INT",INT_LT,RES_LT))),MATCH((BD$5-$C13),Lifetimes!$A$10:$A$39,0),MATCH($B13,Lifetimes!$P$9:$AB$9,0)),"") ->  | BE13: =IFERROR($D13*INDEX(IF($A13="COM",COM_LT,IF($A13="EDU",EDU_LT,IF($A13="INT",INT_LT,RES_LT))),MATCH((BE$5-$C13),Lifetimes!$A$10:$A$39,0),MATCH($B13,Lifetimes!$P$9:$AB$9,0)),"") ->  | BF13: =IFERROR($D13*INDEX(IF($A13="COM",COM_LT,IF($A13="EDU",EDU_LT,IF($A13="INT",INT_LT,RES_LT))),MATCH((BF$5-$C13),Lifetimes!$A$10:$A$39,0),MATCH($B13,Lifetimes!$P$9:$AB$9,0)),"") ->  | BG13: =IFERROR($D13*INDEX(IF($A13="COM",COM_LT,IF($A13="EDU",EDU_LT,IF($A13="INT",INT_LT,RES_LT))),MATCH((BG$5-$C13),Lifetimes!$A$10:$A$39,0),MATCH($B13,Lifetimes!$P$9:$AB$9,0)),"") ->  | BH13: =IFERROR($D13*INDEX(IF($A13="COM",COM_LT,IF($A13="EDU",EDU_LT,IF($A13="INT",INT_LT,RES_LT))),MATCH((BH$5-$C13),Lifetimes!$A$10:$A$39,0),MATCH($B13,Lifetimes!$P$9:$AB$9,0)),"") ->  | BI13: =IFERROR($D13*INDEX(IF($A13="COM",COM_LT,IF($A13="EDU",EDU_LT,IF($A13="INT",INT_LT,RES_LT))),MATCH((BI$5-$C13),Lifetimes!$A$10:$A$39,0),MATCH($B13,Lifetimes!$P$9:$AB$9,0)),"") ->  | BJ13: =IFERROR($D13*INDEX(IF($A13="COM",COM_LT,IF($A13="EDU",EDU_LT,IF($A13="INT",INT_LT,RES_LT))),MATCH((BJ$5-$C13),Lifetimes!$A$10:$A$39,0),MATCH($B13,Lifetimes!$P$9:$AB$9,0)),"") ->  | BK13: =IFERROR($D13*INDEX(IF($A13="COM",COM_LT,IF($A13="EDU",EDU_LT,IF($A13="INT",INT_LT,RES_LT))),MATCH((BK$5-$C13),Lifetimes!$A$10:$A$39,0),MATCH($B13,Lifetimes!$P$9:$AB$9,0)),"") ->  | BL13: =IFERROR($D13*INDEX(IF($A13="COM",COM_LT,IF($A13="EDU",EDU_LT,IF($A13="INT",INT_LT,RES_LT))),MATCH((BL$5-$C13),Lifetimes!$A$10:$A$39,0),MATCH($B13,Lifetimes!$P$9:$AB$9,0)),"") ->  | BM13: =IFERROR($D13*INDEX(IF($A13="COM",COM_LT,IF($A13="EDU",EDU_LT,IF($A13="INT",INT_LT,RES_LT))),MATCH((BM$5-$C13),Lifetimes!$A$10:$A$39,0),MATCH($B13,Lifetimes!$P$9:$AB$9,0)),"") ->  | BN13: =IFERROR($D13*INDEX(IF($A13="COM",COM_LT,IF($A13="EDU",EDU_LT,IF($A13="INT",INT_LT,RES_LT))),MATCH((BN$5-$C13),Lifetimes!$A$10:$A$39,0),MATCH($B13,Lifetimes!$P$9:$AB$9,0)),"") -> 
A14: COM | B14: Cell Phones | C14: 1982 | D14: =INDEX(RSWC,MATCH($B14&$C14,RegSalesWeight_Consumer!$L$8:$L$813,0),MATCH($A14,market_group,0)) -> 0 | E14: =IFERROR($D14*INDEX(IF($A14="COM",COM_LT,IF($A14="EDU",EDU_LT,IF($A14="INT",INT_LT,RES_LT))),MATCH((E$5-$C14),Lifetimes!$A$10:$A$39,0),MATCH($B14,Lifetimes!$P$9:$AB$9,0)),"") ->  | F14: =IFERROR($D14*INDEX(IF($A14="COM",COM_LT,IF($A14="EDU",EDU_LT,IF($A14="INT",INT_LT,RES_LT))),MATCH((F$5-$C14),Lifetimes!$A$10:$A$39,0),MATCH($B14,Lifetimes!$P$9:$AB$9,0)),"") ->  | G14: =IFERROR($D14*INDEX(IF($A14="COM",COM_LT,IF($A14="EDU",EDU_LT,IF($A14="INT",INT_LT,RES_LT))),MATCH((G$5-$C14),Lifetimes!$A$10:$A$39,0),MATCH($B14,Lifetimes!$P$9:$AB$9,0)),"") ->  | H14: =IFERROR($D14*INDEX(IF($A14="COM",COM_LT,IF($A14="EDU",EDU_LT,IF($A14="INT",INT_LT,RES_LT))),MATCH((H$5-$C14),Lifetimes!$A$10:$A$39,0),MATCH($B14,Lifetimes!$P$9:$AB$9,0)),"") -> 0 | I14: =IFERROR($D14*INDEX(IF($A14="COM",COM_LT,IF($A14="EDU",EDU_LT,IF($A14="INT",INT_LT,RES_LT))),MATCH((I$5-$C14),Lifetimes!$A$10:$A$39,0),MATCH($B14,Lifetimes!$P$9:$AB$9,0)),"") -> 0 | J14: =IFERROR($D14*INDEX(IF($A14="COM",COM_LT,IF($A14="EDU",EDU_LT,IF($A14="INT",INT_LT,RES_LT))),MATCH((J$5-$C14),Lifetimes!$A$10:$A$39,0),MATCH($B14,Lifetimes!$P$9:$AB$9,0)),"") -> 0 | K14: =IFERROR($D14*INDEX(IF($A14="COM",COM_LT,IF($A14="EDU",EDU_LT,IF($A14="INT",INT_LT,RES_LT))),MATCH((K$5-$C14),Lifetimes!$A$10:$A$39,0),MATCH($B14,Lifetimes!$P$9:$AB$9,0)),"") -> 0 | L14: =IFERROR($D14*INDEX(IF($A14="COM",COM_LT,IF($A14="EDU",EDU_LT,IF($A14="INT",INT_LT,RES_LT))),MATCH((L$5-$C14),Lifetimes!$A$10:$A$39,0),MATCH($B14,Lifetimes!$P$9:$AB$9,0)),"") -> 0 | M14: =IFERROR($D14*INDEX(IF($A14="COM",COM_LT,IF($A14="EDU",EDU_LT,IF($A14="INT",INT_LT,RES_LT))),MATCH((M$5-$C14),Lifetimes!$A$10:$A$39,0),MATCH($B14,Lifetimes!$P$9:$AB$9,0)),"") -> 0 | N14: =IFERROR($D14*INDEX(IF($A14="COM",COM_LT,IF($A14="EDU",EDU_LT,IF($A14="INT",INT_LT,RES_LT))),MATCH((N$5-$C14),Lifetimes!$A$10:$A$39,0),MATCH($B14,Lifetimes!$P$9:$AB$9,0)),"") -> 0 | O14: =IFERROR($D14*INDEX(IF($A14="COM",COM_LT,IF($A14="EDU",EDU_LT,IF($A14="INT",INT_LT,RES_LT))),MATCH((O$5-$C14),Lifetimes!$A$10:$A$39,0),MATCH($B14,Lifetimes!$P$9:$AB$9,0)),"") -> 0 | P14: =IFERROR($D14*INDEX(IF($A14="COM",COM_LT,IF($A14="EDU",EDU_LT,IF($A14="INT",INT_LT,RES_LT))),MATCH((P$5-$C14),Lifetimes!$A$10:$A$39,0),MATCH($B14,Lifetimes!$P$9:$AB$9,0)),"") -> 0 | Q14: =IFERROR($D14*INDEX(IF($A14="COM",COM_LT,IF($A14="EDU",EDU_LT,IF($A14="INT",INT_LT,RES_LT))),MATCH((Q$5-$C14),Lifetimes!$A$10:$A$39,0),MATCH($B14,Lifetimes!$P$9:$AB$9,0)),"") -> 0 | R14: =IFERROR($D14*INDEX(IF($A14="COM",COM_LT,IF($A14="EDU",EDU_LT,IF($A14="INT",INT_LT,RES_LT))),MATCH((R$5-$C14),Lifetimes!$A$10:$A$39,0),MATCH($B14,Lifetimes!$P$9:$AB$9,0)),"") -> 0 | S14: =IFERROR($D14*INDEX(IF($A14="COM",COM_LT,IF($A14="EDU",EDU_LT,IF($A14="INT",INT_LT,RES_LT))),MATCH((S$5-$C14),Lifetimes!$A$10:$A$39,0),MATCH($B14,Lifetimes!$P$9:$AB$9,0)),"") -> 0 | T14: =IFERROR($D14*INDEX(IF($A14="COM",COM_LT,IF($A14="EDU",EDU_LT,IF($A14="INT",INT_LT,RES_LT))),MATCH((T$5-$C14),Lifetimes!$A$10:$A$39,0),MATCH($B14,Lifetimes!$P$9:$AB$9,0)),"") -> 0 | U14: =IFERROR($D14*INDEX(IF($A14="COM",COM_LT,IF($A14="EDU",EDU_LT,IF($A14="INT",INT_LT,RES_LT))),MATCH((U$5-$C14),Lifetimes!$A$10:$A$39,0),MATCH($B14,Lifetimes!$P$9:$AB$9,0)),"") -> 0 | V14: =IFERROR($D14*INDEX(IF($A14="COM",COM_LT,IF($A14="EDU",EDU_LT,IF($A14="INT",INT_LT,RES_LT))),MATCH((V$5-$C14),Lifetimes!$A$10:$A$39,0),MATCH($B14,Lifetimes!$P$9:$AB$9,0)),"") -> 0 | W14: =IFERROR($D14*INDEX(IF($A14="COM",COM_LT,IF($A14="EDU",EDU_LT,IF($A14="INT",INT_LT,RES_LT))),MATCH((W$5-$C14),Lifetimes!$A$10:$A$39,0),MATCH($B14,Lifetimes!$P$9:$AB$9,0)),"") -> 0 | X14: =IFERROR($D14*INDEX(IF($A14="COM",COM_LT,IF($A14="EDU",EDU_LT,IF($A14="INT",INT_LT,RES_LT))),MATCH((X$5-$C14),Lifetimes!$A$10:$A$39,0),MATCH($B14,Lifetimes!$P$9:$AB$9,0)),"") -> 0 | Y14: =IFERROR($D14*INDEX(IF($A14="COM",COM_LT,IF($A14="EDU",EDU_LT,IF($A14="INT",INT_LT,RES_LT))),MATCH((Y$5-$C14),Lifetimes!$A$10:$A$39,0),MATCH($B14,Lifetimes!$P$9:$AB$9,0)),"") -> 0 | Z14: =IFERROR($D14*INDEX(IF($A14="COM",COM_LT,IF($A14="EDU",EDU_LT,IF($A14="INT",INT_LT,RES_LT))),MATCH((Z$5-$C14),Lifetimes!$A$10:$A$39,0),MATCH($B14,Lifetimes!$P$9:$AB$9,0)),"") -> 0 | AA14: =IFERROR($D14*INDEX(IF($A14="COM",COM_LT,IF($A14="EDU",EDU_LT,IF($A14="INT",INT_LT,RES_LT))),MATCH((AA$5-$C14),Lifetimes!$A$10:$A$39,0),MATCH($B14,Lifetimes!$P$9:$AB$9,0)),"") -> 0 | AB14: =IFERROR($D14*INDEX(IF($A14="COM",COM_LT,IF($A14="EDU",EDU_LT,IF($A14="INT",INT_LT,RES_LT))),MATCH((AB$5-$C14),Lifetimes!$A$10:$A$39,0),MATCH($B14,Lifetimes!$P$9:$AB$9,0)),"") -> 0 | AC14: =IFERROR($D14*INDEX(IF($A14="COM",COM_LT,IF($A14="EDU",EDU_LT,IF($A14="INT",INT_LT,RES_LT))),MATCH((AC$5-$C14),Lifetimes!$A$10:$A$39,0),MATCH($B14,Lifetimes!$P$9:$AB$9,0)),"") -> 0 | AD14: =IFERROR($D14*INDEX(IF($A14="COM",COM_LT,IF($A14="EDU",EDU_LT,IF($A14="INT",INT_LT,RES_LT))),MATCH((AD$5-$C14),Lifetimes!$A$10:$A$39,0),MATCH($B14,Lifetimes!$P$9:$AB$9,0)),"") -> 0 | AE14: =IFERROR($D14*INDEX(IF($A14="COM",COM_LT,IF($A14="EDU",EDU_LT,IF($A14="INT",INT_LT,RES_LT))),MATCH((AE$5-$C14),Lifetimes!$A$10:$A$39,0),MATCH($B14,Lifetimes!$P$9:$AB$9,0)),"") -> 0 | AF14: =IFERROR($D14*INDEX(IF($A14="COM",COM_LT,IF($A14="EDU",EDU_LT,IF($A14="INT",INT_LT,RES_LT))),MATCH((AF$5-$C14),Lifetimes!$A$10:$A$39,0),MATCH($B14,Lifetimes!$P$9:$AB$9,0)),"") -> 0 | AG14: =IFERROR($D14*INDEX(IF($A14="COM",COM_LT,IF($A14="EDU",EDU_LT,IF($A14="INT",INT_LT,RES_LT))),MATCH((AG$5-$C14),Lifetimes!$A$10:$A$39,0),MATCH($B14,Lifetimes!$P$9:$AB$9,0)),"") -> 0 | AH14: =IFERROR($D14*INDEX(IF($A14="COM",COM_LT,IF($A14="EDU",EDU_LT,IF($A14="INT",INT_LT,RES_LT))),MATCH((AH$5-$C14),Lifetimes!$A$10:$A$39,0),MATCH($B14,Lifetimes!$P$9:$AB$9,0)),"") -> 0 | AI14: =IFERROR($D14*INDEX(IF($A14="COM",COM_LT,IF($A14="EDU",EDU_LT,IF($A14="INT",INT_LT,RES_LT))),MATCH((AI$5-$C14),Lifetimes!$A$10:$A$39,0),MATCH($B14,Lifetimes!$P$9:$AB$9,0)),"") -> 0 | AJ14: =IFERROR($D14*INDEX(IF($A14="COM",COM_LT,IF($A14="EDU",EDU_LT,IF($A14="INT",INT_LT,RES_LT))),MATCH((AJ$5-$C14),Lifetimes!$A$10:$A$39,0),MATCH($B14,Lifetimes!$P$9:$AB$9,0)),"") -> 0 | AK14: =IFERROR($D14*INDEX(IF($A14="COM",COM_LT,IF($A14="EDU",EDU_LT,IF($A14="INT",INT_LT,RES_LT))),MATCH((AK$5-$C14),Lifetimes!$A$10:$A$39,0),MATCH($B14,Lifetimes!$P$9:$AB$9,0)),"") -> 0 | AL14: =IFERROR($D14*INDEX(IF($A14="COM",COM_LT,IF($A14="EDU",EDU_LT,IF($A14="INT",INT_LT,RES_LT))),MATCH((AL$5-$C14),Lifetimes!$A$10:$A$39,0),MATCH($B14,Lifetimes!$P$9:$AB$9,0)),"") ->  | AM14: =IFERROR($D14*INDEX(IF($A14="COM",COM_LT,IF($A14="EDU",EDU_LT,IF($A14="INT",INT_LT,RES_LT))),MATCH((AM$5-$C14),Lifetimes!$A$10:$A$39,0),MATCH($B14,Lifetimes!$P$9:$AB$9,0)),"") ->  | AN14: =IFERROR($D14*INDEX(IF($A14="COM",COM_LT,IF($A14="EDU",EDU_LT,IF($A14="INT",INT_LT,RES_LT))),MATCH((AN$5-$C14),Lifetimes!$A$10:$A$39,0),MATCH($B14,Lifetimes!$P$9:$AB$9,0)),"") ->  | AO14: =IFERROR($D14*INDEX(IF($A14="COM",COM_LT,IF($A14="EDU",EDU_LT,IF($A14="INT",INT_LT,RES_LT))),MATCH((AO$5-$C14),Lifetimes!$A$10:$A$39,0),MATCH($B14,Lifetimes!$P$9:$AB$9,0)),"") ->  | AP14: =IFERROR($D14*INDEX(IF($A14="COM",COM_LT,IF($A14="EDU",EDU_LT,IF($A14="INT",INT_LT,RES_LT))),MATCH((AP$5-$C14),Lifetimes!$A$10:$A$39,0),MATCH($B14,Lifetimes!$P$9:$AB$9,0)),"") ->  | AQ14: =IFERROR($D14*INDEX(IF($A14="COM",COM_LT,IF($A14="EDU",EDU_LT,IF($A14="INT",INT_LT,RES_LT))),MATCH((AQ$5-$C14),Lifetimes!$A$10:$A$39,0),MATCH($B14,Lifetimes!$P$9:$AB$9,0)),"") ->  | AR14: =IFERROR($D14*INDEX(IF($A14="COM",COM_LT,IF($A14="EDU",EDU_LT,IF($A14="INT",INT_LT,RES_LT))),MATCH((AR$5-$C14),Lifetimes!$A$10:$A$39,0),MATCH($B14,Lifetimes!$P$9:$AB$9,0)),"") ->  | AS14: =IFERROR($D14*INDEX(IF($A14="COM",COM_LT,IF($A14="EDU",EDU_LT,IF($A14="INT",INT_LT,RES_LT))),MATCH((AS$5-$C14),Lifetimes!$A$10:$A$39,0),MATCH($B14,Lifetimes!$P$9:$AB$9,0)),"") ->  | AT14: =IFERROR($D14*INDEX(IF($A14="COM",COM_LT,IF($A14="EDU",EDU_LT,IF($A14="INT",INT_LT,RES_LT))),MATCH((AT$5-$C14),Lifetimes!$A$10:$A$39,0),MATCH($B14,Lifetimes!$P$9:$AB$9,0)),"") ->  | AU14: =IFERROR($D14*INDEX(IF($A14="COM",COM_LT,IF($A14="EDU",EDU_LT,IF($A14="INT",INT_LT,RES_LT))),MATCH((AU$5-$C14),Lifetimes!$A$10:$A$39,0),MATCH($B14,Lifetimes!$P$9:$AB$9,0)),"") ->  | AV14: =IFERROR($D14*INDEX(IF($A14="COM",COM_LT,IF($A14="EDU",EDU_LT,IF($A14="INT",INT_LT,RES_LT))),MATCH((AV$5-$C14),Lifetimes!$A$10:$A$39,0),MATCH($B14,Lifetimes!$P$9:$AB$9,0)),"") ->  | AW14: =IFERROR($D14*INDEX(IF($A14="COM",COM_LT,IF($A14="EDU",EDU_LT,IF($A14="INT",INT_LT,RES_LT))),MATCH((AW$5-$C14),Lifetimes!$A$10:$A$39,0),MATCH($B14,Lifetimes!$P$9:$AB$9,0)),"") ->  | AX14: =IFERROR($D14*INDEX(IF($A14="COM",COM_LT,IF($A14="EDU",EDU_LT,IF($A14="INT",INT_LT,RES_LT))),MATCH((AX$5-$C14),Lifetimes!$A$10:$A$39,0),MATCH($B14,Lifetimes!$P$9:$AB$9,0)),"") ->  | AY14: =IFERROR($D14*INDEX(IF($A14="COM",COM_LT,IF($A14="EDU",EDU_LT,IF($A14="INT",INT_LT,RES_LT))),MATCH((AY$5-$C14),Lifetimes!$A$10:$A$39,0),MATCH($B14,Lifetimes!$P$9:$AB$9,0)),"") ->  | AZ14: =IFERROR($D14*INDEX(IF($A14="COM",COM_LT,IF($A14="EDU",EDU_LT,IF($A14="INT",INT_LT,RES_LT))),MATCH((AZ$5-$C14),Lifetimes!$A$10:$A$39,0),MATCH($B14,Lifetimes!$P$9:$AB$9,0)),"") ->  | BA14: =IFERROR($D14*INDEX(IF($A14="COM",COM_LT,IF($A14="EDU",EDU_LT,IF($A14="INT",INT_LT,RES_LT))),MATCH((BA$5-$C14),Lifetimes!$A$10:$A$39,0),MATCH($B14,Lifetimes!$P$9:$AB$9,0)),"") ->  | BB14: =IFERROR($D14*INDEX(IF($A14="COM",COM_LT,IF($A14="EDU",EDU_LT,IF($A14="INT",INT_LT,RES_LT))),MATCH((BB$5-$C14),Lifetimes!$A$10:$A$39,0),MATCH($B14,Lifetimes!$P$9:$AB$9,0)),"") ->  | BC14: =IFERROR($D14*INDEX(IF($A14="COM",COM_LT,IF($A14="EDU",EDU_LT,IF($A14="INT",INT_LT,RES_LT))),MATCH((BC$5-$C14),Lifetimes!$A$10:$A$39,0),MATCH($B14,Lifetimes!$P$9:$AB$9,0)),"") ->  | BD14: =IFERROR($D14*INDEX(IF($A14="COM",COM_LT,IF($A14="EDU",EDU_LT,IF($A14="INT",INT_LT,RES_LT))),MATCH((BD$5-$C14),Lifetimes!$A$10:$A$39,0),MATCH($B14,Lifetimes!$P$9:$AB$9,0)),"") ->  | BE14: =IFERROR($D14*INDEX(IF($A14="COM",COM_LT,IF($A14="EDU",EDU_LT,IF($A14="INT",INT_LT,RES_LT))),MATCH((BE$5-$C14),Lifetimes!$A$10:$A$39,0),MATCH($B14,Lifetimes!$P$9:$AB$9,0)),"") ->  | BF14: =IFERROR($D14*INDEX(IF($A14="COM",COM_LT,IF($A14="EDU",EDU_LT,IF($A14="INT",INT_LT,RES_LT))),MATCH((BF$5-$C14),Lifetimes!$A$10:$A$39,0),MATCH($B14,Lifetimes!$P$9:$AB$9,0)),"") ->  | BG14: =IFERROR($D14*INDEX(IF($A14="COM",COM_LT,IF($A14="EDU",EDU_LT,IF($A14="INT",INT_LT,RES_LT))),MATCH((BG$5-$C14),Lifetimes!$A$10:$A$39,0),MATCH($B14,Lifetimes!$P$9:$AB$9,0)),"") ->  | BH14: =IFERROR($D14*INDEX(IF($A14="COM",COM_LT,IF($A14="EDU",EDU_LT,IF($A14="INT",INT_LT,RES_LT))),MATCH((BH$5-$C14),Lifetimes!$A$10:$A$39,0),MATCH($B14,Lifetimes!$P$9:$AB$9,0)),"") ->  | BI14: =IFERROR($D14*INDEX(IF($A14="COM",COM_LT,IF($A14="EDU",EDU_LT,IF($A14="INT",INT_LT,RES_LT))),MATCH((BI$5-$C14),Lifetimes!$A$10:$A$39,0),MATCH($B14,Lifetimes!$P$9:$AB$9,0)),"") ->  | BJ14: =IFERROR($D14*INDEX(IF($A14="COM",COM_LT,IF($A14="EDU",EDU_LT,IF($A14="INT",INT_LT,RES_LT))),MATCH((BJ$5-$C14),Lifetimes!$A$10:$A$39,0),MATCH($B14,Lifetimes!$P$9:$AB$9,0)),"") ->  | BK14: =IFERROR($D14*INDEX(IF($A14="COM",COM_LT,IF($A14="EDU",EDU_LT,IF($A14="INT",INT_LT,RES_LT))),MATCH((BK$5-$C14),Lifetimes!$A$10:$A$39,0),MATCH($B14,Lifetimes!$P$9:$AB$9,0)),"") ->  | BL14: =IFERROR($D14*INDEX(IF($A14="COM",COM_LT,IF($A14="EDU",EDU_LT,IF($A14="INT",INT_LT,RES_LT))),MATCH((BL$5-$C14),Lifetimes!$A$10:$A$39,0),MATCH($B14,Lifetimes!$P$9:$AB$9,0)),"") ->  | BM14: =IFERROR($D14*INDEX(IF($A14="COM",COM_LT,IF($A14="EDU",EDU_LT,IF($A14="INT",INT_LT,RES_LT))),MATCH((BM$5-$C14),Lifetimes!$A$10:$A$39,0),MATCH($B14,Lifetimes!$P$9:$AB$9,0)),"") ->  | BN14: =IFERROR($D14*INDEX(IF($A14="COM",COM_LT,IF($A14="EDU",EDU_LT,IF($A14="INT",INT_LT,RES_LT))),MATCH((BN$5-$C14),Lifetimes!$A$10:$A$39,0),MATCH($B14,Lifetimes!$P$9:$AB$9,0)),"") -> 
